Workbook

Sheet Cover
A2: RIIO-2 Price Control Financial Model (PCFM)
B3: Gas Distribution
C4: Model Version | G4: =MID(CELL("filename"),SEARCH("[",CELL("filename"))+1,SEARCH("]",CELL("filename"))-SEARCH("[",CELL("filename"))-1) -> 
B7: Model key
E9: Sample | G9: Calculated value | I9: Sample | K9: Information and interface
E10: Sample | G10: Import | I10: Sample | K10: Fixed input value
E11: Sample | G11: Export | I11: Sample | K11: Ofgem annual update input (outturn value)
E12: Sample | G12: Named range | I12: Sample | K12: Ofgem annual update input (forecasted value)
E13: Sample | G13: Formula change in cells to the right | I13: Sample | K13: Other annual update input (outturn value)
I14: Sample | K14: Other annual update input (forecasted value)
I15: Sample | K15: Input linked from annual update
I16: Sample | K16: Notes and instructions
I17: Sample | K17: Check
B19: Contents
E21: INTERFACE > | I21: GENERAL INPUT SHEETS >
E22: Cover | G22: Model key and content directory | I22: Annual Inflation | K22: Derivation of annual inflation rates and price indices
E23: UserInterface | G23: Model operation | I23: Monthly Inflation | K23: Dataset and derivation of monthly inflation rates and price indices
E25: INPUT SELECTION > | I25: COMPANY SPECIFIC INPUT SHEETS >
E26: Input | G26: Inputs for selected licensee | I26: East | K26: Inputs for East
I27: London | K27: Inputs for London
E28: CALCULATION > | I28: North West | K28: Inputs for North West
E29: Totex | G29: Totex allowance and actuals | I29: West Midlands | K29: Inputs for West Midlands
E30: TIM | G30: Totex Incentive Mechanism and capitalisation | I30: Northern | K30: Inputs for Northern
E31: Depn | G31: Gas distribution regulatory depreciation | I31: Scotland | K31: Inputs for Scotland
E32: FuelPoor | G32: Fuel poor RAV calculations | I32: Southern | K32: Inputs for Southern
E33: Return&RAV | G33: RAV and return calculations | I33: Wales & West | K33: Inputs for Wales & West
E34: TaxPools | G34: Tax pools and capital allowances
E35: Finance&Tax | G35: Net debt, equity issuance, financing costs and tax
E36: ReturnAdj | G36: Calculations for the Return Adjustment
E37: Revenue | G37: Summary of calculated revenue
E38: AR | G38: Derivation of allowed revenue
E40: OUTPUT >
E41: LiveResults | G41: Results for selected company
E42: SavedResults | G42: Saved results for all companies
B44: End of sheet

Sheet UserInterface
A1: User Interface
B3: Model operation
C5: PCFM year t
C6: Instruction: Use the following drop-down list to identify year t in the model. Year t is identified here by its end date.
E8: Year t selection:
E10: Year t selected: | G10: =INDEX(NumberofYear,m_PCFM_year_t) -> 2026-03-31
C12: Active company
C13: Instruction: Use the following drop-down list to select the active company in the model.
E15: Company selection:
E17: Selected company: | G17: =INDEX(E37:E44, E45) -> East
C19: Run model for all licensees
C20: Instruction: Click on the left button to save results for the selected company only. Click the right button to save results for all.
C21: Note: Annual iterations must have been completed for all prior years before running the model to generate MOD.
C22: The macros save results and values required for future years which cannot be recreated once inputs are revised.
C23: Running the macro saves the output from year t's iteration for use in future iterations.
C24: Results for the selected company can be found on the "LiveResults" sheet and also on the "SavedResults" sheet once saved by a macro.
B30: User selection lists
B31: Note: The lists below drive the drop-down lists above.
B32: Using the drop-down lists above returns an integer in the "cell link" positioned below their "source list."
B33: The number returned in the cell link corresponds to the position of the selected item in the source list.
B34: The company selection output is set as a "named range." This gives a stable anchor point for the "RunForAll" macro to change the company.
E36: ="Source for ''"&C12&"'' drop-down list" -> Source for ''Active company'' drop-down list | G36: ="Source for ''"&C5&"'' drop-down list" -> Source for ''PCFM year t'' drop-down list
E37: East | G37: 2022-03-31
E38: London | G38: 2023-03-31
E39: North West | G39: 2024-03-31
E40: West Midlands | G40: 2025-03-31
E41: Northern | G41: 2026-03-31
E42: Scotland | G42: 2027-03-31
E43: Southern | G43: 2028-03-31
E44: Wales & West | G44: 5
E45: 1 | G45: Adjacent named range: m_PCFM_year_t
E46: Adjacent named range: m_identity
B48: End of sheet

Sheet Input
A1: Input
B2: =UserInterface!G17 -> East
E3: Parameter | F3: Licence condition | G3: Units | H3: Term | I3: Constant | AP3: Annual values | BB3: TIM/ Non-TIM | BC3: RPE Incl. or Excl. | BD3: Baseline/UM (Repex = 100% Capitalised) | BE3: Fast/slow split or 100% fast money award
E4: PCFM year ending | F4: =Cover!C4 -> Model Version | I4: =UserInterface!$G$10 -> 2026-03-31 | K4: 1991-03-31 | L4: 1992-03-31 | M4: 1993-03-31 | N4: 1994-03-31 | O4: 1995-03-31 | P4: 1996-03-31 | Q4: 1997-03-31 | R4: 1998-03-31 | S4: 1999-03-31 | T4: 2000-03-31 | U4: 2001-03-31 | V4: 2002-03-31 | W4: 2003-03-31 | X4: 2004-03-31 | Y4: 2005-03-31 | Z4: 2006-03-31 | AA4: 2007-03-31 | AB4: 2008-03-31 | AC4: 2009-03-31 | AD4: 2010-03-31 | AE4: 2011-03-31 | AF4: 2012-03-31 | AG4: 2013-03-31 | AH4: 2014-03-31 | AI4: 2015-03-31 | AJ4: 2016-03-31 | AK4: 2017-03-31 | AL4: 2018-03-31 | AM4: 2019-03-31 | AN4: 2020-03-31 | AO4: 2021-03-31 | AP4: 2022-03-31 | AQ4: 2023-03-31 | AR4: 2024-03-31 | AS4: 2025-03-31 | AT4: 2026-03-31
B6: Totex allowance
C8: Non-variant allowances (net of disposals)
C9: Note: Disposals net sales proceeds are deducted from non-variant "other capex".
E11: Non-variant allowed load related capex | G11: £m 18/19 prices | AP11: =CHOOSE(m_identity, East!AP10, London!AP10, 'North West'!AP10, 'West Midlands'!AP10, Northern!AP10, Scotland!AP10, Southern!AP10, 'Wales & West'!AP10) -> 16.99739046 | AQ11: =CHOOSE(m_identity, East!AQ10, London!AQ10, 'North West'!AQ10, 'West Midlands'!AQ10, Northern!AQ10, Scotland!AQ10, Southern!AQ10, 'Wales & West'!AQ10) -> 19.11259508 | AR11: =CHOOSE(m_identity, East!AR10, London!AR10, 'North West'!AR10, 'West Midlands'!AR10, Northern!AR10, Scotland!AR10, Southern!AR10, 'Wales & West'!AR10) -> 17.00526563 | AS11: =CHOOSE(m_identity, East!AS10, London!AS10, 'North West'!AS10, 'West Midlands'!AS10, Northern!AS10, Scotland!AS10, Southern!AS10, 'Wales & West'!AS10) -> 17.72044998 | AT11: =CHOOSE(m_identity, East!AT10, London!AT10, 'North West'!AT10, 'West Midlands'!AT10, Northern!AT10, Scotland!AT10, Southern!AT10, 'Wales & West'!AT10) -> 16.83921652
E12: Non-variant allowed non-load related capex - other (net of disposals) | G12: £m 18/19 prices | AP12: =- AP557 + CHOOSE(m_identity, East!AP11, London!AP11, 'North West'!AP11, 'West Midlands'!AP11, Northern!AP11, Scotland!AP11, Southern!AP11, 'Wales & West'!AP11) -> 27.25728705 | AQ12: =- AQ557 + CHOOSE(m_identity, East!AQ11, London!AQ11, 'North West'!AQ11, 'West Midlands'!AQ11, Northern!AQ11, Scotland!AQ11, Southern!AQ11, 'Wales & West'!AQ11) -> 24.19647538 | AR12: =- AR557 + CHOOSE(m_identity, East!AR11, London!AR11, 'North West'!AR11, 'West Midlands'!AR11, Northern!AR11, Scotland!AR11, Southern!AR11, 'Wales & West'!AR11) -> 25.83940517 | AS12: =- AS557 + CHOOSE(m_identity, East!AS11, London!AS11, 'North West'!AS11, 'West Midlands'!AS11, Northern!AS11, Scotland!AS11, Southern!AS11, 'Wales & West'!AS11) -> 23.49789824 | AT12: =- AT557 + CHOOSE(m_identity, East!AT11, London!AT11, 'North West'!AT11, 'West Midlands'!AT11, Northern!AT11, Scotland!AT11, Southern!AT11, 'Wales & West'!AT11) -> 14.61533692
E13: Non-variant allowed business support (opex) | G13: £m 18/19 prices | AP13: =CHOOSE(m_identity, East!AP12, London!AP12, 'North West'!AP12, 'West Midlands'!AP12, Northern!AP12, Scotland!AP12, Southern!AP12, 'Wales & West'!AP12) -> 25.40904017 | AQ13: =CHOOSE(m_identity, East!AQ12, London!AQ12, 'North West'!AQ12, 'West Midlands'!AQ12, Northern!AQ12, Scotland!AQ12, Southern!AQ12, 'Wales & West'!AQ12) -> 24.6893627 | AR13: =CHOOSE(m_identity, East!AR12, London!AR12, 'North West'!AR12, 'West Midlands'!AR12, Northern!AR12, Scotland!AR12, Southern!AR12, 'Wales & West'!AR12) -> 24.39175039 | AS13: =CHOOSE(m_identity, East!AS12, London!AS12, 'North West'!AS12, 'West Midlands'!AS12, Northern!AS12, Scotland!AS12, Southern!AS12, 'Wales & West'!AS12) -> 23.6437577 | AT13: =CHOOSE(m_identity, East!AT12, London!AT12, 'North West'!AT12, 'West Midlands'!AT12, Northern!AT12, Scotland!AT12, Southern!AT12, 'Wales & West'!AT12) -> 22.24382364
E14: Non-variant allowed directs opex | G14: £m 18/19 prices | AP14: =CHOOSE(m_identity, East!AP13, London!AP13, 'North West'!AP13, 'West Midlands'!AP13, Northern!AP13, Scotland!AP13, Southern!AP13, 'Wales & West'!AP13) -> 101.0299205 | AQ14: =CHOOSE(m_identity, East!AQ13, London!AQ13, 'North West'!AQ13, 'West Midlands'!AQ13, Northern!AQ13, Scotland!AQ13, Southern!AQ13, 'Wales & West'!AQ13) -> 97.05867957 | AR14: =CHOOSE(m_identity, East!AR13, London!AR13, 'North West'!AR13, 'West Midlands'!AR13, Northern!AR13, Scotland!AR13, Southern!AR13, 'Wales & West'!AR13) -> 100.9244204 | AS14: =CHOOSE(m_identity, East!AS13, London!AS13, 'North West'!AS13, 'West Midlands'!AS13, Northern!AS13, Scotland!AS13, Southern!AS13, 'Wales & West'!AS13) -> 92.83760909 | AT14: =CHOOSE(m_identity, East!AT13, London!AT13, 'North West'!AT13, 'West Midlands'!AT13, Northern!AT13, Scotland!AT13, Southern!AT13, 'Wales & West'!AT13) -> 94.73339452
E15: Non-variant allowed repex | G15: £m 18/19 prices | AP15: =CHOOSE(m_identity, East!AP14, London!AP14, 'North West'!AP14, 'West Midlands'!AP14, Northern!AP14, Scotland!AP14, Southern!AP14, 'Wales & West'!AP14) -> 3.908185845 | AQ15: =CHOOSE(m_identity, East!AQ14, London!AQ14, 'North West'!AQ14, 'West Midlands'!AQ14, Northern!AQ14, Scotland!AQ14, Southern!AQ14, 'Wales & West'!AQ14) -> 4.082420713 | AR15: =CHOOSE(m_identity, East!AR14, London!AR14, 'North West'!AR14, 'West Midlands'!AR14, Northern!AR14, Scotland!AR14, Southern!AR14, 'Wales & West'!AR14) -> 4.226547233 | AS15: =CHOOSE(m_identity, East!AS14, London!AS14, 'North West'!AS14, 'West Midlands'!AS14, Northern!AS14, Scotland!AS14, Southern!AS14, 'Wales & West'!AS14) -> 3.664939801 | AT15: =CHOOSE(m_identity, East!AT14, London!AT14, 'North West'!AT14, 'West Midlands'!AT14, Northern!AT14, Scotland!AT14, Southern!AT14, 'Wales & West'!AT14) -> 3.608782407
E16: Total | G16: £m 18/19 prices | AP16: =SUM(AP11:AP15) -> 174.6018241 | AQ16: =SUM(AQ11:AQ15) -> 169.1395334 | AR16: =SUM(AR11:AR15) -> 172.3873889 | AS16: =SUM(AS11:AS15) -> 161.3646548 | AT16: =SUM(AT11:AT15) -> 152.040554
C18: Variant allowances (including Real Price Effects)
C19: Note: In the table below RPEs are aggregated in three groups: RPE non-variant allowances, PCDs and UMs. This allows to apply the correct capitalisation rate to each group.
E21: =CHOOSE(m_identity, East!E19, London!E19, 'North West'!E19, 'West Midlands'!E19, Northern!E19, Scotland!E19, Southern!E19, 'Wales & West'!E19) -> Gas Holder demolitions Price Control Deliverable [WWU and NGN only] | F21: =CHOOSE(m_identity, East!F19, London!F19, 'North West'!F19, 'West Midlands'!F19, Northern!F19, Scotland!F19, Southern!F19, 'Wales & West'!F19) -> SpC 3.25 | G21: £m 18/19 prices | H21: =CHOOSE(m_identity, East!H19, London!H19, 'North West'!H19, 'West Midlands'!H19, Northern!H19, Scotland!H19, Southern!H19, 'Wales & West'!H19) -> GHRRt | I21: =CHOOSE(m_identity, East!I19, London!I19, 'North West'!I19, 'West Midlands'!I19, Northern!I19, Scotland!I19, Southern!I19, 'Wales & West'!I19) -> PCD | AP21: =CHOOSE(m_identity, East!AP19, London!AP19, 'North West'!AP19, 'West Midlands'!AP19, Northern!AP19, Scotland!AP19, Southern!AP19, 'Wales & West'!AP19) -> 0 | AQ21: =CHOOSE(m_identity, East!AQ19, London!AQ19, 'North West'!AQ19, 'West Midlands'!AQ19, Northern!AQ19, Scotland!AQ19, Southern!AQ19, 'Wales & West'!AQ19) -> 0 | AR21: =CHOOSE(m_identity, East!AR19, London!AR19, 'North West'!AR19, 'West Midlands'!AR19, Northern!AR19, Scotland!AR19, Southern!AR19, 'Wales & West'!AR19) -> 0 | AS21: =CHOOSE(m_identity, East!AS19, London!AS19, 'North West'!AS19, 'West Midlands'!AS19, Northern!AS19, Scotland!AS19, Southern!AS19, 'Wales & West'!AS19) -> 0 | AT21: =CHOOSE(m_identity, East!AT19, London!AT19, 'North West'!AT19, 'West Midlands'!AT19, Northern!AT19, Scotland!AT19, Southern!AT19, 'Wales & West'!AT19) -> 0 | BB21: =CHOOSE(m_identity, East!BB19, London!BB19, 'North West'!BB19, 'West Midlands'!BB19, Northern!BB19, Scotland!BB19, Southern!BB19, 'Wales & West'!BB19) -> TIM | BC21: =CHOOSE(m_identity, East!BC19, London!BC19, 'North West'!BC19, 'West Midlands'!BC19, Northern!BC19, Scotland!BC19, Southern!BC19, 'Wales & West'!BC19) -> RPEs Apply | BD21: =CHOOSE(m_identity, East!BD19, London!BD19, 'North West'!BD19, 'West Midlands'!BD19, Northern!BD19, Scotland!BD19, Southern!BD19, 'Wales & West'!BD19) -> CapRate 1 (Baseline excl. Repex) | BE21: =CHOOSE(m_identity, East!BE19, London!BE19, 'North West'!BE19, 'West Midlands'!BE19, Northern!BE19, Scotland!BE19, Southern!BE19, 'Wales & West'!BE19) -> Fast/Slow Split (excl repex)
E22: =CHOOSE(m_identity, East!E20, London!E20, 'North West'!E20, 'West Midlands'!E20, Northern!E20, Scotland!E20, Southern!E20, 'Wales & West'!E20) -> Baseline Network Risk Output | F22: =CHOOSE(m_identity, East!F20, London!F20, 'North West'!F20, 'West Midlands'!F20, Northern!F20, Scotland!F20, Southern!F20, 'Wales & West'!F20) -> SpC 3.1 | G22: £m 18/19 prices | H22: =CHOOSE(m_identity, East!H20, London!H20, 'North West'!H20, 'West Midlands'!H20, Northern!H20, Scotland!H20, Southern!H20, 'Wales & West'!H20) -> NARMt | I22: =CHOOSE(m_identity, East!I20, London!I20, 'North West'!I20, 'West Midlands'!I20, Northern!I20, Scotland!I20, Southern!I20, 'Wales & West'!I20) -> PCD | AP22: =CHOOSE(m_identity, East!AP20, London!AP20, 'North West'!AP20, 'West Midlands'!AP20, Northern!AP20, Scotland!AP20, Southern!AP20, 'Wales & West'!AP20) -> 23.71 | AQ22: =CHOOSE(m_identity, East!AQ20, London!AQ20, 'North West'!AQ20, 'West Midlands'!AQ20, Northern!AQ20, Scotland!AQ20, Southern!AQ20, 'Wales & West'!AQ20) -> 25.4 | AR22: =CHOOSE(m_identity, East!AR20, London!AR20, 'North West'!AR20, 'West Midlands'!AR20, Northern!AR20, Scotland!AR20, Southern!AR20, 'Wales & West'!AR20) -> 24.85 | AS22: =CHOOSE(m_identity, East!AS20, London!AS20, 'North West'!AS20, 'West Midlands'!AS20, Northern!AS20, Scotland!AS20, Southern!AS20, 'Wales & West'!AS20) -> 22.08 | AT22: =CHOOSE(m_identity, East!AT20, London!AT20, 'North West'!AT20, 'West Midlands'!AT20, Northern!AT20, Scotland!AT20, Southern!AT20, 'Wales & West'!AT20) -> 21.31 | BB22: =CHOOSE(m_identity, East!BB20, London!BB20, 'North West'!BB20, 'West Midlands'!BB20, Northern!BB20, Scotland!BB20, Southern!BB20, 'Wales & West'!BB20) -> TIM | BC22: =CHOOSE(m_identity, East!BC20, London!BC20, 'North West'!BC20, 'West Midlands'!BC20, Northern!BC20, Scotland!BC20, Southern!BC20, 'Wales & West'!BC20) -> RPEs Apply | BD22: =CHOOSE(m_identity, East!BD20, London!BD20, 'North West'!BD20, 'West Midlands'!BD20, Northern!BD20, Scotland!BD20, Southern!BD20, 'Wales & West'!BD20) -> CapRate 1 (Baseline excl. Repex) | BE22: =CHOOSE(m_identity, East!BE20, London!BE20, 'North West'!BE20, 'West Midlands'!BE20, Northern!BE20, Scotland!BE20, Southern!BE20, 'Wales & West'!BE20) -> Fast/Slow Split (excl repex)
E23: =CHOOSE(m_identity, East!E21, London!E21, 'North West'!E21, 'West Midlands'!E21, Northern!E21, Scotland!E21, Southern!E21, 'Wales & West'!E21) -> Tier 1 Mains decommissioned Price Control Deliverable | F23: =CHOOSE(m_identity, East!F21, London!F21, 'North West'!F21, 'West Midlands'!F21, Northern!F21, Scotland!F21, Southern!F21, 'Wales & West'!F21) -> SpC 3.10 | G23: £m 18/19 prices | H23: =CHOOSE(m_identity, East!H21, London!H21, 'North West'!H21, 'West Midlands'!H21, Northern!H21, Scotland!H21, Southern!H21, 'Wales & West'!H21) -> T1MDt | I23: =CHOOSE(m_identity, East!I21, London!I21, 'North West'!I21, 'West Midlands'!I21, Northern!I21, Scotland!I21, Southern!I21, 'Wales & West'!I21) -> PCD | AP23: =CHOOSE(m_identity, East!AP21, London!AP21, 'North West'!AP21, 'West Midlands'!AP21, Northern!AP21, Scotland!AP21, Southern!AP21, 'Wales & West'!AP21) -> 72.76566962 | AQ23: =CHOOSE(m_identity, East!AQ21, London!AQ21, 'North West'!AQ21, 'West Midlands'!AQ21, Northern!AQ21, Scotland!AQ21, Southern!AQ21, 'Wales & West'!AQ21) -> 71.44597974 | AR23: =CHOOSE(m_identity, East!AR21, London!AR21, 'North West'!AR21, 'West Midlands'!AR21, Northern!AR21, Scotland!AR21, Southern!AR21, 'Wales & West'!AR21) -> 70.75568042 | AS23: =CHOOSE(m_identity, East!AS21, London!AS21, 'North West'!AS21, 'West Midlands'!AS21, Northern!AS21, Scotland!AS21, Southern!AS21, 'Wales & West'!AS21) -> 70.04507817 | AT23: =CHOOSE(m_identity, East!AT21, London!AT21, 'North West'!AT21, 'West Midlands'!AT21, Northern!AT21, Scotland!AT21, Southern!AT21, 'Wales & West'!AT21) -> 69.32432447 | BB23: =CHOOSE(m_identity, East!BB21, London!BB21, 'North West'!BB21, 'West Midlands'!BB21, Northern!BB21, Scotland!BB21, Southern!BB21, 'Wales & West'!BB21) -> TIM | BC23: =CHOOSE(m_identity, East!BC21, London!BC21, 'North West'!BC21, 'West Midlands'!BC21, Northern!BC21, Scotland!BC21, Southern!BC21, 'Wales & West'!BC21) -> RPEs Apply | BD23: =CHOOSE(m_identity, East!BD21, London!BD21, 'North West'!BD21, 'West Midlands'!BD21, Northern!BD21, Scotland!BD21, Southern!BD21, 'Wales & West'!BD21) -> CapRate 1 (Baseline excl. Repex) | BE23: =CHOOSE(m_identity, East!BE21, London!BE21, 'North West'!BE21, 'West Midlands'!BE21, Northern!BE21, Scotland!BE21, Southern!BE21, 'Wales & West'!BE21) -> Fast/Slow Split (excl repex)
E24: =CHOOSE(m_identity, East!E22, London!E22, 'North West'!E22, 'West Midlands'!E22, Northern!E22, Scotland!E22, Southern!E22, 'Wales & West'!E22) -> Tier 1 Services Repex Price Control Deliverable | F24: =CHOOSE(m_identity, East!F22, London!F22, 'North West'!F22, 'West Midlands'!F22, Northern!F22, Scotland!F22, Southern!F22, 'Wales & West'!F22) -> SpC 3.11 | G24: £m 18/19 prices | H24: =CHOOSE(m_identity, East!H22, London!H22, 'North West'!H22, 'West Midlands'!H22, Northern!H22, Scotland!H22, Southern!H22, 'Wales & West'!H22) -> T1SRt | I24: =CHOOSE(m_identity, East!I22, London!I22, 'North West'!I22, 'West Midlands'!I22, Northern!I22, Scotland!I22, Southern!I22, 'Wales & West'!I22) -> PCD | AP24: =CHOOSE(m_identity, East!AP22, London!AP22, 'North West'!AP22, 'West Midlands'!AP22, Northern!AP22, Scotland!AP22, Southern!AP22, 'Wales & West'!AP22) -> 36.19523822 | AQ24: =CHOOSE(m_identity, East!AQ22, London!AQ22, 'North West'!AQ22, 'West Midlands'!AQ22, Northern!AQ22, Scotland!AQ22, Southern!AQ22, 'Wales & West'!AQ22) -> 35.81388151 | AR24: =CHOOSE(m_identity, East!AR22, London!AR22, 'North West'!AR22, 'West Midlands'!AR22, Northern!AR22, Scotland!AR22, Southern!AR22, 'Wales & West'!AR22) -> 35.54468854 | AS24: =CHOOSE(m_identity, East!AS22, London!AS22, 'North West'!AS22, 'West Midlands'!AS22, Northern!AS22, Scotland!AS22, Southern!AS22, 'Wales & West'!AS22) -> 35.15211546 | AT24: =CHOOSE(m_identity, East!AT22, London!AT22, 'North West'!AT22, 'West Midlands'!AT22, Northern!AT22, Scotland!AT22, Southern!AT22, 'Wales & West'!AT22) -> 34.78197513 | BB24: =CHOOSE(m_identity, East!BB22, London!BB22, 'North West'!BB22, 'West Midlands'!BB22, Northern!BB22, Scotland!BB22, Southern!BB22, 'Wales & West'!BB22) -> TIM | BC24: =CHOOSE(m_identity, East!BC22, London!BC22, 'North West'!BC22, 'West Midlands'!BC22, Northern!BC22, Scotland!BC22, Southern!BC22, 'Wales & West'!BC22) -> RPEs Apply | BD24: =CHOOSE(m_identity, East!BD22, London!BD22, 'North West'!BD22, 'West Midlands'!BD22, Northern!BD22, Scotland!BD22, Southern!BD22, 'Wales & West'!BD22) -> CapRate 1 (Baseline excl. Repex) | BE24: =CHOOSE(m_identity, East!BE22, London!BE22, 'North West'!BE22, 'West Midlands'!BE22, Northern!BE22, Scotland!BE22, Southern!BE22, 'Wales & West'!BE22) -> Fast/Slow Split (excl repex)
E25: =CHOOSE(m_identity, East!E23, London!E23, 'North West'!E23, 'West Midlands'!E23, Northern!E23, Scotland!E23, Southern!E23, 'Wales & West'!E23) -> Biomethane improved access rollout Price Control Deliverable [SGN only] | F25: =CHOOSE(m_identity, East!F23, London!F23, 'North West'!F23, 'West Midlands'!F23, Northern!F23, Scotland!F23, Southern!F23, 'Wales & West'!F23) -> SpC 3.30 | G25: £m 18/19 prices | H25: =CHOOSE(m_identity, East!H23, London!H23, 'North West'!H23, 'West Midlands'!H23, Northern!H23, Scotland!H23, Southern!H23, 'Wales & West'!H23) -> BMIt | I25: =CHOOSE(m_identity, East!I23, London!I23, 'North West'!I23, 'West Midlands'!I23, Northern!I23, Scotland!I23, Southern!I23, 'Wales & West'!I23) -> PCD | AP25: =CHOOSE(m_identity, East!AP23, London!AP23, 'North West'!AP23, 'West Midlands'!AP23, Northern!AP23, Scotland!AP23, Southern!AP23, 'Wales & West'!AP23) -> 0 | AQ25: =CHOOSE(m_identity, East!AQ23, London!AQ23, 'North West'!AQ23, 'West Midlands'!AQ23, Northern!AQ23, Scotland!AQ23, Southern!AQ23, 'Wales & West'!AQ23) -> 0 | AR25: =CHOOSE(m_identity, East!AR23, London!AR23, 'North West'!AR23, 'West Midlands'!AR23, Northern!AR23, Scotland!AR23, Southern!AR23, 'Wales & West'!AR23) -> 0 | AS25: =CHOOSE(m_identity, East!AS23, London!AS23, 'North West'!AS23, 'West Midlands'!AS23, Northern!AS23, Scotland!AS23, Southern!AS23, 'Wales & West'!AS23) -> 0 | AT25: =CHOOSE(m_identity, East!AT23, London!AT23, 'North West'!AT23, 'West Midlands'!AT23, Northern!AT23, Scotland!AT23, Southern!AT23, 'Wales & West'!AT23) -> 0 | BB25: =CHOOSE(m_identity, East!BB23, London!BB23, 'North West'!BB23, 'West Midlands'!BB23, Northern!BB23, Scotland!BB23, Southern!BB23, 'Wales & West'!BB23) -> TIM | BC25: =CHOOSE(m_identity, East!BC23, London!BC23, 'North West'!BC23, 'West Midlands'!BC23, Northern!BC23, Scotland!BC23, Southern!BC23, 'Wales & West'!BC23) -> RPEs Apply | BD25: =CHOOSE(m_identity, East!BD23, London!BD23, 'North West'!BD23, 'West Midlands'!BD23, Northern!BD23, Scotland!BD23, Southern!BD23, 'Wales & West'!BD23) -> CapRate 1 (Baseline excl. Repex) | BE25: =CHOOSE(m_identity, East!BE23, London!BE23, 'North West'!BE23, 'West Midlands'!BE23, Northern!BE23, Scotland!BE23, Southern!BE23, 'Wales & West'!BE23) -> Fast/Slow Split (excl repex)
E26: =CHOOSE(m_identity, East!E24, London!E24, 'North West'!E24, 'West Midlands'!E24, Northern!E24, Scotland!E24, Southern!E24, 'Wales & West'!E24) -> Remote pressure management Price Control Deliverable [SGN Southern only] | F26: =CHOOSE(m_identity, East!F24, London!F24, 'North West'!F24, 'West Midlands'!F24, Northern!F24, Scotland!F24, Southern!F24, 'Wales & West'!F24) -> SpC 3.29 | G26: £m 18/19 prices | H26: =CHOOSE(m_identity, East!H24, London!H24, 'North West'!H24, 'West Midlands'!H24, Northern!H24, Scotland!H24, Southern!H24, 'Wales & West'!H24) -> RPMt | I26: =CHOOSE(m_identity, East!I24, London!I24, 'North West'!I24, 'West Midlands'!I24, Northern!I24, Scotland!I24, Southern!I24, 'Wales & West'!I24) -> PCD | AP26: =CHOOSE(m_identity, East!AP24, London!AP24, 'North West'!AP24, 'West Midlands'!AP24, Northern!AP24, Scotland!AP24, Southern!AP24, 'Wales & West'!AP24) -> 0 | AQ26: =CHOOSE(m_identity, East!AQ24, London!AQ24, 'North West'!AQ24, 'West Midlands'!AQ24, Northern!AQ24, Scotland!AQ24, Southern!AQ24, 'Wales & West'!AQ24) -> 0 | AR26: =CHOOSE(m_identity, East!AR24, London!AR24, 'North West'!AR24, 'West Midlands'!AR24, Northern!AR24, Scotland!AR24, Southern!AR24, 'Wales & West'!AR24) -> 0 | AS26: =CHOOSE(m_identity, East!AS24, London!AS24, 'North West'!AS24, 'West Midlands'!AS24, Northern!AS24, Scotland!AS24, Southern!AS24, 'Wales & West'!AS24) -> 0 | AT26: =CHOOSE(m_identity, East!AT24, London!AT24, 'North West'!AT24, 'West Midlands'!AT24, Northern!AT24, Scotland!AT24, Southern!AT24, 'Wales & West'!AT24) -> 0 | BB26: =CHOOSE(m_identity, East!BB24, London!BB24, 'North West'!BB24, 'West Midlands'!BB24, Northern!BB24, Scotland!BB24, Southern!BB24, 'Wales & West'!BB24) -> TIM | BC26: =CHOOSE(m_identity, East!BC24, London!BC24, 'North West'!BC24, 'West Midlands'!BC24, Northern!BC24, Scotland!BC24, Southern!BC24, 'Wales & West'!BC24) -> RPEs Apply | BD26: =CHOOSE(m_identity, East!BD24, London!BD24, 'North West'!BD24, 'West Midlands'!BD24, Northern!BD24, Scotland!BD24, Southern!BD24, 'Wales & West'!BD24) -> CapRate 1 (Baseline excl. Repex) | BE26: =CHOOSE(m_identity, East!BE24, London!BE24, 'North West'!BE24, 'West Midlands'!BE24, Northern!BE24, Scotland!BE24, Southern!BE24, 'Wales & West'!BE24) -> Fast/Slow Split (excl repex)
E27: =CHOOSE(m_identity, East!E25, London!E25, 'North West'!E25, 'West Midlands'!E25, Northern!E25, Scotland!E25, Southern!E25, 'Wales & West'!E25) -> Intermediate pressure reconfigurations Price Control Deliverable [SGN Scotland only] | F27: =CHOOSE(m_identity, East!F25, London!F25, 'North West'!F25, 'West Midlands'!F25, Northern!F25, Scotland!F25, Southern!F25, 'Wales & West'!F25) -> SpC 3.28 | G27: £m 18/19 prices | H27: =CHOOSE(m_identity, East!H25, London!H25, 'North West'!H25, 'West Midlands'!H25, Northern!H25, Scotland!H25, Southern!H25, 'Wales & West'!H25) -> IPRt | I27: =CHOOSE(m_identity, East!I25, London!I25, 'North West'!I25, 'West Midlands'!I25, Northern!I25, Scotland!I25, Southern!I25, 'Wales & West'!I25) -> PCD | AP27: =CHOOSE(m_identity, East!AP25, London!AP25, 'North West'!AP25, 'West Midlands'!AP25, Northern!AP25, Scotland!AP25, Southern!AP25, 'Wales & West'!AP25) -> 0 | AQ27: =CHOOSE(m_identity, East!AQ25, London!AQ25, 'North West'!AQ25, 'West Midlands'!AQ25, Northern!AQ25, Scotland!AQ25, Southern!AQ25, 'Wales & West'!AQ25) -> 0 | AR27: =CHOOSE(m_identity, East!AR25, London!AR25, 'North West'!AR25, 'West Midlands'!AR25, Northern!AR25, Scotland!AR25, Southern!AR25, 'Wales & West'!AR25) -> 0 | AS27: =CHOOSE(m_identity, East!AS25, London!AS25, 'North West'!AS25, 'West Midlands'!AS25, Northern!AS25, Scotland!AS25, Southern!AS25, 'Wales & West'!AS25) -> 0 | AT27: =CHOOSE(m_identity, East!AT25, London!AT25, 'North West'!AT25, 'West Midlands'!AT25, Northern!AT25, Scotland!AT25, Southern!AT25, 'Wales & West'!AT25) -> 0 | BB27: =CHOOSE(m_identity, East!BB25, London!BB25, 'North West'!BB25, 'West Midlands'!BB25, Northern!BB25, Scotland!BB25, Southern!BB25, 'Wales & West'!BB25) -> TIM | BC27: =CHOOSE(m_identity, East!BC25, London!BC25, 'North West'!BC25, 'West Midlands'!BC25, Northern!BC25, Scotland!BC25, Southern!BC25, 'Wales & West'!BC25) -> RPEs Apply | BD27: =CHOOSE(m_identity, East!BD25, London!BD25, 'North West'!BD25, 'West Midlands'!BD25, Northern!BD25, Scotland!BD25, Southern!BD25, 'Wales & West'!BD25) -> CapRate 1 (Baseline excl. Repex) | BE27: =CHOOSE(m_identity, East!BE25, London!BE25, 'North West'!BE25, 'West Midlands'!BE25, Northern!BE25, Scotland!BE25, Southern!BE25, 'Wales & West'!BE25) -> Fast/Slow Split (excl repex)
E28: =CHOOSE(m_identity, East!E26, London!E26, 'North West'!E26, 'West Midlands'!E26, Northern!E26, Scotland!E26, Southern!E26, 'Wales & West'!E26) -> Capital projects Price Control Deliverable | F28: =CHOOSE(m_identity, East!F26, London!F26, 'North West'!F26, 'West Midlands'!F26, Northern!F26, Scotland!F26, Southern!F26, 'Wales & West'!F26) -> SpC 3.12 | G28: £m 18/19 prices | H28: =CHOOSE(m_identity, East!H26, London!H26, 'North West'!H26, 'West Midlands'!H26, Northern!H26, Scotland!H26, Southern!H26, 'Wales & West'!H26) -> CAPt | I28: =CHOOSE(m_identity, East!I26, London!I26, 'North West'!I26, 'West Midlands'!I26, Northern!I26, Scotland!I26, Southern!I26, 'Wales & West'!I26) -> PCD | AP28: =CHOOSE(m_identity, East!AP26, London!AP26, 'North West'!AP26, 'West Midlands'!AP26, Northern!AP26, Scotland!AP26, Southern!AP26, 'Wales & West'!AP26) -> 4.44 | AQ28: =CHOOSE(m_identity, East!AQ26, London!AQ26, 'North West'!AQ26, 'West Midlands'!AQ26, Northern!AQ26, Scotland!AQ26, Southern!AQ26, 'Wales & West'!AQ26) -> 7.41 | AR28: =CHOOSE(m_identity, East!AR26, London!AR26, 'North West'!AR26, 'West Midlands'!AR26, Northern!AR26, Scotland!AR26, Southern!AR26, 'Wales & West'!AR26) -> 4.04 | AS28: =CHOOSE(m_identity, East!AS26, London!AS26, 'North West'!AS26, 'West Midlands'!AS26, Northern!AS26, Scotland!AS26, Southern!AS26, 'Wales & West'!AS26) -> 1.87 | AT28: =CHOOSE(m_identity, East!AT26, London!AT26, 'North West'!AT26, 'West Midlands'!AT26, Northern!AT26, Scotland!AT26, Southern!AT26, 'Wales & West'!AT26) -> 1.84 | BB28: =CHOOSE(m_identity, East!BB26, London!BB26, 'North West'!BB26, 'West Midlands'!BB26, Northern!BB26, Scotland!BB26, Southern!BB26, 'Wales & West'!BB26) -> TIM | BC28: =CHOOSE(m_identity, East!BC26, London!BC26, 'North West'!BC26, 'West Midlands'!BC26, Northern!BC26, Scotland!BC26, Southern!BC26, 'Wales & West'!BC26) -> RPEs Apply | BD28: =CHOOSE(m_identity, East!BD26, London!BD26, 'North West'!BD26, 'West Midlands'!BD26, Northern!BD26, Scotland!BD26, Southern!BD26, 'Wales & West'!BD26) -> CapRate 1 (Baseline excl. Repex) | BE28: =CHOOSE(m_identity, East!BE26, London!BE26, 'North West'!BE26, 'West Midlands'!BE26, Northern!BE26, Scotland!BE26, Southern!BE26, 'Wales & West'!BE26) -> Fast/Slow Split (excl repex)
E29: =CHOOSE(m_identity, East!E27, London!E27, 'North West'!E27, 'West Midlands'!E27, Northern!E27, Scotland!E27, Southern!E27, 'Wales & West'!E27) -> Commercial fleet Price Control Deliverable | F29: =CHOOSE(m_identity, East!F27, London!F27, 'North West'!F27, 'West Midlands'!F27, Northern!F27, Scotland!F27, Southern!F27, 'Wales & West'!F27) -> SpC 3.13 | G29: £m 18/19 prices | H29: =CHOOSE(m_identity, East!H27, London!H27, 'North West'!H27, 'West Midlands'!H27, Northern!H27, Scotland!H27, Southern!H27, 'Wales & West'!H27) -> OTCt | I29: =CHOOSE(m_identity, East!I27, London!I27, 'North West'!I27, 'West Midlands'!I27, Northern!I27, Scotland!I27, Southern!I27, 'Wales & West'!I27) -> PCD | AP29: =CHOOSE(m_identity, East!AP27, London!AP27, 'North West'!AP27, 'West Midlands'!AP27, Northern!AP27, Scotland!AP27, Southern!AP27, 'Wales & West'!AP27) -> -0.001431248619 | AQ29: =CHOOSE(m_identity, East!AQ27, London!AQ27, 'North West'!AQ27, 'West Midlands'!AQ27, Northern!AQ27, Scotland!AQ27, Southern!AQ27, 'Wales & West'!AQ27) -> 0.1311580405 | AR29: =CHOOSE(m_identity, East!AR27, London!AR27, 'North West'!AR27, 'West Midlands'!AR27, Northern!AR27, Scotland!AR27, Southern!AR27, 'Wales & West'!AR27) -> 0.7905886446 | AS29: =CHOOSE(m_identity, East!AS27, London!AS27, 'North West'!AS27, 'West Midlands'!AS27, Northern!AS27, Scotland!AS27, Southern!AS27, 'Wales & West'!AS27) -> 1.57 | AT29: =CHOOSE(m_identity, East!AT27, London!AT27, 'North West'!AT27, 'West Midlands'!AT27, Northern!AT27, Scotland!AT27, Southern!AT27, 'Wales & West'!AT27) -> 1.54 | BB29: =CHOOSE(m_identity, East!BB27, London!BB27, 'North West'!BB27, 'West Midlands'!BB27, Northern!BB27, Scotland!BB27, Southern!BB27, 'Wales & West'!BB27) -> TIM | BC29: =CHOOSE(m_identity, East!BC27, London!BC27, 'North West'!BC27, 'West Midlands'!BC27, Northern!BC27, Scotland!BC27, Southern!BC27, 'Wales & West'!BC27) -> RPEs Apply | BD29: =CHOOSE(m_identity, East!BD27, London!BD27, 'North West'!BD27, 'West Midlands'!BD27, Northern!BD27, Scotland!BD27, Southern!BD27, 'Wales & West'!BD27) -> CapRate 1 (Baseline excl. Repex) | BE29: =CHOOSE(m_identity, East!BE27, London!BE27, 'North West'!BE27, 'West Midlands'!BE27, Northern!BE27, Scotland!BE27, Southern!BE27, 'Wales & West'!BE27) -> Fast/Slow Split (excl repex)
E30: =CHOOSE(m_identity, East!E28, London!E28, 'North West'!E28, 'West Midlands'!E28, Northern!E28, Scotland!E28, Southern!E28, 'Wales & West'!E28) -> Gas escape reduction Price Control Deliverable [SGN only] | F30: =CHOOSE(m_identity, East!F28, London!F28, 'North West'!F28, 'West Midlands'!F28, Northern!F28, Scotland!F28, Southern!F28, 'Wales & West'!F28) -> SpC 3.31 | G30: £m 18/19 prices | H30: =CHOOSE(m_identity, East!H28, London!H28, 'North West'!H28, 'West Midlands'!H28, Northern!H28, Scotland!H28, Southern!H28, 'Wales & West'!H28) -> GERt | I30: =CHOOSE(m_identity, East!I28, London!I28, 'North West'!I28, 'West Midlands'!I28, Northern!I28, Scotland!I28, Southern!I28, 'Wales & West'!I28) -> PCD | AP30: =CHOOSE(m_identity, East!AP28, London!AP28, 'North West'!AP28, 'West Midlands'!AP28, Northern!AP28, Scotland!AP28, Southern!AP28, 'Wales & West'!AP28) -> 0 | AQ30: =CHOOSE(m_identity, East!AQ28, London!AQ28, 'North West'!AQ28, 'West Midlands'!AQ28, Northern!AQ28, Scotland!AQ28, Southern!AQ28, 'Wales & West'!AQ28) -> 0 | AR30: =CHOOSE(m_identity, East!AR28, London!AR28, 'North West'!AR28, 'West Midlands'!AR28, Northern!AR28, Scotland!AR28, Southern!AR28, 'Wales & West'!AR28) -> 0 | AS30: =CHOOSE(m_identity, East!AS28, London!AS28, 'North West'!AS28, 'West Midlands'!AS28, Northern!AS28, Scotland!AS28, Southern!AS28, 'Wales & West'!AS28) -> 0 | AT30: =CHOOSE(m_identity, East!AT28, London!AT28, 'North West'!AT28, 'West Midlands'!AT28, Northern!AT28, Scotland!AT28, Southern!AT28, 'Wales & West'!AT28) -> 0 | BB30: =CHOOSE(m_identity, East!BB28, London!BB28, 'North West'!BB28, 'West Midlands'!BB28, Northern!BB28, Scotland!BB28, Southern!BB28, 'Wales & West'!BB28) -> TIM | BC30: =CHOOSE(m_identity, East!BC28, London!BC28, 'North West'!BC28, 'West Midlands'!BC28, Northern!BC28, Scotland!BC28, Southern!BC28, 'Wales & West'!BC28) -> RPEs Apply | BD30: =CHOOSE(m_identity, East!BD28, London!BD28, 'North West'!BD28, 'West Midlands'!BD28, Northern!BD28, Scotland!BD28, Southern!BD28, 'Wales & West'!BD28) -> CapRate 1 (Baseline excl. Repex) | BE30: =CHOOSE(m_identity, East!BE28, London!BE28, 'North West'!BE28, 'West Midlands'!BE28, Northern!BE28, Scotland!BE28, Southern!BE28, 'Wales & West'!BE28) -> Fast/Slow Split (excl repex)
E31: =CHOOSE(m_identity, East!E29, London!E29, 'North West'!E29, 'West Midlands'!E29, Northern!E29, Scotland!E29, Southern!E29, 'Wales & West'!E29) -> Cyber Resilience OT Baseline | F31: =CHOOSE(m_identity, East!F29, London!F29, 'North West'!F29, 'West Midlands'!F29, Northern!F29, Scotland!F29, Southern!F29, 'Wales & West'!F29) -> SpC 3.2 | G31: £m 18/19 prices | H31: =CHOOSE(m_identity, East!H29, London!H29, 'North West'!H29, 'West Midlands'!H29, Northern!H29, Scotland!H29, Southern!H29, 'Wales & West'!H29) -> CROTt | I31: =CHOOSE(m_identity, East!I29, London!I29, 'North West'!I29, 'West Midlands'!I29, Northern!I29, Scotland!I29, Southern!I29, 'Wales & West'!I29) -> PCD | AP31: =CHOOSE(m_identity, East!AP29, London!AP29, 'North West'!AP29, 'West Midlands'!AP29, Northern!AP29, Scotland!AP29, Southern!AP29, 'Wales & West'!AP29) -> 0.1066980227 | AQ31: =CHOOSE(m_identity, East!AQ29, London!AQ29, 'North West'!AQ29, 'West Midlands'!AQ29, Northern!AQ29, Scotland!AQ29, Southern!AQ29, 'Wales & West'!AQ29) -> 0.1617318228 | AR31: =CHOOSE(m_identity, East!AR29, London!AR29, 'North West'!AR29, 'West Midlands'!AR29, Northern!AR29, Scotland!AR29, Southern!AR29, 'Wales & West'!AR29) -> 0.3127355838 | AS31: =CHOOSE(m_identity, East!AS29, London!AS29, 'North West'!AS29, 'West Midlands'!AS29, Northern!AS29, Scotland!AS29, Southern!AS29, 'Wales & West'!AS29) -> 0 | AT31: =CHOOSE(m_identity, East!AT29, London!AT29, 'North West'!AT29, 'West Midlands'!AT29, Northern!AT29, Scotland!AT29, Southern!AT29, 'Wales & West'!AT29) -> 0 | BB31: =CHOOSE(m_identity, East!BB29, London!BB29, 'North West'!BB29, 'West Midlands'!BB29, Northern!BB29, Scotland!BB29, Southern!BB29, 'Wales & West'!BB29) -> Non-Tim | BC31: =CHOOSE(m_identity, East!BC29, London!BC29, 'North West'!BC29, 'West Midlands'!BC29, Northern!BC29, Scotland!BC29, Southern!BC29, 'Wales & West'!BC29) -> RPEs Don’t Apply (Outturn) | BD31: =CHOOSE(m_identity, East!BD29, London!BD29, 'North West'!BD29, 'West Midlands'!BD29, Northern!BD29, Scotland!BD29, Southern!BD29, 'Wales & West'!BD29) -> CapRate 1 (Baseline excl. Repex) | BE31: =CHOOSE(m_identity, East!BE29, London!BE29, 'North West'!BE29, 'West Midlands'!BE29, Northern!BE29, Scotland!BE29, Southern!BE29, 'Wales & West'!BE29) -> Fast/Slow Split (excl repex)
E32: =CHOOSE(m_identity, East!E30, London!E30, 'North West'!E30, 'West Midlands'!E30, Northern!E30, Scotland!E30, Southern!E30, 'Wales & West'!E30) -> Cyber Resilience IT Baseline | F32: =CHOOSE(m_identity, East!F30, London!F30, 'North West'!F30, 'West Midlands'!F30, Northern!F30, Scotland!F30, Southern!F30, 'Wales & West'!F30) -> SpC 3.3 | G32: £m 18/19 prices | H32: =CHOOSE(m_identity, East!H30, London!H30, 'North West'!H30, 'West Midlands'!H30, Northern!H30, Scotland!H30, Southern!H30, 'Wales & West'!H30) -> CRITt | I32: =CHOOSE(m_identity, East!I30, London!I30, 'North West'!I30, 'West Midlands'!I30, Northern!I30, Scotland!I30, Southern!I30, 'Wales & West'!I30) -> PCD | AP32: =CHOOSE(m_identity, East!AP30, London!AP30, 'North West'!AP30, 'West Midlands'!AP30, Northern!AP30, Scotland!AP30, Southern!AP30, 'Wales & West'!AP30) -> 0 | AQ32: =CHOOSE(m_identity, East!AQ30, London!AQ30, 'North West'!AQ30, 'West Midlands'!AQ30, Northern!AQ30, Scotland!AQ30, Southern!AQ30, 'Wales & West'!AQ30) -> 0 | AR32: =CHOOSE(m_identity, East!AR30, London!AR30, 'North West'!AR30, 'West Midlands'!AR30, Northern!AR30, Scotland!AR30, Southern!AR30, 'Wales & West'!AR30) -> 0 | AS32: =CHOOSE(m_identity, East!AS30, London!AS30, 'North West'!AS30, 'West Midlands'!AS30, Northern!AS30, Scotland!AS30, Southern!AS30, 'Wales & West'!AS30) -> 0 | AT32: =CHOOSE(m_identity, East!AT30, London!AT30, 'North West'!AT30, 'West Midlands'!AT30, Northern!AT30, Scotland!AT30, Southern!AT30, 'Wales & West'!AT30) -> 0 | BB32: =CHOOSE(m_identity, East!BB30, London!BB30, 'North West'!BB30, 'West Midlands'!BB30, Northern!BB30, Scotland!BB30, Southern!BB30, 'Wales & West'!BB30) -> TIM | BC32: =CHOOSE(m_identity, East!BC30, London!BC30, 'North West'!BC30, 'West Midlands'!BC30, Northern!BC30, Scotland!BC30, Southern!BC30, 'Wales & West'!BC30) -> RPEs Apply | BD32: =CHOOSE(m_identity, East!BD30, London!BD30, 'North West'!BD30, 'West Midlands'!BD30, Northern!BD30, Scotland!BD30, Southern!BD30, 'Wales & West'!BD30) -> CapRate 1 (Baseline excl. Repex) | BE32: =CHOOSE(m_identity, East!BE30, London!BE30, 'North West'!BE30, 'West Midlands'!BE30, Northern!BE30, Scotland!BE30, Southern!BE30, 'Wales & West'!BE30) -> Fast/Slow Split (excl repex)
E33: =CHOOSE(m_identity, East!E31, London!E31, 'North West'!E31, 'West Midlands'!E31, Northern!E31, Scotland!E31, Southern!E31, 'Wales & West'!E31) -> Physical security Price Control Deliverable | F33: =CHOOSE(m_identity, East!F31, London!F31, 'North West'!F31, 'West Midlands'!F31, Northern!F31, Scotland!F31, Southern!F31, 'Wales & West'!F31) -> SpC 3.4 | G33: £m 18/19 prices | H33: =CHOOSE(m_identity, East!H31, London!H31, 'North West'!H31, 'West Midlands'!H31, Northern!H31, Scotland!H31, Southern!H31, 'Wales & West'!H31) -> PSUPt | I33: =CHOOSE(m_identity, East!I31, London!I31, 'North West'!I31, 'West Midlands'!I31, Northern!I31, Scotland!I31, Southern!I31, 'Wales & West'!I31) -> PCD | AP33: =CHOOSE(m_identity, East!AP31, London!AP31, 'North West'!AP31, 'West Midlands'!AP31, Northern!AP31, Scotland!AP31, Southern!AP31, 'Wales & West'!AP31) -> 0 | AQ33: =CHOOSE(m_identity, East!AQ31, London!AQ31, 'North West'!AQ31, 'West Midlands'!AQ31, Northern!AQ31, Scotland!AQ31, Southern!AQ31, 'Wales & West'!AQ31) -> 0 | AR33: =CHOOSE(m_identity, East!AR31, London!AR31, 'North West'!AR31, 'West Midlands'!AR31, Northern!AR31, Scotland!AR31, Southern!AR31, 'Wales & West'!AR31) -> 0 | AS33: =CHOOSE(m_identity, East!AS31, London!AS31, 'North West'!AS31, 'West Midlands'!AS31, Northern!AS31, Scotland!AS31, Southern!AS31, 'Wales & West'!AS31) -> 0 | AT33: =CHOOSE(m_identity, East!AT31, London!AT31, 'North West'!AT31, 'West Midlands'!AT31, Northern!AT31, Scotland!AT31, Southern!AT31, 'Wales & West'!AT31) -> 0 | BB33: =CHOOSE(m_identity, East!BB31, London!BB31, 'North West'!BB31, 'West Midlands'!BB31, Northern!BB31, Scotland!BB31, Southern!BB31, 'Wales & West'!BB31) -> TIM | BC33: =CHOOSE(m_identity, East!BC31, London!BC31, 'North West'!BC31, 'West Midlands'!BC31, Northern!BC31, Scotland!BC31, Southern!BC31, 'Wales & West'!BC31) -> RPEs Apply | BD33: =CHOOSE(m_identity, East!BD31, London!BD31, 'North West'!BD31, 'West Midlands'!BD31, Northern!BD31, Scotland!BD31, Southern!BD31, 'Wales & West'!BD31) -> CapRate 1 (Baseline excl. Repex) | BE33: =CHOOSE(m_identity, East!BE31, London!BE31, 'North West'!BE31, 'West Midlands'!BE31, Northern!BE31, Scotland!BE31, Southern!BE31, 'Wales & West'!BE31) -> Fast/Slow Split (excl repex)
E34: =CHOOSE(m_identity, East!E32, London!E32, 'North West'!E32, 'West Midlands'!E32, Northern!E32, Scotland!E32, Southern!E32, 'Wales & West'!E32) -> London Medium Pressure Price Control Deliverable [Cadent London only] | F34: =CHOOSE(m_identity, East!F32, London!F32, 'North West'!F32, 'West Midlands'!F32, Northern!F32, Scotland!F32, Southern!F32, 'Wales & West'!F32) -> SpC 3.27 | G34: £m 18/19 prices | H34: =CHOOSE(m_identity, East!H32, London!H32, 'North West'!H32, 'West Midlands'!H32, Northern!H32, Scotland!H32, Southern!H32, 'Wales & West'!H32) -> LMPt | I34: =CHOOSE(m_identity, East!I32, London!I32, 'North West'!I32, 'West Midlands'!I32, Northern!I32, Scotland!I32, Southern!I32, 'Wales & West'!I32) -> PCD | AP34: =CHOOSE(m_identity, East!AP32, London!AP32, 'North West'!AP32, 'West Midlands'!AP32, Northern!AP32, Scotland!AP32, Southern!AP32, 'Wales & West'!AP32) -> 0 | AQ34: =CHOOSE(m_identity, East!AQ32, London!AQ32, 'North West'!AQ32, 'West Midlands'!AQ32, Northern!AQ32, Scotland!AQ32, Southern!AQ32, 'Wales & West'!AQ32) -> 0 | AR34: =CHOOSE(m_identity, East!AR32, London!AR32, 'North West'!AR32, 'West Midlands'!AR32, Northern!AR32, Scotland!AR32, Southern!AR32, 'Wales & West'!AR32) -> 0 | AS34: =CHOOSE(m_identity, East!AS32, London!AS32, 'North West'!AS32, 'West Midlands'!AS32, Northern!AS32, Scotland!AS32, Southern!AS32, 'Wales & West'!AS32) -> 0 | AT34: =CHOOSE(m_identity, East!AT32, London!AT32, 'North West'!AT32, 'West Midlands'!AT32, Northern!AT32, Scotland!AT32, Southern!AT32, 'Wales & West'!AT32) -> 0 | BB34: =CHOOSE(m_identity, East!BB32, London!BB32, 'North West'!BB32, 'West Midlands'!BB32, Northern!BB32, Scotland!BB32, Southern!BB32, 'Wales & West'!BB32) -> TIM | BC34: =CHOOSE(m_identity, East!BC32, London!BC32, 'North West'!BC32, 'West Midlands'!BC32, Northern!BC32, Scotland!BC32, Southern!BC32, 'Wales & West'!BC32) -> RPEs Apply | BD34: =CHOOSE(m_identity, East!BD32, London!BD32, 'North West'!BD32, 'West Midlands'!BD32, Northern!BD32, Scotland!BD32, Southern!BD32, 'Wales & West'!BD32) -> CapRate 1 (Baseline excl. Repex) | BE34: =CHOOSE(m_identity, East!BE32, London!BE32, 'North West'!BE32, 'West Midlands'!BE32, Northern!BE32, Scotland!BE32, Southern!BE32, 'Wales & West'!BE32) -> Fast/Slow Split (excl repex)
E35: =CHOOSE(m_identity, East!E33, London!E33, 'North West'!E33, 'West Midlands'!E33, Northern!E33, Scotland!E33, Southern!E33, 'Wales & West'!E33) -> Personalising welfare facilities Price Control Deliverable [Cadent only] | F35: =CHOOSE(m_identity, East!F33, London!F33, 'North West'!F33, 'West Midlands'!F33, Northern!F33, Scotland!F33, Southern!F33, 'Wales & West'!F33) -> SpC 3.26 | G35: £m 18/19 prices | H35: =CHOOSE(m_identity, East!H33, London!H33, 'North West'!H33, 'West Midlands'!H33, Northern!H33, Scotland!H33, Southern!H33, 'Wales & West'!H33) -> PWFt | I35: =CHOOSE(m_identity, East!I33, London!I33, 'North West'!I33, 'West Midlands'!I33, Northern!I33, Scotland!I33, Southern!I33, 'Wales & West'!I33) -> PCD | AP35: =CHOOSE(m_identity, East!AP33, London!AP33, 'North West'!AP33, 'West Midlands'!AP33, Northern!AP33, Scotland!AP33, Southern!AP33, 'Wales & West'!AP33) -> 0.91 | AQ35: =CHOOSE(m_identity, East!AQ33, London!AQ33, 'North West'!AQ33, 'West Midlands'!AQ33, Northern!AQ33, Scotland!AQ33, Southern!AQ33, 'Wales & West'!AQ33) -> 0.91 | AR35: =CHOOSE(m_identity, East!AR33, London!AR33, 'North West'!AR33, 'West Midlands'!AR33, Northern!AR33, Scotland!AR33, Southern!AR33, 'Wales & West'!AR33) -> 0.91 | AS35: =CHOOSE(m_identity, East!AS33, London!AS33, 'North West'!AS33, 'West Midlands'!AS33, Northern!AS33, Scotland!AS33, Southern!AS33, 'Wales & West'!AS33) -> 0.91 | AT35: =CHOOSE(m_identity, East!AT33, London!AT33, 'North West'!AT33, 'West Midlands'!AT33, Northern!AT33, Scotland!AT33, Southern!AT33, 'Wales & West'!AT33) -> 0.91 | BB35: =CHOOSE(m_identity, East!BB33, London!BB33, 'North West'!BB33, 'West Midlands'!BB33, Northern!BB33, Scotland!BB33, Southern!BB33, 'Wales & West'!BB33) -> TIM | BC35: =CHOOSE(m_identity, East!BC33, London!BC33, 'North West'!BC33, 'West Midlands'!BC33, Northern!BC33, Scotland!BC33, Southern!BC33, 'Wales & West'!BC33) -> RPEs Apply | BD35: =CHOOSE(m_identity, East!BD33, London!BD33, 'North West'!BD33, 'West Midlands'!BD33, Northern!BD33, Scotland!BD33, Southern!BD33, 'Wales & West'!BD33) -> CapRate 1 (Baseline excl. Repex) | BE35: =CHOOSE(m_identity, East!BE33, London!BE33, 'North West'!BE33, 'West Midlands'!BE33, Northern!BE33, Scotland!BE33, Southern!BE33, 'Wales & West'!BE33) -> Fast/Slow Split (excl repex)
E36: =CHOOSE(m_identity, East!E34, London!E34, 'North West'!E34, 'West Midlands'!E34, Northern!E34, Scotland!E34, Southern!E34, 'Wales & West'!E34) -> Net zero and Re-opener development fund use it or lose it allowance | F36: =CHOOSE(m_identity, East!F34, London!F34, 'North West'!F34, 'West Midlands'!F34, Northern!F34, Scotland!F34, Southern!F34, 'Wales & West'!F34) -> SpC 3.5 | G36: £m 18/19 prices | H36: =CHOOSE(m_identity, East!H34, London!H34, 'North West'!H34, 'West Midlands'!H34, Northern!H34, Scotland!H34, Southern!H34, 'Wales & West'!H34) -> RDFt | I36: =CHOOSE(m_identity, East!I34, London!I34, 'North West'!I34, 'West Midlands'!I34, Northern!I34, Scotland!I34, Southern!I34, 'Wales & West'!I34) -> PCD | AP36: =CHOOSE(m_identity, East!AP34, London!AP34, 'North West'!AP34, 'West Midlands'!AP34, Northern!AP34, Scotland!AP34, Southern!AP34, 'Wales & West'!AP34) -> 1.46 | AQ36: =CHOOSE(m_identity, East!AQ34, London!AQ34, 'North West'!AQ34, 'West Midlands'!AQ34, Northern!AQ34, Scotland!AQ34, Southern!AQ34, 'Wales & West'!AQ34) -> 1.46 | AR36: =CHOOSE(m_identity, East!AR34, London!AR34, 'North West'!AR34, 'West Midlands'!AR34, Northern!AR34, Scotland!AR34, Southern!AR34, 'Wales & West'!AR34) -> 1.46 | AS36: =CHOOSE(m_identity, East!AS34, London!AS34, 'North West'!AS34, 'West Midlands'!AS34, Northern!AS34, Scotland!AS34, Southern!AS34, 'Wales & West'!AS34) -> 1.46 | AT36: =CHOOSE(m_identity, East!AT34, London!AT34, 'North West'!AT34, 'West Midlands'!AT34, Northern!AT34, Scotland!AT34, Southern!AT34, 'Wales & West'!AT34) -> 1.46 | BB36: =CHOOSE(m_identity, East!BB34, London!BB34, 'North West'!BB34, 'West Midlands'!BB34, Northern!BB34, Scotland!BB34, Southern!BB34, 'Wales & West'!BB34) -> Non-Tim | BC36: =CHOOSE(m_identity, East!BC34, London!BC34, 'North West'!BC34, 'West Midlands'!BC34, Northern!BC34, Scotland!BC34, Southern!BC34, 'Wales & West'!BC34) -> RPEs Don’t Apply (Outturn) | BD36: =CHOOSE(m_identity, East!BD34, London!BD34, 'North West'!BD34, 'West Midlands'!BD34, Northern!BD34, Scotland!BD34, Southern!BD34, 'Wales & West'!BD34) -> CapRate 1 (Baseline excl. Repex) | BE36: =CHOOSE(m_identity, East!BE34, London!BE34, 'North West'!BE34, 'West Midlands'!BE34, Northern!BE34, Scotland!BE34, Southern!BE34, 'Wales & West'!BE34) -> Fast/Slow Split (excl repex)
E37: =CHOOSE(m_identity, East!E35, London!E35, 'North West'!E35, 'West Midlands'!E35, Northern!E35, Scotland!E35, Southern!E35, 'Wales & West'!E35) -> Spare PCD 1 | F37: =CHOOSE(m_identity, East!F35, London!F35, 'North West'!F35, 'West Midlands'!F35, Northern!F35, Scotland!F35, Southern!F35, 'Wales & West'!F35) -> 0 | G37: £m 18/19 prices | H37: =CHOOSE(m_identity, East!H35, London!H35, 'North West'!H35, 'West Midlands'!H35, Northern!H35, Scotland!H35, Southern!H35, 'Wales & West'!H35) -> 0 | I37: =CHOOSE(m_identity, East!I35, London!I35, 'North West'!I35, 'West Midlands'!I35, Northern!I35, Scotland!I35, Southern!I35, 'Wales & West'!I35) -> PCD | AP37: =CHOOSE(m_identity, East!AP35, London!AP35, 'North West'!AP35, 'West Midlands'!AP35, Northern!AP35, Scotland!AP35, Southern!AP35, 'Wales & West'!AP35) -> 0 | AQ37: =CHOOSE(m_identity, East!AQ35, London!AQ35, 'North West'!AQ35, 'West Midlands'!AQ35, Northern!AQ35, Scotland!AQ35, Southern!AQ35, 'Wales & West'!AQ35) -> 0 | AR37: =CHOOSE(m_identity, East!AR35, London!AR35, 'North West'!AR35, 'West Midlands'!AR35, Northern!AR35, Scotland!AR35, Southern!AR35, 'Wales & West'!AR35) -> 0 | AS37: =CHOOSE(m_identity, East!AS35, London!AS35, 'North West'!AS35, 'West Midlands'!AS35, Northern!AS35, Scotland!AS35, Southern!AS35, 'Wales & West'!AS35) -> 0 | AT37: =CHOOSE(m_identity, East!AT35, London!AT35, 'North West'!AT35, 'West Midlands'!AT35, Northern!AT35, Scotland!AT35, Southern!AT35, 'Wales & West'!AT35) -> 0 | BB37: =CHOOSE(m_identity, East!BB35, London!BB35, 'North West'!BB35, 'West Midlands'!BB35, Northern!BB35, Scotland!BB35, Southern!BB35, 'Wales & West'!BB35) -> 0 | BC37: =CHOOSE(m_identity, East!BC35, London!BC35, 'North West'!BC35, 'West Midlands'!BC35, Northern!BC35, Scotland!BC35, Southern!BC35, 'Wales & West'!BC35) -> 0 | BD37: =CHOOSE(m_identity, East!BD35, London!BD35, 'North West'!BD35, 'West Midlands'!BD35, Northern!BD35, Scotland!BD35, Southern!BD35, 'Wales & West'!BD35) -> 0 | BE37: =CHOOSE(m_identity, East!BE35, London!BE35, 'North West'!BE35, 'West Midlands'!BE35, Northern!BE35, Scotland!BE35, Southern!BE35, 'Wales & West'!BE35) -> 0
E38: =CHOOSE(m_identity, East!E36, London!E36, 'North West'!E36, 'West Midlands'!E36, Northern!E36, Scotland!E36, Southern!E36, 'Wales & West'!E36) -> Spare PCD 2 | F38: =CHOOSE(m_identity, East!F36, London!F36, 'North West'!F36, 'West Midlands'!F36, Northern!F36, Scotland!F36, Southern!F36, 'Wales & West'!F36) -> 0 | G38: £m 18/19 prices | H38: =CHOOSE(m_identity, East!H36, London!H36, 'North West'!H36, 'West Midlands'!H36, Northern!H36, Scotland!H36, Southern!H36, 'Wales & West'!H36) -> 0 | I38: =CHOOSE(m_identity, East!I36, London!I36, 'North West'!I36, 'West Midlands'!I36, Northern!I36, Scotland!I36, Southern!I36, 'Wales & West'!I36) -> PCD | AP38: =CHOOSE(m_identity, East!AP36, London!AP36, 'North West'!AP36, 'West Midlands'!AP36, Northern!AP36, Scotland!AP36, Southern!AP36, 'Wales & West'!AP36) -> 0 | AQ38: =CHOOSE(m_identity, East!AQ36, London!AQ36, 'North West'!AQ36, 'West Midlands'!AQ36, Northern!AQ36, Scotland!AQ36, Southern!AQ36, 'Wales & West'!AQ36) -> 0 | AR38: =CHOOSE(m_identity, East!AR36, London!AR36, 'North West'!AR36, 'West Midlands'!AR36, Northern!AR36, Scotland!AR36, Southern!AR36, 'Wales & West'!AR36) -> 0 | AS38: =CHOOSE(m_identity, East!AS36, London!AS36, 'North West'!AS36, 'West Midlands'!AS36, Northern!AS36, Scotland!AS36, Southern!AS36, 'Wales & West'!AS36) -> 0 | AT38: =CHOOSE(m_identity, East!AT36, London!AT36, 'North West'!AT36, 'West Midlands'!AT36, Northern!AT36, Scotland!AT36, Southern!AT36, 'Wales & West'!AT36) -> 0 | BB38: =CHOOSE(m_identity, East!BB36, London!BB36, 'North West'!BB36, 'West Midlands'!BB36, Northern!BB36, Scotland!BB36, Southern!BB36, 'Wales & West'!BB36) -> 0 | BC38: =CHOOSE(m_identity, East!BC36, London!BC36, 'North West'!BC36, 'West Midlands'!BC36, Northern!BC36, Scotland!BC36, Southern!BC36, 'Wales & West'!BC36) -> 0 | BD38: =CHOOSE(m_identity, East!BD36, London!BD36, 'North West'!BD36, 'West Midlands'!BD36, Northern!BD36, Scotland!BD36, Southern!BD36, 'Wales & West'!BD36) -> 0 | BE38: =CHOOSE(m_identity, East!BE36, London!BE36, 'North West'!BE36, 'West Midlands'!BE36, Northern!BE36, Scotland!BE36, Southern!BE36, 'Wales & West'!BE36) -> 0
E39: =CHOOSE(m_identity, East!E37, London!E37, 'North West'!E37, 'West Midlands'!E37, Northern!E37, Scotland!E37, Southern!E37, 'Wales & West'!E37) -> Spare PCD 3 | F39: =CHOOSE(m_identity, East!F37, London!F37, 'North West'!F37, 'West Midlands'!F37, Northern!F37, Scotland!F37, Southern!F37, 'Wales & West'!F37) -> 0 | G39: £m 18/19 prices | H39: =CHOOSE(m_identity, East!H37, London!H37, 'North West'!H37, 'West Midlands'!H37, Northern!H37, Scotland!H37, Southern!H37, 'Wales & West'!H37) -> 0 | I39: =CHOOSE(m_identity, East!I37, London!I37, 'North West'!I37, 'West Midlands'!I37, Northern!I37, Scotland!I37, Southern!I37, 'Wales & West'!I37) -> PCD | AP39: =CHOOSE(m_identity, East!AP37, London!AP37, 'North West'!AP37, 'West Midlands'!AP37, Northern!AP37, Scotland!AP37, Southern!AP37, 'Wales & West'!AP37) -> 0 | AQ39: =CHOOSE(m_identity, East!AQ37, London!AQ37, 'North West'!AQ37, 'West Midlands'!AQ37, Northern!AQ37, Scotland!AQ37, Southern!AQ37, 'Wales & West'!AQ37) -> 0 | AR39: =CHOOSE(m_identity, East!AR37, London!AR37, 'North West'!AR37, 'West Midlands'!AR37, Northern!AR37, Scotland!AR37, Southern!AR37, 'Wales & West'!AR37) -> 0 | AS39: =CHOOSE(m_identity, East!AS37, London!AS37, 'North West'!AS37, 'West Midlands'!AS37, Northern!AS37, Scotland!AS37, Southern!AS37, 'Wales & West'!AS37) -> 0 | AT39: =CHOOSE(m_identity, East!AT37, London!AT37, 'North West'!AT37, 'West Midlands'!AT37, Northern!AT37, Scotland!AT37, Southern!AT37, 'Wales & West'!AT37) -> 0 | BB39: =CHOOSE(m_identity, East!BB37, London!BB37, 'North West'!BB37, 'West Midlands'!BB37, Northern!BB37, Scotland!BB37, Southern!BB37, 'Wales & West'!BB37) -> 0 | BC39: =CHOOSE(m_identity, East!BC37, London!BC37, 'North West'!BC37, 'West Midlands'!BC37, Northern!BC37, Scotland!BC37, Southern!BC37, 'Wales & West'!BC37) -> 0 | BD39: =CHOOSE(m_identity, East!BD37, London!BD37, 'North West'!BD37, 'West Midlands'!BD37, Northern!BD37, Scotland!BD37, Southern!BD37, 'Wales & West'!BD37) -> 0 | BE39: =CHOOSE(m_identity, East!BE37, London!BE37, 'North West'!BE37, 'West Midlands'!BE37, Northern!BE37, Scotland!BE37, Southern!BE37, 'Wales & West'!BE37) -> 0
E40: =CHOOSE(m_identity, East!E38, London!E38, 'North West'!E38, 'West Midlands'!E38, Northern!E38, Scotland!E38, Southern!E38, 'Wales & West'!E38) -> Tier 2A mains and services replacement volume driver | F40: =CHOOSE(m_identity, East!F38, London!F38, 'North West'!F38, 'West Midlands'!F38, Northern!F38, Scotland!F38, Southern!F38, 'Wales & West'!F38) -> SpC 3.16 | G40: £m 18/19 prices | H40: =CHOOSE(m_identity, East!H38, London!H38, 'North West'!H38, 'West Midlands'!H38, Northern!H38, Scotland!H38, Southern!H38, 'Wales & West'!H38) -> REt | I40: =CHOOSE(m_identity, East!I38, London!I38, 'North West'!I38, 'West Midlands'!I38, Northern!I38, Scotland!I38, Southern!I38, 'Wales & West'!I38) -> UM | AP40: =CHOOSE(m_identity, East!AP38, London!AP38, 'North West'!AP38, 'West Midlands'!AP38, Northern!AP38, Scotland!AP38, Southern!AP38, 'Wales & West'!AP38) -> 0.000258233 | AQ40: =CHOOSE(m_identity, East!AQ38, London!AQ38, 'North West'!AQ38, 'West Midlands'!AQ38, Northern!AQ38, Scotland!AQ38, Southern!AQ38, 'Wales & West'!AQ38) -> 0.486227854 | AR40: =CHOOSE(m_identity, East!AR38, London!AR38, 'North West'!AR38, 'West Midlands'!AR38, Northern!AR38, Scotland!AR38, Southern!AR38, 'Wales & West'!AR38) -> 0.4347188992 | AS40: =CHOOSE(m_identity, East!AS38, London!AS38, 'North West'!AS38, 'West Midlands'!AS38, Northern!AS38, Scotland!AS38, Southern!AS38, 'Wales & West'!AS38) -> 0.31085355 | AT40: =CHOOSE(m_identity, East!AT38, London!AT38, 'North West'!AT38, 'West Midlands'!AT38, Northern!AT38, Scotland!AT38, Southern!AT38, 'Wales & West'!AT38) -> 0.5183695888 | BB40: =CHOOSE(m_identity, East!BB38, London!BB38, 'North West'!BB38, 'West Midlands'!BB38, Northern!BB38, Scotland!BB38, Southern!BB38, 'Wales & West'!BB38) -> TIM | BC40: =CHOOSE(m_identity, East!BC38, London!BC38, 'North West'!BC38, 'West Midlands'!BC38, Northern!BC38, Scotland!BC38, Southern!BC38, 'Wales & West'!BC38) -> RPEs Apply | BD40: =CHOOSE(m_identity, East!BD38, London!BD38, 'North West'!BD38, 'West Midlands'!BD38, Northern!BD38, Scotland!BD38, Southern!BD38, 'Wales & West'!BD38) -> CapRate 2 (UM excl. Repex) | BE40: =CHOOSE(m_identity, East!BE38, London!BE38, 'North West'!BE38, 'West Midlands'!BE38, Northern!BE38, Scotland!BE38, Southern!BE38, 'Wales & West'!BE38) -> Fast/Slow Split (excl repex)
E41: =CHOOSE(m_identity, East!E39, London!E39, 'North West'!E39, 'West Midlands'!E39, Northern!E39, Scotland!E39, Southern!E39, 'Wales & West'!E39) -> HSE policy Re-opener | F41: =CHOOSE(m_identity, East!F39, London!F39, 'North West'!F39, 'West Midlands'!F39, Northern!F39, Scotland!F39, Southern!F39, 'Wales & West'!F39) -> SpC 3.17 | G41: £m 18/19 prices | H41: =CHOOSE(m_identity, East!H39, London!H39, 'North West'!H39, 'West Midlands'!H39, Northern!H39, Scotland!H39, Southern!H39, 'Wales & West'!H39) -> REPt | I41: =CHOOSE(m_identity, East!I39, London!I39, 'North West'!I39, 'West Midlands'!I39, Northern!I39, Scotland!I39, Southern!I39, 'Wales & West'!I39) -> UM | AP41: =CHOOSE(m_identity, East!AP39, London!AP39, 'North West'!AP39, 'West Midlands'!AP39, Northern!AP39, Scotland!AP39, Southern!AP39, 'Wales & West'!AP39) -> 0.4 | AQ41: =CHOOSE(m_identity, East!AQ39, London!AQ39, 'North West'!AQ39, 'West Midlands'!AQ39, Northern!AQ39, Scotland!AQ39, Southern!AQ39, 'Wales & West'!AQ39) -> 0.5 | AR41: =CHOOSE(m_identity, East!AR39, London!AR39, 'North West'!AR39, 'West Midlands'!AR39, Northern!AR39, Scotland!AR39, Southern!AR39, 'Wales & West'!AR39) -> 0.3 | AS41: =CHOOSE(m_identity, East!AS39, London!AS39, 'North West'!AS39, 'West Midlands'!AS39, Northern!AS39, Scotland!AS39, Southern!AS39, 'Wales & West'!AS39) -> 1.2 | AT41: =CHOOSE(m_identity, East!AT39, London!AT39, 'North West'!AT39, 'West Midlands'!AT39, Northern!AT39, Scotland!AT39, Southern!AT39, 'Wales & West'!AT39) -> 10.4 | BB41: =CHOOSE(m_identity, East!BB39, London!BB39, 'North West'!BB39, 'West Midlands'!BB39, Northern!BB39, Scotland!BB39, Southern!BB39, 'Wales & West'!BB39) -> TIM | BC41: =CHOOSE(m_identity, East!BC39, London!BC39, 'North West'!BC39, 'West Midlands'!BC39, Northern!BC39, Scotland!BC39, Southern!BC39, 'Wales & West'!BC39) -> RPEs Don’t Apply (Outturn) | BD41: =CHOOSE(m_identity, East!BD39, London!BD39, 'North West'!BD39, 'West Midlands'!BD39, Northern!BD39, Scotland!BD39, Southern!BD39, 'Wales & West'!BD39) -> CapRate 2 (UM excl. Repex) | BE41: =CHOOSE(m_identity, East!BE39, London!BE39, 'North West'!BE39, 'West Midlands'!BE39, Northern!BE39, Scotland!BE39, Southern!BE39, 'Wales & West'!BE39) -> Fast/Slow Split (excl repex)
E42: =CHOOSE(m_identity, East!E40, London!E40, 'North West'!E40, 'West Midlands'!E40, Northern!E40, Scotland!E40, Southern!E40, 'Wales & West'!E40) -> Coordinated adjustment mechanism Re-opener | F42: =CHOOSE(m_identity, East!F40, London!F40, 'North West'!F40, 'West Midlands'!F40, Northern!F40, Scotland!F40, Southern!F40, 'Wales & West'!F40) -> SpC 3.8 | G42: £m 18/19 prices | H42: =CHOOSE(m_identity, East!H40, London!H40, 'North West'!H40, 'West Midlands'!H40, Northern!H40, Scotland!H40, Southern!H40, 'Wales & West'!H40) -> CAMt | I42: =CHOOSE(m_identity, East!I40, London!I40, 'North West'!I40, 'West Midlands'!I40, Northern!I40, Scotland!I40, Southern!I40, 'Wales & West'!I40) -> UM | AP42: =CHOOSE(m_identity, East!AP40, London!AP40, 'North West'!AP40, 'West Midlands'!AP40, Northern!AP40, Scotland!AP40, Southern!AP40, 'Wales & West'!AP40) -> 0 | AQ42: =CHOOSE(m_identity, East!AQ40, London!AQ40, 'North West'!AQ40, 'West Midlands'!AQ40, Northern!AQ40, Scotland!AQ40, Southern!AQ40, 'Wales & West'!AQ40) -> 0 | AR42: =CHOOSE(m_identity, East!AR40, London!AR40, 'North West'!AR40, 'West Midlands'!AR40, Northern!AR40, Scotland!AR40, Southern!AR40, 'Wales & West'!AR40) -> 0 | AS42: =CHOOSE(m_identity, East!AS40, London!AS40, 'North West'!AS40, 'West Midlands'!AS40, Northern!AS40, Scotland!AS40, Southern!AS40, 'Wales & West'!AS40) -> 0 | AT42: =CHOOSE(m_identity, East!AT40, London!AT40, 'North West'!AT40, 'West Midlands'!AT40, Northern!AT40, Scotland!AT40, Southern!AT40, 'Wales & West'!AT40) -> 0 | BB42: =CHOOSE(m_identity, East!BB40, London!BB40, 'North West'!BB40, 'West Midlands'!BB40, Northern!BB40, Scotland!BB40, Southern!BB40, 'Wales & West'!BB40) -> TIM | BC42: =CHOOSE(m_identity, East!BC40, London!BC40, 'North West'!BC40, 'West Midlands'!BC40, Northern!BC40, Scotland!BC40, Southern!BC40, 'Wales & West'!BC40) -> RPEs Don’t Apply (Outturn) | BD42: =CHOOSE(m_identity, East!BD40, London!BD40, 'North West'!BD40, 'West Midlands'!BD40, Northern!BD40, Scotland!BD40, Southern!BD40, 'Wales & West'!BD40) -> CapRate 2 (UM excl. Repex) | BE42: =CHOOSE(m_identity, East!BE40, London!BE40, 'North West'!BE40, 'West Midlands'!BE40, Northern!BE40, Scotland!BE40, Southern!BE40, 'Wales & West'!BE40) -> Fast/Slow Split (excl repex)
E43: =CHOOSE(m_identity, East!E41, London!E41, 'North West'!E41, 'West Midlands'!E41, Northern!E41, Scotland!E41, Southern!E41, 'Wales & West'!E41) -> Heat policy and energy efficiency Re-opener | F43: =CHOOSE(m_identity, East!F41, London!F41, 'North West'!F41, 'West Midlands'!F41, Northern!F41, Scotland!F41, Southern!F41, 'Wales & West'!F41) -> SpC 3.19 | G43: £m 18/19 prices | H43: =CHOOSE(m_identity, East!H41, London!H41, 'North West'!H41, 'West Midlands'!H41, Northern!H41, Scotland!H41, Southern!H41, 'Wales & West'!H41) -> HPRAt | I43: =CHOOSE(m_identity, East!I41, London!I41, 'North West'!I41, 'West Midlands'!I41, Northern!I41, Scotland!I41, Southern!I41, 'Wales & West'!I41) -> UM | AP43: =CHOOSE(m_identity, East!AP41, London!AP41, 'North West'!AP41, 'West Midlands'!AP41, Northern!AP41, Scotland!AP41, Southern!AP41, 'Wales & West'!AP41) -> 0 | AQ43: =CHOOSE(m_identity, East!AQ41, London!AQ41, 'North West'!AQ41, 'West Midlands'!AQ41, Northern!AQ41, Scotland!AQ41, Southern!AQ41, 'Wales & West'!AQ41) -> 0 | AR43: =CHOOSE(m_identity, East!AR41, London!AR41, 'North West'!AR41, 'West Midlands'!AR41, Northern!AR41, Scotland!AR41, Southern!AR41, 'Wales & West'!AR41) -> 0 | AS43: =CHOOSE(m_identity, East!AS41, London!AS41, 'North West'!AS41, 'West Midlands'!AS41, Northern!AS41, Scotland!AS41, Southern!AS41, 'Wales & West'!AS41) -> 0 | AT43: =CHOOSE(m_identity, East!AT41, London!AT41, 'North West'!AT41, 'West Midlands'!AT41, Northern!AT41, Scotland!AT41, Southern!AT41, 'Wales & West'!AT41) -> 0 | BB43: =CHOOSE(m_identity, East!BB41, London!BB41, 'North West'!BB41, 'West Midlands'!BB41, Northern!BB41, Scotland!BB41, Southern!BB41, 'Wales & West'!BB41) -> TIM | BC43: =CHOOSE(m_identity, East!BC41, London!BC41, 'North West'!BC41, 'West Midlands'!BC41, Northern!BC41, Scotland!BC41, Southern!BC41, 'Wales & West'!BC41) -> RPEs Don’t Apply (Outturn) | BD43: =CHOOSE(m_identity, East!BD41, London!BD41, 'North West'!BD41, 'West Midlands'!BD41, Northern!BD41, Scotland!BD41, Southern!BD41, 'Wales & West'!BD41) -> CapRate 2 (UM excl. Repex) | BE43: =CHOOSE(m_identity, East!BE41, London!BE41, 'North West'!BE41, 'West Midlands'!BE41, Northern!BE41, Scotland!BE41, Southern!BE41, 'Wales & West'!BE41) -> Fast/Slow Split (excl repex)
E44: =CHOOSE(m_identity, East!E42, London!E42, 'North West'!E42, 'West Midlands'!E42, Northern!E42, Scotland!E42, Southern!E42, 'Wales & West'!E42) -> Fuel Poor Network Extension Scheme volume driver | F44: =CHOOSE(m_identity, East!F42, London!F42, 'North West'!F42, 'West Midlands'!F42, Northern!F42, Scotland!F42, Southern!F42, 'Wales & West'!F42) -> SpC 3.14 | G44: £m 18/19 prices | H44: =CHOOSE(m_identity, East!H42, London!H42, 'North West'!H42, 'West Midlands'!H42, Northern!H42, Scotland!H42, Southern!H42, 'Wales & West'!H42) -> FPAt | I44: =CHOOSE(m_identity, East!I42, London!I42, 'North West'!I42, 'West Midlands'!I42, Northern!I42, Scotland!I42, Southern!I42, 'Wales & West'!I42) -> UM | AP44: =CHOOSE(m_identity, East!AP42, London!AP42, 'North West'!AP42, 'West Midlands'!AP42, Northern!AP42, Scotland!AP42, Southern!AP42, 'Wales & West'!AP42) -> 2.74866 | AQ44: =CHOOSE(m_identity, East!AQ42, London!AQ42, 'North West'!AQ42, 'West Midlands'!AQ42, Northern!AQ42, Scotland!AQ42, Southern!AQ42, 'Wales & West'!AQ42) -> 1.14903 | AR44: =CHOOSE(m_identity, East!AR42, London!AR42, 'North West'!AR42, 'West Midlands'!AR42, Northern!AR42, Scotland!AR42, Southern!AR42, 'Wales & West'!AR42) -> 0.051819 | AS44: =CHOOSE(m_identity, East!AS42, London!AS42, 'North West'!AS42, 'West Midlands'!AS42, Northern!AS42, Scotland!AS42, Southern!AS42, 'Wales & West'!AS42) -> 0.049566 | AT44: =CHOOSE(m_identity, East!AT42, London!AT42, 'North West'!AT42, 'West Midlands'!AT42, Northern!AT42, Scotland!AT42, Southern!AT42, 'Wales & West'!AT42) -> 0.049566 | BB44: =CHOOSE(m_identity, East!BB42, London!BB42, 'North West'!BB42, 'West Midlands'!BB42, Northern!BB42, Scotland!BB42, Southern!BB42, 'Wales & West'!BB42) -> TIM | BC44: =CHOOSE(m_identity, East!BC42, London!BC42, 'North West'!BC42, 'West Midlands'!BC42, Northern!BC42, Scotland!BC42, Southern!BC42, 'Wales & West'!BC42) -> RPEs Apply | BD44: =CHOOSE(m_identity, East!BD42, London!BD42, 'North West'!BD42, 'West Midlands'!BD42, Northern!BD42, Scotland!BD42, Southern!BD42, 'Wales & West'!BD42) -> CapRate 2 (UM excl. Repex) | BE44: =CHOOSE(m_identity, East!BE42, London!BE42, 'North West'!BE42, 'West Midlands'!BE42, Northern!BE42, Scotland!BE42, Southern!BE42, 'Wales & West'!BE42) -> Fast/Slow Split (excl repex)
E45: =CHOOSE(m_identity, East!E43, London!E43, 'North West'!E43, 'West Midlands'!E43, Northern!E43, Scotland!E43, Southern!E43, 'Wales & West'!E43) -> Net zero Re-opener | F45: =CHOOSE(m_identity, East!F43, London!F43, 'North West'!F43, 'West Midlands'!F43, Northern!F43, Scotland!F43, Southern!F43, 'Wales & West'!F43) -> SpC 3.6 | G45: £m 18/19 prices | H45: =CHOOSE(m_identity, East!H43, London!H43, 'North West'!H43, 'West Midlands'!H43, Northern!H43, Scotland!H43, Southern!H43, 'Wales & West'!H43) -> NZt | I45: =CHOOSE(m_identity, East!I43, London!I43, 'North West'!I43, 'West Midlands'!I43, Northern!I43, Scotland!I43, Southern!I43, 'Wales & West'!I43) -> UM | AP45: =CHOOSE(m_identity, East!AP43, London!AP43, 'North West'!AP43, 'West Midlands'!AP43, Northern!AP43, Scotland!AP43, Southern!AP43, 'Wales & West'!AP43) -> 0 | AQ45: =CHOOSE(m_identity, East!AQ43, London!AQ43, 'North West'!AQ43, 'West Midlands'!AQ43, Northern!AQ43, Scotland!AQ43, Southern!AQ43, 'Wales & West'!AQ43) -> 0 | AR45: =CHOOSE(m_identity, East!AR43, London!AR43, 'North West'!AR43, 'West Midlands'!AR43, Northern!AR43, Scotland!AR43, Southern!AR43, 'Wales & West'!AR43) -> 0 | AS45: =CHOOSE(m_identity, East!AS43, London!AS43, 'North West'!AS43, 'West Midlands'!AS43, Northern!AS43, Scotland!AS43, Southern!AS43, 'Wales & West'!AS43) -> 0 | AT45: =CHOOSE(m_identity, East!AT43, London!AT43, 'North West'!AT43, 'West Midlands'!AT43, Northern!AT43, Scotland!AT43, Southern!AT43, 'Wales & West'!AT43) -> 0 | BB45: =CHOOSE(m_identity, East!BB43, London!BB43, 'North West'!BB43, 'West Midlands'!BB43, Northern!BB43, Scotland!BB43, Southern!BB43, 'Wales & West'!BB43) -> TIM | BC45: =CHOOSE(m_identity, East!BC43, London!BC43, 'North West'!BC43, 'West Midlands'!BC43, Northern!BC43, Scotland!BC43, Southern!BC43, 'Wales & West'!BC43) -> RPEs Don’t Apply (Outturn) | BD45: =CHOOSE(m_identity, East!BD43, London!BD43, 'North West'!BD43, 'West Midlands'!BD43, Northern!BD43, Scotland!BD43, Southern!BD43, 'Wales & West'!BD43) -> CapRate 2 (UM excl. Repex) | BE45: =CHOOSE(m_identity, East!BE43, London!BE43, 'North West'!BE43, 'West Midlands'!BE43, Northern!BE43, Scotland!BE43, Southern!BE43, 'Wales & West'!BE43) -> Fast/Slow Split (excl repex)
E46: =CHOOSE(m_identity, East!E44, London!E44, 'North West'!E44, 'West Midlands'!E44, Northern!E44, Scotland!E44, Southern!E44, 'Wales & West'!E44) -> Smart Metering Roll-out Costs Re-opener | F46: =CHOOSE(m_identity, East!F44, London!F44, 'North West'!F44, 'West Midlands'!F44, Northern!F44, Scotland!F44, Southern!F44, 'Wales & West'!F44) -> SpC 3.23 | G46: £m 18/19 prices | H46: =CHOOSE(m_identity, East!H44, London!H44, 'North West'!H44, 'West Midlands'!H44, Northern!H44, Scotland!H44, Southern!H44, 'Wales & West'!H44) -> SMRt | I46: =CHOOSE(m_identity, East!I44, London!I44, 'North West'!I44, 'West Midlands'!I44, Northern!I44, Scotland!I44, Southern!I44, 'Wales & West'!I44) -> UM | AP46: =CHOOSE(m_identity, East!AP44, London!AP44, 'North West'!AP44, 'West Midlands'!AP44, Northern!AP44, Scotland!AP44, Southern!AP44, 'Wales & West'!AP44) -> 0 | AQ46: =CHOOSE(m_identity, East!AQ44, London!AQ44, 'North West'!AQ44, 'West Midlands'!AQ44, Northern!AQ44, Scotland!AQ44, Southern!AQ44, 'Wales & West'!AQ44) -> 0 | AR46: =CHOOSE(m_identity, East!AR44, London!AR44, 'North West'!AR44, 'West Midlands'!AR44, Northern!AR44, Scotland!AR44, Southern!AR44, 'Wales & West'!AR44) -> 0 | AS46: =CHOOSE(m_identity, East!AS44, London!AS44, 'North West'!AS44, 'West Midlands'!AS44, Northern!AS44, Scotland!AS44, Southern!AS44, 'Wales & West'!AS44) -> 0 | AT46: =CHOOSE(m_identity, East!AT44, London!AT44, 'North West'!AT44, 'West Midlands'!AT44, Northern!AT44, Scotland!AT44, Southern!AT44, 'Wales & West'!AT44) -> 0 | BB46: =CHOOSE(m_identity, East!BB44, London!BB44, 'North West'!BB44, 'West Midlands'!BB44, Northern!BB44, Scotland!BB44, Southern!BB44, 'Wales & West'!BB44) -> TIM | BC46: =CHOOSE(m_identity, East!BC44, London!BC44, 'North West'!BC44, 'West Midlands'!BC44, Northern!BC44, Scotland!BC44, Southern!BC44, 'Wales & West'!BC44) -> RPEs Don’t Apply (Outturn) | BD46: =CHOOSE(m_identity, East!BD44, London!BD44, 'North West'!BD44, 'West Midlands'!BD44, Northern!BD44, Scotland!BD44, Southern!BD44, 'Wales & West'!BD44) -> CapRate 2 (UM excl. Repex) | BE46: =CHOOSE(m_identity, East!BE44, London!BE44, 'North West'!BE44, 'West Midlands'!BE44, Northern!BE44, Scotland!BE44, Southern!BE44, 'Wales & West'!BE44) -> Fast/Slow Split (excl repex)
E47: =CHOOSE(m_identity, East!E45, London!E45, 'North West'!E45, 'West Midlands'!E45, Northern!E45, Scotland!E45, Southern!E45, 'Wales & West'!E45) -> Specified Streetworks Costs Re-opener | F47: =CHOOSE(m_identity, East!F45, London!F45, 'North West'!F45, 'West Midlands'!F45, Northern!F45, Scotland!F45, Southern!F45, 'Wales & West'!F45) -> SpC 3.24 | G47: £m 18/19 prices | H47: =CHOOSE(m_identity, East!H45, London!H45, 'North West'!H45, 'West Midlands'!H45, Northern!H45, Scotland!H45, Southern!H45, 'Wales & West'!H45) -> STWt | I47: =CHOOSE(m_identity, East!I45, London!I45, 'North West'!I45, 'West Midlands'!I45, Northern!I45, Scotland!I45, Southern!I45, 'Wales & West'!I45) -> UM | AP47: =CHOOSE(m_identity, East!AP45, London!AP45, 'North West'!AP45, 'West Midlands'!AP45, Northern!AP45, Scotland!AP45, Southern!AP45, 'Wales & West'!AP45) -> 0 | AQ47: =CHOOSE(m_identity, East!AQ45, London!AQ45, 'North West'!AQ45, 'West Midlands'!AQ45, Northern!AQ45, Scotland!AQ45, Southern!AQ45, 'Wales & West'!AQ45) -> 0 | AR47: =CHOOSE(m_identity, East!AR45, London!AR45, 'North West'!AR45, 'West Midlands'!AR45, Northern!AR45, Scotland!AR45, Southern!AR45, 'Wales & West'!AR45) -> 0 | AS47: =CHOOSE(m_identity, East!AS45, London!AS45, 'North West'!AS45, 'West Midlands'!AS45, Northern!AS45, Scotland!AS45, Southern!AS45, 'Wales & West'!AS45) -> 0 | AT47: =CHOOSE(m_identity, East!AT45, London!AT45, 'North West'!AT45, 'West Midlands'!AT45, Northern!AT45, Scotland!AT45, Southern!AT45, 'Wales & West'!AT45) -> 0 | BB47: =CHOOSE(m_identity, East!BB45, London!BB45, 'North West'!BB45, 'West Midlands'!BB45, Northern!BB45, Scotland!BB45, Southern!BB45, 'Wales & West'!BB45) -> TIM | BC47: =CHOOSE(m_identity, East!BC45, London!BC45, 'North West'!BC45, 'West Midlands'!BC45, Northern!BC45, Scotland!BC45, Southern!BC45, 'Wales & West'!BC45) -> RPEs Don’t Apply (Outturn) | BD47: =CHOOSE(m_identity, East!BD45, London!BD45, 'North West'!BD45, 'West Midlands'!BD45, Northern!BD45, Scotland!BD45, Southern!BD45, 'Wales & West'!BD45) -> CapRate 2 (UM excl. Repex) | BE47: =CHOOSE(m_identity, East!BE45, London!BE45, 'North West'!BE45, 'West Midlands'!BE45, Northern!BE45, Scotland!BE45, Southern!BE45, 'Wales & West'!BE45) -> Fast/Slow Split (excl repex)
E48: =CHOOSE(m_identity, East!E46, London!E46, 'North West'!E46, 'West Midlands'!E46, Northern!E46, Scotland!E46, Southern!E46, 'Wales & West'!E46) -> New Large Load Connections Re-opener | F48: =CHOOSE(m_identity, East!F46, London!F46, 'North West'!F46, 'West Midlands'!F46, Northern!F46, Scotland!F46, Southern!F46, 'Wales & West'!F46) -> SpC 3.22 | G48: £m 18/19 prices | H48: =CHOOSE(m_identity, East!H46, London!H46, 'North West'!H46, 'West Midlands'!H46, Northern!H46, Scotland!H46, Southern!H46, 'Wales & West'!H46) -> NLLRt | I48: =CHOOSE(m_identity, East!I46, London!I46, 'North West'!I46, 'West Midlands'!I46, Northern!I46, Scotland!I46, Southern!I46, 'Wales & West'!I46) -> UM | AP48: =CHOOSE(m_identity, East!AP46, London!AP46, 'North West'!AP46, 'West Midlands'!AP46, Northern!AP46, Scotland!AP46, Southern!AP46, 'Wales & West'!AP46) -> 1.04 | AQ48: =CHOOSE(m_identity, East!AQ46, London!AQ46, 'North West'!AQ46, 'West Midlands'!AQ46, Northern!AQ46, Scotland!AQ46, Southern!AQ46, 'Wales & West'!AQ46) -> 0.06 | AR48: =CHOOSE(m_identity, East!AR46, London!AR46, 'North West'!AR46, 'West Midlands'!AR46, Northern!AR46, Scotland!AR46, Southern!AR46, 'Wales & West'!AR46) -> 0 | AS48: =CHOOSE(m_identity, East!AS46, London!AS46, 'North West'!AS46, 'West Midlands'!AS46, Northern!AS46, Scotland!AS46, Southern!AS46, 'Wales & West'!AS46) -> 5.44 | AT48: =CHOOSE(m_identity, East!AT46, London!AT46, 'North West'!AT46, 'West Midlands'!AT46, Northern!AT46, Scotland!AT46, Southern!AT46, 'Wales & West'!AT46) -> 0.95 | BB48: =CHOOSE(m_identity, East!BB46, London!BB46, 'North West'!BB46, 'West Midlands'!BB46, Northern!BB46, Scotland!BB46, Southern!BB46, 'Wales & West'!BB46) -> TIM | BC48: =CHOOSE(m_identity, East!BC46, London!BC46, 'North West'!BC46, 'West Midlands'!BC46, Northern!BC46, Scotland!BC46, Southern!BC46, 'Wales & West'!BC46) -> RPEs Don’t Apply (Outturn) | BD48: =CHOOSE(m_identity, East!BD46, London!BD46, 'North West'!BD46, 'West Midlands'!BD46, Northern!BD46, Scotland!BD46, Southern!BD46, 'Wales & West'!BD46) -> CapRate 2 (UM excl. Repex) | BE48: =CHOOSE(m_identity, East!BE46, London!BE46, 'North West'!BE46, 'West Midlands'!BE46, Northern!BE46, Scotland!BE46, Southern!BE46, 'Wales & West'!BE46) -> Fast/Slow Split (excl repex)
E49: =CHOOSE(m_identity, East!E47, London!E47, 'North West'!E47, 'West Midlands'!E47, Northern!E47, Scotland!E47, Southern!E47, 'Wales & West'!E47) -> Domestic Connections volume driver | F49: =CHOOSE(m_identity, East!F47, London!F47, 'North West'!F47, 'West Midlands'!F47, Northern!F47, Scotland!F47, Southern!F47, 'Wales & West'!F47) -> SpC 3.15 | G49: £m 18/19 prices | H49: =CHOOSE(m_identity, East!H47, London!H47, 'North West'!H47, 'West Midlands'!H47, Northern!H47, Scotland!H47, Southern!H47, 'Wales & West'!H47) -> CAt | I49: =CHOOSE(m_identity, East!I47, London!I47, 'North West'!I47, 'West Midlands'!I47, Northern!I47, Scotland!I47, Southern!I47, 'Wales & West'!I47) -> UM | AP49: =CHOOSE(m_identity, East!AP47, London!AP47, 'North West'!AP47, 'West Midlands'!AP47, Northern!AP47, Scotland!AP47, Southern!AP47, 'Wales & West'!AP47) -> 7.71842327 | AQ49: =CHOOSE(m_identity, East!AQ47, London!AQ47, 'North West'!AQ47, 'West Midlands'!AQ47, Northern!AQ47, Scotland!AQ47, Southern!AQ47, 'Wales & West'!AQ47) -> 5.393978575 | AR49: =CHOOSE(m_identity, East!AR47, London!AR47, 'North West'!AR47, 'West Midlands'!AR47, Northern!AR47, Scotland!AR47, Southern!AR47, 'Wales & West'!AR47) -> 4.648048535 | AS49: =CHOOSE(m_identity, East!AS47, London!AS47, 'North West'!AS47, 'West Midlands'!AS47, Northern!AS47, Scotland!AS47, Southern!AS47, 'Wales & West'!AS47) -> 3.997406761 | AT49: =CHOOSE(m_identity, East!AT47, London!AT47, 'North West'!AT47, 'West Midlands'!AT47, Northern!AT47, Scotland!AT47, Southern!AT47, 'Wales & West'!AT47) -> 3.44407943 | BB49: =CHOOSE(m_identity, East!BB47, London!BB47, 'North West'!BB47, 'West Midlands'!BB47, Northern!BB47, Scotland!BB47, Southern!BB47, 'Wales & West'!BB47) -> TIM | BC49: =CHOOSE(m_identity, East!BC47, London!BC47, 'North West'!BC47, 'West Midlands'!BC47, Northern!BC47, Scotland!BC47, Southern!BC47, 'Wales & West'!BC47) -> RPEs Apply | BD49: =CHOOSE(m_identity, East!BD47, London!BD47, 'North West'!BD47, 'West Midlands'!BD47, Northern!BD47, Scotland!BD47, Southern!BD47, 'Wales & West'!BD47) -> CapRate 2 (UM excl. Repex) | BE49: =CHOOSE(m_identity, East!BE47, London!BE47, 'North West'!BE47, 'West Midlands'!BE47, Northern!BE47, Scotland!BE47, Southern!BE47, 'Wales & West'!BE47) -> Fast/Slow Split (excl repex)
E50: =CHOOSE(m_identity, East!E48, London!E48, 'North West'!E48, 'West Midlands'!E48, Northern!E48, Scotland!E48, Southern!E48, 'Wales & West'!E48) -> Tier 1 Stubs Repex policy Re-opener | F50: =CHOOSE(m_identity, East!F48, London!F48, 'North West'!F48, 'West Midlands'!F48, Northern!F48, Scotland!F48, Southern!F48, 'Wales & West'!F48) -> SpC 3.18 | G50: £m 18/19 prices | H50: =CHOOSE(m_identity, East!H48, London!H48, 'North West'!H48, 'West Midlands'!H48, Northern!H48, Scotland!H48, Southern!H48, 'Wales & West'!H48) -> STUBt | I50: =CHOOSE(m_identity, East!I48, London!I48, 'North West'!I48, 'West Midlands'!I48, Northern!I48, Scotland!I48, Southern!I48, 'Wales & West'!I48) -> UM | AP50: =CHOOSE(m_identity, East!AP48, London!AP48, 'North West'!AP48, 'West Midlands'!AP48, Northern!AP48, Scotland!AP48, Southern!AP48, 'Wales & West'!AP48) -> 0.35 | AQ50: =CHOOSE(m_identity, East!AQ48, London!AQ48, 'North West'!AQ48, 'West Midlands'!AQ48, Northern!AQ48, Scotland!AQ48, Southern!AQ48, 'Wales & West'!AQ48) -> 0.95 | AR50: =CHOOSE(m_identity, East!AR48, London!AR48, 'North West'!AR48, 'West Midlands'!AR48, Northern!AR48, Scotland!AR48, Southern!AR48, 'Wales & West'!AR48) -> 0.5 | AS50: =CHOOSE(m_identity, East!AS48, London!AS48, 'North West'!AS48, 'West Midlands'!AS48, Northern!AS48, Scotland!AS48, Southern!AS48, 'Wales & West'!AS48) -> 0.95 | AT50: =CHOOSE(m_identity, East!AT48, London!AT48, 'North West'!AT48, 'West Midlands'!AT48, Northern!AT48, Scotland!AT48, Southern!AT48, 'Wales & West'!AT48) -> 0.95 | BB50: =CHOOSE(m_identity, East!BB48, London!BB48, 'North West'!BB48, 'West Midlands'!BB48, Northern!BB48, Scotland!BB48, Southern!BB48, 'Wales & West'!BB48) -> TIM | BC50: =CHOOSE(m_identity, East!BC48, London!BC48, 'North West'!BC48, 'West Midlands'!BC48, Northern!BC48, Scotland!BC48, Southern!BC48, 'Wales & West'!BC48) -> RPEs Don’t Apply (Outturn) | BD50: =CHOOSE(m_identity, East!BD48, London!BD48, 'North West'!BD48, 'West Midlands'!BD48, Northern!BD48, Scotland!BD48, Southern!BD48, 'Wales & West'!BD48) -> CapRate 2 (UM excl. Repex) | BE50: =CHOOSE(m_identity, East!BE48, London!BE48, 'North West'!BE48, 'West Midlands'!BE48, Northern!BE48, Scotland!BE48, Southern!BE48, 'Wales & West'!BE48) -> Fast/Slow Split (excl repex)
E51: =CHOOSE(m_identity, East!E49, London!E49, 'North West'!E49, 'West Midlands'!E49, Northern!E49, Scotland!E49, Southern!E49, 'Wales & West'!E49) -> Diversions and Loss of Development Claims policy Re-opener | F51: =CHOOSE(m_identity, East!F49, London!F49, 'North West'!F49, 'West Midlands'!F49, Northern!F49, Scotland!F49, Southern!F49, 'Wales & West'!F49) -> SpC 3.20 | G51: £m 18/19 prices | H51: =CHOOSE(m_identity, East!H49, London!H49, 'North West'!H49, 'West Midlands'!H49, Northern!H49, Scotland!H49, Southern!H49, 'Wales & West'!H49) -> DIVt | I51: =CHOOSE(m_identity, East!I49, London!I49, 'North West'!I49, 'West Midlands'!I49, Northern!I49, Scotland!I49, Southern!I49, 'Wales & West'!I49) -> UM | AP51: =CHOOSE(m_identity, East!AP49, London!AP49, 'North West'!AP49, 'West Midlands'!AP49, Northern!AP49, Scotland!AP49, Southern!AP49, 'Wales & West'!AP49) -> 3.47 | AQ51: =CHOOSE(m_identity, East!AQ49, London!AQ49, 'North West'!AQ49, 'West Midlands'!AQ49, Northern!AQ49, Scotland!AQ49, Southern!AQ49, 'Wales & West'!AQ49) -> 1.45 | AR51: =CHOOSE(m_identity, East!AR49, London!AR49, 'North West'!AR49, 'West Midlands'!AR49, Northern!AR49, Scotland!AR49, Southern!AR49, 'Wales & West'!AR49) -> 3 | AS51: =CHOOSE(m_identity, East!AS49, London!AS49, 'North West'!AS49, 'West Midlands'!AS49, Northern!AS49, Scotland!AS49, Southern!AS49, 'Wales & West'!AS49) -> 4.52 | AT51: =CHOOSE(m_identity, East!AT49, London!AT49, 'North West'!AT49, 'West Midlands'!AT49, Northern!AT49, Scotland!AT49, Southern!AT49, 'Wales & West'!AT49) -> 5.75 | BB51: =CHOOSE(m_identity, East!BB49, London!BB49, 'North West'!BB49, 'West Midlands'!BB49, Northern!BB49, Scotland!BB49, Southern!BB49, 'Wales & West'!BB49) -> TIM | BC51: =CHOOSE(m_identity, East!BC49, London!BC49, 'North West'!BC49, 'West Midlands'!BC49, Northern!BC49, Scotland!BC49, Southern!BC49, 'Wales & West'!BC49) -> RPEs Don’t Apply (Outturn) | BD51: =CHOOSE(m_identity, East!BD49, London!BD49, 'North West'!BD49, 'West Midlands'!BD49, Northern!BD49, Scotland!BD49, Southern!BD49, 'Wales & West'!BD49) -> CapRate 2 (UM excl. Repex) | BE51: =CHOOSE(m_identity, East!BE49, London!BE49, 'North West'!BE49, 'West Midlands'!BE49, Northern!BE49, Scotland!BE49, Southern!BE49, 'Wales & West'!BE49) -> Fast/Slow Split (excl repex)
E52: =CHOOSE(m_identity, East!E50, London!E50, 'North West'!E50, 'West Midlands'!E50, Northern!E50, Scotland!E50, Southern!E50, 'Wales & West'!E50) -> Multiple Occupancy Buildings safety Re-opener | F52: =CHOOSE(m_identity, East!F50, London!F50, 'North West'!F50, 'West Midlands'!F50, Northern!F50, Scotland!F50, Southern!F50, 'Wales & West'!F50) -> SpC 3.21 | G52: £m 18/19 prices | H52: =CHOOSE(m_identity, East!H50, London!H50, 'North West'!H50, 'West Midlands'!H50, Northern!H50, Scotland!H50, Southern!H50, 'Wales & West'!H50) -> MOBSt | I52: =CHOOSE(m_identity, East!I50, London!I50, 'North West'!I50, 'West Midlands'!I50, Northern!I50, Scotland!I50, Southern!I50, 'Wales & West'!I50) -> UM | AP52: =CHOOSE(m_identity, East!AP50, London!AP50, 'North West'!AP50, 'West Midlands'!AP50, Northern!AP50, Scotland!AP50, Southern!AP50, 'Wales & West'!AP50) -> 0 | AQ52: =CHOOSE(m_identity, East!AQ50, London!AQ50, 'North West'!AQ50, 'West Midlands'!AQ50, Northern!AQ50, Scotland!AQ50, Southern!AQ50, 'Wales & West'!AQ50) -> 0 | AR52: =CHOOSE(m_identity, East!AR50, London!AR50, 'North West'!AR50, 'West Midlands'!AR50, Northern!AR50, Scotland!AR50, Southern!AR50, 'Wales & West'!AR50) -> 0 | AS52: =CHOOSE(m_identity, East!AS50, London!AS50, 'North West'!AS50, 'West Midlands'!AS50, Northern!AS50, Scotland!AS50, Southern!AS50, 'Wales & West'!AS50) -> 0 | AT52: =CHOOSE(m_identity, East!AT50, London!AT50, 'North West'!AT50, 'West Midlands'!AT50, Northern!AT50, Scotland!AT50, Southern!AT50, 'Wales & West'!AT50) -> 0 | BB52: =CHOOSE(m_identity, East!BB50, London!BB50, 'North West'!BB50, 'West Midlands'!BB50, Northern!BB50, Scotland!BB50, Southern!BB50, 'Wales & West'!BB50) -> TIM | BC52: =CHOOSE(m_identity, East!BC50, London!BC50, 'North West'!BC50, 'West Midlands'!BC50, Northern!BC50, Scotland!BC50, Southern!BC50, 'Wales & West'!BC50) -> RPEs Don’t Apply (Outturn) | BD52: =CHOOSE(m_identity, East!BD50, London!BD50, 'North West'!BD50, 'West Midlands'!BD50, Northern!BD50, Scotland!BD50, Southern!BD50, 'Wales & West'!BD50) -> CapRate 2 (UM excl. Repex) | BE52: =CHOOSE(m_identity, East!BE50, London!BE50, 'North West'!BE50, 'West Midlands'!BE50, Northern!BE50, Scotland!BE50, Southern!BE50, 'Wales & West'!BE50) -> Fast/Slow Split (excl repex)
E53: =CHOOSE(m_identity, East!E51, London!E51, 'North West'!E51, 'West Midlands'!E51, Northern!E51, Scotland!E51, Southern!E51, 'Wales & West'!E51) -> Non-operational IT Capex Re-opener | F53: =CHOOSE(m_identity, East!F51, London!F51, 'North West'!F51, 'West Midlands'!F51, Northern!F51, Scotland!F51, Southern!F51, 'Wales & West'!F51) -> SpC 3.7 | G53: £m 18/19 prices | H53: =CHOOSE(m_identity, East!H51, London!H51, 'North West'!H51, 'West Midlands'!H51, Northern!H51, Scotland!H51, Southern!H51, 'Wales & West'!H51) -> NOITREt | I53: =CHOOSE(m_identity, East!I51, London!I51, 'North West'!I51, 'West Midlands'!I51, Northern!I51, Scotland!I51, Southern!I51, 'Wales & West'!I51) -> UM | AP53: =CHOOSE(m_identity, East!AP51, London!AP51, 'North West'!AP51, 'West Midlands'!AP51, Northern!AP51, Scotland!AP51, Southern!AP51, 'Wales & West'!AP51) -> 0.09860332118 | AQ53: =CHOOSE(m_identity, East!AQ51, London!AQ51, 'North West'!AQ51, 'West Midlands'!AQ51, Northern!AQ51, Scotland!AQ51, Southern!AQ51, 'Wales & West'!AQ51) -> 0.3535474481 | AR53: =CHOOSE(m_identity, East!AR51, London!AR51, 'North West'!AR51, 'West Midlands'!AR51, Northern!AR51, Scotland!AR51, Southern!AR51, 'Wales & West'!AR51) -> 0.2505091554 | AS53: =CHOOSE(m_identity, East!AS51, London!AS51, 'North West'!AS51, 'West Midlands'!AS51, Northern!AS51, Scotland!AS51, Southern!AS51, 'Wales & West'!AS51) -> 0.4790953528 | AT53: =CHOOSE(m_identity, East!AT51, London!AT51, 'North West'!AT51, 'West Midlands'!AT51, Northern!AT51, Scotland!AT51, Southern!AT51, 'Wales & West'!AT51) -> 0.4129658966 | BB53: =CHOOSE(m_identity, East!BB51, London!BB51, 'North West'!BB51, 'West Midlands'!BB51, Northern!BB51, Scotland!BB51, Southern!BB51, 'Wales & West'!BB51) -> TIM | BC53: =CHOOSE(m_identity, East!BC51, London!BC51, 'North West'!BC51, 'West Midlands'!BC51, Northern!BC51, Scotland!BC51, Southern!BC51, 'Wales & West'!BC51) -> RPEs Don’t Apply (Outturn) | BD53: =CHOOSE(m_identity, East!BD51, London!BD51, 'North West'!BD51, 'West Midlands'!BD51, Northern!BD51, Scotland!BD51, Southern!BD51, 'Wales & West'!BD51) -> CapRate 2 (UM excl. Repex) | BE53: =CHOOSE(m_identity, East!BE51, London!BE51, 'North West'!BE51, 'West Midlands'!BE51, Northern!BE51, Scotland!BE51, Southern!BE51, 'Wales & West'!BE51) -> Fast/Slow Split (excl repex)
E54: =CHOOSE(m_identity, East!E52, London!E52, 'North West'!E52, 'West Midlands'!E52, Northern!E52, Scotland!E52, Southern!E52, 'Wales & West'!E52) -> Net zero pre-construction works and small net zero projects re-opener | F54: =CHOOSE(m_identity, East!F52, London!F52, 'North West'!F52, 'West Midlands'!F52, Northern!F52, Scotland!F52, Southern!F52, 'Wales & West'!F52) -> SpC 3.9 | G54: £m 18/19 prices | H54: =CHOOSE(m_identity, East!H52, London!H52, 'North West'!H52, 'West Midlands'!H52, Northern!H52, Scotland!H52, Southern!H52, 'Wales & West'!H52) -> NZPt | I54: =CHOOSE(m_identity, East!I52, London!I52, 'North West'!I52, 'West Midlands'!I52, Northern!I52, Scotland!I52, Southern!I52, 'Wales & West'!I52) -> UM | AP54: =CHOOSE(m_identity, East!AP52, London!AP52, 'North West'!AP52, 'West Midlands'!AP52, Northern!AP52, Scotland!AP52, Southern!AP52, 'Wales & West'!AP52) -> 0 | AQ54: =CHOOSE(m_identity, East!AQ52, London!AQ52, 'North West'!AQ52, 'West Midlands'!AQ52, Northern!AQ52, Scotland!AQ52, Southern!AQ52, 'Wales & West'!AQ52) -> 0.01268125516 | AR54: =CHOOSE(m_identity, East!AR52, London!AR52, 'North West'!AR52, 'West Midlands'!AR52, Northern!AR52, Scotland!AR52, Southern!AR52, 'Wales & West'!AR52) -> 0.9985240444 | AS54: =CHOOSE(m_identity, East!AS52, London!AS52, 'North West'!AS52, 'West Midlands'!AS52, Northern!AS52, Scotland!AS52, Southern!AS52, 'Wales & West'!AS52) -> 1.362776345 | AT54: =CHOOSE(m_identity, East!AT52, London!AT52, 'North West'!AT52, 'West Midlands'!AT52, Northern!AT52, Scotland!AT52, Southern!AT52, 'Wales & West'!AT52) -> 2.940711971 | BB54: =CHOOSE(m_identity, East!BB52, London!BB52, 'North West'!BB52, 'West Midlands'!BB52, Northern!BB52, Scotland!BB52, Southern!BB52, 'Wales & West'!BB52) -> TIM | BC54: =CHOOSE(m_identity, East!BC52, London!BC52, 'North West'!BC52, 'West Midlands'!BC52, Northern!BC52, Scotland!BC52, Southern!BC52, 'Wales & West'!BC52) -> RPEs Don’t Apply (Outturn) | BD54: =CHOOSE(m_identity, East!BD52, London!BD52, 'North West'!BD52, 'West Midlands'!BD52, Northern!BD52, Scotland!BD52, Southern!BD52, 'Wales & West'!BD52) -> CapRate 2 (UM excl. Repex) | BE54: =CHOOSE(m_identity, East!BE52, London!BE52, 'North West'!BE52, 'West Midlands'!BE52, Northern!BE52, Scotland!BE52, Southern!BE52, 'Wales & West'!BE52) -> Fast/Slow Split (excl repex)
E55: =CHOOSE(m_identity, East!E53, London!E53, 'North West'!E53, 'West Midlands'!E53, Northern!E53, Scotland!E53, Southern!E53, 'Wales & West'!E53) -> Cyber Resilience OT Non-Baseline | F55: =CHOOSE(m_identity, East!F53, London!F53, 'North West'!F53, 'West Midlands'!F53, Northern!F53, Scotland!F53, Southern!F53, 'Wales & West'!F53) -> SpC 3.2 | G55: £m 18/19 prices | H55: =CHOOSE(m_identity, East!H53, London!H53, 'North West'!H53, 'West Midlands'!H53, Northern!H53, Scotland!H53, Southern!H53, 'Wales & West'!H53) -> CROTREt | I55: =CHOOSE(m_identity, East!I53, London!I53, 'North West'!I53, 'West Midlands'!I53, Northern!I53, Scotland!I53, Southern!I53, 'Wales & West'!I53) -> UM | AP55: =CHOOSE(m_identity, East!AP53, London!AP53, 'North West'!AP53, 'West Midlands'!AP53, Northern!AP53, Scotland!AP53, Southern!AP53, 'Wales & West'!AP53) -> 0 | AQ55: =CHOOSE(m_identity, East!AQ53, London!AQ53, 'North West'!AQ53, 'West Midlands'!AQ53, Northern!AQ53, Scotland!AQ53, Southern!AQ53, 'Wales & West'!AQ53) -> 0.006843659177 | AR55: =CHOOSE(m_identity, East!AR53, London!AR53, 'North West'!AR53, 'West Midlands'!AR53, Northern!AR53, Scotland!AR53, Southern!AR53, 'Wales & West'!AR53) -> 1.293285062 | AS55: =CHOOSE(m_identity, East!AS53, London!AS53, 'North West'!AS53, 'West Midlands'!AS53, Northern!AS53, Scotland!AS53, Southern!AS53, 'Wales & West'!AS53) -> 10.84 | AT55: =CHOOSE(m_identity, East!AT53, London!AT53, 'North West'!AT53, 'West Midlands'!AT53, Northern!AT53, Scotland!AT53, Southern!AT53, 'Wales & West'!AT53) -> 15.87 | BB55: =CHOOSE(m_identity, East!BB53, London!BB53, 'North West'!BB53, 'West Midlands'!BB53, Northern!BB53, Scotland!BB53, Southern!BB53, 'Wales & West'!BB53) -> Non-Tim | BC55: =CHOOSE(m_identity, East!BC53, London!BC53, 'North West'!BC53, 'West Midlands'!BC53, Northern!BC53, Scotland!BC53, Southern!BC53, 'Wales & West'!BC53) -> RPEs Don’t Apply (Outturn) | BD55: =CHOOSE(m_identity, East!BD53, London!BD53, 'North West'!BD53, 'West Midlands'!BD53, Northern!BD53, Scotland!BD53, Southern!BD53, 'Wales & West'!BD53) -> CapRate 2 (UM excl. Repex) | BE55: =CHOOSE(m_identity, East!BE53, London!BE53, 'North West'!BE53, 'West Midlands'!BE53, Northern!BE53, Scotland!BE53, Southern!BE53, 'Wales & West'!BE53) -> Fast/Slow Split (excl repex)
E56: =CHOOSE(m_identity, East!E54, London!E54, 'North West'!E54, 'West Midlands'!E54, Northern!E54, Scotland!E54, Southern!E54, 'Wales & West'!E54) -> Cyber Resilience IT Non-Baseline | F56: =CHOOSE(m_identity, East!F54, London!F54, 'North West'!F54, 'West Midlands'!F54, Northern!F54, Scotland!F54, Southern!F54, 'Wales & West'!F54) -> SpC 3.3 | G56: £m 18/19 prices | H56: =CHOOSE(m_identity, East!H54, London!H54, 'North West'!H54, 'West Midlands'!H54, Northern!H54, Scotland!H54, Southern!H54, 'Wales & West'!H54) -> CRITREt | I56: =CHOOSE(m_identity, East!I54, London!I54, 'North West'!I54, 'West Midlands'!I54, Northern!I54, Scotland!I54, Southern!I54, 'Wales & West'!I54) -> UM | AP56: =CHOOSE(m_identity, East!AP54, London!AP54, 'North West'!AP54, 'West Midlands'!AP54, Northern!AP54, Scotland!AP54, Southern!AP54, 'Wales & West'!AP54) -> 0 | AQ56: =CHOOSE(m_identity, East!AQ54, London!AQ54, 'North West'!AQ54, 'West Midlands'!AQ54, Northern!AQ54, Scotland!AQ54, Southern!AQ54, 'Wales & West'!AQ54) -> 0.03019984161 | AR56: =CHOOSE(m_identity, East!AR54, London!AR54, 'North West'!AR54, 'West Midlands'!AR54, Northern!AR54, Scotland!AR54, Southern!AR54, 'Wales & West'!AR54) -> 0.6862989989 | AS56: =CHOOSE(m_identity, East!AS54, London!AS54, 'North West'!AS54, 'West Midlands'!AS54, Northern!AS54, Scotland!AS54, Southern!AS54, 'Wales & West'!AS54) -> 0.8195213553 | AT56: =CHOOSE(m_identity, East!AT54, London!AT54, 'North West'!AT54, 'West Midlands'!AT54, Northern!AT54, Scotland!AT54, Southern!AT54, 'Wales & West'!AT54) -> 0.8765936317 | BB56: =CHOOSE(m_identity, East!BB54, London!BB54, 'North West'!BB54, 'West Midlands'!BB54, Northern!BB54, Scotland!BB54, Southern!BB54, 'Wales & West'!BB54) -> TIM | BC56: =CHOOSE(m_identity, East!BC54, London!BC54, 'North West'!BC54, 'West Midlands'!BC54, Northern!BC54, Scotland!BC54, Southern!BC54, 'Wales & West'!BC54) -> RPEs Don’t Apply (Outturn) | BD56: =CHOOSE(m_identity, East!BD54, London!BD54, 'North West'!BD54, 'West Midlands'!BD54, Northern!BD54, Scotland!BD54, Southern!BD54, 'Wales & West'!BD54) -> CapRate 2 (UM excl. Repex) | BE56: =CHOOSE(m_identity, East!BE54, London!BE54, 'North West'!BE54, 'West Midlands'!BE54, Northern!BE54, Scotland!BE54, Southern!BE54, 'Wales & West'!BE54) -> Fast/Slow Split (excl repex)
E57: =CHOOSE(m_identity, East!E55, London!E55, 'North West'!E55, 'West Midlands'!E55, Northern!E55, Scotland!E55, Southern!E55, 'Wales & West'!E55) -> Physical Security Re-Opener | F57: =CHOOSE(m_identity, East!F55, London!F55, 'North West'!F55, 'West Midlands'!F55, Northern!F55, Scotland!F55, Southern!F55, 'Wales & West'!F55) -> SpC 3.4 | G57: £m 18/19 prices | H57: =CHOOSE(m_identity, East!H55, London!H55, 'North West'!H55, 'West Midlands'!H55, Northern!H55, Scotland!H55, Southern!H55, 'Wales & West'!H55) -> PSUPREt | I57: =CHOOSE(m_identity, East!I55, London!I55, 'North West'!I55, 'West Midlands'!I55, Northern!I55, Scotland!I55, Southern!I55, 'Wales & West'!I55) -> UM | AP57: =CHOOSE(m_identity, East!AP55, London!AP55, 'North West'!AP55, 'West Midlands'!AP55, Northern!AP55, Scotland!AP55, Southern!AP55, 'Wales & West'!AP55) -> 0 | AQ57: =CHOOSE(m_identity, East!AQ55, London!AQ55, 'North West'!AQ55, 'West Midlands'!AQ55, Northern!AQ55, Scotland!AQ55, Southern!AQ55, 'Wales & West'!AQ55) -> 0.00411829 | AR57: =CHOOSE(m_identity, East!AR55, London!AR55, 'North West'!AR55, 'West Midlands'!AR55, Northern!AR55, Scotland!AR55, Southern!AR55, 'Wales & West'!AR55) -> 0.09383612 | AS57: =CHOOSE(m_identity, East!AS55, London!AS55, 'North West'!AS55, 'West Midlands'!AS55, Northern!AS55, Scotland!AS55, Southern!AS55, 'Wales & West'!AS55) -> 3.19315581 | AT57: =CHOOSE(m_identity, East!AT55, London!AT55, 'North West'!AT55, 'West Midlands'!AT55, Northern!AT55, Scotland!AT55, Southern!AT55, 'Wales & West'!AT55) -> 1.40811791 | BB57: =CHOOSE(m_identity, East!BB55, London!BB55, 'North West'!BB55, 'West Midlands'!BB55, Northern!BB55, Scotland!BB55, Southern!BB55, 'Wales & West'!BB55) -> TIM | BC57: =CHOOSE(m_identity, East!BC55, London!BC55, 'North West'!BC55, 'West Midlands'!BC55, Northern!BC55, Scotland!BC55, Southern!BC55, 'Wales & West'!BC55) -> RPEs Don’t Apply (Outturn) | BD57: =CHOOSE(m_identity, East!BD55, London!BD55, 'North West'!BD55, 'West Midlands'!BD55, Northern!BD55, Scotland!BD55, Southern!BD55, 'Wales & West'!BD55) -> CapRate 2 (UM excl. Repex) | BE57: =CHOOSE(m_identity, East!BE55, London!BE55, 'North West'!BE55, 'West Midlands'!BE55, Northern!BE55, Scotland!BE55, Southern!BE55, 'Wales & West'!BE55) -> Fast/Slow Split (excl repex)
E58: =CHOOSE(m_identity, East!E56, London!E56, 'North West'!E56, 'West Midlands'!E56, Northern!E56, Scotland!E56, Southern!E56, 'Wales & West'!E56) -> Spare UM TIM 1 | F58: =CHOOSE(m_identity, East!F56, London!F56, 'North West'!F56, 'West Midlands'!F56, Northern!F56, Scotland!F56, Southern!F56, 'Wales & West'!F56) -> 0 | G58: £m 18/19 prices | H58: =CHOOSE(m_identity, East!H56, London!H56, 'North West'!H56, 'West Midlands'!H56, Northern!H56, Scotland!H56, Southern!H56, 'Wales & West'!H56) -> 0 | I58: =CHOOSE(m_identity, East!I56, London!I56, 'North West'!I56, 'West Midlands'!I56, Northern!I56, Scotland!I56, Southern!I56, 'Wales & West'!I56) -> UM | AP58: =CHOOSE(m_identity, East!AP56, London!AP56, 'North West'!AP56, 'West Midlands'!AP56, Northern!AP56, Scotland!AP56, Southern!AP56, 'Wales & West'!AP56) -> 0 | AQ58: =CHOOSE(m_identity, East!AQ56, London!AQ56, 'North West'!AQ56, 'West Midlands'!AQ56, Northern!AQ56, Scotland!AQ56, Southern!AQ56, 'Wales & West'!AQ56) -> 0 | AR58: =CHOOSE(m_identity, East!AR56, London!AR56, 'North West'!AR56, 'West Midlands'!AR56, Northern!AR56, Scotland!AR56, Southern!AR56, 'Wales & West'!AR56) -> 0 | AS58: =CHOOSE(m_identity, East!AS56, London!AS56, 'North West'!AS56, 'West Midlands'!AS56, Northern!AS56, Scotland!AS56, Southern!AS56, 'Wales & West'!AS56) -> 0 | AT58: =CHOOSE(m_identity, East!AT56, London!AT56, 'North West'!AT56, 'West Midlands'!AT56, Northern!AT56, Scotland!AT56, Southern!AT56, 'Wales & West'!AT56) -> 0 | BB58: =CHOOSE(m_identity, East!BB56, London!BB56, 'North West'!BB56, 'West Midlands'!BB56, Northern!BB56, Scotland!BB56, Southern!BB56, 'Wales & West'!BB56) -> 0 | BC58: =CHOOSE(m_identity, East!BC56, London!BC56, 'North West'!BC56, 'West Midlands'!BC56, Northern!BC56, Scotland!BC56, Southern!BC56, 'Wales & West'!BC56) -> 0 | BD58: =CHOOSE(m_identity, East!BD56, London!BD56, 'North West'!BD56, 'West Midlands'!BD56, Northern!BD56, Scotland!BD56, Southern!BD56, 'Wales & West'!BD56) -> 0 | BE58: =CHOOSE(m_identity, East!BE56, London!BE56, 'North West'!BE56, 'West Midlands'!BE56, Northern!BE56, Scotland!BE56, Southern!BE56, 'Wales & West'!BE56) -> 0
E59: =CHOOSE(m_identity, East!E57, London!E57, 'North West'!E57, 'West Midlands'!E57, Northern!E57, Scotland!E57, Southern!E57, 'Wales & West'!E57) -> Spare UM TIM 2 | F59: =CHOOSE(m_identity, East!F57, London!F57, 'North West'!F57, 'West Midlands'!F57, Northern!F57, Scotland!F57, Southern!F57, 'Wales & West'!F57) -> 0 | G59: £m 18/19 prices | H59: =CHOOSE(m_identity, East!H57, London!H57, 'North West'!H57, 'West Midlands'!H57, Northern!H57, Scotland!H57, Southern!H57, 'Wales & West'!H57) -> 0 | I59: =CHOOSE(m_identity, East!I57, London!I57, 'North West'!I57, 'West Midlands'!I57, Northern!I57, Scotland!I57, Southern!I57, 'Wales & West'!I57) -> UM | AP59: =CHOOSE(m_identity, East!AP57, London!AP57, 'North West'!AP57, 'West Midlands'!AP57, Northern!AP57, Scotland!AP57, Southern!AP57, 'Wales & West'!AP57) -> 0 | AQ59: =CHOOSE(m_identity, East!AQ57, London!AQ57, 'North West'!AQ57, 'West Midlands'!AQ57, Northern!AQ57, Scotland!AQ57, Southern!AQ57, 'Wales & West'!AQ57) -> 0 | AR59: =CHOOSE(m_identity, East!AR57, London!AR57, 'North West'!AR57, 'West Midlands'!AR57, Northern!AR57, Scotland!AR57, Southern!AR57, 'Wales & West'!AR57) -> 0 | AS59: =CHOOSE(m_identity, East!AS57, London!AS57, 'North West'!AS57, 'West Midlands'!AS57, Northern!AS57, Scotland!AS57, Southern!AS57, 'Wales & West'!AS57) -> 0 | AT59: =CHOOSE(m_identity, East!AT57, London!AT57, 'North West'!AT57, 'West Midlands'!AT57, Northern!AT57, Scotland!AT57, Southern!AT57, 'Wales & West'!AT57) -> 0 | BB59: =CHOOSE(m_identity, East!BB57, London!BB57, 'North West'!BB57, 'West Midlands'!BB57, Northern!BB57, Scotland!BB57, Southern!BB57, 'Wales & West'!BB57) -> 0 | BC59: =CHOOSE(m_identity, East!BC57, London!BC57, 'North West'!BC57, 'West Midlands'!BC57, Northern!BC57, Scotland!BC57, Southern!BC57, 'Wales & West'!BC57) -> 0 | BD59: =CHOOSE(m_identity, East!BD57, London!BD57, 'North West'!BD57, 'West Midlands'!BD57, Northern!BD57, Scotland!BD57, Southern!BD57, 'Wales & West'!BD57) -> 0 | BE59: =CHOOSE(m_identity, East!BE57, London!BE57, 'North West'!BE57, 'West Midlands'!BE57, Northern!BE57, Scotland!BE57, Southern!BE57, 'Wales & West'!BE57) -> 0
E60: =CHOOSE(m_identity, East!E58, London!E58, 'North West'!E58, 'West Midlands'!E58, Northern!E58, Scotland!E58, Southern!E58, 'Wales & West'!E58) -> Spare UM TIM 3 | F60: =CHOOSE(m_identity, East!F58, London!F58, 'North West'!F58, 'West Midlands'!F58, Northern!F58, Scotland!F58, Southern!F58, 'Wales & West'!F58) -> 0 | G60: £m 18/19 prices | H60: =CHOOSE(m_identity, East!H58, London!H58, 'North West'!H58, 'West Midlands'!H58, Northern!H58, Scotland!H58, Southern!H58, 'Wales & West'!H58) -> 0 | I60: =CHOOSE(m_identity, East!I58, London!I58, 'North West'!I58, 'West Midlands'!I58, Northern!I58, Scotland!I58, Southern!I58, 'Wales & West'!I58) -> UM | AP60: =CHOOSE(m_identity, East!AP58, London!AP58, 'North West'!AP58, 'West Midlands'!AP58, Northern!AP58, Scotland!AP58, Southern!AP58, 'Wales & West'!AP58) -> 0 | AQ60: =CHOOSE(m_identity, East!AQ58, London!AQ58, 'North West'!AQ58, 'West Midlands'!AQ58, Northern!AQ58, Scotland!AQ58, Southern!AQ58, 'Wales & West'!AQ58) -> 0 | AR60: =CHOOSE(m_identity, East!AR58, London!AR58, 'North West'!AR58, 'West Midlands'!AR58, Northern!AR58, Scotland!AR58, Southern!AR58, 'Wales & West'!AR58) -> 0 | AS60: =CHOOSE(m_identity, East!AS58, London!AS58, 'North West'!AS58, 'West Midlands'!AS58, Northern!AS58, Scotland!AS58, Southern!AS58, 'Wales & West'!AS58) -> 0 | AT60: =CHOOSE(m_identity, East!AT58, London!AT58, 'North West'!AT58, 'West Midlands'!AT58, Northern!AT58, Scotland!AT58, Southern!AT58, 'Wales & West'!AT58) -> 0 | BB60: =CHOOSE(m_identity, East!BB58, London!BB58, 'North West'!BB58, 'West Midlands'!BB58, Northern!BB58, Scotland!BB58, Southern!BB58, 'Wales & West'!BB58) -> 0 | BC60: =CHOOSE(m_identity, East!BC58, London!BC58, 'North West'!BC58, 'West Midlands'!BC58, Northern!BC58, Scotland!BC58, Southern!BC58, 'Wales & West'!BC58) -> 0 | BD60: =CHOOSE(m_identity, East!BD58, London!BD58, 'North West'!BD58, 'West Midlands'!BD58, Northern!BD58, Scotland!BD58, Southern!BD58, 'Wales & West'!BD58) -> 0 | BE60: =CHOOSE(m_identity, East!BE58, London!BE58, 'North West'!BE58, 'West Midlands'!BE58, Northern!BE58, Scotland!BE58, Southern!BE58, 'Wales & West'!BE58) -> 0
E61: RPE non-variant allowances | F61: =CHOOSE(m_identity, East!F59, London!F59, 'North West'!F59, 'West Midlands'!F59, Northern!F59, Scotland!F59, Southern!F59, 'Wales & West'!F59) -> 0 | G61: £m 18/19 prices | H61: =CHOOSE(m_identity, East!H59, London!H59, 'North West'!H59, 'West Midlands'!H59, Northern!H59, Scotland!H59, Southern!H59, 'Wales & West'!H59) -> RPEAt (non-variant) | I61: =CHOOSE(m_identity, East!I59, London!I59, 'North West'!I59, 'West Midlands'!I59, Northern!I59, Scotland!I59, Southern!I59, 'Wales & West'!I59) -> UM | AP61: =SUMPRODUCT((AP$518:AP$532) * ($E$518:$E$532 = $E61)) -> 5.094346183 | AQ61: =SUMPRODUCT((AQ$518:AQ$532) * ($E$518:$E$532 = $E61)) -> 3.243361279 | AR61: =SUMPRODUCT((AR$518:AR$532) * ($E$518:$E$532 = $E61)) -> 0.007013159338 | AS61: =SUMPRODUCT((AS$518:AS$532) * ($E$518:$E$532 = $E61)) -> 0.5704259903 | AT61: =SUMPRODUCT((AT$518:AT$532) * ($E$518:$E$532 = $E61)) -> 1.432978998 | BB61: =CHOOSE(m_identity, East!BB59, London!BB59, 'North West'!BB59, 'West Midlands'!BB59, Northern!BB59, Scotland!BB59, Southern!BB59, 'Wales & West'!BB59) -> TIM | BC61: =CHOOSE(m_identity, East!BC59, London!BC59, 'North West'!BC59, 'West Midlands'!BC59, Northern!BC59, Scotland!BC59, Southern!BC59, 'Wales & West'!BC59) -> 0 | BD61: =CHOOSE(m_identity, East!BD59, London!BD59, 'North West'!BD59, 'West Midlands'!BD59, Northern!BD59, Scotland!BD59, Southern!BD59, 'Wales & West'!BD59) -> CapRate 1 (Baseline excl. Repex) | BE61: =CHOOSE(m_identity, East!BE59, London!BE59, 'North West'!BE59, 'West Midlands'!BE59, Northern!BE59, Scotland!BE59, Southern!BE59, 'Wales & West'!BE59) -> Fast/Slow Split (excl repex)
E62: RPE PCDs | F62: =CHOOSE(m_identity, East!F60, London!F60, 'North West'!F60, 'West Midlands'!F60, Northern!F60, Scotland!F60, Southern!F60, 'Wales & West'!F60) -> 0 | G62: £m 18/19 prices | H62: =CHOOSE(m_identity, East!H60, London!H60, 'North West'!H60, 'West Midlands'!H60, Northern!H60, Scotland!H60, Southern!H60, 'Wales & West'!H60) -> RPEAt (PCD) | I62: =CHOOSE(m_identity, East!I60, London!I60, 'North West'!I60, 'West Midlands'!I60, Northern!I60, Scotland!I60, Southern!I60, 'Wales & West'!I60) -> UM | AP62: =SUMPRODUCT((AP$518:AP$532) * ($E$518:$E$532 = $E62)) -> 4.026985385 | AQ62: =SUMPRODUCT((AQ$518:AQ$532) * ($E$518:$E$532 = $E62)) -> 2.705896172 | AR62: =SUMPRODUCT((AR$518:AR$532) * ($E$518:$E$532 = $E62)) -> 0.00556907384 | AS62: =SUMPRODUCT((AS$518:AS$532) * ($E$518:$E$532 = $E62)) -> 0.4653037083 | AT62: =SUMPRODUCT((AT$518:AT$532) * ($E$518:$E$532 = $E62)) -> 1.222479123 | BB62: =CHOOSE(m_identity, East!BB60, London!BB60, 'North West'!BB60, 'West Midlands'!BB60, Northern!BB60, Scotland!BB60, Southern!BB60, 'Wales & West'!BB60) -> TIM | BC62: =CHOOSE(m_identity, East!BC60, London!BC60, 'North West'!BC60, 'West Midlands'!BC60, Northern!BC60, Scotland!BC60, Southern!BC60, 'Wales & West'!BC60) -> 0 | BD62: =CHOOSE(m_identity, East!BD60, London!BD60, 'North West'!BD60, 'West Midlands'!BD60, Northern!BD60, Scotland!BD60, Southern!BD60, 'Wales & West'!BD60) -> CapRate 1 (Baseline excl. Repex) | BE62: =CHOOSE(m_identity, East!BE60, London!BE60, 'North West'!BE60, 'West Midlands'!BE60, Northern!BE60, Scotland!BE60, Southern!BE60, 'Wales & West'!BE60) -> Fast/Slow Split (excl repex)
E63: RPE UMs | F63: =CHOOSE(m_identity, East!F61, London!F61, 'North West'!F61, 'West Midlands'!F61, Northern!F61, Scotland!F61, Southern!F61, 'Wales & West'!F61) -> 0 | G63: £m 18/19 prices | H63: =CHOOSE(m_identity, East!H61, London!H61, 'North West'!H61, 'West Midlands'!H61, Northern!H61, Scotland!H61, Southern!H61, 'Wales & West'!H61) -> RPEAt (UM) | I63: =CHOOSE(m_identity, East!I61, London!I61, 'North West'!I61, 'West Midlands'!I61, Northern!I61, Scotland!I61, Southern!I61, 'Wales & West'!I61) -> UM | AP63: =SUMPRODUCT((AP$518:AP$532) * ($E$518:$E$532 = $E63)) -> 0.3054049494 | AQ63: =SUMPRODUCT((AQ$518:AQ$532) * ($E$518:$E$532 = $E63)) -> 0.1347902101 | AR63: =SUMPRODUCT((AR$518:AR$532) * ($E$518:$E$532 = $E63)) -> 0.0002088880923 | AS63: =SUMPRODUCT((AS$518:AS$532) * ($E$518:$E$532 = $E63)) -> 0.01540496828 | AT63: =SUMPRODUCT((AT$518:AT$532) * ($E$518:$E$532 = $E63)) -> 0.03781315648 | BB63: =CHOOSE(m_identity, East!BB61, London!BB61, 'North West'!BB61, 'West Midlands'!BB61, Northern!BB61, Scotland!BB61, Southern!BB61, 'Wales & West'!BB61) -> TIM | BC63: =CHOOSE(m_identity, East!BC61, London!BC61, 'North West'!BC61, 'West Midlands'!BC61, Northern!BC61, Scotland!BC61, Southern!BC61, 'Wales & West'!BC61) -> 0 | BD63: =CHOOSE(m_identity, East!BD61, London!BD61, 'North West'!BD61, 'West Midlands'!BD61, Northern!BD61, Scotland!BD61, Southern!BD61, 'Wales & West'!BD61) -> CapRate 2 (UM excl. Repex) | BE63: =CHOOSE(m_identity, East!BE61, London!BE61, 'North West'!BE61, 'West Midlands'!BE61, Northern!BE61, Scotland!BE61, Southern!BE61, 'Wales & West'!BE61) -> Fast/Slow Split (excl repex)
E64: Total | G64: £m 18/19 prices | AP64: =SUM(AP21:AP63) -> 164.838856 | AQ64: =SUM(AQ21:AQ63) -> 159.2134257 | AR64: 150.9335241 | AS64: 167.3007035 | AT64: 177.4299753
B66: Actual totex
E68: Capitalisation rate 1:
E69: Actual load related capex | G69: £m 18/19 prices | H69: =CHOOSE(m_identity, East!H66, London!H66, 'North West'!H66, 'West Midlands'!H66, Northern!H66, Scotland!H66, Southern!H66, 'Wales & West'!H66) -> ALC | J69: > | AH69: =CHOOSE(m_identity, East!AH66, London!AH66, 'North West'!AH66, 'West Midlands'!AH66, Northern!AH66, Scotland!AH66, Southern!AH66, 'Wales & West'!AH66) -> 37.75940723 | AI69: =CHOOSE(m_identity, East!AI66, London!AI66, 'North West'!AI66, 'West Midlands'!AI66, Northern!AI66, Scotland!AI66, Southern!AI66, 'Wales & West'!AI66) -> 26.01574694 | AJ69: =CHOOSE(m_identity, East!AJ66, London!AJ66, 'North West'!AJ66, 'West Midlands'!AJ66, Northern!AJ66, Scotland!AJ66, Southern!AJ66, 'Wales & West'!AJ66) -> 25.90985833 | AK69: =CHOOSE(m_identity, East!AK66, London!AK66, 'North West'!AK66, 'West Midlands'!AK66, Northern!AK66, Scotland!AK66, Southern!AK66, 'Wales & West'!AK66) -> 27.14911675 | AL69: =CHOOSE(m_identity, East!AL66, London!AL66, 'North West'!AL66, 'West Midlands'!AL66, Northern!AL66, Scotland!AL66, Southern!AL66, 'Wales & West'!AL66) -> 38.07765222 | AM69: =CHOOSE(m_identity, East!AM66, London!AM66, 'North West'!AM66, 'West Midlands'!AM66, Northern!AM66, Scotland!AM66, Southern!AM66, 'Wales & West'!AM66) -> 41.39515016 | AN69: =CHOOSE(m_identity, East!AN66, London!AN66, 'North West'!AN66, 'West Midlands'!AN66, Northern!AN66, Scotland!AN66, Southern!AN66, 'Wales & West'!AN66) -> 50.88160099 | AO69: =CHOOSE(m_identity, East!AO66, London!AO66, 'North West'!AO66, 'West Midlands'!AO66, Northern!AO66, Scotland!AO66, Southern!AO66, 'Wales & West'!AO66) -> 70.47834097 | AP69: =CHOOSE(m_identity, East!AP66, London!AP66, 'North West'!AP66, 'West Midlands'!AP66, Northern!AP66, Scotland!AP66, Southern!AP66, 'Wales & West'!AP66) -> 22.2997744 | AQ69: =CHOOSE(m_identity, East!AQ66, London!AQ66, 'North West'!AQ66, 'West Midlands'!AQ66, Northern!AQ66, Scotland!AQ66, Southern!AQ66, 'Wales & West'!AQ66) -> 20.96063314 | AR69: =CHOOSE(m_identity, East!AR66, London!AR66, 'North West'!AR66, 'West Midlands'!AR66, Northern!AR66, Scotland!AR66, Southern!AR66, 'Wales & West'!AR66) -> 29.0579296 | AS69: =CHOOSE(m_identity, East!AS66, London!AS66, 'North West'!AS66, 'West Midlands'!AS66, Northern!AS66, Scotland!AS66, Southern!AS66, 'Wales & West'!AS66) -> 22.78463049 | AT69: =CHOOSE(m_identity, East!AT66, London!AT66, 'North West'!AT66, 'West Midlands'!AT66, Northern!AT66, Scotland!AT66, Southern!AT66, 'Wales & West'!AT66) -> 24.29242651
E70: Actual non-load related capex - other | G70: £m 18/19 prices | H70: =CHOOSE(m_identity, East!H67, London!H67, 'North West'!H67, 'West Midlands'!H67, Northern!H67, Scotland!H67, Southern!H67, 'Wales & West'!H67) -> AOC | J70: > | AH70: =CHOOSE(m_identity, East!AH67, London!AH67, 'North West'!AH67, 'West Midlands'!AH67, Northern!AH67, Scotland!AH67, Southern!AH67, 'Wales & West'!AH67) -> 23.09018195 | AI70: =CHOOSE(m_identity, East!AI67, London!AI67, 'North West'!AI67, 'West Midlands'!AI67, Northern!AI67, Scotland!AI67, Southern!AI67, 'Wales & West'!AI67) -> 26.17524824 | AJ70: =CHOOSE(m_identity, East!AJ67, London!AJ67, 'North West'!AJ67, 'West Midlands'!AJ67, Northern!AJ67, Scotland!AJ67, Southern!AJ67, 'Wales & West'!AJ67) -> 22.02195983 | AK70: =CHOOSE(m_identity, East!AK67, London!AK67, 'North West'!AK67, 'West Midlands'!AK67, Northern!AK67, Scotland!AK67, Southern!AK67, 'Wales & West'!AK67) -> 21.35776876 | AL70: =CHOOSE(m_identity, East!AL67, London!AL67, 'North West'!AL67, 'West Midlands'!AL67, Northern!AL67, Scotland!AL67, Southern!AL67, 'Wales & West'!AL67) -> 22.50295611 | AM70: =CHOOSE(m_identity, East!AM67, London!AM67, 'North West'!AM67, 'West Midlands'!AM67, Northern!AM67, Scotland!AM67, Southern!AM67, 'Wales & West'!AM67) -> 27.96440991 | AN70: =CHOOSE(m_identity, East!AN67, London!AN67, 'North West'!AN67, 'West Midlands'!AN67, Northern!AN67, Scotland!AN67, Southern!AN67, 'Wales & West'!AN67) -> 37.51957394 | AO70: =CHOOSE(m_identity, East!AO67, London!AO67, 'North West'!AO67, 'West Midlands'!AO67, Northern!AO67, Scotland!AO67, Southern!AO67, 'Wales & West'!AO67) -> 40.20462973 | AP70: =CHOOSE(m_identity, East!AP67, London!AP67, 'North West'!AP67, 'West Midlands'!AP67, Northern!AP67, Scotland!AP67, Southern!AP67, 'Wales & West'!AP67) -> 35.71673015 | AQ70: =CHOOSE(m_identity, East!AQ67, London!AQ67, 'North West'!AQ67, 'West Midlands'!AQ67, Northern!AQ67, Scotland!AQ67, Southern!AQ67, 'Wales & West'!AQ67) -> 44.35982716 | AR70: =CHOOSE(m_identity, East!AR67, London!AR67, 'North West'!AR67, 'West Midlands'!AR67, Northern!AR67, Scotland!AR67, Southern!AR67, 'Wales & West'!AR67) -> 48.80515201 | AS70: =CHOOSE(m_identity, East!AS67, London!AS67, 'North West'!AS67, 'West Midlands'!AS67, Northern!AS67, Scotland!AS67, Southern!AS67, 'Wales & West'!AS67) -> 40.51197809 | AT70: =CHOOSE(m_identity, East!AT67, London!AT67, 'North West'!AT67, 'West Midlands'!AT67, Northern!AT67, Scotland!AT67, Southern!AT67, 'Wales & West'!AT67) -> 35.01760097
E71: Actual business support (opex) | G71: £m 18/19 prices | H71: =CHOOSE(m_identity, East!H68, London!H68, 'North West'!H68, 'West Midlands'!H68, Northern!H68, Scotland!H68, Southern!H68, 'Wales & West'!H68) -> ACO | J71: > | AH71: =CHOOSE(m_identity, East!AH68, London!AH68, 'North West'!AH68, 'West Midlands'!AH68, Northern!AH68, Scotland!AH68, Southern!AH68, 'Wales & West'!AH68) -> 167.8512918 | AI71: =CHOOSE(m_identity, East!AI68, London!AI68, 'North West'!AI68, 'West Midlands'!AI68, Northern!AI68, Scotland!AI68, Southern!AI68, 'Wales & West'!AI68) -> 164.3026087 | AJ71: =CHOOSE(m_identity, East!AJ68, London!AJ68, 'North West'!AJ68, 'West Midlands'!AJ68, Northern!AJ68, Scotland!AJ68, Southern!AJ68, 'Wales & West'!AJ68) -> 158.5030643 | AK71: =CHOOSE(m_identity, East!AK68, London!AK68, 'North West'!AK68, 'West Midlands'!AK68, Northern!AK68, Scotland!AK68, Southern!AK68, 'Wales & West'!AK68) -> 169.8031512 | AL71: =CHOOSE(m_identity, East!AL68, London!AL68, 'North West'!AL68, 'West Midlands'!AL68, Northern!AL68, Scotland!AL68, Southern!AL68, 'Wales & West'!AL68) -> 154.3464279 | AM71: =CHOOSE(m_identity, East!AM68, London!AM68, 'North West'!AM68, 'West Midlands'!AM68, Northern!AM68, Scotland!AM68, Southern!AM68, 'Wales & West'!AM68) -> 146.2754513 | AN71: =CHOOSE(m_identity, East!AN68, London!AN68, 'North West'!AN68, 'West Midlands'!AN68, Northern!AN68, Scotland!AN68, Southern!AN68, 'Wales & West'!AN68) -> 146.7552287 | AO71: =CHOOSE(m_identity, East!AO68, London!AO68, 'North West'!AO68, 'West Midlands'!AO68, Northern!AO68, Scotland!AO68, Southern!AO68, 'Wales & West'!AO68) -> 143.3831519 | AP71: =CHOOSE(m_identity, East!AP68, London!AP68, 'North West'!AP68, 'West Midlands'!AP68, Northern!AP68, Scotland!AP68, Southern!AP68, 'Wales & West'!AP68) -> 41.29393908 | AQ71: =CHOOSE(m_identity, East!AQ68, London!AQ68, 'North West'!AQ68, 'West Midlands'!AQ68, Northern!AQ68, Scotland!AQ68, Southern!AQ68, 'Wales & West'!AQ68) -> 43.01801998 | AR71: =CHOOSE(m_identity, East!AR68, London!AR68, 'North West'!AR68, 'West Midlands'!AR68, Northern!AR68, Scotland!AR68, Southern!AR68, 'Wales & West'!AR68) -> 48.91406229 | AS71: =CHOOSE(m_identity, East!AS68, London!AS68, 'North West'!AS68, 'West Midlands'!AS68, Northern!AS68, Scotland!AS68, Southern!AS68, 'Wales & West'!AS68) -> 60.35034908 | AT71: =CHOOSE(m_identity, East!AT68, London!AT68, 'North West'!AT68, 'West Midlands'!AT68, Northern!AT68, Scotland!AT68, Southern!AT68, 'Wales & West'!AT68) -> 62.46512645
E72: Actual directs opex | G72: £m 18/19 prices | H72: =CHOOSE(m_identity, East!H69, London!H69, 'North West'!H69, 'West Midlands'!H69, Northern!H69, Scotland!H69, Southern!H69, 'Wales & West'!H69) -> ADO | J72: > | AP72: =CHOOSE(m_identity, East!AP69, London!AP69, 'North West'!AP69, 'West Midlands'!AP69, Northern!AP69, Scotland!AP69, Southern!AP69, 'Wales & West'!AP69) -> 93.07187609 | AQ72: =CHOOSE(m_identity, East!AQ69, London!AQ69, 'North West'!AQ69, 'West Midlands'!AQ69, Northern!AQ69, Scotland!AQ69, Southern!AQ69, 'Wales & West'!AQ69) -> 103.7998168 | AR72: =CHOOSE(m_identity, East!AR69, London!AR69, 'North West'!AR69, 'West Midlands'!AR69, Northern!AR69, Scotland!AR69, Southern!AR69, 'Wales & West'!AR69) -> 93.87720496 | AS72: =CHOOSE(m_identity, East!AS69, London!AS69, 'North West'!AS69, 'West Midlands'!AS69, Northern!AS69, Scotland!AS69, Southern!AS69, 'Wales & West'!AS69) -> 93.86965132 | AT72: =CHOOSE(m_identity, East!AT69, London!AT69, 'North West'!AT69, 'West Midlands'!AT69, Northern!AT69, Scotland!AT69, Southern!AT69, 'Wales & West'!AT69) -> 100.4959765
E73: Actual repex | G73: £m 18/19 prices | H73: =CHOOSE(m_identity, East!H70, London!H70, 'North West'!H70, 'West Midlands'!H70, Northern!H70, Scotland!H70, Southern!H70, 'Wales & West'!H70) -> ARE | J73: > | AH73: =CHOOSE(m_identity, East!AH70, London!AH70, 'North West'!AH70, 'West Midlands'!AH70, Northern!AH70, Scotland!AH70, Southern!AH70, 'Wales & West'!AH70) -> 106.2290409 | AI73: =CHOOSE(m_identity, East!AI70, London!AI70, 'North West'!AI70, 'West Midlands'!AI70, Northern!AI70, Scotland!AI70, Southern!AI70, 'Wales & West'!AI70) -> 114.605369 | AJ73: =CHOOSE(m_identity, East!AJ70, London!AJ70, 'North West'!AJ70, 'West Midlands'!AJ70, Northern!AJ70, Scotland!AJ70, Southern!AJ70, 'Wales & West'!AJ70) -> 120.2190918 | AK73: =CHOOSE(m_identity, East!AK70, London!AK70, 'North West'!AK70, 'West Midlands'!AK70, Northern!AK70, Scotland!AK70, Southern!AK70, 'Wales & West'!AK70) -> 104.8731494 | AL73: =CHOOSE(m_identity, East!AL70, London!AL70, 'North West'!AL70, 'West Midlands'!AL70, Northern!AL70, Scotland!AL70, Southern!AL70, 'Wales & West'!AL70) -> 110.7759841 | AM73: =CHOOSE(m_identity, East!AM70, London!AM70, 'North West'!AM70, 'West Midlands'!AM70, Northern!AM70, Scotland!AM70, Southern!AM70, 'Wales & West'!AM70) -> 127.9177019 | AN73: =CHOOSE(m_identity, East!AN70, London!AN70, 'North West'!AN70, 'West Midlands'!AN70, Northern!AN70, Scotland!AN70, Southern!AN70, 'Wales & West'!AN70) -> 153.3377912 | AO73: =CHOOSE(m_identity, East!AO70, London!AO70, 'North West'!AO70, 'West Midlands'!AO70, Northern!AO70, Scotland!AO70, Southern!AO70, 'Wales & West'!AO70) -> 180.689618 | AP73: =CHOOSE(m_identity, East!AP70, London!AP70, 'North West'!AP70, 'West Midlands'!AP70, Northern!AP70, Scotland!AP70, Southern!AP70, 'Wales & West'!AP70) -> 124.768193 | AQ73: =CHOOSE(m_identity, East!AQ70, London!AQ70, 'North West'!AQ70, 'West Midlands'!AQ70, Northern!AQ70, Scotland!AQ70, Southern!AQ70, 'Wales & West'!AQ70) -> 150.6324981 | AR73: =CHOOSE(m_identity, East!AR70, London!AR70, 'North West'!AR70, 'West Midlands'!AR70, Northern!AR70, Scotland!AR70, Southern!AR70, 'Wales & West'!AR70) -> 153.7222397 | AS73: =CHOOSE(m_identity, East!AS70, London!AS70, 'North West'!AS70, 'West Midlands'!AS70, Northern!AS70, Scotland!AS70, Southern!AS70, 'Wales & West'!AS70) -> 151.9834208 | AT73: =CHOOSE(m_identity, East!AT70, London!AT70, 'North West'!AT70, 'West Midlands'!AT70, Northern!AT70, Scotland!AT70, Southern!AT70, 'Wales & West'!AT70) -> 133.3378734
E74: Total | G74: £m 18/19 prices | J74: > | AH74: =SUM(AH69:AH73) -> 334.9299219 | AI74: 331.0989729 | AJ74: 326.6539743 | AK74: 323.1831861 | AL74: 325.7030204 | AM74: 343.5527132 | AN74: 388.4941948 | AO74: 434.7557406 | AP74: =SUM(AP69:AP73) -> 317.1505128 | AQ74: =SUM(AQ69:AQ73) -> 362.7707952 | AR74: =SUM(AR69:AR73) -> 374.3765886 | AS74: =SUM(AS69:AS73) -> 369.5000298 | AT74: =SUM(AT69:AT73) -> 355.6090039
E76: Capitalisation rate 2:
E77: Actual load related capex | G77: £m 18/19 prices | H77: =CHOOSE(m_identity, East!H73, London!H73, 'North West'!H73, 'West Midlands'!H73, Northern!H73, Scotland!H73, Southern!H73, 'Wales & West'!H73) -> ALCU | AP77: =CHOOSE(m_identity, East!AP73, London!AP73, 'North West'!AP73, 'West Midlands'!AP73, Northern!AP73, Scotland!AP73, Southern!AP73, 'Wales & West'!AP73) -> 11.50708327 | AQ77: =CHOOSE(m_identity, East!AQ73, London!AQ73, 'North West'!AQ73, 'West Midlands'!AQ73, Northern!AQ73, Scotland!AQ73, Southern!AQ73, 'Wales & West'!AQ73) -> 6.603008575 | AR77: =CHOOSE(m_identity, East!AR73, London!AR73, 'North West'!AR73, 'West Midlands'!AR73, Northern!AR73, Scotland!AR73, Southern!AR73, 'Wales & West'!AR73) -> 4.699867535 | AS77: =CHOOSE(m_identity, East!AS73, London!AS73, 'North West'!AS73, 'West Midlands'!AS73, Northern!AS73, Scotland!AS73, Southern!AS73, 'Wales & West'!AS73) -> 9.486972761 | AT77: =CHOOSE(m_identity, East!AT73, London!AT73, 'North West'!AT73, 'West Midlands'!AT73, Northern!AT73, Scotland!AT73, Southern!AT73, 'Wales & West'!AT73) -> 4.44364543
E78: Actual non-load related capex - other | G78: £m 18/19 prices | H78: =CHOOSE(m_identity, East!H74, London!H74, 'North West'!H74, 'West Midlands'!H74, Northern!H74, Scotland!H74, Southern!H74, 'Wales & West'!H74) -> AOCU | AP78: =CHOOSE(m_identity, East!AP74, London!AP74, 'North West'!AP74, 'West Midlands'!AP74, Northern!AP74, Scotland!AP74, Southern!AP74, 'Wales & West'!AP74) -> 0 | AQ78: =CHOOSE(m_identity, East!AQ74, London!AQ74, 'North West'!AQ74, 'West Midlands'!AQ74, Northern!AQ74, Scotland!AQ74, Southern!AQ74, 'Wales & West'!AQ74) -> 0.05384304594 | AR78: =CHOOSE(m_identity, East!AR74, London!AR74, 'North West'!AR74, 'West Midlands'!AR74, Northern!AR74, Scotland!AR74, Southern!AR74, 'Wales & West'!AR74) -> 3.071944226 | AS78: =CHOOSE(m_identity, East!AS74, London!AS74, 'North West'!AS74, 'West Midlands'!AS74, Northern!AS74, Scotland!AS74, Southern!AS74, 'Wales & West'!AS74) -> 16.21545351 | AT78: =CHOOSE(m_identity, East!AT74, London!AT74, 'North West'!AT74, 'West Midlands'!AT74, Northern!AT74, Scotland!AT74, Southern!AT74, 'Wales & West'!AT74) -> 21.09542351
E79: Actual business support (opex) | G79: £m 18/19 prices | H79: =CHOOSE(m_identity, East!H75, London!H75, 'North West'!H75, 'West Midlands'!H75, Northern!H75, Scotland!H75, Southern!H75, 'Wales & West'!H75) -> ACOU | AP79: =CHOOSE(m_identity, East!AP75, London!AP75, 'North West'!AP75, 'West Midlands'!AP75, Northern!AP75, Scotland!AP75, Southern!AP75, 'Wales & West'!AP75) -> 0.09860332118 | AQ79: =CHOOSE(m_identity, East!AQ75, London!AQ75, 'North West'!AQ75, 'West Midlands'!AQ75, Northern!AQ75, Scotland!AQ75, Southern!AQ75, 'Wales & West'!AQ75) -> 0.3535474481 | AR79: =CHOOSE(m_identity, East!AR75, London!AR75, 'North West'!AR75, 'West Midlands'!AR75, Northern!AR75, Scotland!AR75, Southern!AR75, 'Wales & West'!AR75) -> 0.2505091554 | AS79: =CHOOSE(m_identity, East!AS75, London!AS75, 'North West'!AS75, 'West Midlands'!AS75, Northern!AS75, Scotland!AS75, Southern!AS75, 'Wales & West'!AS75) -> 0.4790953528 | AT79: =CHOOSE(m_identity, East!AT75, London!AT75, 'North West'!AT75, 'West Midlands'!AT75, Northern!AT75, Scotland!AT75, Southern!AT75, 'Wales & West'!AT75) -> 0.4129658966
E80: Actual directs opex | G80: £m 18/19 prices | H80: =CHOOSE(m_identity, East!H76, London!H76, 'North West'!H76, 'West Midlands'!H76, Northern!H76, Scotland!H76, Southern!H76, 'Wales & West'!H76) -> ADOU | AP80: =CHOOSE(m_identity, East!AP76, London!AP76, 'North West'!AP76, 'West Midlands'!AP76, Northern!AP76, Scotland!AP76, Southern!AP76, 'Wales & West'!AP76) -> 0 | AQ80: =CHOOSE(m_identity, East!AQ76, London!AQ76, 'North West'!AQ76, 'West Midlands'!AQ76, Northern!AQ76, Scotland!AQ76, Southern!AQ76, 'Wales & West'!AQ76) -> 0 | AR80: =CHOOSE(m_identity, East!AR76, London!AR76, 'North West'!AR76, 'West Midlands'!AR76, Northern!AR76, Scotland!AR76, Southern!AR76, 'Wales & West'!AR76) -> 0 | AS80: =CHOOSE(m_identity, East!AS76, London!AS76, 'North West'!AS76, 'West Midlands'!AS76, Northern!AS76, Scotland!AS76, Southern!AS76, 'Wales & West'!AS76) -> 0 | AT80: =CHOOSE(m_identity, East!AT76, London!AT76, 'North West'!AT76, 'West Midlands'!AT76, Northern!AT76, Scotland!AT76, Southern!AT76, 'Wales & West'!AT76) -> 0
E81: Actual repex | G81: £m 18/19 prices | H81: =CHOOSE(m_identity, East!H77, London!H77, 'North West'!H77, 'West Midlands'!H77, Northern!H77, Scotland!H77, Southern!H77, 'Wales & West'!H77) -> AREU | AP81: =CHOOSE(m_identity, East!AP77, London!AP77, 'North West'!AP77, 'West Midlands'!AP77, Northern!AP77, Scotland!AP77, Southern!AP77, 'Wales & West'!AP77) -> 4.220258233 | AQ81: =CHOOSE(m_identity, East!AQ77, London!AQ77, 'North West'!AQ77, 'West Midlands'!AQ77, Northern!AQ77, Scotland!AQ77, Southern!AQ77, 'Wales & West'!AQ77) -> 3.386227854 | AR81: =CHOOSE(m_identity, East!AR77, London!AR77, 'North West'!AR77, 'West Midlands'!AR77, Northern!AR77, Scotland!AR77, Southern!AR77, 'Wales & West'!AR77) -> 4.234718899 | AS81: =CHOOSE(m_identity, East!AS77, London!AS77, 'North West'!AS77, 'West Midlands'!AS77, Northern!AS77, Scotland!AS77, Southern!AS77, 'Wales & West'!AS77) -> 6.98085355 | AT81: =CHOOSE(m_identity, East!AT77, London!AT77, 'North West'!AT77, 'West Midlands'!AT77, Northern!AT77, Scotland!AT77, Southern!AT77, 'Wales & West'!AT77) -> 17.61836959
E82: Total | G82: £m 18/19 prices | AP82: =SUM(AP77:AP81) -> 15.82594482 | AQ82: =SUM(AQ77:AQ81) -> 10.39662692 | AR82: =SUM(AR77:AR81) -> 12.25703982 | AS82: =SUM(AS77:AS81) -> 33.16237517 | AT82: =SUM(AT77:AT81) -> 43.57040443
B84: Pass-through costs
E86: =CHOOSE(m_identity, East!E81, London!E81, 'North West'!E81, 'West Midlands'!E81, Northern!E81, Scotland!E81, Southern!E81, 'Wales & West'!E81) -> Shrinkage | G86: £m 18/19 prices | H86: =CHOOSE(m_identity, East!H81, London!H81, 'North West'!H81, 'West Midlands'!H81, Northern!H81, Scotland!H81, Southern!H81, 'Wales & West'!H81) -> SLt | AP86: =CHOOSE(m_identity, East!AP81, London!AP81, 'North West'!AP81, 'West Midlands'!AP81, Northern!AP81, Scotland!AP81, Southern!AP81, 'Wales & West'!AP81)/GDNpf -> 18.79253361 | AQ86: =CHOOSE(m_identity, East!AQ81, London!AQ81, 'North West'!AQ81, 'West Midlands'!AQ81, Northern!AQ81, Scotland!AQ81, Southern!AQ81, 'Wales & West'!AQ81)/GDNpf -> 18.76351711 | AR86: =CHOOSE(m_identity, East!AR81, London!AR81, 'North West'!AR81, 'West Midlands'!AR81, Northern!AR81, Scotland!AR81, Southern!AR81, 'Wales & West'!AR81)/GDNpf -> 8.114005853 | AS86: =CHOOSE(m_identity, East!AS81, London!AS81, 'North West'!AS81, 'West Midlands'!AS81, Northern!AS81, Scotland!AS81, Southern!AS81, 'Wales & West'!AS81)/GDNpf -> 9.230358183 | AT86: =CHOOSE(m_identity, East!AT81, London!AT81, 'North West'!AT81, 'West Midlands'!AT81, Northern!AT81, Scotland!AT81, Southern!AT81, 'Wales & West'!AT81)/GDNpf -> 8.591691378
E87: =CHOOSE(m_identity, East!E82, London!E82, 'North West'!E82, 'West Midlands'!E82, Northern!E82, Scotland!E82, Southern!E82, 'Wales & West'!E82) -> Licensed Activity | G87: £m 18/19 prices | H87: =CHOOSE(m_identity, East!H82, London!H82, 'North West'!H82, 'West Midlands'!H82, Northern!H82, Scotland!H82, Southern!H82, 'Wales & West'!H82) -> LFt | AP87: =CHOOSE(m_identity, East!AP82, London!AP82, 'North West'!AP82, 'West Midlands'!AP82, Northern!AP82, Scotland!AP82, Southern!AP82, 'Wales & West'!AP82)/GDNpf -> 3.65971633 | AQ87: =CHOOSE(m_identity, East!AQ82, London!AQ82, 'North West'!AQ82, 'West Midlands'!AQ82, Northern!AQ82, Scotland!AQ82, Southern!AQ82, 'Wales & West'!AQ82)/GDNpf -> 3.530327091 | AR87: =CHOOSE(m_identity, East!AR82, London!AR82, 'North West'!AR82, 'West Midlands'!AR82, Northern!AR82, Scotland!AR82, Southern!AR82, 'Wales & West'!AR82)/GDNpf -> 3.821947031 | AS87: =CHOOSE(m_identity, East!AS82, London!AS82, 'North West'!AS82, 'West Midlands'!AS82, Northern!AS82, Scotland!AS82, Southern!AS82, 'Wales & West'!AS82)/GDNpf -> 4.075508952 | AT87: =CHOOSE(m_identity, East!AT82, London!AT82, 'North West'!AT82, 'West Midlands'!AT82, Northern!AT82, Scotland!AT82, Southern!AT82, 'Wales & West'!AT82)/GDNpf -> 4.135434467
E88: =CHOOSE(m_identity, East!E83, London!E83, 'North West'!E83, 'West Midlands'!E83, Northern!E83, Scotland!E83, Southern!E83, 'Wales & West'!E83) -> Prescribed Rates | G88: £m 18/19 prices | H88: =CHOOSE(m_identity, East!H83, London!H83, 'North West'!H83, 'West Midlands'!H83, Northern!H83, Scotland!H83, Southern!H83, 'Wales & West'!H83) -> RBt | AP88: =CHOOSE(m_identity, East!AP83, London!AP83, 'North West'!AP83, 'West Midlands'!AP83, Northern!AP83, Scotland!AP83, Southern!AP83, 'Wales & West'!AP83)/GDNpf -> 65.9578598 | AQ88: =CHOOSE(m_identity, East!AQ83, London!AQ83, 'North West'!AQ83, 'West Midlands'!AQ83, Northern!AQ83, Scotland!AQ83, Southern!AQ83, 'Wales & West'!AQ83)/GDNpf -> 60.64027582 | AR88: =CHOOSE(m_identity, East!AR83, London!AR83, 'North West'!AR83, 'West Midlands'!AR83, Northern!AR83, Scotland!AR83, Southern!AR83, 'Wales & West'!AR83)/GDNpf -> 46.61613725 | AS88: =CHOOSE(m_identity, East!AS83, London!AS83, 'North West'!AS83, 'West Midlands'!AS83, Northern!AS83, Scotland!AS83, Southern!AS83, 'Wales & West'!AS83)/GDNpf -> 48.18825752 | AT88: =CHOOSE(m_identity, East!AT83, London!AT83, 'North West'!AT83, 'West Midlands'!AT83, Northern!AT83, Scotland!AT83, Southern!AT83, 'Wales & West'!AT83)/GDNpf -> 47.95648975
E89: =CHOOSE(m_identity, East!E84, London!E84, 'North West'!E84, 'West Midlands'!E84, Northern!E84, Scotland!E84, Southern!E84, 'Wales & West'!E84) -> Pension Scheme Established Deficit repair | G89: £m 18/19 prices | H89: =CHOOSE(m_identity, East!H84, London!H84, 'North West'!H84, 'West Midlands'!H84, Northern!H84, Scotland!H84, Southern!H84, 'Wales & West'!H84) -> EDEt | AP89: =CHOOSE(m_identity, East!AP84, London!AP84, 'North West'!AP84, 'West Midlands'!AP84, Northern!AP84, Scotland!AP84, Southern!AP84, 'Wales & West'!AP84) -> 11.6999147 | AQ89: =CHOOSE(m_identity, East!AQ84, London!AQ84, 'North West'!AQ84, 'West Midlands'!AQ84, Northern!AQ84, Scotland!AQ84, Southern!AQ84, 'Wales & West'!AQ84) -> 7.237570603 | AR89: =CHOOSE(m_identity, East!AR84, London!AR84, 'North West'!AR84, 'West Midlands'!AR84, Northern!AR84, Scotland!AR84, Southern!AR84, 'Wales & West'!AR84) -> 0 | AS89: =CHOOSE(m_identity, East!AS84, London!AS84, 'North West'!AS84, 'West Midlands'!AS84, Northern!AS84, Scotland!AS84, Southern!AS84, 'Wales & West'!AS84) -> -3.1 | AT89: =CHOOSE(m_identity, East!AT84, London!AT84, 'North West'!AT84, 'West Midlands'!AT84, Northern!AT84, Scotland!AT84, Southern!AT84, 'Wales & West'!AT84) -> -3.1
E90: =CHOOSE(m_identity, East!E85, London!E85, 'North West'!E85, 'West Midlands'!E85, Northern!E85, Scotland!E85, Southern!E85, 'Wales & West'!E85) -> Distribution Network Pension Deficit Charge | G90: £m 18/19 prices | H90: =CHOOSE(m_identity, East!H85, London!H85, 'North West'!H85, 'West Midlands'!H85, Northern!H85, Scotland!H85, Southern!H85, 'Wales & West'!H85) -> PDt | AP90: =CHOOSE(m_identity, East!AP85, London!AP85, 'North West'!AP85, 'West Midlands'!AP85, Northern!AP85, Scotland!AP85, Southern!AP85, 'Wales & West'!AP85)/GDNpf -> 0 | AQ90: =CHOOSE(m_identity, East!AQ85, London!AQ85, 'North West'!AQ85, 'West Midlands'!AQ85, Northern!AQ85, Scotland!AQ85, Southern!AQ85, 'Wales & West'!AQ85)/GDNpf -> 0 | AR90: =CHOOSE(m_identity, East!AR85, London!AR85, 'North West'!AR85, 'West Midlands'!AR85, Northern!AR85, Scotland!AR85, Southern!AR85, 'Wales & West'!AR85)/GDNpf -> 0 | AS90: =CHOOSE(m_identity, East!AS85, London!AS85, 'North West'!AS85, 'West Midlands'!AS85, Northern!AS85, Scotland!AS85, Southern!AS85, 'Wales & West'!AS85)/GDNpf -> 0 | AT90: =CHOOSE(m_identity, East!AT85, London!AT85, 'North West'!AT85, 'West Midlands'!AT85, Northern!AT85, Scotland!AT85, Southern!AT85, 'Wales & West'!AT85)/GDNpf -> 0
E91: =CHOOSE(m_identity, East!E86, London!E86, 'North West'!E86, 'West Midlands'!E86, Northern!E86, Scotland!E86, Southern!E86, 'Wales & West'!E86) -> Third Party Damage and Water Ingress Costs | G91: £m 18/19 prices | H91: =CHOOSE(m_identity, East!H86, London!H86, 'North West'!H86, 'West Midlands'!H86, Northern!H86, Scotland!H86, Southern!H86, 'Wales & West'!H86) -> TPWIt | AP91: =CHOOSE(m_identity, East!AP86, London!AP86, 'North West'!AP86, 'West Midlands'!AP86, Northern!AP86, Scotland!AP86, Southern!AP86, 'Wales & West'!AP86) -> 0 | AQ91: =CHOOSE(m_identity, East!AQ86, London!AQ86, 'North West'!AQ86, 'West Midlands'!AQ86, Northern!AQ86, Scotland!AQ86, Southern!AQ86, 'Wales & West'!AQ86) -> 0 | AR91: =CHOOSE(m_identity, East!AR86, London!AR86, 'North West'!AR86, 'West Midlands'!AR86, Northern!AR86, Scotland!AR86, Southern!AR86, 'Wales & West'!AR86) -> 0 | AS91: =CHOOSE(m_identity, East!AS86, London!AS86, 'North West'!AS86, 'West Midlands'!AS86, Northern!AS86, Scotland!AS86, Southern!AS86, 'Wales & West'!AS86) -> 0 | AT91: =CHOOSE(m_identity, East!AT86, London!AT86, 'North West'!AT86, 'West Midlands'!AT86, Northern!AT86, Scotland!AT86, Southern!AT86, 'Wales & West'!AT86) -> 0
E92: =CHOOSE(m_identity, East!E87, London!E87, 'North West'!E87, 'West Midlands'!E87, Northern!E87, Scotland!E87, Southern!E87, 'Wales & West'!E87) -> Gas Illegally Taken | G92: £m 18/19 prices | H92: =CHOOSE(m_identity, East!H87, London!H87, 'North West'!H87, 'West Midlands'!H87, Northern!H87, Scotland!H87, Southern!H87, 'Wales & West'!H87) -> TGt | AP92: =CHOOSE(m_identity, East!AP87, London!AP87, 'North West'!AP87, 'West Midlands'!AP87, Northern!AP87, Scotland!AP87, Southern!AP87, 'Wales & West'!AP87)/GDNpf -> 0 | AQ92: =CHOOSE(m_identity, East!AQ87, London!AQ87, 'North West'!AQ87, 'West Midlands'!AQ87, Northern!AQ87, Scotland!AQ87, Southern!AQ87, 'Wales & West'!AQ87)/GDNpf -> 0 | AR92: =CHOOSE(m_identity, East!AR87, London!AR87, 'North West'!AR87, 'West Midlands'!AR87, Northern!AR87, Scotland!AR87, Southern!AR87, 'Wales & West'!AR87)/GDNpf -> 0 | AS92: =CHOOSE(m_identity, East!AS87, London!AS87, 'North West'!AS87, 'West Midlands'!AS87, Northern!AS87, Scotland!AS87, Southern!AS87, 'Wales & West'!AS87)/GDNpf -> 0 | AT92: =CHOOSE(m_identity, East!AT87, London!AT87, 'North West'!AT87, 'West Midlands'!AT87, Northern!AT87, Scotland!AT87, Southern!AT87, 'Wales & West'!AT87)/GDNpf -> 0
E93: =CHOOSE(m_identity, East!E88, London!E88, 'North West'!E88, 'West Midlands'!E88, Northern!E88, Scotland!E88, Southern!E88, 'Wales & West'!E88) -> NTS Exit Flat Capacity Costs and NTS Exit Flex Capacity Costs | G93: £m 18/19 prices | H93: =CHOOSE(m_identity, East!H88, London!H88, 'North West'!H88, 'West Midlands'!H88, Northern!H88, Scotland!H88, Southern!H88, 'Wales & West'!H88) -> ECt | AP93: =CHOOSE(m_identity, East!AP88, London!AP88, 'North West'!AP88, 'West Midlands'!AP88, Northern!AP88, Scotland!AP88, Southern!AP88, 'Wales & West'!AP88)/GDNpf -> 57.65666445 | AQ93: =CHOOSE(m_identity, East!AQ88, London!AQ88, 'North West'!AQ88, 'West Midlands'!AQ88, Northern!AQ88, Scotland!AQ88, Southern!AQ88, 'Wales & West'!AQ88)/GDNpf -> 52.57513288 | AR93: =CHOOSE(m_identity, East!AR88, London!AR88, 'North West'!AR88, 'West Midlands'!AR88, Northern!AR88, Scotland!AR88, Southern!AR88, 'Wales & West'!AR88)/GDNpf -> 40.71741663 | AS93: =CHOOSE(m_identity, East!AS88, London!AS88, 'North West'!AS88, 'West Midlands'!AS88, Northern!AS88, Scotland!AS88, Southern!AS88, 'Wales & West'!AS88)/GDNpf -> 44.12077754 | AT93: =CHOOSE(m_identity, East!AT88, London!AT88, 'North West'!AT88, 'West Midlands'!AT88, Northern!AT88, Scotland!AT88, Southern!AT88, 'Wales & West'!AT88)/GDNpf -> 63.39250658
E94: =CHOOSE(m_identity, East!E89, London!E89, 'North West'!E89, 'West Midlands'!E89, Northern!E89, Scotland!E89, Southern!E89, 'Wales & West'!E89) -> CDSP Costs | G94: £m 18/19 prices | H94: =CHOOSE(m_identity, East!H89, London!H89, 'North West'!H89, 'West Midlands'!H89, Northern!H89, Scotland!H89, Southern!H89, 'Wales & West'!H89) -> CDSPt | AP94: =CHOOSE(m_identity, East!AP89, London!AP89, 'North West'!AP89, 'West Midlands'!AP89, Northern!AP89, Scotland!AP89, Southern!AP89, 'Wales & West'!AP89)/GDNpf -> 5.263722983 | AQ94: =CHOOSE(m_identity, East!AQ89, London!AQ89, 'North West'!AQ89, 'West Midlands'!AQ89, Northern!AQ89, Scotland!AQ89, Southern!AQ89, 'Wales & West'!AQ89)/GDNpf -> 3.904700094 | AR94: =CHOOSE(m_identity, East!AR89, London!AR89, 'North West'!AR89, 'West Midlands'!AR89, Northern!AR89, Scotland!AR89, Southern!AR89, 'Wales & West'!AR89)/GDNpf -> 4.289326741 | AS94: =CHOOSE(m_identity, East!AS89, London!AS89, 'North West'!AS89, 'West Midlands'!AS89, Northern!AS89, Scotland!AS89, Southern!AS89, 'Wales & West'!AS89)/GDNpf -> 3.865884827 | AT94: =CHOOSE(m_identity, East!AT89, London!AT89, 'North West'!AT89, 'West Midlands'!AT89, Northern!AT89, Scotland!AT89, Southern!AT89, 'Wales & West'!AT89)/GDNpf -> 4.386526401
E95: =CHOOSE(m_identity, East!E90, London!E90, 'North West'!E90, 'West Midlands'!E90, Northern!E90, Scotland!E90, Southern!E90, 'Wales & West'!E90) -> Miscellaneous pass-through | G95: £m 18/19 prices | H95: =CHOOSE(m_identity, East!H90, London!H90, 'North West'!H90, 'West Midlands'!H90, Northern!H90, Scotland!H90, Southern!H90, 'Wales & West'!H90) -> MPt | AP95: =CHOOSE(m_identity, East!AP90, London!AP90, 'North West'!AP90, 'West Midlands'!AP90, Northern!AP90, Scotland!AP90, Southern!AP90, 'Wales & West'!AP90)/GDNpf -> 1.143085201 | AQ95: =CHOOSE(m_identity, East!AQ90, London!AQ90, 'North West'!AQ90, 'West Midlands'!AQ90, Northern!AQ90, Scotland!AQ90, Southern!AQ90, 'Wales & West'!AQ90)/GDNpf -> 128.9254696 | AR95: =CHOOSE(m_identity, East!AR90, London!AR90, 'North West'!AR90, 'West Midlands'!AR90, Northern!AR90, Scotland!AR90, Southern!AR90, 'Wales & West'!AR90)/GDNpf -> 32.98080981 | AS95: =CHOOSE(m_identity, East!AS90, London!AS90, 'North West'!AS90, 'West Midlands'!AS90, Northern!AS90, Scotland!AS90, Southern!AS90, 'Wales & West'!AS90)/GDNpf -> 1.026576963 | AT95: =CHOOSE(m_identity, East!AT90, London!AT90, 'North West'!AT90, 'West Midlands'!AT90, Northern!AT90, Scotland!AT90, Southern!AT90, 'Wales & West'!AT90)/GDNpf -> -1.202709127
E96: =CHOOSE(m_identity, East!E91, London!E91, 'North West'!E91, 'West Midlands'!E91, Northern!E91, Scotland!E91, Southern!E91, 'Wales & West'!E91) -> Stranraer LDZ [SGN Scotland only] | G96: £m 18/19 prices | H96: =CHOOSE(m_identity, East!H91, London!H91, 'North West'!H91, 'West Midlands'!H91, Northern!H91, Scotland!H91, Southern!H91, 'Wales & West'!H91) -> SLDZt | AP96: =CHOOSE(m_identity, East!AP91, London!AP91, 'North West'!AP91, 'West Midlands'!AP91, Northern!AP91, Scotland!AP91, Southern!AP91, 'Wales & West'!AP91)/GDNpf -> 0 | AQ96: =CHOOSE(m_identity, East!AQ91, London!AQ91, 'North West'!AQ91, 'West Midlands'!AQ91, Northern!AQ91, Scotland!AQ91, Southern!AQ91, 'Wales & West'!AQ91)/GDNpf -> 0 | AR96: =CHOOSE(m_identity, East!AR91, London!AR91, 'North West'!AR91, 'West Midlands'!AR91, Northern!AR91, Scotland!AR91, Southern!AR91, 'Wales & West'!AR91)/GDNpf -> 0 | AS96: =CHOOSE(m_identity, East!AS91, London!AS91, 'North West'!AS91, 'West Midlands'!AS91, Northern!AS91, Scotland!AS91, Southern!AS91, 'Wales & West'!AS91)/GDNpf -> 0 | AT96: =CHOOSE(m_identity, East!AT91, London!AT91, 'North West'!AT91, 'West Midlands'!AT91, Northern!AT91, Scotland!AT91, Southern!AT91, 'Wales & West'!AT91)/GDNpf -> 0
E97: Pass-through expenditure | G97: £m 18/19 prices | H97: PTt | AP97: =SUM(AP86:AP96) -> 164.1734971 | AQ97: =SUM(AQ86:AQ96) -> 275.5769932 | AR97: =SUM(AR86:AR96) -> 136.5396433 | AS97: =SUM(AS86:AS96) -> 107.407364 | AT97: =SUM(AT86:AT96) -> 124.1599395
B99: Incentive revenue
E101: =CHOOSE(m_identity, East!E95, London!E95, 'North West'!E95, 'West Midlands'!E95, Northern!E95, Scotland!E95, Southern!E95, 'Wales & West'!E95) -> Business plan incentive | G101: £m 18/19 prices | H101: =CHOOSE(m_identity, East!H95, London!H95, 'North West'!H95, 'West Midlands'!H95, Northern!H95, Scotland!H95, Southern!H95, 'Wales & West'!H95) -> BPIt | AP101: =CHOOSE(m_identity, East!AP95, London!AP95, 'North West'!AP95, 'West Midlands'!AP95, Northern!AP95, Scotland!AP95, Southern!AP95, 'Wales & West'!AP95) -> 0.2394167965 | AQ101: =CHOOSE(m_identity, East!AQ95, London!AQ95, 'North West'!AQ95, 'West Midlands'!AQ95, Northern!AQ95, Scotland!AQ95, Southern!AQ95, 'Wales & West'!AQ95) -> 0.2394167965 | AR101: =CHOOSE(m_identity, East!AR95, London!AR95, 'North West'!AR95, 'West Midlands'!AR95, Northern!AR95, Scotland!AR95, Southern!AR95, 'Wales & West'!AR95) -> 0.2394167965 | AS101: =CHOOSE(m_identity, East!AS95, London!AS95, 'North West'!AS95, 'West Midlands'!AS95, Northern!AS95, Scotland!AS95, Southern!AS95, 'Wales & West'!AS95) -> 0.2394167965 | AT101: =CHOOSE(m_identity, East!AT95, London!AT95, 'North West'!AT95, 'West Midlands'!AT95, Northern!AT95, Scotland!AT95, Southern!AT95, 'Wales & West'!AT95) -> 0.2394167965
E103: =CHOOSE(m_identity, East!E97, London!E97, 'North West'!E97, 'West Midlands'!E97, Northern!E97, Scotland!E97, Southern!E97, 'Wales & West'!E97) -> Customer Satisfaction Survey ODI | G103: £m 18/19 prices | H103: =CHOOSE(m_identity, East!H97, London!H97, 'North West'!H97, 'West Midlands'!H97, Northern!H97, Scotland!H97, Southern!H97, 'Wales & West'!H97) -> CSt | AP103: =CHOOSE(m_identity, East!AP97, London!AP97, 'North West'!AP97, 'West Midlands'!AP97, Northern!AP97, Scotland!AP97, Southern!AP97, 'Wales & West'!AP97) -> 0.599072549 | AQ103: =CHOOSE(m_identity, East!AQ97, London!AQ97, 'North West'!AQ97, 'West Midlands'!AQ97, Northern!AQ97, Scotland!AQ97, Southern!AQ97, 'Wales & West'!AQ97) -> 1.922006607 | AR103: =CHOOSE(m_identity, East!AR97, London!AR97, 'North West'!AR97, 'West Midlands'!AR97, Northern!AR97, Scotland!AR97, Southern!AR97, 'Wales & West'!AR97) -> 2.47776397 | AS103: =CHOOSE(m_identity, East!AS97, London!AS97, 'North West'!AS97, 'West Midlands'!AS97, Northern!AS97, Scotland!AS97, Southern!AS97, 'Wales & West'!AS97) -> 2.466343583 | AT103: =CHOOSE(m_identity, East!AT97, London!AT97, 'North West'!AT97, 'West Midlands'!AT97, Northern!AT97, Scotland!AT97, Southern!AT97, 'Wales & West'!AT97) -> 2.622994652
E104: =CHOOSE(m_identity, East!E98, London!E98, 'North West'!E98, 'West Midlands'!E98, Northern!E98, Scotland!E98, Southern!E98, 'Wales & West'!E98) -> Complaints metric ODI | G104: £m 18/19 prices | H104: =CHOOSE(m_identity, East!H98, London!H98, 'North West'!H98, 'West Midlands'!H98, Northern!H98, Scotland!H98, Southern!H98, 'Wales & West'!H98) -> CMt | AP104: =CHOOSE(m_identity, East!AP98, London!AP98, 'North West'!AP98, 'West Midlands'!AP98, Northern!AP98, Scotland!AP98, Southern!AP98, 'Wales & West'!AP98) -> 0 | AQ104: =CHOOSE(m_identity, East!AQ98, London!AQ98, 'North West'!AQ98, 'West Midlands'!AQ98, Northern!AQ98, Scotland!AQ98, Southern!AQ98, 'Wales & West'!AQ98) -> 0 | AR104: =CHOOSE(m_identity, East!AR98, London!AR98, 'North West'!AR98, 'West Midlands'!AR98, Northern!AR98, Scotland!AR98, Southern!AR98, 'Wales & West'!AR98) -> 0 | AS104: =CHOOSE(m_identity, East!AS98, London!AS98, 'North West'!AS98, 'West Midlands'!AS98, Northern!AS98, Scotland!AS98, Southern!AS98, 'Wales & West'!AS98) -> 0 | AT104: =CHOOSE(m_identity, East!AT98, London!AT98, 'North West'!AT98, 'West Midlands'!AT98, Northern!AT98, Scotland!AT98, Southern!AT98, 'Wales & West'!AT98) -> 0
E105: =CHOOSE(m_identity, East!E99, London!E99, 'North West'!E99, 'West Midlands'!E99, Northern!E99, Scotland!E99, Southern!E99, 'Wales & West'!E99) -> Unplanned Interruption Mean Duration ODI [NGN, SGN and WWU] | G105: £m 18/19 prices | H105: =CHOOSE(m_identity, East!H99, London!H99, 'North West'!H99, 'West Midlands'!H99, Northern!H99, Scotland!H99, Southern!H99, 'Wales & West'!H99) -> UIPt | AP105: =CHOOSE(m_identity, East!AP99, London!AP99, 'North West'!AP99, 'West Midlands'!AP99, Northern!AP99, Scotland!AP99, Southern!AP99, 'Wales & West'!AP99) -> 0 | AQ105: =CHOOSE(m_identity, East!AQ99, London!AQ99, 'North West'!AQ99, 'West Midlands'!AQ99, Northern!AQ99, Scotland!AQ99, Southern!AQ99, 'Wales & West'!AQ99) -> 0 | AR105: =CHOOSE(m_identity, East!AR99, London!AR99, 'North West'!AR99, 'West Midlands'!AR99, Northern!AR99, Scotland!AR99, Southern!AR99, 'Wales & West'!AR99) -> 0 | AS105: =CHOOSE(m_identity, East!AS99, London!AS99, 'North West'!AS99, 'West Midlands'!AS99, Northern!AS99, Scotland!AS99, Southern!AS99, 'Wales & West'!AS99) -> 0 | AT105: =CHOOSE(m_identity, East!AT99, London!AT99, 'North West'!AT99, 'West Midlands'!AT99, Northern!AT99, Scotland!AT99, Southern!AT99, 'Wales & West'!AT99) -> 0
E106: =CHOOSE(m_identity, East!E100, London!E100, 'North West'!E100, 'West Midlands'!E100, Northern!E100, Scotland!E100, Southern!E100, 'Wales & West'!E100) -> Unplanned Interruption Mean Duration ODI [Cadent only] | G106: £m 18/19 prices | H106: =CHOOSE(m_identity, East!H100, London!H100, 'North West'!H100, 'West Midlands'!H100, Northern!H100, Scotland!H100, Southern!H100, 'Wales & West'!H100) -> UIPt | AP106: =CHOOSE(m_identity, East!AP100, London!AP100, 'North West'!AP100, 'West Midlands'!AP100, Northern!AP100, Scotland!AP100, Southern!AP100, 'Wales & West'!AP100) -> 0 | AQ106: =CHOOSE(m_identity, East!AQ100, London!AQ100, 'North West'!AQ100, 'West Midlands'!AQ100, Northern!AQ100, Scotland!AQ100, Southern!AQ100, 'Wales & West'!AQ100) -> 0 | AR106: =CHOOSE(m_identity, East!AR100, London!AR100, 'North West'!AR100, 'West Midlands'!AR100, Northern!AR100, Scotland!AR100, Southern!AR100, 'Wales & West'!AR100) -> 0 | AS106: =CHOOSE(m_identity, East!AS100, London!AS100, 'North West'!AS100, 'West Midlands'!AS100, Northern!AS100, Scotland!AS100, Southern!AS100, 'Wales & West'!AS100) -> 0 | AT106: =CHOOSE(m_identity, East!AT100, London!AT100, 'North West'!AT100, 'West Midlands'!AT100, Northern!AT100, Scotland!AT100, Southern!AT100, 'Wales & West'!AT100) -> 0
E107: =CHOOSE(m_identity, East!E101, London!E101, 'North West'!E101, 'West Midlands'!E101, Northern!E101, Scotland!E101, Southern!E101, 'Wales & West'!E101) -> Shrinkage Management ODI | G107: £m 18/19 prices | H107: =CHOOSE(m_identity, East!H101, London!H101, 'North West'!H101, 'West Midlands'!H101, Northern!H101, Scotland!H101, Southern!H101, 'Wales & West'!H101) -> SMt | AP107: =CHOOSE(m_identity, East!AP101, London!AP101, 'North West'!AP101, 'West Midlands'!AP101, Northern!AP101, Scotland!AP101, Southern!AP101, 'Wales & West'!AP101) -> 0.0254804384 | AQ107: =CHOOSE(m_identity, East!AQ101, London!AQ101, 'North West'!AQ101, 'West Midlands'!AQ101, Northern!AQ101, Scotland!AQ101, Southern!AQ101, 'Wales & West'!AQ101) -> 0.08295333331 | AR107: =CHOOSE(m_identity, East!AR101, London!AR101, 'North West'!AR101, 'West Midlands'!AR101, Northern!AR101, Scotland!AR101, Southern!AR101, 'Wales & West'!AR101) -> -0.05008637354 | AS107: =CHOOSE(m_identity, East!AS101, London!AS101, 'North West'!AS101, 'West Midlands'!AS101, Northern!AS101, Scotland!AS101, Southern!AS101, 'Wales & West'!AS101) -> -0.08368082328 | AT107: =CHOOSE(m_identity, East!AT101, London!AT101, 'North West'!AT101, 'West Midlands'!AT101, Northern!AT101, Scotland!AT101, Southern!AT101, 'Wales & West'!AT101) -> 0.01065499244
E108: =CHOOSE(m_identity, East!E102, London!E102, 'North West'!E102, 'West Midlands'!E102, Northern!E102, Scotland!E102, Southern!E102, 'Wales & West'!E102) -> Collaborative streetworks ODI [Cadent Lon & EoE, SGN So only] | G108: £m 18/19 prices | H108: =CHOOSE(m_identity, East!H102, London!H102, 'North West'!H102, 'West Midlands'!H102, Northern!H102, Scotland!H102, Southern!H102, 'Wales & West'!H102) -> CSWt | AP108: =CHOOSE(m_identity, East!AP102, London!AP102, 'North West'!AP102, 'West Midlands'!AP102, Northern!AP102, Scotland!AP102, Southern!AP102, 'Wales & West'!AP102) -> 0.305 | AQ108: =CHOOSE(m_identity, East!AQ102, London!AQ102, 'North West'!AQ102, 'West Midlands'!AQ102, Northern!AQ102, Scotland!AQ102, Southern!AQ102, 'Wales & West'!AQ102) -> 0 | AR108: =CHOOSE(m_identity, East!AR102, London!AR102, 'North West'!AR102, 'West Midlands'!AR102, Northern!AR102, Scotland!AR102, Southern!AR102, 'Wales & West'!AR102) -> 0 | AS108: =CHOOSE(m_identity, East!AS102, London!AS102, 'North West'!AS102, 'West Midlands'!AS102, Northern!AS102, Scotland!AS102, Southern!AS102, 'Wales & West'!AS102) -> 0.305 | AT108: =CHOOSE(m_identity, East!AT102, London!AT102, 'North West'!AT102, 'West Midlands'!AT102, Northern!AT102, Scotland!AT102, Southern!AT102, 'Wales & West'!AT102) -> 0.305
E109: Output delivery incentives | G109: £m 18/19 prices | H109: ODIt | AP109: =SUM(AP103:AP108) -> 0.9295529874 | AQ109: =SUM(AQ103:AQ108) -> 2.00495994 | AR109: =SUM(AR103:AR108) -> 2.427677596 | AS109: =SUM(AS103:AS108) -> 2.68766276 | AT109: =SUM(AT103:AT108) -> 2.938649645
B111: Other revenue allowances
I112: Assumed cost multipliers:
E113: =CHOOSE(m_identity, East!E106, London!E106, 'North West'!E106, 'West Midlands'!E106, Northern!E106, Scotland!E106, Southern!E106, 'Wales & West'!E106) -> RIIO-2 network innovation allowance | G113: £m 18/19 prices | H113: =CHOOSE(m_identity, East!H106, London!H106, 'North West'!H106, 'West Midlands'!H106, Northern!H106, Scotland!H106, Southern!H106, 'Wales & West'!H106) -> NIAt | I113: =CHOOSE(m_identity, East!I437, London!I437, 'North West'!I437, 'West Midlands'!I437, Northern!I437, Scotland!I437, Southern!I437, 'Wales & West'!I437) -> 1.111111111 | AP113: =CHOOSE(m_identity, East!AP106, London!AP106, 'North West'!AP106, 'West Midlands'!AP106, Northern!AP106, Scotland!AP106, Southern!AP106, 'Wales & West'!AP106) -> 0.5852411862 | AQ113: =CHOOSE(m_identity, East!AQ106, London!AQ106, 'North West'!AQ106, 'West Midlands'!AQ106, Northern!AQ106, Scotland!AQ106, Southern!AQ106, 'Wales & West'!AQ106) -> 0.9682108219 | AR113: =CHOOSE(m_identity, East!AR106, London!AR106, 'North West'!AR106, 'West Midlands'!AR106, Northern!AR106, Scotland!AR106, Southern!AR106, 'Wales & West'!AR106) -> 1.394099156 | AS113: =CHOOSE(m_identity, East!AS106, London!AS106, 'North West'!AS106, 'West Midlands'!AS106, Northern!AS106, Scotland!AS106, Southern!AS106, 'Wales & West'!AS106) -> 3.969393629 | AT113: =CHOOSE(m_identity, East!AT106, London!AT106, 'North West'!AT106, 'West Midlands'!AT106, Northern!AT106, Scotland!AT106, Southern!AT106, 'Wales & West'!AT106) -> 3.949217524
E114: =CHOOSE(m_identity, East!E107, London!E107, 'North West'!E107, 'West Midlands'!E107, Northern!E107, Scotland!E107, Southern!E107, 'Wales & West'!E107) -> Carry-over Network Innovation Allowance | G114: £m 18/19 prices | H114: =CHOOSE(m_identity, East!H107, London!H107, 'North West'!H107, 'West Midlands'!H107, Northern!H107, Scotland!H107, Southern!H107, 'Wales & West'!H107) -> CNIAt | I114: =CHOOSE(m_identity, East!I438, London!I438, 'North West'!I438, 'West Midlands'!I438, Northern!I438, Scotland!I438, Southern!I438, 'Wales & West'!I438) -> 1.111111111 | AP114: =CHOOSE(m_identity, East!AP107, London!AP107, 'North West'!AP107, 'West Midlands'!AP107, Northern!AP107, Scotland!AP107, Southern!AP107, 'Wales & West'!AP107) -> 0.9818195684 | AQ114: =CHOOSE(m_identity, East!AQ107, London!AQ107, 'North West'!AQ107, 'West Midlands'!AQ107, Northern!AQ107, Scotland!AQ107, Southern!AQ107, 'Wales & West'!AQ107) -> 0 | AR114: =CHOOSE(m_identity, East!AR107, London!AR107, 'North West'!AR107, 'West Midlands'!AR107, Northern!AR107, Scotland!AR107, Southern!AR107, 'Wales & West'!AR107) -> 0 | AS114: =CHOOSE(m_identity, East!AS107, London!AS107, 'North West'!AS107, 'West Midlands'!AS107, Northern!AS107, Scotland!AS107, Southern!AS107, 'Wales & West'!AS107) -> 0 | AT114: =CHOOSE(m_identity, East!AT107, London!AT107, 'North West'!AT107, 'West Midlands'!AT107, Northern!AT107, Scotland!AT107, Southern!AT107, 'Wales & West'!AT107) -> 0
E115: =CHOOSE(m_identity, East!E108, London!E108, 'North West'!E108, 'West Midlands'!E108, Northern!E108, Scotland!E108, Southern!E108, 'Wales & West'!E108) -> Vulnerability and carbon monoxide allowance | G115: £m 18/19 prices | H115: =CHOOSE(m_identity, East!H108, London!H108, 'North West'!H108, 'West Midlands'!H108, Northern!H108, Scotland!H108, Southern!H108, 'Wales & West'!H108) -> VCMt | I115: =CHOOSE(m_identity, East!I439, London!I439, 'North West'!I439, 'West Midlands'!I439, Northern!I439, Scotland!I439, Southern!I439, 'Wales & West'!I439) -> 1 | AP115: =CHOOSE(m_identity, East!AP108, London!AP108, 'North West'!AP108, 'West Midlands'!AP108, Northern!AP108, Scotland!AP108, Southern!AP108, 'Wales & West'!AP108) -> 1.065757331 | AQ115: =CHOOSE(m_identity, East!AQ108, London!AQ108, 'North West'!AQ108, 'West Midlands'!AQ108, Northern!AQ108, Scotland!AQ108, Southern!AQ108, 'Wales & West'!AQ108) -> 2.337955158 | AR115: =CHOOSE(m_identity, East!AR108, London!AR108, 'North West'!AR108, 'West Midlands'!AR108, Northern!AR108, Scotland!AR108, Southern!AR108, 'Wales & West'!AR108) -> 5.104025579 | AS115: =CHOOSE(m_identity, East!AS108, London!AS108, 'North West'!AS108, 'West Midlands'!AS108, Northern!AS108, Scotland!AS108, Southern!AS108, 'Wales & West'!AS108) -> 10.3914627 | AT115: =CHOOSE(m_identity, East!AT108, London!AT108, 'North West'!AT108, 'West Midlands'!AT108, Northern!AT108, Scotland!AT108, Southern!AT108, 'Wales & West'!AT108) -> 12.36866004
E116: =CHOOSE(m_identity, East!E109, London!E109, 'North West'!E109, 'West Midlands'!E109, Northern!E109, Scotland!E109, Southern!E109, 'Wales & West'!E109) -> Spare non-TIM 1 | G116: £m 18/19 prices | H116: =CHOOSE(m_identity, East!H109, London!H109, 'North West'!H109, 'West Midlands'!H109, Northern!H109, Scotland!H109, Southern!H109, 'Wales & West'!H109) -> 0 | I116: =CHOOSE(m_identity, East!I440, London!I440, 'North West'!I440, 'West Midlands'!I440, Northern!I440, Scotland!I440, Southern!I440, 'Wales & West'!I440) -> 0 | AP116: =CHOOSE(m_identity, East!AP109, London!AP109, 'North West'!AP109, 'West Midlands'!AP109, Northern!AP109, Scotland!AP109, Southern!AP109, 'Wales & West'!AP109) -> 0 | AQ116: =CHOOSE(m_identity, East!AQ109, London!AQ109, 'North West'!AQ109, 'West Midlands'!AQ109, Northern!AQ109, Scotland!AQ109, Southern!AQ109, 'Wales & West'!AQ109) -> 0 | AR116: =CHOOSE(m_identity, East!AR109, London!AR109, 'North West'!AR109, 'West Midlands'!AR109, Northern!AR109, Scotland!AR109, Southern!AR109, 'Wales & West'!AR109) -> 0 | AS116: =CHOOSE(m_identity, East!AS109, London!AS109, 'North West'!AS109, 'West Midlands'!AS109, Northern!AS109, Scotland!AS109, Southern!AS109, 'Wales & West'!AS109) -> 0 | AT116: =CHOOSE(m_identity, East!AT109, London!AT109, 'North West'!AT109, 'West Midlands'!AT109, Northern!AT109, Scotland!AT109, Southern!AT109, 'Wales & West'!AT109) -> 0
E117: =CHOOSE(m_identity, East!E110, London!E110, 'North West'!E110, 'West Midlands'!E110, Northern!E110, Scotland!E110, Southern!E110, 'Wales & West'!E110) -> Spare non-TIM 2 | G117: £m 18/19 prices | H117: =CHOOSE(m_identity, East!H110, London!H110, 'North West'!H110, 'West Midlands'!H110, Northern!H110, Scotland!H110, Southern!H110, 'Wales & West'!H110) -> 0 | I117: =CHOOSE(m_identity, East!I441, London!I441, 'North West'!I441, 'West Midlands'!I441, Northern!I441, Scotland!I441, Southern!I441, 'Wales & West'!I441) -> 0 | AP117: =CHOOSE(m_identity, East!AP110, London!AP110, 'North West'!AP110, 'West Midlands'!AP110, Northern!AP110, Scotland!AP110, Southern!AP110, 'Wales & West'!AP110) -> 0 | AQ117: =CHOOSE(m_identity, East!AQ110, London!AQ110, 'North West'!AQ110, 'West Midlands'!AQ110, Northern!AQ110, Scotland!AQ110, Southern!AQ110, 'Wales & West'!AQ110) -> 0 | AR117: =CHOOSE(m_identity, East!AR110, London!AR110, 'North West'!AR110, 'West Midlands'!AR110, Northern!AR110, Scotland!AR110, Southern!AR110, 'Wales & West'!AR110) -> 0 | AS117: =CHOOSE(m_identity, East!AS110, London!AS110, 'North West'!AS110, 'West Midlands'!AS110, Northern!AS110, Scotland!AS110, Southern!AS110, 'Wales & West'!AS110) -> 0 | AT117: =CHOOSE(m_identity, East!AT110, London!AT110, 'North West'!AT110, 'West Midlands'!AT110, Northern!AT110, Scotland!AT110, Southern!AT110, 'Wales & West'!AT110) -> 0
E118: =CHOOSE(m_identity, East!E111, London!E111, 'North West'!E111, 'West Midlands'!E111, Northern!E111, Scotland!E111, Southern!E111, 'Wales & West'!E111) -> Spare non-TIM 3 | G118: £m 18/19 prices | H118: =CHOOSE(m_identity, East!H111, London!H111, 'North West'!H111, 'West Midlands'!H111, Northern!H111, Scotland!H111, Southern!H111, 'Wales & West'!H111) -> 0 | I118: =CHOOSE(m_identity, East!I442, London!I442, 'North West'!I442, 'West Midlands'!I442, Northern!I442, Scotland!I442, Southern!I442, 'Wales & West'!I442) -> 0 | AP118: =CHOOSE(m_identity, East!AP111, London!AP111, 'North West'!AP111, 'West Midlands'!AP111, Northern!AP111, Scotland!AP111, Southern!AP111, 'Wales & West'!AP111) -> 0 | AQ118: =CHOOSE(m_identity, East!AQ111, London!AQ111, 'North West'!AQ111, 'West Midlands'!AQ111, Northern!AQ111, Scotland!AQ111, Southern!AQ111, 'Wales & West'!AQ111) -> 0 | AR118: =CHOOSE(m_identity, East!AR111, London!AR111, 'North West'!AR111, 'West Midlands'!AR111, Northern!AR111, Scotland!AR111, Southern!AR111, 'Wales & West'!AR111) -> 0 | AS118: =CHOOSE(m_identity, East!AS111, London!AS111, 'North West'!AS111, 'West Midlands'!AS111, Northern!AS111, Scotland!AS111, Southern!AS111, 'Wales & West'!AS111) -> 0 | AT118: =CHOOSE(m_identity, East!AT111, London!AT111, 'North West'!AT111, 'West Midlands'!AT111, Northern!AT111, Scotland!AT111, Southern!AT111, 'Wales & West'!AT111) -> 0
E119: Other revenue allowance | G119: £m 18/19 prices | H119: ORAt | AP119: =SUM(AP113:AP118) -> 2.632818086 | AQ119: =SUM(AQ113:AQ118) -> 3.30616598 | AR119: =SUM(AR113:AR118) -> 6.498124735 | AS119: =SUM(AS113:AS118) -> 14.36085633 | AT119: =SUM(AT113:AT118) -> 16.31787756
E121: Costs associated with "Other revenue" | G121: £m 18/19 prices | AP121: =SUMPRODUCT((AP113:AP118) * ($I113:$I118)) -> 2.806935947 | AQ121: =SUMPRODUCT((AQ113:AQ118) * ($I113:$I118)) -> 3.41374496 | AR121: =SUMPRODUCT((AR113:AR118) * ($I113:$I118)) -> 6.653024641 | AS121: =SUMPRODUCT((AS113:AS118) * ($I113:$I118)) -> 14.80190006 | AT121: =SUMPRODUCT((AT113:AT118) * ($I113:$I118)) -> 16.75667951
B123: Legacy adjustments
E125: =CHOOSE(m_identity, East!E115, London!E115, 'North West'!E115, 'West Midlands'!E115, Northern!E115, Scotland!E115, Southern!E115, 'Wales & West'!E115) -> Legacy pass-through items | G125: £m nominal | H125: =CHOOSE(m_identity, East!H115, London!H115, 'North West'!H115, 'West Midlands'!H115, Northern!H115, Scotland!H115, Southern!H115, 'Wales & West'!H115) -> LPTt | AP125: =CHOOSE(m_identity, East!AP115, London!AP115, 'North West'!AP115, 'West Midlands'!AP115, Northern!AP115, Scotland!AP115, Southern!AP115, 'Wales & West'!AP115) -> 3.332325057 | AQ125: =CHOOSE(m_identity, East!AQ115, London!AQ115, 'North West'!AQ115, 'West Midlands'!AQ115, Northern!AQ115, Scotland!AQ115, Southern!AQ115, 'Wales & West'!AQ115) -> -6.794562487
E126: =CHOOSE(m_identity, East!E116, London!E116, 'North West'!E116, 'West Midlands'!E116, Northern!E116, Scotland!E116, Southern!E116, 'Wales & West'!E116) -> Legacy MOD | G126: £m nominal | H126: =CHOOSE(m_identity, East!H116, London!H116, 'North West'!H116, 'West Midlands'!H116, Northern!H116, Scotland!H116, Southern!H116, 'Wales & West'!H116) -> LMODt | AP126: =CHOOSE(m_identity, East!AP116, London!AP116, 'North West'!AP116, 'West Midlands'!AP116, Northern!AP116, Scotland!AP116, Southern!AP116, 'Wales & West'!AP116) -> 19.3544763 | AQ126: =CHOOSE(m_identity, East!AQ116, London!AQ116, 'North West'!AQ116, 'West Midlands'!AQ116, Northern!AQ116, Scotland!AQ116, Southern!AQ116, 'Wales & West'!AQ116) -> 24.8372015 | AR126: =$AP$139/3*AR140*AR217 -> -0.465689085 | AS126: =$AP$139/3*AS140*AS217 -> -0.496099119 | AT126: =$AP$139/3*AT140*AT217 -> -0.5262681973
E127: =CHOOSE(m_identity, East!E117, London!E117, 'North West'!E117, 'West Midlands'!E117, Northern!E117, Scotland!E117, Southern!E117, 'Wales & West'!E117) -> Legacy K correction | G127: £m nominal | H127: =CHOOSE(m_identity, East!H117, London!H117, 'North West'!H117, 'West Midlands'!H117, Northern!H117, Scotland!H117, Southern!H117, 'Wales & West'!H117) -> LKt | AP127: =CHOOSE(m_identity, East!AP117, London!AP117, 'North West'!AP117, 'West Midlands'!AP117, Northern!AP117, Scotland!AP117, Southern!AP117, 'Wales & West'!AP117) -> -1.615058186 | AQ127: =CHOOSE(m_identity, East!AQ117, London!AQ117, 'North West'!AQ117, 'West Midlands'!AQ117, Northern!AQ117, Scotland!AQ117, Southern!AQ117, 'Wales & West'!AQ117) -> 0
E128: =CHOOSE(m_identity, East!E118, London!E118, 'North West'!E118, 'West Midlands'!E118, Northern!E118, Scotland!E118, Southern!E118, 'Wales & West'!E118) -> Legacy TRU | G128: £m nominal | H128: =CHOOSE(m_identity, East!H118, London!H118, 'North West'!H118, 'West Midlands'!H118, Northern!H118, Scotland!H118, Southern!H118, 'Wales & West'!H118) -> LTRUt | AP128: =CHOOSE(m_identity, East!AP118, London!AP118, 'North West'!AP118, 'West Midlands'!AP118, Northern!AP118, Scotland!AP118, Southern!AP118, 'Wales & West'!AP118) -> -6.072329549 | AQ128: =CHOOSE(m_identity, East!AQ118, London!AQ118, 'North West'!AQ118, 'West Midlands'!AQ118, Northern!AQ118, Scotland!AQ118, Southern!AQ118, 'Wales & West'!AQ118) -> -8.537887881 | AR128: =((AP144-AP143)/AP144)*AP142*(1+AP196)*(1+AQ196)*AR145 -> 0.1391844116 | AS128: =((AQ144-AQ143)/AQ144)*AQ142*(1+AQ196)*(1+AR196)*AS145 -> 2.147425243
E129: =CHOOSE(m_identity, East!E119, London!E119, 'North West'!E119, 'West Midlands'!E119, Northern!E119, Scotland!E119, Southern!E119, 'Wales & West'!E119) -> Close out of the RIIO-GD1 Network Outputs | G129: £m nominal | H129: =CHOOSE(m_identity, East!H119, London!H119, 'North West'!H119, 'West Midlands'!H119, Northern!H119, Scotland!H119, Southern!H119, 'Wales & West'!H119) -> NOCOt | AP129: =CHOOSE(m_identity, East!AP119, London!AP119, 'North West'!AP119, 'West Midlands'!AP119, Northern!AP119, Scotland!AP119, Southern!AP119, 'Wales & West'!AP119) -> 0 | AQ129: =CHOOSE(m_identity, East!AQ119, London!AQ119, 'North West'!AQ119, 'West Midlands'!AQ119, Northern!AQ119, Scotland!AQ119, Southern!AQ119, 'Wales & West'!AQ119) -> 0 | AR129: =CHOOSE(m_identity, East!AR119, London!AR119, 'North West'!AR119, 'West Midlands'!AR119, Northern!AR119, Scotland!AR119, Southern!AR119, 'Wales & West'!AR119) -> 0 | AS129: =CHOOSE(m_identity, East!AS119, London!AS119, 'North West'!AS119, 'West Midlands'!AS119, Northern!AS119, Scotland!AS119, Southern!AS119, 'Wales & West'!AS119) -> 0 | AT129: =CHOOSE(m_identity, East!AT119, London!AT119, 'North West'!AT119, 'West Midlands'!AT119, Northern!AT119, Scotland!AT119, Southern!AT119, 'Wales & West'!AT119) -> 0
E130: =CHOOSE(m_identity, East!E120, London!E120, 'North West'!E120, 'West Midlands'!E120, Northern!E120, Scotland!E120, Southern!E120, 'Wales & West'!E120) -> Close out of the RIIO-GD1 Discretionary Reward Scheme | G130: £m nominal | H130: =CHOOSE(m_identity, East!H120, London!H120, 'North West'!H120, 'West Midlands'!H120, Northern!H120, Scotland!H120, Southern!H120, 'Wales & West'!H120) -> LDRWt | AP130: =CHOOSE(m_identity, East!AP120, London!AP120, 'North West'!AP120, 'West Midlands'!AP120, Northern!AP120, Scotland!AP120, Southern!AP120, 'Wales & West'!AP120) -> 0 | AQ130: =CHOOSE(m_identity, East!AQ120, London!AQ120, 'North West'!AQ120, 'West Midlands'!AQ120, Northern!AQ120, Scotland!AQ120, Southern!AQ120, 'Wales & West'!AQ120) -> 0
E131: =CHOOSE(m_identity, East!E121, London!E121, 'North West'!E121, 'West Midlands'!E121, Northern!E121, Scotland!E121, Southern!E121, 'Wales & West'!E121) -> Close out of the RIIO-GD1 Broad Measure of Customer Satisfaction Incentive | G131: £m nominal | H131: =CHOOSE(m_identity, East!H121, London!H121, 'North West'!H121, 'West Midlands'!H121, Northern!H121, Scotland!H121, Southern!H121, 'Wales & West'!H121) -> LBMt | AP131: =CHOOSE(m_identity, East!AP121, London!AP121, 'North West'!AP121, 'West Midlands'!AP121, Northern!AP121, Scotland!AP121, Southern!AP121, 'Wales & West'!AP121) -> 5.138970613 | AQ131: =CHOOSE(m_identity, East!AQ121, London!AQ121, 'North West'!AQ121, 'West Midlands'!AQ121, Northern!AQ121, Scotland!AQ121, Southern!AQ121, 'Wales & West'!AQ121) -> 4.593607009
E132: =CHOOSE(m_identity, East!E122, London!E122, 'North West'!E122, 'West Midlands'!E122, Northern!E122, Scotland!E122, Southern!E122, 'Wales & West'!E122) -> Close out of the RIIO-GD1 Environmental Emissions Incentive | G132: £m nominal | H132: =CHOOSE(m_identity, East!H122, London!H122, 'North West'!H122, 'West Midlands'!H122, Northern!H122, Scotland!H122, Southern!H122, 'Wales & West'!H122) -> LEEIt | AP132: =CHOOSE(m_identity, East!AP122, London!AP122, 'North West'!AP122, 'West Midlands'!AP122, Northern!AP122, Scotland!AP122, Southern!AP122, 'Wales & West'!AP122) -> 3.079823238 | AQ132: =CHOOSE(m_identity, East!AQ122, London!AQ122, 'North West'!AQ122, 'West Midlands'!AQ122, Northern!AQ122, Scotland!AQ122, Southern!AQ122, 'Wales & West'!AQ122) -> 7.24458624
E133: =CHOOSE(m_identity, East!E123, London!E123, 'North West'!E123, 'West Midlands'!E123, Northern!E123, Scotland!E123, Southern!E123, 'Wales & West'!E123) -> Close out of the RIIO-GD1 Shrinkage Allowance Revenue Adjustment | G133: £m nominal | H133: =CHOOSE(m_identity, East!H123, London!H123, 'North West'!H123, 'West Midlands'!H123, Northern!H123, Scotland!H123, Southern!H123, 'Wales & West'!H123) -> LSHRt | AP133: =CHOOSE(m_identity, East!AP123, London!AP123, 'North West'!AP123, 'West Midlands'!AP123, Northern!AP123, Scotland!AP123, Southern!AP123, 'Wales & West'!AP123) -> -6.179370605 | AQ133: =CHOOSE(m_identity, East!AQ123, London!AQ123, 'North West'!AQ123, 'West Midlands'!AQ123, Northern!AQ123, Scotland!AQ123, Southern!AQ123, 'Wales & West'!AQ123) -> -5.613915623
E134: =CHOOSE(m_identity, East!E124, London!E124, 'North West'!E124, 'West Midlands'!E124, Northern!E124, Scotland!E124, Southern!E124, 'Wales & West'!E124) -> Close out of the RIIO-GD1 Fuel Poor Network Extension Scheme Incentive | G134: £m nominal | H134: =CHOOSE(m_identity, East!H124, London!H124, 'North West'!H124, 'West Midlands'!H124, Northern!H124, Scotland!H124, Southern!H124, 'Wales & West'!H124) -> LFPIt | AP134: =CHOOSE(m_identity, East!AP124, London!AP124, 'North West'!AP124, 'West Midlands'!AP124, Northern!AP124, Scotland!AP124, Southern!AP124, 'Wales & West'!AP124) -> 0 | AQ134: =CHOOSE(m_identity, East!AQ124, London!AQ124, 'North West'!AQ124, 'West Midlands'!AQ124, Northern!AQ124, Scotland!AQ124, Southern!AQ124, 'Wales & West'!AQ124) -> 0
E135: =CHOOSE(m_identity, East!E125, London!E125, 'North West'!E125, 'West Midlands'!E125, Northern!E125, Scotland!E125, Southern!E125, 'Wales & West'!E125) -> Close out of the RIIO-GD1 Exit Capacity Cost Adjustment | G135: £m nominal | H135: =CHOOSE(m_identity, East!H125, London!H125, 'North West'!H125, 'West Midlands'!H125, Northern!H125, Scotland!H125, Southern!H125, 'Wales & West'!H125) -> LExt | AP135: =CHOOSE(m_identity, East!AP125, London!AP125, 'North West'!AP125, 'West Midlands'!AP125, Northern!AP125, Scotland!AP125, Southern!AP125, 'Wales & West'!AP125) -> -4.572684521 | AQ135: =CHOOSE(m_identity, East!AQ125, London!AQ125, 'North West'!AQ125, 'West Midlands'!AQ125, Northern!AQ125, Scotland!AQ125, Southern!AQ125, 'Wales & West'!AQ125) -> 14.54369963
E136: Legacy adjustments | G136: £m nominal | H136: LARt | AP136: =SUM(AP125:AP135) -> 12.46615235 | AQ136: =SUM(AQ125:AQ135) -> 30.27272839 | AR136: -0.3265046733 | AS136: 1.651326124 | AT136: -0.5262681973
E137: =CHOOSE(m_identity, East!E127, London!E127, 'North West'!E127, 'West Midlands'!E127, Northern!E127, Scotland!E127, Southern!E127, 'Wales & West'!E127) -> Legacy SOLR | G137: £m nominal | H137: =CHOOSE(m_identity, East!H127, London!H127, 'North West'!H127, 'West Midlands'!H127, Northern!H127, Scotland!H127, Southern!H127, 'Wales & West'!H127) -> LSOLRt | AP137: =CHOOSE(m_identity, East!AP127, London!AP127, 'North West'!AP127, 'West Midlands'!AP127, Northern!AP127, Scotland!AP127, Southern!AP127, 'Wales & West'!AP127) -> 0 | AQ137: =CHOOSE(m_identity, East!AQ127, London!AQ127, 'North West'!AQ127, 'West Midlands'!AQ127, Northern!AQ127, Scotland!AQ127, Southern!AQ127, 'Wales & West'!AQ127) -> 0 | AR137: =CHOOSE(m_identity, East!AR127, London!AR127, 'North West'!AR127, 'West Midlands'!AR127, Northern!AR127, Scotland!AR127, Southern!AR127, 'Wales & West'!AR127) -> 0 | AS137: =CHOOSE(m_identity, East!AS127, London!AS127, 'North West'!AS127, 'West Midlands'!AS127, Northern!AS127, Scotland!AS127, Southern!AS127, 'Wales & West'!AS127) -> 0 | AT137: =CHOOSE(m_identity, East!AT127, London!AT127, 'North West'!AT127, 'West Midlands'!AT127, Northern!AT127, Scotland!AT127, Southern!AT127, 'Wales & West'!AT127) -> 0
E139: =CHOOSE(m_identity, East!E128, London!E128, 'North West'!E128, 'West Midlands'!E128, Northern!E128, Scotland!E128, Southern!E128, 'Wales & West'!E128) -> Closeout adjustment | G139: =CHOOSE(m_identity, East!G128, London!G128, 'North West'!G128, 'West Midlands'!G128, Northern!G128, Scotland!G128, Southern!G128, 'Wales & West'!G128) -> £m 18/19 prices | H139: =CHOOSE(m_identity, East!H128, London!H128, 'North West'!H128, 'West Midlands'!H128, Northern!H128, Scotland!H128, Southern!H128, 'Wales & West'!H128) -> COAt | AP139: =CHOOSE(m_identity, East!AP128, London!AP128, 'North West'!AP128, 'West Midlands'!AP128, Northern!AP128, Scotland!AP128, Southern!AP128, 'Wales & West'!AP128) -> -1.057374289
E140: Compound WACC | G140: % | H140: CWACC | AP140: 1 | AQ140: =PRODUCT(1+$AP$196:AP196) -> 1.030372752 | AR140: =PRODUCT(1+$AP$196:AQ196) -> 1.060899855 | AS140: =PRODUCT(1+$AP$196:AR196) -> 1.095542031 | AT140: =PRODUCT(1+$AP$196:AS196) -> 1.133897158
E142: =CHOOSE(m_identity, East!E130, London!E130, 'North West'!E130, 'West Midlands'!E130, Northern!E130, Scotland!E130, Southern!E130, 'Wales & West'!E130) -> Revenue for TRU term | G142: =CHOOSE(m_identity, East!G130, London!G130, 'North West'!G130, 'West Midlands'!G130, Northern!G130, Scotland!G130, Southern!G130, 'Wales & West'!G130) -> £m 09/10 prices | H142: =CHOOSE(m_identity, East!H130, London!H130, 'North West'!H130, 'West Midlands'!H130, Northern!H130, Scotland!H130, Southern!H130, 'Wales & West'!H130) -> REVt | AP142: =CHOOSE(m_identity, East!AP130, London!AP130, 'North West'!AP130, 'West Midlands'!AP130, Northern!AP130, Scotland!AP130, Southern!AP130, 'Wales & West'!AP130) -> 3.049596574 | AQ142: =CHOOSE(m_identity, East!AQ130, London!AQ130, 'North West'!AQ130, 'West Midlands'!AQ130, Northern!AQ130, Scotland!AQ130, Southern!AQ130, 'Wales & West'!AQ130) -> 12.02868947
E143: =CHOOSE(m_identity, East!E131, London!E131, 'North West'!E131, 'West Midlands'!E131, Northern!E131, Scotland!E131, Southern!E131, 'Wales & West'!E131) -> RIIO-1 RPI forecast term | G143: =CHOOSE(m_identity, East!G131, London!G131, 'North West'!G131, 'West Midlands'!G131, Northern!G131, Scotland!G131, Southern!G131, 'Wales & West'!G131) -> scalar | H143: =CHOOSE(m_identity, East!H131, London!H131, 'North West'!H131, 'West Midlands'!H131, Northern!H131, Scotland!H131, Southern!H131, 'Wales & West'!H131) -> RPIFt | AP143: =CHOOSE(m_identity, East!AP131, London!AP131, 'North West'!AP131, 'West Midlands'!AP131, Northern!AP131, Scotland!AP131, Southern!AP131, 'Wales & West'!AP131) -> 1.404167032 | AQ143: =CHOOSE(m_identity, East!AQ131, London!AQ131, 'North West'!AQ131, 'West Midlands'!AQ131, Northern!AQ131, Scotland!AQ131, Southern!AQ131, 'Wales & West'!AQ131) -> 1.465748827
E144: Actual RPI term (09/10 inflation factor) | G144: scalar | AP144: ='Annual Inflation'!AP$23/'Annual Inflation'!$AD$23 -> 1.44210567 | AQ144: ='Annual Inflation'!AQ$23/'Annual Inflation'!$AD$23 -> 1.627761471
E145: Combined RPI-CPIH real to nominal prices conversion factor (09/10 prices) | G145: scalar | AP145: ='Annual Inflation'!AP29/'Annual Inflation'!$AD$29 -> 1.42435446 | AQ145: ='Annual Inflation'!AQ29/'Annual Inflation'!$AD$29 -> 1.549329129 | AR145: ='Annual Inflation'!AR29/'Annual Inflation'!$AD$29 -> 1.635268889 | AS145: ='Annual Inflation'!AS29/'Annual Inflation'!$AD$29 -> 1.686968283 | AT145: ='Annual Inflation'!AT29/'Annual Inflation'!$AD$29 -> 1.729023775
B147: Directly remunerated services
E149: =CHOOSE(m_identity, East!E135, London!E135, 'North West'!E135, 'West Midlands'!E135, Northern!E135, Scotland!E135, Southern!E135, 'Wales & West'!E135) -> Pre-vesting directly remunerated services | G149: £m 18/19 prices | H149: =CHOOSE(m_identity, East!H135, London!H135, 'North West'!H135, 'West Midlands'!H135, Northern!H135, Scotland!H135, Southern!H135, 'Wales & West'!H135) -> PREDRSt | AP149: =CHOOSE(m_identity, East!AP135, London!AP135, 'North West'!AP135, 'West Midlands'!AP135, Northern!AP135, Scotland!AP135, Southern!AP135, 'Wales & West'!AP135) -> 0 | AQ149: =CHOOSE(m_identity, East!AQ135, London!AQ135, 'North West'!AQ135, 'West Midlands'!AQ135, Northern!AQ135, Scotland!AQ135, Southern!AQ135, 'Wales & West'!AQ135) -> 0 | AR149: =CHOOSE(m_identity, East!AR135, London!AR135, 'North West'!AR135, 'West Midlands'!AR135, Northern!AR135, Scotland!AR135, Southern!AR135, 'Wales & West'!AR135) -> 0 | AS149: =CHOOSE(m_identity, East!AS135, London!AS135, 'North West'!AS135, 'West Midlands'!AS135, Northern!AS135, Scotland!AS135, Southern!AS135, 'Wales & West'!AS135) -> 0 | AT149: =CHOOSE(m_identity, East!AT135, London!AT135, 'North West'!AT135, 'West Midlands'!AT135, Northern!AT135, Scotland!AT135, Southern!AT135, 'Wales & West'!AT135) -> 0
E150: =CHOOSE(m_identity, East!E136, London!E136, 'North West'!E136, 'West Midlands'!E136, Northern!E136, Scotland!E136, Southern!E136, 'Wales & West'!E136) -> Post-vesting directly remunerated services | G150: £m 18/19 prices | H150: =CHOOSE(m_identity, East!H136, London!H136, 'North West'!H136, 'West Midlands'!H136, Northern!H136, Scotland!H136, Southern!H136, 'Wales & West'!H136) -> POSDRSt | AP150: =CHOOSE(m_identity, East!AP136, London!AP136, 'North West'!AP136, 'West Midlands'!AP136, Northern!AP136, Scotland!AP136, Southern!AP136, 'Wales & West'!AP136) -> 3.18 | AQ150: =CHOOSE(m_identity, East!AQ136, London!AQ136, 'North West'!AQ136, 'West Midlands'!AQ136, Northern!AQ136, Scotland!AQ136, Southern!AQ136, 'Wales & West'!AQ136) -> 3.134795189 | AR150: =CHOOSE(m_identity, East!AR136, London!AR136, 'North West'!AR136, 'West Midlands'!AR136, Northern!AR136, Scotland!AR136, Southern!AR136, 'Wales & West'!AR136) -> 3.475418682 | AS150: =CHOOSE(m_identity, East!AS136, London!AS136, 'North West'!AS136, 'West Midlands'!AS136, Northern!AS136, Scotland!AS136, Southern!AS136, 'Wales & West'!AS136) -> 3.397039617 | AT150: =CHOOSE(m_identity, East!AT136, London!AT136, 'North West'!AT136, 'West Midlands'!AT136, Northern!AT136, Scotland!AT136, Southern!AT136, 'Wales & West'!AT136) -> 3.345599257
E151: =CHOOSE(m_identity, East!E137, London!E137, 'North West'!E137, 'West Midlands'!E137, Northern!E137, Scotland!E137, Southern!E137, 'Wales & West'!E137) -> Other income from directly remenerated services | G151: £m 18/19 prices | H151: =CHOOSE(m_identity, East!H137, London!H137, 'North West'!H137, 'West Midlands'!H137, Northern!H137, Scotland!H137, Southern!H137, 'Wales & West'!H137) -> OIDRSt | AP151: =CHOOSE(m_identity, East!AP137, London!AP137, 'North West'!AP137, 'West Midlands'!AP137, Northern!AP137, Scotland!AP137, Southern!AP137, 'Wales & West'!AP137) -> 0 | AQ151: =CHOOSE(m_identity, East!AQ137, London!AQ137, 'North West'!AQ137, 'West Midlands'!AQ137, Northern!AQ137, Scotland!AQ137, Southern!AQ137, 'Wales & West'!AQ137) -> 0 | AR151: =CHOOSE(m_identity, East!AR137, London!AR137, 'North West'!AR137, 'West Midlands'!AR137, Northern!AR137, Scotland!AR137, Southern!AR137, 'Wales & West'!AR137) -> 0 | AS151: =CHOOSE(m_identity, East!AS137, London!AS137, 'North West'!AS137, 'West Midlands'!AS137, Northern!AS137, Scotland!AS137, Southern!AS137, 'Wales & West'!AS137) -> 0 | AT151: =CHOOSE(m_identity, East!AT137, London!AT137, 'North West'!AT137, 'West Midlands'!AT137, Northern!AT137, Scotland!AT137, Southern!AT137, 'Wales & West'!AT137) -> 0
E152: =CHOOSE(m_identity, East!E138, London!E138, 'North West'!E138, 'West Midlands'!E138, Northern!E138, Scotland!E138, Southern!E138, 'Wales & West'!E138) -> Identified directly remunerated services costs | G152: £m 18/19 prices | H152: =CHOOSE(m_identity, East!H138, London!H138, 'North West'!H138, 'West Midlands'!H138, Northern!H138, Scotland!H138, Southern!H138, 'Wales & West'!H138) -> IDRSt | AP152: =CHOOSE(m_identity, East!AP138, London!AP138, 'North West'!AP138, 'West Midlands'!AP138, Northern!AP138, Scotland!AP138, Southern!AP138, 'Wales & West'!AP138) -> -1.547719753 | AQ152: =CHOOSE(m_identity, East!AQ138, London!AQ138, 'North West'!AQ138, 'West Midlands'!AQ138, Northern!AQ138, Scotland!AQ138, Southern!AQ138, 'Wales & West'!AQ138) -> -1.122277872 | AR152: =CHOOSE(m_identity, East!AR138, London!AR138, 'North West'!AR138, 'West Midlands'!AR138, Northern!AR138, Scotland!AR138, Southern!AR138, 'Wales & West'!AR138) -> -1.267464473 | AS152: =CHOOSE(m_identity, East!AS138, London!AS138, 'North West'!AS138, 'West Midlands'!AS138, Northern!AS138, Scotland!AS138, Southern!AS138, 'Wales & West'!AS138) -> -1.267464473 | AT152: =CHOOSE(m_identity, East!AT138, London!AT138, 'North West'!AT138, 'West Midlands'!AT138, Northern!AT138, Scotland!AT138, Southern!AT138, 'Wales & West'!AT138) -> -1.267464473
E153: Directly remunerated services net position | G153: £m 18/19 prices | AP153: =SUM(AP149:AP152) -> 1.632280247 | AQ153: =SUM(AQ149:AQ152) -> 2.012517317 | AR153: 2.207954208 | AS153: 2.129575143 | AT153: 2.078134784
E155: Pre-vesting directly remunerated services (as used in revenue calculation) | G155: £m 18/19 prices | AP155: =AP149 -> 0 | AQ155: =AQ149 -> 0 | AR155: 0 | AS155: 0 | AT155: 0
E156: Post-vesting directly remunerated services (as used in revenue calculation) | G156: £m 18/19 prices | AP156: =AP150 -> 3.18 | AQ156: =AQ150 -> 3.134795189 | AR156: 3.475418682 | AS156: 3.397039617 | AT156: 3.345599257
E157: Other income from directly remenerated services (as used in revenue calculation) | AP157: =AP151 -> 0 | AQ157: 0 | AR157: 0 | AS157: 0 | AT157: 0
E158: Identified directly remunerated services costs (as used in revenue calculation) | G158: £m 18/19 prices | AP158: =-SUM(AP155:AP157) -> -3.18 | AQ158: =-SUM(AQ155:AQ157) -> -3.134795189 | AR158: -3.475418682 | AS158: -3.397039617 | AT158: -3.345599257
E159: Directly remunerated services net position (as used in revenue calculation) | G159: £m 18/19 prices | AP159: =SUM(AP155:AP158) -> 0 | AQ159: =SUM(AQ155:AQ158) -> 0 | AR159: 0 | AS159: 0 | AT159: 0
E161: Directly remunerated services adjustment | G161: £m 18/19 prices | H161: DRSt | AP161: =- AP159 -> 0 | AQ161: =- AQ159 -> 0 | AR161: 0 | AS161: 0 | AT161: 0
B163: Finance inputs
C165: Allowed return on debt
E167: =CHOOSE(m_identity, East!E142, London!E142, 'North West'!E142, 'West Midlands'!E142, Northern!E142, Scotland!E142, Southern!E142, 'Wales & West'!E142) -> iBoxx trailing average | G167: annual real % | H167: =CHOOSE(m_identity, East!H142, London!H142, 'North West'!H142, 'West Midlands'!H142, Northern!H142, Scotland!H142, Southern!H142, 'Wales & West'!H142) -> iBTAt | AP167: =CHOOSE(m_identity, East!AP142, London!AP142, 'North West'!AP142, 'West Midlands'!AP142, Northern!AP142, Scotland!AP142, Southern!AP142, 'Wales & West'!AP142) -> 0.0205 | AQ167: =CHOOSE(m_identity, East!AQ142, London!AQ142, 'North West'!AQ142, 'West Midlands'!AQ142, Northern!AQ142, Scotland!AQ142, Southern!AQ142, 'Wales & West'!AQ142) -> 0.019 | AR167: =CHOOSE(m_identity, East!AR142, London!AR142, 'North West'!AR142, 'West Midlands'!AR142, Northern!AR142, Scotland!AR142, Southern!AR142, 'Wales & West'!AR142) -> 0.0192 | AS167: =CHOOSE(m_identity, East!AS142, London!AS142, 'North West'!AS142, 'West Midlands'!AS142, Northern!AS142, Scotland!AS142, Southern!AS142, 'Wales & West'!AS142) -> 0.0211 | AT167: =CHOOSE(m_identity, East!AT142, London!AT142, 'North West'!AT142, 'West Midlands'!AT142, Northern!AT142, Scotland!AT142, Southern!AT142, 'Wales & West'!AT142) -> 0.0226
E168: =CHOOSE(m_identity, East!E203, London!E203, 'North West'!E203, 'West Midlands'!E203, Northern!E203, Scotland!E203, Southern!E203, 'Wales & West'!E203) -> Uplift on iBoxx trailing average | G168: annual real % | H168: =CHOOSE(m_identity, East!H203, London!H203, 'North West'!H203, 'West Midlands'!H203, Northern!H203, Scotland!H203, Southern!H203, 'Wales & West'!H203) -> CDEUt | AP168: =CHOOSE(m_identity, East!AP203, London!AP203, 'North West'!AP203, 'West Midlands'!AP203, Northern!AP203, Scotland!AP203, Southern!AP203, 'Wales & West'!AP203) -> 0 | AQ168: =CHOOSE(m_identity, East!AQ203, London!AQ203, 'North West'!AQ203, 'West Midlands'!AQ203, Northern!AQ203, Scotland!AQ203, Southern!AQ203, 'Wales & West'!AQ203) -> 0 | AR168: =CHOOSE(m_identity, East!AR203, London!AR203, 'North West'!AR203, 'West Midlands'!AR203, Northern!AR203, Scotland!AR203, Southern!AR203, 'Wales & West'!AR203) -> 0 | AS168: =CHOOSE(m_identity, East!AS203, London!AS203, 'North West'!AS203, 'West Midlands'!AS203, Northern!AS203, Scotland!AS203, Southern!AS203, 'Wales & West'!AS203) -> 0 | AT168: =CHOOSE(m_identity, East!AT203, London!AT203, 'North West'!AT203, 'West Midlands'!AT203, Northern!AT203, Scotland!AT203, Southern!AT203, 'Wales & West'!AT203) -> 0
E169: Allowed return on debt | G169: annual real % | H169: CDEt | AP169: =SUM(AP167:AP168) -> 0.0205 | AQ169: =SUM(AQ167:AQ168) -> 0.019 | AR169: 0.0192 | AS169: 0.0211 | AT169: 0.0226
C171: Allowed return on equity
E173: =CHOOSE(m_identity, East!E143, London!E143, 'North West'!E143, 'West Midlands'!E143, Northern!E143, Scotland!E143, Southern!E143, 'Wales & West'!E143) -> Risk-free rate | G173: annual real % | H173: =CHOOSE(m_identity, East!H143, London!H143, 'North West'!H143, 'West Midlands'!H143, Northern!H143, Scotland!H143, Southern!H143, 'Wales & West'!H143) -> RFR | AP173: =CHOOSE(m_identity, East!AP143, London!AP143, 'North West'!AP143, 'West Midlands'!AP143, Northern!AP143, Scotland!AP143, Southern!AP143, 'Wales & West'!AP143) -> -0.0171 | AQ173: =CHOOSE(m_identity, East!AQ143, London!AQ143, 'North West'!AQ143, 'West Midlands'!AQ143, Northern!AQ143, Scotland!AQ143, Southern!AQ143, 'Wales & West'!AQ143) -> -0.0155 | AR173: =CHOOSE(m_identity, East!AR143, London!AR143, 'North West'!AR143, 'West Midlands'!AR143, Northern!AR143, Scotland!AR143, Southern!AR143, 'Wales & West'!AR143) -> 0.0146 | AS173: =CHOOSE(m_identity, East!AS143, London!AS143, 'North West'!AS143, 'West Midlands'!AS143, Northern!AS143, Scotland!AS143, Southern!AS143, 'Wales & West'!AS143) -> 0.0272 | AT173: =CHOOSE(m_identity, East!AT143, London!AT143, 'North West'!AT143, 'West Midlands'!AT143, Northern!AT143, Scotland!AT143, Southern!AT143, 'Wales & West'!AT143) -> 0.0214
E174: Equity Beta | G174: scalar | AP174: =CHOOSE(m_identity, East!AP205, London!AP205, 'North West'!AP205, 'West Midlands'!AP205, Northern!AP205, Scotland!AP205, Southern!AP205, 'Wales & West'!AP205) -> 0.75861 | AQ174: =CHOOSE(m_identity, East!AQ205, London!AQ205, 'North West'!AQ205, 'West Midlands'!AQ205, Northern!AQ205, Scotland!AQ205, Southern!AQ205, 'Wales & West'!AQ205) -> 0.75861 | AR174: =CHOOSE(m_identity, East!AR205, London!AR205, 'North West'!AR205, 'West Midlands'!AR205, Northern!AR205, Scotland!AR205, Southern!AR205, 'Wales & West'!AR205) -> 0.75861 | AS174: =CHOOSE(m_identity, East!AS205, London!AS205, 'North West'!AS205, 'West Midlands'!AS205, Northern!AS205, Scotland!AS205, Southern!AS205, 'Wales & West'!AS205) -> 0.75861 | AT174: =CHOOSE(m_identity, East!AT205, London!AT205, 'North West'!AT205, 'West Midlands'!AT205, Northern!AT205, Scotland!AT205, Southern!AT205, 'Wales & West'!AT205) -> 0.75861
E175: Total Market Return | G175: % | AP175: =CHOOSE(m_identity, East!AP206, London!AP206, 'North West'!AP206, 'West Midlands'!AP206, Northern!AP206, Scotland!AP206, Southern!AP206, 'Wales & West'!AP206) -> 0.065 | AQ175: =CHOOSE(m_identity, East!AQ206, London!AQ206, 'North West'!AQ206, 'West Midlands'!AQ206, Northern!AQ206, Scotland!AQ206, Southern!AQ206, 'Wales & West'!AQ206) -> 0.065 | AR175: =CHOOSE(m_identity, East!AR206, London!AR206, 'North West'!AR206, 'West Midlands'!AR206, Northern!AR206, Scotland!AR206, Southern!AR206, 'Wales & West'!AR206) -> 0.065 | AS175: =CHOOSE(m_identity, East!AS206, London!AS206, 'North West'!AS206, 'West Midlands'!AS206, Northern!AS206, Scotland!AS206, Southern!AS206, 'Wales & West'!AS206) -> 0.065 | AT175: =CHOOSE(m_identity, East!AT206, London!AT206, 'North West'!AT206, 'West Midlands'!AT206, Northern!AT206, Scotland!AT206, Southern!AT206, 'Wales & West'!AT206) -> 0.065
E177: Cost of equity at 60% gearing | G177: annual real % | AP177: =AP173 + AP174 * (AP175 - AP173) -> 0.045181881 | AQ177: =AQ173 + AQ174 * (AQ175 - AQ173) -> 0.045568105 | AR177: 0.052833944 | AS177: 0.055875458 | AT177: 0.054475396
E178: Not used | G178: Not used
E179: Allowed return on equity at 60% gearing | G179: annual real % | AP179: =AP177 -> 0.045181881 | AQ179: =AQ177 -> 0.045568105 | AR179: 0.052833944 | AS179: 0.055875458 | AT179: 0.054475396
E180: Benchmark gearing (60%) | G180: % | AP180: =CHOOSE(m_identity, East!AP207, London!AP207, 'North West'!AP207, 'West Midlands'!AP207, Northern!AP207, Scotland!AP207, Southern!AP207, 'Wales & West'!AP207) -> 0.6 | AQ180: =CHOOSE(m_identity, East!AQ207, London!AQ207, 'North West'!AQ207, 'West Midlands'!AQ207, Northern!AQ207, Scotland!AQ207, Southern!AQ207, 'Wales & West'!AQ207) -> 0.6 | AR180: =CHOOSE(m_identity, East!AR207, London!AR207, 'North West'!AR207, 'West Midlands'!AR207, Northern!AR207, Scotland!AR207, Southern!AR207, 'Wales & West'!AR207) -> 0.6 | AS180: =CHOOSE(m_identity, East!AS207, London!AS207, 'North West'!AS207, 'West Midlands'!AS207, Northern!AS207, Scotland!AS207, Southern!AS207, 'Wales & West'!AS207) -> 0.6 | AT180: =CHOOSE(m_identity, East!AT207, London!AT207, 'North West'!AT207, 'West Midlands'!AT207, Northern!AT207, Scotland!AT207, Southern!AT207, 'Wales & West'!AT207) -> 0.6
E181: Vanilla WACC at 60% gearing | G181: annual real % | AP181: =(AP169 * AP180) + (AP177 * (1 - AP180)) -> 0.0303727524 | AQ181: =(AQ169 * AQ180) + (AQ177 * (1 - AQ180)) -> 0.029627242 | AR181: 0.0326535776 | AS181: 0.0350101832 | AT181: 0.0353501584
E182: Allowed return on capital at 60% gearing | G182: annual real % | AP182: =(AP169* AP180) + (AP179 * (1 - AP180)) -> 0.0303727524 | AQ182: =(AQ169* AQ180) + (AQ179 * (1 - AQ180)) -> 0.029627242 | AR182: 0.0326535776 | AS182: 0.0350101832 | AT182: 0.0353501584
E184: Notional gearing | G184: % | AO184: =CHOOSE(m_identity, East!AO209, London!AO209, 'North West'!AO209, 'West Midlands'!AO209, Northern!AO209, Scotland!AO209, Southern!AO209, 'Wales & West'!AO209) -> 0.65 | AP184: =CHOOSE(m_identity, East!AP209, London!AP209, 'North West'!AP209, 'West Midlands'!AP209, Northern!AP209, Scotland!AP209, Southern!AP209, 'Wales & West'!AP209) -> 0.6 | AQ184: =CHOOSE(m_identity, East!AQ209, London!AQ209, 'North West'!AQ209, 'West Midlands'!AQ209, Northern!AQ209, Scotland!AQ209, Southern!AQ209, 'Wales & West'!AQ209) -> 0.6 | AR184: =CHOOSE(m_identity, East!AR209, London!AR209, 'North West'!AR209, 'West Midlands'!AR209, Northern!AR209, Scotland!AR209, Southern!AR209, 'Wales & West'!AR209) -> 0.6 | AS184: =CHOOSE(m_identity, East!AS209, London!AS209, 'North West'!AS209, 'West Midlands'!AS209, Northern!AS209, Scotland!AS209, Southern!AS209, 'Wales & West'!AS209) -> 0.6 | AT184: =CHOOSE(m_identity, East!AT209, London!AT209, 'North West'!AT209, 'West Midlands'!AT209, Northern!AT209, Scotland!AT209, Southern!AT209, 'Wales & West'!AT209) -> 0.6
E185: Cost of equity at notional gearing | G185: annual real % | AP185: =(AP181 - (AP184 * AP169)) / (1 - AP184) -> 0.045181881 | AQ185: =(AQ181 - (AQ184 * AQ169)) / (1 - AQ184) -> 0.045568105 | AR185: 0.052833944 | AS185: 0.055875458 | AT185: 0.054475396
E186: Allowed return on equity | G186: annual real % | AP186: =(AP182 - (AP169 * AP184)) / (1 - AP184) -> 0.045181881 | AQ186: =(AQ182 - (AQ169 * AQ184)) / (1 - AQ184) -> 0.045568105 | AR186: 0.052833944 | AS186: 0.055875458 | AT186: 0.054475396
E187: Not used | G187: Not used
C189: Vanilla allowed return on capital
E191: Allowed return on debt | G191: annual real % | AP191: =AP169 -> 0.0205 | AQ191: =AQ169 -> 0.019 | AR191: 0.0192 | AS191: 0.0211 | AT191: 0.0226
E192: Allowed return on equity | G192: annual real % | AP192: =AP179 -> 0.045181881 | AQ192: =AQ179 -> 0.045568105 | AR192: 0.052833944 | AS192: 0.055875458 | AT192: 0.054475396
E193: Notional gearing | G193: % | J193: > | AO193: =AO184 -> 0.65 | AP193: 0.6 | AQ193: 0.6 | AR193: 0.6 | AS193: 0.6 | AT193: 0.6
E195: Vanilla allowed return on capital | G195: annual real % | AP195: =(AP191 * AP193) + (AP192 * (1 - AP193)) -> 0.0303727524 | AQ195: =(AQ191 * AQ193) + (AQ192 * (1 - AQ193)) -> 0.029627242 | AR195: =(AR191 * AR193) + (AR192 * (1 - AR193)) -> 0.0326535776 | AS195: =(AS191 * AS193) + (AS192 * (1 - AS193)) -> 0.0350101832 | AT195: =(AT191 * AT193) + (AT192 * (1 - AT193)) -> 0.0353501584
E196: Vanilla weighted average cost of capital | G196: annual real % | AP196: =(AP191 * AP193) + (AP185 * (1 - AP193)) -> 0.0303727524 | AQ196: =(AQ191 * AQ193) + (AQ185 * (1 - AQ193)) -> 0.029627242 | AR196: 0.0326535776 | AS196: 0.0350101832 | AT196: 0.0353501584
C198: Inflation and price conversion
E200: Start of RIIO-2 | G200: year ending | I200: ='Annual Inflation'!$I$15 -> 2022-03-31
D202: Price indices and inflation rates
E204: Retail Prices Index (financial year average) | F204: Spc2.1 | G204: index value | H204: RPIt | J204: > | V204: ='Annual Inflation'!V23 -> 173.875 | W204: ='Annual Inflation'!W23 -> 177.5166667 | X204: ='Annual Inflation'!X23 -> 182.475 | Y204: ='Annual Inflation'!Y23 -> 188.15 | Z204: ='Annual Inflation'!Z23 -> 193.1083333 | AA204: ='Annual Inflation'!AA23 -> 200.3166667 | AB204: ='Annual Inflation'!AB23 -> 208.5916667 | AC204: ='Annual Inflation'!AC23 -> 214.7833333 | AD204: ='Annual Inflation'!AD23 -> 215.7666667 | AE204: ='Annual Inflation'!AE23 -> 226.475 | AF204: ='Annual Inflation'!AF23 -> 237.3416667 | AG204: ='Annual Inflation'!AG23 -> 244.675 | AH204: ='Annual Inflation'!AH23 -> 251.7333333 | AI204: ='Annual Inflation'!AI23 -> 256.6666667 | AJ204: ='Annual Inflation'!AJ23 -> 259.4333333 | AK204: ='Annual Inflation'!AK23 -> 264.9916667 | AL204: ='Annual Inflation'!AL23 -> 274.9083333 | AM204: ='Annual Inflation'!AM23 -> 283.3083333 | AN204: ='Annual Inflation'!AN23 -> 290.6416667 | AO204: ='Annual Inflation'!AO23 -> 294.1666667 | AP204: ='Annual Inflation'!AP23 -> 311.1583333 | AQ204: ='Annual Inflation'!AQ23 -> 351.2166667 | AR204: ='Annual Inflation'!AR23 -> 377.4833333 | AS204: ='Annual Inflation'!AS23 -> 391.2146217 | AT204: ='Annual Inflation'!AT23 -> 404.5604172
E205: RPI inflation (financial year average) | G205: annual % | J205: > | W205: ='Annual Inflation'!W24 -> 0.02094416487 | X205: ='Annual Inflation'!X24 -> 0.02793164961 | Y205: ='Annual Inflation'!Y24 -> 0.03110015071 | Z205: ='Annual Inflation'!Z24 -> 0.02635308708 | AA205: ='Annual Inflation'!AA24 -> 0.03732792474 | AB205: ='Annual Inflation'!AB24 -> 0.04130959314 | AC205: ='Annual Inflation'!AC24 -> 0.02968319284 | AD205: ='Annual Inflation'!AD24 -> 0.004578257158 | AE205: ='Annual Inflation'!AE24 -> 0.04962922911 | AF205: ='Annual Inflation'!AF24 -> 0.04798174927 | AG205: ='Annual Inflation'!AG24 -> 0.03089779151 | AH205: ='Annual Inflation'!AH24 -> 0.02884779129 | AI205: ='Annual Inflation'!AI24 -> 0.01959745763 | AJ205: ='Annual Inflation'!AJ24 -> 0.01077922078 | AK205: ='Annual Inflation'!AK24 -> 0.02142490042 | AL205: ='Annual Inflation'!AL24 -> 0.03742256046 | AM205: ='Annual Inflation'!AM24 -> 0.03055563976 | AN205: ='Annual Inflation'!AN24 -> 0.02588463688 | AO205: ='Annual Inflation'!AO24 -> 0.01212833673 | AP205: ='Annual Inflation'!AP24 -> 0.05776203966 | AQ205: ='Annual Inflation'!AQ24 -> 0.1287393878 | AR205: ='Annual Inflation'!AR24 -> 0.07478764296 | AS205: ='Annual Inflation'!AS24 -> 0.03637587975 | AT205: ='Annual Inflation'!AT24 -> 0.03411374422
E207: Consumer Prices Index incl. housing costs (financial year average) | F207: Spc2.1 | G207: index value | H207: CPIHt | J207: > | V207: ='Annual Inflation'!V26 -> 74.86666667 | W207: ='Annual Inflation'!W26 -> 75.95833333 | X207: ='Annual Inflation'!X26 -> 76.975 | Y207: ='Annual Inflation'!Y26 -> 78.125 | Z207: ='Annual Inflation'!Z26 -> 79.825 | AA207: ='Annual Inflation'!AA26 -> 81.91666667 | AB207: ='Annual Inflation'!AB26 -> 83.825 | AC207: ='Annual Inflation'!AC26 -> 86.85833333 | AD207: ='Annual Inflation'!AD26 -> 88.43333333 | AE207: ='Annual Inflation'!AE26 -> 90.90833333 | AF207: ='Annual Inflation'!AF26 -> 94.30833333 | AG207: ='Annual Inflation'!AG26 -> 96.58333333 | AH207: ='Annual Inflation'!AH26 -> 98.6 | AI207: ='Annual Inflation'!AI26 -> 99.725 | AJ207: ='Annual Inflation'!AJ26 -> 100.1666667 | AK207: ='Annual Inflation'!AK26 -> 101.5416667 | AL207: ='Annual Inflation'!AL26 -> 104.2166667 | AM207: ='Annual Inflation'!AM26 -> 106.4333333 | AN207: ='Annual Inflation'!AN26 -> 108.2416667 | AO207: ='Annual Inflation'!AO26 -> 109.1083333 | AP207: ='Annual Inflation'!AP26 -> 113.1166667 | AQ207: ='Annual Inflation'!AQ26 -> 123.0416667 | AR207: ='Annual Inflation'!AR26 -> 129.8666667 | AS207: ='Annual Inflation'!AS26 -> 133.9724305 | AT207: ='Annual Inflation'!AT26 -> 137.3123134
E208: CPIH inflation (financial year average) | G208: annual % | J208: > | W208: ='Annual Inflation'!W27 -> 0.01458147818 | X208: ='Annual Inflation'!X27 -> 0.01338453099 | Y208: ='Annual Inflation'!Y27 -> 0.01493991556 | Z208: ='Annual Inflation'!Z27 -> 0.02176 | AA208: ='Annual Inflation'!AA27 -> 0.02620315273 | AB208: ='Annual Inflation'!AB27 -> 0.02329603255 | AC208: ='Annual Inflation'!AC27 -> 0.03618649965 | AD208: ='Annual Inflation'!AD27 -> 0.01813297515 | AE208: ='Annual Inflation'!AE27 -> 0.02798718432 | AF208: ='Annual Inflation'!AF27 -> 0.03740031167 | AG208: ='Annual Inflation'!AG27 -> 0.0241230008 | AH208: ='Annual Inflation'!AH27 -> 0.02088006903 | AI208: ='Annual Inflation'!AI27 -> 0.01140973631 | AJ208: ='Annual Inflation'!AJ27 -> 0.004428845993 | AK208: ='Annual Inflation'!AK27 -> 0.01372712146 | AL208: ='Annual Inflation'!AL27 -> 0.02634386541 | AM208: ='Annual Inflation'!AM27 -> 0.0212697905 | AN208: ='Annual Inflation'!AN27 -> 0.01699029126 | AO208: ='Annual Inflation'!AO27 -> 0.008006774963 | AP208: ='Annual Inflation'!AP27 -> 0.03673718781 | AQ208: ='Annual Inflation'!AQ27 -> 0.08774127008 | AR208: ='Annual Inflation'!AR27 -> 0.05546901456 | AS208: ='Annual Inflation'!AS27 -> 0.03161522484 | AT208: ='Annual Inflation'!AT27 -> 0.02492962808
E210: Combined RPI-CPIH price index (financial year average) | G210: index value | H210: PIt | J210: > | V210: ='Annual Inflation'!V29 -> 173.875 | W210: ='Annual Inflation'!W29 -> 177.5166667 | X210: ='Annual Inflation'!X29 -> 182.475 | Y210: ='Annual Inflation'!Y29 -> 188.15 | Z210: ='Annual Inflation'!Z29 -> 193.1083333 | AA210: ='Annual Inflation'!AA29 -> 200.3166667 | AB210: ='Annual Inflation'!AB29 -> 208.5916667 | AC210: ='Annual Inflation'!AC29 -> 214.7833333 | AD210: ='Annual Inflation'!AD29 -> 215.7666667 | AE210: ='Annual Inflation'!AE29 -> 226.475 | AF210: ='Annual Inflation'!AF29 -> 237.3416667 | AG210: ='Annual Inflation'!AG29 -> 244.675 | AH210: ='Annual Inflation'!AH29 -> 251.7333333 | AI210: ='Annual Inflation'!AI29 -> 256.6666667 | AJ210: ='Annual Inflation'!AJ29 -> 259.4333333 | AK210: ='Annual Inflation'!AK29 -> 264.9916667 | AL210: ='Annual Inflation'!AL29 -> 274.9083333 | AM210: ='Annual Inflation'!AM29 -> 283.3083333 | AN210: ='Annual Inflation'!AN29 -> 290.6416667 | AO210: ='Annual Inflation'!AO29 -> 294.1666667 | AP210: ='Annual Inflation'!AP29 -> 307.328214 | AQ210: ='Annual Inflation'!AQ29 -> 334.2935818 | AR210: ='Annual Inflation'!AR29 -> 352.8365174 | AS210: ='Annual Inflation'!AS29 -> 363.9915232 | AT210: ='Annual Inflation'!AT29 -> 373.0656965
E211: Combined RPI-CPIH inflation (financial year average) | G211: annual % | J211: > | W211: ='Annual Inflation'!W30 -> 0.02094416487 | X211: ='Annual Inflation'!X30 -> 0.02793164961 | Y211: ='Annual Inflation'!Y30 -> 0.03110015071 | Z211: ='Annual Inflation'!Z30 -> 0.02635308708 | AA211: ='Annual Inflation'!AA30 -> 0.03732792474 | AB211: ='Annual Inflation'!AB30 -> 0.04130959314 | AC211: ='Annual Inflation'!AC30 -> 0.02968319284 | AD211: ='Annual Inflation'!AD30 -> 0.004578257158 | AE211: ='Annual Inflation'!AE30 -> 0.04962922911 | AF211: ='Annual Inflation'!AF30 -> 0.04798174927 | AG211: ='Annual Inflation'!AG30 -> 0.03089779151 | AH211: ='Annual Inflation'!AH30 -> 0.02884779129 | AI211: ='Annual Inflation'!AI30 -> 0.01959745763 | AJ211: ='Annual Inflation'!AJ30 -> 0.01077922078 | AK211: ='Annual Inflation'!AK30 -> 0.02142490042 | AL211: ='Annual Inflation'!AL30 -> 0.03742256046 | AM211: ='Annual Inflation'!AM30 -> 0.03055563976 | AN211: ='Annual Inflation'!AN30 -> 0.02588463688 | AO211: ='Annual Inflation'!AO30 -> 0.01212833673 | AP211: ='Annual Inflation'!AP30 -> 0.04474180389 | AQ211: ='Annual Inflation'!AQ30 -> 0.08774127008 | AR211: ='Annual Inflation'!AR30 -> 0.05546901456 | AS211: ='Annual Inflation'!AS30 -> 0.03161522484 | AT211: ='Annual Inflation'!AT30 -> 0.02492962808
E213: Forecast Debt inflation (CPIH long term forecast) | G213: annual % | H213: LTCPIHt | AP213: ='Annual Inflation'!AP34 -> 0.02 | AQ213: ='Annual Inflation'!AQ34 -> 0.02 | AR213: ='Annual Inflation'!AR34 -> 0.02 | AS213: ='Annual Inflation'!AS34 -> 0.016 | AT213: ='Annual Inflation'!AT34 -> 0.02
D215: Price conversion factors
E217: Real to nominal prices conversion factor (financial year average) | G217: scalar | J217: > | V217: ='Annual Inflation'!V32 -> 0.6137306233 | W217: ='Annual Inflation'!W32 -> 0.6265846986 | X217: ='Annual Inflation'!X32 -> 0.6440862429 | Y217: ='Annual Inflation'!Y32 -> 0.6641174221 | Z217: ='Annual Inflation'!Z32 -> 0.6816189664 | AA217: ='Annual Inflation'!AA32 -> 0.7070623879 | AB217: ='Annual Inflation'!AB32 -> 0.7362708474 | AC217: ='Annual Inflation'!AC32 -> 0.758125717 | AD217: ='Annual Inflation'!AD32 -> 0.7615966115 | AE217: ='Annual Inflation'!AE32 -> 0.7993940642 | AF217: ='Annual Inflation'!AF32 -> 0.8377503897 | AG217: ='Annual Inflation'!AG32 -> 0.8636350266 | AH217: ='Annual Inflation'!AH32 -> 0.8885489896 | AI217: ='Annual Inflation'!AI32 -> 0.9059622908 | AJ217: ='Annual Inflation'!AJ32 -> 0.9157278583 | AK217: ='Annual Inflation'!AK32 -> 0.9353472365 | AL217: ='Annual Inflation'!AL32 -> 0.970350325 | AM217: ='Annual Inflation'!AM32 -> 1 | AN217: ='Annual Inflation'!AN32 -> 1.025884637 | AO217: ='Annual Inflation'!AO32 -> 1.038326911 | AP217: ='Annual Inflation'!AP32 -> 1.08478353 | AQ217: ='Annual Inflation'!AQ32 -> 1.179963815 | AR217: ='Annual Inflation'!AR32 -> 1.245415245 | AS217: ='Annual Inflation'!AS32 -> 1.284789328 | AT217: ='Annual Inflation'!AT32 -> 1.316818648
AP218: Adjacent named range: GDNpf
E219: Real to nominal prices conversion factor (financial year end) | G219: scalar | J219: > | V219: ='Annual Inflation'!V45 -> 0.6180545342 | W219: ='Annual Inflation'!W45 -> 0.6372915257 | X219: ='Annual Inflation'!X45 -> 0.6535282525 | Y219: ='Annual Inflation'!Y45 -> 0.6743536194 | Z219: ='Annual Inflation'!Z45 -> 0.6909433185 | AA219: ='Annual Inflation'!AA45 -> 0.7232402859 | AB219: ='Annual Inflation'!AB45 -> 0.7520075301 | AC219: ='Annual Inflation'!AC45 -> 0.7461834868 | AD219: ='Annual Inflation'!AD45 -> 0.782716122 | AE219: ='Annual Inflation'!AE45 -> 0.8240138836 | AF219: ='Annual Inflation'!AF45 -> 0.8529576139 | AG219: ='Annual Inflation'!AG45 -> 0.8792540518 | AH219: ='Annual Inflation'!AH45 -> 0.9009618496 | AI219: ='Annual Inflation'!AI45 -> 0.909080213 | AJ219: ='Annual Inflation'!AJ45 -> 0.9221401888 | AK219: ='Annual Inflation'!AK45 -> 0.9528487808 | AL219: ='Annual Inflation'!AL45 -> 0.9847927758 | AM219: ='Annual Inflation'!AM45 -> 1.011795158 | AN219: ='Annual Inflation'!AN45 -> 1.032797012 | AO219: ='Annual Inflation'!AO45 -> 1.053352823 | AP219: ='Annual Inflation'!AP45 -> 1.12921698 | AQ219: ='Annual Inflation'!AQ45 -> 1.22319852 | AR219: ='Annual Inflation'!AR45 -> 1.264914816 | AS219: ='Annual Inflation'!AS45 -> 1.301403294 | AT219: ='Annual Inflation'!AT45 -> 1.330438227
C221: Real Price Effects indexation
E223: RPE index | G223: index value | H223: RPEIt | J223: > | AO223: =PRODUCT(1 + $AO224:AO224) -> 0.9902580176 | AP223: =PRODUCT(1 + $AO224:AP224) -> 1.029176936 | AQ223: =PRODUCT(1 + $AO224:AQ224) -> 1.019175655 | AR223: =PRODUCT(1 + $AO224:AR224) -> 1.000040683 | AS223: =PRODUCT(1 + $AO224:AS224) -> 1.003535012 | AT223: =PRODUCT(1 + $AO224:AT224) -> 1.009424979
E224: =CHOOSE(m_identity, East!E146, London!E146, 'North West'!E146, 'West Midlands'!E146, Northern!E146, Scotland!E146, Southern!E146, 'Wales & West'!E146) -> RPE annual growth | G224: annual % | H224: =CHOOSE(m_identity, East!H146, London!H146, 'North West'!H146, 'West Midlands'!H146, Northern!H146, Scotland!H146, Southern!H146, 'Wales & West'!H146) -> RPEt | J224: > | AO224: =CHOOSE(m_identity, East!AO146, London!AO146, 'North West'!AO146, 'West Midlands'!AO146, Northern!AO146, Scotland!AO146, Southern!AO146, 'Wales & West'!AO146) -> -0.009741982428 | AP224: =CHOOSE(m_identity, East!AP146, London!AP146, 'North West'!AP146, 'West Midlands'!AP146, Northern!AP146, Scotland!AP146, Southern!AP146, 'Wales & West'!AP146) -> 0.03930179547 | AQ224: =CHOOSE(m_identity, East!AQ146, London!AQ146, 'North West'!AQ146, 'West Midlands'!AQ146, Northern!AQ146, Scotland!AQ146, Southern!AQ146, 'Wales & West'!AQ146) -> -0.009717746923 | AR224: =CHOOSE(m_identity, East!AR146, London!AR146, 'North West'!AR146, 'West Midlands'!AR146, Northern!AR146, Scotland!AR146, Southern!AR146, 'Wales & West'!AR146) -> -0.01877495012 | AS224: =CHOOSE(m_identity, East!AS146, London!AS146, 'North West'!AS146, 'West Midlands'!AS146, Northern!AS146, Scotland!AS146, Southern!AS146, 'Wales & West'!AS146) -> 0.003494187288 | AT224: =CHOOSE(m_identity, East!AT146, London!AT146, 'North West'!AT146, 'West Midlands'!AT146, Northern!AT146, Scotland!AT146, Southern!AT146, 'Wales & West'!AT146) -> 0.005869219041
C226: Tax allowance
E228: =CHOOSE(m_identity, East!E148, London!E148, 'North West'!E148, 'West Midlands'!E148, Northern!E148, Scotland!E148, Southern!E148, 'Wales & West'!E148) -> Adjusted net debt | G228: £m nominal | H228: =CHOOSE(m_identity, East!H148, London!H148, 'North West'!H148, 'West Midlands'!H148, Northern!H148, Scotland!H148, Southern!H148, 'Wales & West'!H148) -> ANDt | AP228: =CHOOSE(m_identity, East!AP148, London!AP148, 'North West'!AP148, 'West Midlands'!AP148, Northern!AP148, Scotland!AP148, Southern!AP148, 'Wales & West'!AP148) -> 2269.728374 | AQ228: =CHOOSE(m_identity, East!AQ148, London!AQ148, 'North West'!AQ148, 'West Midlands'!AQ148, Northern!AQ148, Scotland!AQ148, Southern!AQ148, 'Wales & West'!AQ148) -> 2377.855112 | AR228: =CHOOSE(m_identity, East!AR148, London!AR148, 'North West'!AR148, 'West Midlands'!AR148, Northern!AR148, Scotland!AR148, Southern!AR148, 'Wales & West'!AR148) -> 2520.667268 | AS228: =CHOOSE(m_identity, East!AS148, London!AS148, 'North West'!AS148, 'West Midlands'!AS148, Northern!AS148, Scotland!AS148, Southern!AS148, 'Wales & West'!AS148) -> 2669.85018 | AT228: =CHOOSE(m_identity, East!AT148, London!AT148, 'North West'!AT148, 'West Midlands'!AT148, Northern!AT148, Scotland!AT148, Southern!AT148, 'Wales & West'!AT148) -> 2785.652816
E229: =CHOOSE(m_identity, East!E149, London!E149, 'North West'!E149, 'West Midlands'!E149, Northern!E149, Scotland!E149, Southern!E149, 'Wales & West'!E149) -> Tax deductible net interest cost | G229: £m nominal | H229: =CHOOSE(m_identity, East!H149, London!H149, 'North West'!H149, 'West Midlands'!H149, Northern!H149, Scotland!H149, Southern!H149, 'Wales & West'!H149) -> TDNIt | AP229: =CHOOSE(m_identity, East!AP149, London!AP149, 'North West'!AP149, 'West Midlands'!AP149, Northern!AP149, Scotland!AP149, Southern!AP149, 'Wales & West'!AP149) -> 111.7072159 | AQ229: =CHOOSE(m_identity, East!AQ149, London!AQ149, 'North West'!AQ149, 'West Midlands'!AQ149, Northern!AQ149, Scotland!AQ149, Southern!AQ149, 'Wales & West'!AQ149) -> 156.9393923 | AR229: =CHOOSE(m_identity, East!AR149, London!AR149, 'North West'!AR149, 'West Midlands'!AR149, Northern!AR149, Scotland!AR149, Southern!AR149, 'Wales & West'!AR149) -> 113.1179416 | AS229: =CHOOSE(m_identity, East!AS149, London!AS149, 'North West'!AS149, 'West Midlands'!AS149, Northern!AS149, Scotland!AS149, Southern!AS149, 'Wales & West'!AS149) -> 96.44405328 | AT229: =CHOOSE(m_identity, East!AT149, London!AT149, 'North West'!AT149, 'West Midlands'!AT149, Northern!AT149, Scotland!AT149, Southern!AT149, 'Wales & West'!AT149) -> 100.7997027
E230: =CHOOSE(m_identity, East!E150, London!E150, 'North West'!E150, 'West Midlands'!E150, Northern!E150, Scotland!E150, Southern!E150, 'Wales & West'!E150) -> Tax allowance adjustment | G230: £m nominal | H230: =CHOOSE(m_identity, East!H150, London!H150, 'North West'!H150, 'West Midlands'!H150, Northern!H150, Scotland!H150, Southern!H150, 'Wales & West'!H150) -> TAXAt | AP230: =CHOOSE(m_identity, East!AP150, London!AP150, 'North West'!AP150, 'West Midlands'!AP150, Northern!AP150, Scotland!AP150, Southern!AP150, 'Wales & West'!AP150) -> 0 | AQ230: =CHOOSE(m_identity, East!AQ150, London!AQ150, 'North West'!AQ150, 'West Midlands'!AQ150, Northern!AQ150, Scotland!AQ150, Southern!AQ150, 'Wales & West'!AQ150) -> 0 | AR230: =CHOOSE(m_identity, East!AR150, London!AR150, 'North West'!AR150, 'West Midlands'!AR150, Northern!AR150, Scotland!AR150, Southern!AR150, 'Wales & West'!AR150) -> 0 | AS230: =CHOOSE(m_identity, East!AS150, London!AS150, 'North West'!AS150, 'West Midlands'!AS150, Northern!AS150, Scotland!AS150, Southern!AS150, 'Wales & West'!AS150) -> 0 | AT230: =CHOOSE(m_identity, East!AT150, London!AT150, 'North West'!AT150, 'West Midlands'!AT150, Northern!AT150, Scotland!AT150, Southern!AT150, 'Wales & West'!AT150) -> 0
E231: =CHOOSE(m_identity, East!E151, London!E151, 'North West'!E151, 'West Midlands'!E151, Northern!E151, Scotland!E151, Southern!E151, 'Wales & West'!E151) -> Tax liability allowance adjustments - driven by tax trigger events | G231: £m 18/19 prices | H231: =CHOOSE(m_identity, East!H151, London!H151, 'North West'!H151, 'West Midlands'!H151, Northern!H151, Scotland!H151, Southern!H151, 'Wales & West'!H151) -> TTEt | AP231: =CHOOSE(m_identity, East!AP151, London!AP151, 'North West'!AP151, 'West Midlands'!AP151, Northern!AP151, Scotland!AP151, Southern!AP151, 'Wales & West'!AP151) -> -6.64715402 | AQ231: =CHOOSE(m_identity, East!AQ151, London!AQ151, 'North West'!AQ151, 'West Midlands'!AQ151, Northern!AQ151, Scotland!AQ151, Southern!AQ151, 'Wales & West'!AQ151) -> -8.441678083 | AR231: =CHOOSE(m_identity, East!AR151, London!AR151, 'North West'!AR151, 'West Midlands'!AR151, Northern!AR151, Scotland!AR151, Southern!AR151, 'Wales & West'!AR151) -> -13.99280761 | AS231: =CHOOSE(m_identity, East!AS151, London!AS151, 'North West'!AS151, 'West Midlands'!AS151, Northern!AS151, Scotland!AS151, Southern!AS151, 'Wales & West'!AS151) -> -15.73548828 | AT231: =CHOOSE(m_identity, East!AT151, London!AT151, 'North West'!AT151, 'West Midlands'!AT151, Northern!AT151, Scotland!AT151, Southern!AT151, 'Wales & West'!AT151) -> -15.25915015
E233: =CHOOSE(m_identity, East!E153, London!E153, 'North West'!E153, 'West Midlands'!E153, Northern!E153, Scotland!E153, Southern!E153, 'Wales & West'!E153) -> General Pool Opening Balance Adjustment | G233: £m nominal | H233: =CHOOSE(m_identity, East!H153, London!H153, 'North West'!H153, 'West Midlands'!H153, Northern!H153, Scotland!H153, Southern!H153, 'Wales & West'!H153) -> OGPAt | AP233: =CHOOSE(m_identity, East!AP153, London!AP153, 'North West'!AP153, 'West Midlands'!AP153, Northern!AP153, Scotland!AP153, Southern!AP153, 'Wales & West'!AP153) -> 0 | AQ233: =CHOOSE(m_identity, East!AQ153, London!AQ153, 'North West'!AQ153, 'West Midlands'!AQ153, Northern!AQ153, Scotland!AQ153, Southern!AQ153, 'Wales & West'!AQ153) -> 0 | AR233: =CHOOSE(m_identity, East!AR153, London!AR153, 'North West'!AR153, 'West Midlands'!AR153, Northern!AR153, Scotland!AR153, Southern!AR153, 'Wales & West'!AR153) -> -19.1252297 | AS233: =CHOOSE(m_identity, East!AS153, London!AS153, 'North West'!AS153, 'West Midlands'!AS153, Northern!AS153, Scotland!AS153, Southern!AS153, 'Wales & West'!AS153) -> -12.45544379 | AT233: =CHOOSE(m_identity, East!AT153, London!AT153, 'North West'!AT153, 'West Midlands'!AT153, Northern!AT153, Scotland!AT153, Southern!AT153, 'Wales & West'!AT153) -> -23.25378829
E234: =CHOOSE(m_identity, East!E154, London!E154, 'North West'!E154, 'West Midlands'!E154, Northern!E154, Scotland!E154, Southern!E154, 'Wales & West'!E154) -> Special Rate Pool Opening Balance Adjustment | G234: £m nominal | H234: =CHOOSE(m_identity, East!H154, London!H154, 'North West'!H154, 'West Midlands'!H154, Northern!H154, Scotland!H154, Southern!H154, 'Wales & West'!H154) -> OSRPAt | AP234: =CHOOSE(m_identity, East!AP154, London!AP154, 'North West'!AP154, 'West Midlands'!AP154, Northern!AP154, Scotland!AP154, Southern!AP154, 'Wales & West'!AP154) -> 0 | AQ234: =CHOOSE(m_identity, East!AQ154, London!AQ154, 'North West'!AQ154, 'West Midlands'!AQ154, Northern!AQ154, Scotland!AQ154, Southern!AQ154, 'Wales & West'!AQ154) -> 0 | AR234: =CHOOSE(m_identity, East!AR154, London!AR154, 'North West'!AR154, 'West Midlands'!AR154, Northern!AR154, Scotland!AR154, Southern!AR154, 'Wales & West'!AR154) -> -46.56172073 | AS234: =CHOOSE(m_identity, East!AS154, London!AS154, 'North West'!AS154, 'West Midlands'!AS154, Northern!AS154, Scotland!AS154, Southern!AS154, 'Wales & West'!AS154) -> -39.82512395 | AT234: =CHOOSE(m_identity, East!AT154, London!AT154, 'North West'!AT154, 'West Midlands'!AT154, Northern!AT154, Scotland!AT154, Southern!AT154, 'Wales & West'!AT154) -> -37.39657393
E236: =CHOOSE(m_identity, East!E156, London!E156, 'North West'!E156, 'West Midlands'!E156, Northern!E156, Scotland!E156, Southern!E156, 'Wales & West'!E156) -> Notional gearing for "Tax clawback gearing level test" | G236: % | AP236: =CHOOSE(m_identity, East!AP156, London!AP156, 'North West'!AP156, 'West Midlands'!AP156, Northern!AP156, Scotland!AP156, Southern!AP156, 'Wales & West'!AP156) -> 0.65 | AQ236: =CHOOSE(m_identity, East!AQ156, London!AQ156, 'North West'!AQ156, 'West Midlands'!AQ156, Northern!AQ156, Scotland!AQ156, Southern!AQ156, 'Wales & West'!AQ156) -> 0.64 | AR236: =CHOOSE(m_identity, East!AR156, London!AR156, 'North West'!AR156, 'West Midlands'!AR156, Northern!AR156, Scotland!AR156, Southern!AR156, 'Wales & West'!AR156) -> 0.63 | AS236: =CHOOSE(m_identity, East!AS156, London!AS156, 'North West'!AS156, 'West Midlands'!AS156, Northern!AS156, Scotland!AS156, Southern!AS156, 'Wales & West'!AS156) -> 0.61 | AT236: =CHOOSE(m_identity, East!AT156, London!AT156, 'North West'!AT156, 'West Midlands'!AT156, Northern!AT156, Scotland!AT156, Southern!AT156, 'Wales & West'!AT156) -> 0.6
E237: =CHOOSE(m_identity, East!E157, London!E157, 'North West'!E157, 'West Midlands'!E157, Northern!E157, Scotland!E157, Southern!E157, 'Wales & West'!E157) -> Tax trigger deadband | G237: £m 18/19 prices | AP237: =CHOOSE(m_identity, East!AP157, London!AP157, 'North West'!AP157, 'West Midlands'!AP157, Northern!AP157, Scotland!AP157, Southern!AP157, 'Wales & West'!AP157) -> 1.856013472 | AQ237: =CHOOSE(m_identity, East!AQ157, London!AQ157, 'North West'!AQ157, 'West Midlands'!AQ157, Northern!AQ157, Scotland!AQ157, Southern!AQ157, 'Wales & West'!AQ157) -> 1.815221531 | AR237: =CHOOSE(m_identity, East!AR157, London!AR157, 'North West'!AR157, 'West Midlands'!AR157, Northern!AR157, Scotland!AR157, Southern!AR157, 'Wales & West'!AR157) -> 1.797927993 | AS237: =CHOOSE(m_identity, East!AS157, London!AS157, 'North West'!AS157, 'West Midlands'!AS157, Northern!AS157, Scotland!AS157, Southern!AS157, 'Wales & West'!AS157) -> 1.773699227 | AT237: =CHOOSE(m_identity, East!AT157, London!AT157, 'North West'!AT157, 'West Midlands'!AT157, Northern!AT157, Scotland!AT157, Southern!AT157, 'Wales & West'!AT157) -> 1.748496476
E239: =CHOOSE(m_identity, East!E159, London!E159, 'North West'!E159, 'West Midlands'!E159, Northern!E159, Scotland!E159, Southern!E159, 'Wales & West'!E159) -> General pool capital allowance opening balance brought forward | G239: £m nominal | H239: =CHOOSE(m_identity, East!H159, London!H159, 'North West'!H159, 'West Midlands'!H159, Northern!H159, Scotland!H159, Southern!H159, 'Wales & West'!H159) -> OGPt | AP239: =CHOOSE(m_identity, East!AP159, London!AP159, 'North West'!AP159, 'West Midlands'!AP159, Northern!AP159, Scotland!AP159, Southern!AP159, 'Wales & West'!AP159) -> 119.6457873
E240: =CHOOSE(m_identity, East!E160, London!E160, 'North West'!E160, 'West Midlands'!E160, Northern!E160, Scotland!E160, Southern!E160, 'Wales & West'!E160) -> Special Rate capital allowance opening balance brought forward | G240: £m nominal | H240: =CHOOSE(m_identity, East!H160, London!H160, 'North West'!H160, 'West Midlands'!H160, Northern!H160, Scotland!H160, Southern!H160, 'Wales & West'!H160) -> OSRPt | AP240: =CHOOSE(m_identity, East!AP160, London!AP160, 'North West'!AP160, 'West Midlands'!AP160, Northern!AP160, Scotland!AP160, Southern!AP160, 'Wales & West'!AP160) -> 363.2997648
E241: =CHOOSE(m_identity, East!E161, London!E161, 'North West'!E161, 'West Midlands'!E161, Northern!E161, Scotland!E161, Southern!E161, 'Wales & West'!E161) -> Structures and buildings capital allowance opening balance brought forward | G241: £m nominal | H241: =CHOOSE(m_identity, East!H161, London!H161, 'North West'!H161, 'West Midlands'!H161, Northern!H161, Scotland!H161, Southern!H161, 'Wales & West'!H161) -> OSBPt | AP241: =CHOOSE(m_identity, East!AP161, London!AP161, 'North West'!AP161, 'West Midlands'!AP161, Northern!AP161, Scotland!AP161, Southern!AP161, 'Wales & West'!AP161) -> 0
E242: =CHOOSE(m_identity, East!E162, London!E162, 'North West'!E162, 'West Midlands'!E162, Northern!E162, Scotland!E162, Southern!E162, 'Wales & West'!E162) -> Deferred revenue expenditure opening balance brought forward | G242: £m nominal | H242: =CHOOSE(m_identity, East!H162, London!H162, 'North West'!H162, 'West Midlands'!H162, Northern!H162, Scotland!H162, Southern!H162, 'Wales & West'!H162) -> ODRPt | AP242: =CHOOSE(m_identity, East!AP162, London!AP162, 'North West'!AP162, 'West Midlands'!AP162, Northern!AP162, Scotland!AP162, Southern!AP162, 'Wales & West'!AP162) -> 777.681972
E243: =CHOOSE(m_identity, East!E163, London!E163, 'North West'!E163, 'West Midlands'!E163, Northern!E163, Scotland!E163, Southern!E163, 'Wales & West'!E163) -> Deferred revenue pool additions (RIIO1) plus opening balance at start of RIIO1 | G243: £m nominal | H243: =CHOOSE(m_identity, East!H163, London!H163, 'North West'!H163, 'West Midlands'!H163, Northern!H163, Scotland!H163, Southern!H163, 'Wales & West'!H163) -> LODRPt | AO243: =CHOOSE(m_identity, East!AO163, London!AO163, 'North West'!AO163, 'West Midlands'!AO163, Northern!AO163, Scotland!AO163, Southern!AO163, 'Wales & West'!AO163) -> 817.596206
E244: =CHOOSE(m_identity, East!E164, London!E164, 'North West'!E164, 'West Midlands'!E164, Northern!E164, Scotland!E164, Southern!E164, 'Wales & West'!E164) -> Tax loss brought forward | G244: £m nominal | H244: =CHOOSE(m_identity, East!H164, London!H164, 'North West'!H164, 'West Midlands'!H164, Northern!H164, Scotland!H164, Southern!H164, 'Wales & West'!H164) -> OTLt | AP244: =CHOOSE(m_identity, East!AP164, London!AP164, 'North West'!AP164, 'West Midlands'!AP164, Northern!AP164, Scotland!AP164, Southern!AP164, 'Wales & West'!AP164) -> 0
E246: =CHOOSE(m_identity, East!E166, London!E166, 'North West'!E166, 'West Midlands'!E166, Northern!E166, Scotland!E166, Southern!E166, 'Wales & West'!E166) -> Totex allocation to "General" tax pool | G246: % | H246: =CHOOSE(m_identity, East!H166, London!H166, 'North West'!H166, 'West Midlands'!H166, Northern!H166, Scotland!H166, Southern!H166, 'Wales & West'!H166) -> ARGPt | AP246: =CHOOSE(m_identity, East!AP166, London!AP166, 'North West'!AP166, 'West Midlands'!AP166, Northern!AP166, Scotland!AP166, Southern!AP166, 'Wales & West'!AP166) -> 0.03929928028 | AQ246: =CHOOSE(m_identity, East!AQ166, London!AQ166, 'North West'!AQ166, 'West Midlands'!AQ166, Northern!AQ166, Scotland!AQ166, Southern!AQ166, 'Wales & West'!AQ166) -> 0.04022171712 | AR246: =CHOOSE(m_identity, East!AR166, London!AR166, 'North West'!AR166, 'West Midlands'!AR166, Northern!AR166, Scotland!AR166, Southern!AR166, 'Wales & West'!AR166) -> 0.03154507404 | AS246: =CHOOSE(m_identity, East!AS166, London!AS166, 'North West'!AS166, 'West Midlands'!AS166, Northern!AS166, Scotland!AS166, Southern!AS166, 'Wales & West'!AS166) -> 0.05481593903 | AT246: =CHOOSE(m_identity, East!AT166, London!AT166, 'North West'!AT166, 'West Midlands'!AT166, Northern!AT166, Scotland!AT166, Southern!AT166, 'Wales & West'!AT166) -> 0.05762516529
E247: =CHOOSE(m_identity, East!E167, London!E167, 'North West'!E167, 'West Midlands'!E167, Northern!E167, Scotland!E167, Southern!E167, 'Wales & West'!E167) -> Totex allocation to "Special Rate" tax pool | G247: % | H247: =CHOOSE(m_identity, East!H167, London!H167, 'North West'!H167, 'West Midlands'!H167, Northern!H167, Scotland!H167, Southern!H167, 'Wales & West'!H167) -> ARSRt | AP247: =CHOOSE(m_identity, East!AP167, London!AP167, 'North West'!AP167, 'West Midlands'!AP167, Northern!AP167, Scotland!AP167, Southern!AP167, 'Wales & West'!AP167) -> 0.158729531 | AQ247: =CHOOSE(m_identity, East!AQ167, London!AQ167, 'North West'!AQ167, 'West Midlands'!AQ167, Northern!AQ167, Scotland!AQ167, Southern!AQ167, 'Wales & West'!AQ167) -> 0.1480766463 | AR247: =CHOOSE(m_identity, East!AR167, London!AR167, 'North West'!AR167, 'West Midlands'!AR167, Northern!AR167, Scotland!AR167, Southern!AR167, 'Wales & West'!AR167) -> 0.1879709156 | AS247: =CHOOSE(m_identity, East!AS167, London!AS167, 'North West'!AS167, 'West Midlands'!AS167, Northern!AS167, Scotland!AS167, Southern!AS167, 'Wales & West'!AS167) -> 0.164288111 | AT247: =CHOOSE(m_identity, East!AT167, London!AT167, 'North West'!AT167, 'West Midlands'!AT167, Northern!AT167, Scotland!AT167, Southern!AT167, 'Wales & West'!AT167) -> 0.1532414817
E248: =CHOOSE(m_identity, East!E168, London!E168, 'North West'!E168, 'West Midlands'!E168, Northern!E168, Scotland!E168, Southern!E168, 'Wales & West'!E168) -> Totex allocation to "Structures and Buildings" tax pool | G248: % | H248: =CHOOSE(m_identity, East!H168, London!H168, 'North West'!H168, 'West Midlands'!H168, Northern!H168, Scotland!H168, Southern!H168, 'Wales & West'!H168) -> ARSBt | AP248: =CHOOSE(m_identity, East!AP168, London!AP168, 'North West'!AP168, 'West Midlands'!AP168, Northern!AP168, Scotland!AP168, Southern!AP168, 'Wales & West'!AP168) -> 0.003550447927 | AQ248: =CHOOSE(m_identity, East!AQ168, London!AQ168, 'North West'!AQ168, 'West Midlands'!AQ168, Northern!AQ168, Scotland!AQ168, Southern!AQ168, 'Wales & West'!AQ168) -> 0.001527908545 | AR248: =CHOOSE(m_identity, East!AR168, London!AR168, 'North West'!AR168, 'West Midlands'!AR168, Northern!AR168, Scotland!AR168, Southern!AR168, 'Wales & West'!AR168) -> 0.0004403289019 | AS248: =CHOOSE(m_identity, East!AS168, London!AS168, 'North West'!AS168, 'West Midlands'!AS168, Northern!AS168, Scotland!AS168, Southern!AS168, 'Wales & West'!AS168) -> 0.0004291437845 | AT248: =CHOOSE(m_identity, East!AT168, London!AT168, 'North West'!AT168, 'West Midlands'!AT168, Northern!AT168, Scotland!AT168, Southern!AT168, 'Wales & West'!AT168) -> 0.0003777486662
E249: =CHOOSE(m_identity, East!E169, London!E169, 'North West'!E169, 'West Midlands'!E169, Northern!E169, Scotland!E169, Southern!E169, 'Wales & West'!E169) -> Totex allocation to "Deferred Revenue" tax pool | G249: % | H249: =CHOOSE(m_identity, East!H169, London!H169, 'North West'!H169, 'West Midlands'!H169, Northern!H169, Scotland!H169, Southern!H169, 'Wales & West'!H169) -> ARDRt | AP249: =CHOOSE(m_identity, East!AP169, London!AP169, 'North West'!AP169, 'West Midlands'!AP169, Northern!AP169, Scotland!AP169, Southern!AP169, 'Wales & West'!AP169) -> 0.3873800935 | AQ249: =CHOOSE(m_identity, East!AQ169, London!AQ169, 'North West'!AQ169, 'West Midlands'!AQ169, Northern!AQ169, Scotland!AQ169, Southern!AQ169, 'Wales & West'!AQ169) -> 0.4127335797 | AR249: =CHOOSE(m_identity, East!AR169, London!AR169, 'North West'!AR169, 'West Midlands'!AR169, Northern!AR169, Scotland!AR169, Southern!AR169, 'Wales & West'!AR169) -> 0.4085442834 | AS249: =CHOOSE(m_identity, East!AS169, London!AS169, 'North West'!AS169, 'West Midlands'!AS169, Northern!AS169, Scotland!AS169, Southern!AS169, 'Wales & West'!AS169) -> 0.3947830053 | AT249: =CHOOSE(m_identity, East!AT169, London!AT169, 'North West'!AT169, 'West Midlands'!AT169, Northern!AT169, Scotland!AT169, Southern!AT169, 'Wales & West'!AT169) -> 0.3781664081
E250: =CHOOSE(m_identity, East!E170, London!E170, 'North West'!E170, 'West Midlands'!E170, Northern!E170, Scotland!E170, Southern!E170, 'Wales & West'!E170) -> Totex allocation to "Revenue" tax pool | G250: % | H250: =CHOOSE(m_identity, East!H170, London!H170, 'North West'!H170, 'West Midlands'!H170, Northern!H170, Scotland!H170, Southern!H170, 'Wales & West'!H170) -> ARRt | AP250: =CHOOSE(m_identity, East!AP170, London!AP170, 'North West'!AP170, 'West Midlands'!AP170, Northern!AP170, Scotland!AP170, Southern!AP170, 'Wales & West'!AP170) -> 0.4038256022 | AQ250: =CHOOSE(m_identity, East!AQ170, London!AQ170, 'North West'!AQ170, 'West Midlands'!AQ170, Northern!AQ170, Scotland!AQ170, Southern!AQ170, 'Wales & West'!AQ170) -> 0.3943843313 | AR250: =CHOOSE(m_identity, East!AR170, London!AR170, 'North West'!AR170, 'West Midlands'!AR170, Northern!AR170, Scotland!AR170, Southern!AR170, 'Wales & West'!AR170) -> 0.36996724 | AS250: =CHOOSE(m_identity, East!AS170, London!AS170, 'North West'!AS170, 'West Midlands'!AS170, Northern!AS170, Scotland!AS170, Southern!AS170, 'Wales & West'!AS170) -> 0.3841905622 | AT250: =CHOOSE(m_identity, East!AT170, London!AT170, 'North West'!AT170, 'West Midlands'!AT170, Northern!AT170, Scotland!AT170, Southern!AT170, 'Wales & West'!AT170) -> 0.4092747909
... 295 more rows

Sheet Totex
A1: Totex
B2: =UserInterface!G17 -> East
E3: Parameter | G3: Units | I3: Constant | AP3: Annual values
E4: PCFM year ending | I4: =UserInterface!$G$10 -> 2026-03-31 | K4: 1991-03-31 | L4: 1992-03-31 | M4: 1993-03-31 | N4: 1994-03-31 | O4: 1995-03-31 | P4: 1996-03-31 | Q4: 1997-03-31 | R4: 1998-03-31 | S4: 1999-03-31 | T4: 2000-03-31 | U4: 2001-03-31 | V4: 2002-03-31 | W4: 2003-03-31 | X4: 2004-03-31 | Y4: 2005-03-31 | Z4: 2006-03-31 | AA4: 2007-03-31 | AB4: 2008-03-31 | AC4: 2009-03-31 | AD4: 2010-03-31 | AE4: 2011-03-31 | AF4: 2012-03-31 | AG4: 2013-03-31 | AH4: 2014-03-31 | AI4: 2015-03-31 | AJ4: 2016-03-31 | AK4: 2017-03-31 | AL4: 2018-03-31 | AM4: 2019-03-31 | AN4: 2020-03-31 | AO4: 2021-03-31 | AP4: 2022-03-31 | AQ4: 2023-03-31 | AR4: 2024-03-31 | AS4: 2025-03-31 | AT4: 2026-03-31
B6: Totex
C8: Allowed totex aggregated by sub-category
C9: Note: Totex is the sum of a number of cost categories, with all totex allowances falling under one (or more) of them. They have significance in the model as each sub-category can have its own set of tax pool allocation rules.
D11: Capitalisation rate 1 totex
E14: Load related capex | G14: £m 18/19 prices | AP14: =Input!AP11 + SUMPRODUCT((Input!AP$318:AP$532) * (Input!$H$318:$H$532 = $E14) * (Input!$BD$318:$BD$532 = "CapRate 1 (Baseline excl. Repex)")) -> 27.84019011 | AQ14: =Input!AQ11 + SUMPRODUCT((Input!AQ$318:AQ$532) * (Input!$H$318:$H$532 = $E14) * (Input!$BD$318:$BD$532 = "CapRate 1 (Baseline excl. Repex)")) -> 32.84959207 | AR14: =Input!AR11 + SUMPRODUCT((Input!AR$318:AR$532) * (Input!$H$318:$H$532 = $E14) * (Input!$BD$318:$BD$532 = "CapRate 1 (Baseline excl. Repex)")) -> 27.00025467 | AS14: =Input!AS11 + SUMPRODUCT((Input!AS$318:AS$532) * (Input!$H$318:$H$532 = $E14) * (Input!$BD$318:$BD$532 = "CapRate 1 (Baseline excl. Repex)")) -> 25.16679943 | AT14: =Input!AT11 + SUMPRODUCT((Input!AT$318:AT$532) * (Input!$H$318:$H$532 = $E14) * (Input!$BD$318:$BD$532 = "CapRate 1 (Baseline excl. Repex)")) -> 24.19742802
E15: Non-load related capex - other | G15: £m 18/19 prices | AP15: =Input!AP12 + SUMPRODUCT((Input!AP$318:AP$532) * (Input!$H$318:$H$532 = $E15) * (Input!$BD$318:$BD$532 = "CapRate 1 (Baseline excl. Repex)")) -> 28.15779617 | AQ15: =Input!AQ12 + SUMPRODUCT((Input!AQ$318:AQ$532) * (Input!$H$318:$H$532 = $E15) * (Input!$BD$318:$BD$532 = "CapRate 1 (Baseline excl. Repex)")) -> 24.95586354 | AR15: =Input!AR12 + SUMPRODUCT((Input!AR$318:AR$532) * (Input!$H$318:$H$532 = $E15) * (Input!$BD$318:$BD$532 = "CapRate 1 (Baseline excl. Repex)")) -> 26.94381277 | AS15: =Input!AS12 + SUMPRODUCT((Input!AS$318:AS$532) * (Input!$H$318:$H$532 = $E15) * (Input!$BD$318:$BD$532 = "CapRate 1 (Baseline excl. Repex)")) -> 25.15651357 | AT15: =Input!AT12 + SUMPRODUCT((Input!AT$318:AT$532) * (Input!$H$318:$H$532 = $E15) * (Input!$BD$318:$BD$532 = "CapRate 1 (Baseline excl. Repex)")) -> 16.30760062
E16: Business support (opex) | G16: £m 18/19 prices | AP16: =Input!AP13 + SUMPRODUCT((Input!AP$318:AP$532) * (Input!$H$318:$H$532 = $E16) * (Input!$BD$318:$BD$532 = "CapRate 1 (Baseline excl. Repex)")) -> 26.1503981 | AQ16: =Input!AQ13 + SUMPRODUCT((Input!AQ$318:AQ$532) * (Input!$H$318:$H$532 = $E16) * (Input!$BD$318:$BD$532 = "CapRate 1 (Baseline excl. Repex)")) -> 25.1627974 | AR16: =Input!AR13 + SUMPRODUCT((Input!AR$318:AR$532) * (Input!$H$318:$H$532 = $E16) * (Input!$BD$318:$BD$532 = "CapRate 1 (Baseline excl. Repex)")) -> 24.39274271 | AS16: =Input!AS13 + SUMPRODUCT((Input!AS$318:AS$532) * (Input!$H$318:$H$532 = $E16) * (Input!$BD$318:$BD$532 = "CapRate 1 (Baseline excl. Repex)")) -> 23.72733867 | AT16: =Input!AT13 + SUMPRODUCT((Input!AT$318:AT$532) * (Input!$H$318:$H$532 = $E16) * (Input!$BD$318:$BD$532 = "CapRate 1 (Baseline excl. Repex)")) -> 22.45347121
E17: Directs opex | G17: £m 18/19 prices | AP17: =Input!AP14 + SUMPRODUCT((Input!AP$318:AP$532) * (Input!$H$318:$H$532 = $E17) * (Input!$BD$318:$BD$532 = "CapRate 1 (Baseline excl. Repex)")) -> 106.374215 | AQ17: =Input!AQ14 + SUMPRODUCT((Input!AQ$318:AQ$532) * (Input!$H$318:$H$532 = $E17) * (Input!$BD$318:$BD$532 = "CapRate 1 (Baseline excl. Repex)")) -> 101.3072931 | AR17: =Input!AR14 + SUMPRODUCT((Input!AR$318:AR$532) * (Input!$H$318:$H$532 = $E17) * (Input!$BD$318:$BD$532 = "CapRate 1 (Baseline excl. Repex)")) -> 103.2985633 | AS17: =Input!AS14 + SUMPRODUCT((Input!AS$318:AS$532) * (Input!$H$318:$H$532 = $E17) * (Input!$BD$318:$BD$532 = "CapRate 1 (Baseline excl. Repex)")) -> 95.53900801 | AT17: =Input!AT14 + SUMPRODUCT((Input!AT$318:AT$532) * (Input!$H$318:$H$532 = $E17) * (Input!$BD$318:$BD$532 = "CapRate 1 (Baseline excl. Repex)")) -> 98.00483149
E18: Repex | G18: £m 18/19 prices | AP18: =Input!AP15 + SUMPRODUCT((Input!AP$318:AP$532) * (Input!$H$318:$H$532 = $E18) * (Input!$BD$318:$BD$532 = "CapRate 1 (Baseline excl. Repex)")) -> 134.7867308 | AQ18: =Input!AQ15 + SUMPRODUCT((Input!AQ$318:AQ$532) * (Input!$H$318:$H$532 = $E18) * (Input!$BD$318:$BD$532 = "CapRate 1 (Baseline excl. Repex)")) -> 133.5459959 | AR18: =Input!AR15 + SUMPRODUCT((Input!AR$318:AR$532) * (Input!$H$318:$H$532 = $E18) * (Input!$BD$318:$BD$532 = "CapRate 1 (Baseline excl. Repex)")) -> 129.4282908 | AS18: =Input!AS15 + SUMPRODUCT((Input!AS$318:AS$532) * (Input!$H$318:$H$532 = $E18) * (Input!$BD$318:$BD$532 = "CapRate 1 (Baseline excl. Repex)")) -> 125.8979185 | AT18: =Input!AT15 + SUMPRODUCT((Input!AT$318:AT$532) * (Input!$H$318:$H$532 = $E18) * (Input!$BD$318:$BD$532 = "CapRate 1 (Baseline excl. Repex)")) -> 124.8989804
D20: Capitalisation rate 2 totex
E23: Load related capex | G23: £m 18/19 prices | AP23: =SUMPRODUCT((Input!AP$318:AP$532) * (Input!$H$318:$H$532 = $E23) * (Input!$BD$318:$BD$532 = "CapRate 2 (UM excl. Repex)")) -> 12.50648069 | AQ23: =SUMPRODUCT((Input!AQ$318:AQ$532) * (Input!$H$318:$H$532 = $E23) * (Input!$BD$318:$BD$532 = "CapRate 2 (UM excl. Repex)")) -> 7.018475048 | AR23: =SUMPRODUCT((Input!AR$318:AR$532) * (Input!$H$318:$H$532 = $E23) * (Input!$BD$318:$BD$532 = "CapRate 2 (UM excl. Repex)")) -> 5.300058738 | AS23: =SUMPRODUCT((Input!AS$318:AS$532) * (Input!$H$318:$H$532 = $E23) * (Input!$BD$318:$BD$532 = "CapRate 2 (UM excl. Repex)")) -> 10.40527886 | AT23: =SUMPRODUCT((Input!AT$318:AT$532) * (Input!$H$318:$H$532 = $E23) * (Input!$BD$318:$BD$532 = "CapRate 2 (UM excl. Repex)")) -> 5.626572964
E24: Non-load related capex - other | G24: £m 18/19 prices | AP24: =SUMPRODUCT((Input!AP$318:AP$532) * (Input!$H$318:$H$532 = $E24) * (Input!$BD$318:$BD$532 = "CapRate 2 (UM excl. Repex)")) -> 0.09860332118 | AQ24: =SUMPRODUCT((Input!AQ$318:AQ$532) * (Input!$H$318:$H$532 = $E24) * (Input!$BD$318:$BD$532 = "CapRate 2 (UM excl. Repex)")) -> 0.3646287551 | AR24: =SUMPRODUCT((Input!AR$318:AR$532) * (Input!$H$318:$H$532 = $E24) * (Input!$BD$318:$BD$532 = "CapRate 2 (UM excl. Repex)")) -> 1.287463331 | AS24: =SUMPRODUCT((Input!AS$318:AS$532) * (Input!$H$318:$H$532 = $E24) * (Input!$BD$318:$BD$532 = "CapRate 2 (UM excl. Repex)")) -> 9.04799169 | AT24: =SUMPRODUCT((Input!AT$318:AT$532) * (Input!$H$318:$H$532 = $E24) * (Input!$BD$318:$BD$532 = "CapRate 2 (UM excl. Repex)")) -> 11.931208
E25: Business support (opex) | G25: £m 18/19 prices | AP25: =SUMPRODUCT((Input!AP$318:AP$532) * (Input!$H$318:$H$532 = $E25) * (Input!$BD$318:$BD$532 = "CapRate 2 (UM excl. Repex)")) -> 0 | AQ25: =SUMPRODUCT((Input!AQ$318:AQ$532) * (Input!$H$318:$H$532 = $E25) * (Input!$BD$318:$BD$532 = "CapRate 2 (UM excl. Repex)")) -> 0.03768923683 | AR25: =SUMPRODUCT((Input!AR$318:AR$532) * (Input!$H$318:$H$532 = $E25) * (Input!$BD$318:$BD$532 = "CapRate 2 (UM excl. Repex)")) -> 1.635580432 | AS25: =SUMPRODUCT((Input!AS$318:AS$532) * (Input!$H$318:$H$532 = $E25) * (Input!$BD$318:$BD$532 = "CapRate 2 (UM excl. Repex)")) -> 7.101446635 | AT25: =SUMPRODUCT((Input!AT$318:AT$532) * (Input!$H$318:$H$532 = $E25) * (Input!$BD$318:$BD$532 = "CapRate 2 (UM excl. Repex)")) -> 8.40089662
E26: Directs opex | G26: £m 18/19 prices | AP26: =SUMPRODUCT((Input!AP$318:AP$532) * (Input!$H$318:$H$532 = $E26) * (Input!$BD$318:$BD$532 = "CapRate 2 (UM excl. Repex)")) -> 0 | AQ26: =SUMPRODUCT((Input!AQ$318:AQ$532) * (Input!$H$318:$H$532 = $E26) * (Input!$BD$318:$BD$532 = "CapRate 2 (UM excl. Repex)")) -> 0.005072502064 | AR26: =SUMPRODUCT((Input!AR$318:AR$532) * (Input!$H$318:$H$532 = $E26) * (Input!$BD$318:$BD$532 = "CapRate 2 (UM excl. Repex)")) -> 0.3994096178 | AS26: =SUMPRODUCT((Input!AS$318:AS$532) * (Input!$H$318:$H$532 = $E26) * (Input!$BD$318:$BD$532 = "CapRate 2 (UM excl. Repex)")) -> 0.5451105382 | AT26: =SUMPRODUCT((Input!AT$318:AT$532) * (Input!$H$318:$H$532 = $E26) * (Input!$BD$318:$BD$532 = "CapRate 2 (UM excl. Repex)")) -> 1.176284788
E27: Repex | G27: £m 18/19 prices | AP27: =SUMPRODUCT((Input!AP$318:AP$532) * (Input!$H$318:$H$532 = $E27) * (Input!$BD$318:$BD$532 = "CapRate 2 (UM excl. Repex)")) -> 3.526265767 | AQ27: =SUMPRODUCT((Input!AQ$318:AQ$532) * (Input!$H$318:$H$532 = $E27) * (Input!$BD$318:$BD$532 = "CapRate 2 (UM excl. Repex)")) -> 3.105551591 | AR27: =SUMPRODUCT((Input!AR$318:AR$532) * (Input!$H$318:$H$532 = $E27) * (Input!$BD$318:$BD$532 = "CapRate 2 (UM excl. Repex)")) -> 3.634736585 | AS27: =SUMPRODUCT((Input!AS$318:AS$532) * (Input!$H$318:$H$532 = $E27) * (Input!$BD$318:$BD$532 = "CapRate 2 (UM excl. Repex)")) -> 6.077952421 | AT27: =SUMPRODUCT((Input!AT$318:AT$532) * (Input!$H$318:$H$532 = $E27) * (Input!$BD$318:$BD$532 = "CapRate 2 (UM excl. Repex)")) -> 16.47325521
D29: Allowance
E32: Allowed load related capex | G32: £m 18/19 prices | AP32: =AP14 + AP23 -> 40.3466708 | AQ32: 39.86806712 | AR32: 32.30031341 | AS32: 35.57207829 | AT32: 29.82400099
E33: Allowed non-load related capex - other | G33: £m 18/19 prices | AP33: 28.25639949 | AQ33: 25.32049229 | AR33: 28.2312761 | AS33: 34.20450526 | AT33: 28.23880862
E34: Allowed business support (opex) | G34: £m 18/19 prices | AP34: 26.1503981 | AQ34: 25.20048663 | AR34: 26.02832315 | AS34: 30.82878531 | AT34: 30.85436783
E35: Allowed directs opex | G35: £m 18/19 prices | AP35: 106.374215 | AQ35: 101.3123656 | AR35: 103.6979729 | AS35: 96.08411855 | AT35: 99.18111628
E36: Allowed repex | G36: £m 18/19 prices | AP36: =AP18 + AP27 -> 138.3129966 | AQ36: 136.6515475 | AR36: 133.0630274 | AS36: 131.9758709 | AT36: 141.3722356
E37: Allowed totex | G37: £m 18/19 prices | AP37: =SUM(AP32:AP36) -> 339.44068 | AQ37: =SUM(AQ32:AQ36) -> 328.3529591 | AR37: =SUM(AR32:AR36) -> 323.320913 | AS37: =SUM(AS32:AS36) -> 328.6653583 | AT37: =SUM(AT32:AT36) -> 329.4705293
C39: Actual totex
D41: Source of actuals
D42: Note: The model assumes that there is a time lag from year t until actual expenditure data becomes available for the model. After the lag, actual expenditure inputs are used. Up to that point the model generates a forecast actual expenditure.
D43: When required in the model, forecasts assume that actuals are equal to their corresponding allowance.
D44: In a year where actual totex is assumed to be available, values must be inputted to the model as it will not generate a forecast and the empty input cell will be read as an actual spend of zero.
E46: Years from t until normal reporting of actual costs | G46: years | I46: =Input!I286 -> 2
E47: Historic totex (FYI only) | G47: text | AP47: =YEAR($I$4) >= YEAR(AP$4) + $I46 -> TRUE | AQ47: =YEAR($I$4) >= YEAR(AQ$4) + $I46 -> TRUE | AR47: TRUE | AS47: FALSE | AT47: FALSE
E48: Forecasted totex (FYI only) | G48: text | AP48: =IF(AP47, FALSE, TRUE) -> FALSE | AQ48: FALSE | AR48: FALSE | AS48: TRUE | AT48: TRUE
D50: Actual totex (historic and forecasted)
D51: Note: Actuals are exported both to identify performance against the allowance and to generate writing down allowances used in the tax calculation.
E53: Capitalisation rate 1 totex
E55: Load related capex | G55: £m 18/19 prices | AP55: =Input!AP69 -> 22.2997744 | AQ55: =Input!AQ69 -> 20.96063314 | AR55: =Input!AR69 -> 29.0579296 | AS55: =Input!AS69 -> 22.78463049 | AT55: =Input!AT69 -> 24.29242651
E56: Non-load related capex - other | G56: £m 18/19 prices | AP56: =Input!AP70 -> 35.71673015 | AQ56: =Input!AQ70 -> 44.35982716 | AR56: =Input!AR70 -> 48.80515201 | AS56: =Input!AS70 -> 40.51197809 | AT56: =Input!AT70 -> 35.01760097
E57: Business support (opex) | G57: £m 18/19 prices | AP57: =Input!AP71 -> 41.29393908 | AQ57: =Input!AQ71 -> 43.01801998 | AR57: =Input!AR71 -> 48.91406229 | AS57: =Input!AS71 -> 60.35034908 | AT57: =Input!AT71 -> 62.46512645
E58: Directs opex | G58: £m 18/19 prices | AP58: =Input!AP72 -> 93.07187609 | AQ58: =Input!AQ72 -> 103.7998168 | AR58: =Input!AR72 -> 93.87720496 | AS58: =Input!AS72 -> 93.86965132 | AT58: =Input!AT72 -> 100.4959765
E59: Repex | G59: £m 18/19 prices | AP59: =Input!AP73 -> 124.768193 | AQ59: =Input!AQ73 -> 150.6324981 | AR59: =Input!AR73 -> 153.7222397 | AS59: =Input!AS73 -> 151.9834208 | AT59: =Input!AT73 -> 133.3378734
E61: Capitalisation rate 2 totex
E63: Load related capex | G63: £m 18/19 prices | AP63: =Input!AP77 -> 11.50708327 | AQ63: =Input!AQ77 -> 6.603008575 | AR63: =Input!AR77 -> 4.699867535 | AS63: =Input!AS77 -> 9.486972761 | AT63: =Input!AT77 -> 4.44364543
E64: Non-load related capex - other | G64: £m 18/19 prices | AP64: =Input!AP78 -> 0 | AQ64: =Input!AQ78 -> 0.05384304594 | AR64: =Input!AR78 -> 3.071944226 | AS64: =Input!AS78 -> 16.21545351 | AT64: =Input!AT78 -> 21.09542351
E65: Business support (opex) | G65: £m 18/19 prices | AP65: =Input!AP79 -> 0.09860332118 | AQ65: =Input!AQ79 -> 0.3535474481 | AR65: =Input!AR79 -> 0.2505091554 | AS65: =Input!AS79 -> 0.4790953528 | AT65: =Input!AT79 -> 0.4129658966
E66: Directs opex | G66: £m 18/19 prices | AP66: =Input!AP80 -> 0 | AQ66: =Input!AQ80 -> 0 | AR66: =Input!AR80 -> 0 | AS66: =Input!AS80 -> 0 | AT66: =Input!AT80 -> 0
E67: Repex | G67: £m 18/19 prices | AP67: =Input!AP81 -> 4.220258233 | AQ67: =Input!AQ81 -> 3.386227854 | AR67: =Input!AR81 -> 4.234718899 | AS67: =Input!AS81 -> 6.98085355 | AT67: =Input!AT81 -> 17.61836959
E69: Total actual
E71: Actual load related capex | G71: £m 18/19 prices | AP71: =SUM(AP55, AP63) -> 33.80685767 | AQ71: =SUM(AQ55, AQ63) -> 27.56364172 | AR71: 33.75779713 | AS71: 32.27160325 | AT71: 28.73607194
E72: Actual non-load related capex - other | G72: £m 18/19 prices | AP72: =SUM(AP56, AP64) -> 35.71673015 | AQ72: 44.41367021 | AR72: 51.87709624 | AS72: 56.7274316 | AT72: 56.11302448
E73: Actual business support (opex) | G73: £m 18/19 prices | AP73: =SUM(AP57, AP65) -> 41.3925424 | AQ73: 43.37156742 | AR73: 49.16457145 | AS73: 60.82944443 | AT73: 62.87809234
E74: Actual directs opex | G74: £m 18/19 prices | AP74: =SUM(AP58, AP66) -> 93.07187609 | AQ74: =SUM(AQ58, AQ66) -> 103.7998168 | AR74: 93.87720496 | AS74: 93.86965132 | AT74: 100.4959765
E75: Actual repex | G75: £m 18/19 prices | AP75: =SUM(AP59, AP67) -> 128.9884513 | AQ75: 154.0187259 | AR75: 157.9569586 | AS75: 158.9642744 | AT75: 150.956243
E76: Actual totex | G76: £m 18/19 prices | AP76: =SUM(AP71:AP75) -> 332.9764576 | AQ76: =SUM(AQ71:AQ75) -> 373.1674221 | AR76: =SUM(AR71:AR75) -> 386.6336284 | AS76: =SUM(AS71:AS75) -> 402.662405 | AT76: =SUM(AT71:AT75) -> 399.1794083
B78: End of sheet

Sheet TIM
A1: Totex Incentive Mechanism (TIM)
B2: =UserInterface!G17 -> East
E3: Parameter | G3: Units | I3: Constant | AP3: Annual values
E4: PCFM year ending | I4: =UserInterface!$G$10 -> 2026-03-31 | K4: 1991-03-31 | L4: 1992-03-31 | M4: 1993-03-31 | N4: 1994-03-31 | O4: 1995-03-31 | P4: 1996-03-31 | Q4: 1997-03-31 | R4: 1998-03-31 | S4: 1999-03-31 | T4: 2000-03-31 | U4: 2001-03-31 | V4: 2002-03-31 | W4: 2003-03-31 | X4: 2004-03-31 | Y4: 2005-03-31 | Z4: 2006-03-31 | AA4: 2007-03-31 | AB4: 2008-03-31 | AC4: 2009-03-31 | AD4: 2010-03-31 | AE4: 2011-03-31 | AF4: 2012-03-31 | AG4: 2013-03-31 | AH4: 2014-03-31 | AI4: 2015-03-31 | AJ4: 2016-03-31 | AK4: 2017-03-31 | AL4: 2018-03-31 | AM4: 2019-03-31 | AN4: 2020-03-31 | AO4: 2021-03-31 | AP4: 2022-03-31 | AQ4: 2023-03-31 | AR4: 2024-03-31 | AS4: 2025-03-31 | AT4: 2026-03-31
B6: Efficiency incentive
C8: Post-TIM overspend (underspend)
C9: Note: Totex overspend (underspend) is identified and subject to the "efficiency incentive rate." Repex is separated at this stage in order to apply the repex capitalisation rate to any overspend (underspend)
D11: Capitalisation 1 totex (excluding repex)
E13: Actual totex | G13: £m 18/19 prices | AP13: =SUM(Totex!AP55:AP59) - Totex!AP59 -> 192.3823197 | AQ13: =SUM(Totex!AQ55:AQ59) - Totex!AQ59 -> 212.1382971 | AR13: =SUM(Totex!AR55:AR59) - Totex!AR59 -> 220.6543489 | AS13: =SUM(Totex!AS55:AS59) - Totex!AS59 -> 217.516609 | AT13: =SUM(Totex!AT55:AT59) - Totex!AT59 -> 222.2711304
E14: Less allowed totex | G14: £m 18/19 prices | AP14: =- (SUM(Totex!AP14:AP18) - Totex!AP18) -> -188.5225994 | AQ14: =- (SUM(Totex!AQ14:AQ18) - Totex!AQ18) -> -184.2755461 | AR14: =- (SUM(Totex!AR14:AR18) - Totex!AR18) -> -181.6353735 | AS14: =- (SUM(Totex!AS14:AS18) - Totex!AS18) -> -169.5896597 | AT14: =- (SUM(Totex!AT14:AT18) - Totex!AT18) -> -160.9633313
E15: Pre-TIM overspend (underspend) | G15: £m 18/19 prices | AP15: =SUM(AP13:AP14) -> 3.859720306 | AQ15: =SUM(AQ13:AQ14) -> 27.86275094 | AR15: =SUM(AR13:AR14) -> 39.01897538 | AS15: =SUM(AS13:AS14) -> 47.92694931 | AT15: =SUM(AT13:AT14) -> 61.30779911
E17: Funding Adjustment Rate (often referred to as 'sharing factor') | G17: % | AP17: =Input!$I$292 -> 0.5 | AQ17: =Input!$I$292 -> 0.5 | AR17: =Input!$I$292 -> 0.5 | AS17: =Input!$I$292 -> 0.5 | AT17: =Input!$I$292 -> 0.5
E19: Post-TIM overspend (underspend) | G19: £m 18/19 prices | AP19: =AP$17 * AP15 -> 1.929860153 | AQ19: =AQ$17 * AQ15 -> 13.93137547 | AR19: =AR$17 * AR15 -> 19.50948769 | AS19: =AS$17 * AS15 -> 23.96347465 | AT19: =AT$17 * AT15 -> 30.65389955
D21: Capitalisation 2 totex (excluding repex)
E23: Actual totex | G23: £m 18/19 prices | AP23: =SUM(Totex!AP63:AP67) - Totex!AP67 -> 11.60568659 | AQ23: =SUM(Totex!AQ63:AQ67) - Totex!AQ67 -> 7.010399069 | AR23: =SUM(Totex!AR63:AR67) - Totex!AR67 -> 8.022320916 | AS23: =SUM(Totex!AS63:AS67) - Totex!AS67 -> 26.18152162 | AT23: =SUM(Totex!AT63:AT67) - Totex!AT67 -> 25.95203484
E24: Less allowed totex | G24: £m 18/19 prices | AP24: =- (SUM(Totex!AP23:AP27) - Totex!AP27) -> -12.60508401 | AQ24: =- (SUM(Totex!AQ23:AQ27) - Totex!AQ27) -> -7.425865542 | AR24: =- (SUM(Totex!AR23:AR27) - Totex!AR27) -> -8.622512119 | AS24: =- (SUM(Totex!AS23:AS27) - Totex!AS27) -> -27.09982772 | AT24: =- (SUM(Totex!AT23:AT27) - Totex!AT27) -> -27.13496237
E25: Pre-TIM overspend (underspend) | G25: £m 18/19 prices | AP25: =SUM(AP23:AP24) -> -0.9993974149 | AQ25: =SUM(AQ23:AQ24) -> -0.4154664727 | AR25: =SUM(AR23:AR24) -> -0.6001912026 | AS25: =SUM(AS23:AS24) -> -0.9183060973 | AT25: =SUM(AT23:AT24) -> -1.182927534
E27: Funding Adjustment Rate (often referred to as 'sharing factor') | G27: % | AP27: =AP17 -> 0.5 | AQ27: =AQ17 -> 0.5 | AR27: 0.5 | AS27: 0.5 | AT27: 0.5
E29: Post-TIM overspend (underspend) | G29: £m 18/19 prices | AP29: =AP$27 * AP25 -> -0.4996987075 | AQ29: =AQ$27 * AQ25 -> -0.2077332364 | AR29: -0.3000956013 | AS29: -0.4591530486 | AT29: -0.591463767
D31: Repex
E33: Actual repex | G33: £m 18/19 prices | AP33: =Totex!AP75 -> 128.9884513 | AQ33: =Totex!AQ75 -> 154.0187259 | AR33: =Totex!AR75 -> 157.9569586 | AS33: =Totex!AS75 -> 158.9642744 | AT33: =Totex!AT75 -> 150.956243
E34: Less allowed repex | G34: £m 18/19 prices | AP34: =- Totex!AP36 -> -138.3129966 | AQ34: =- Totex!AQ36 -> -136.6515475 | AR34: =- Totex!AR36 -> -133.0630274 | AS34: =- Totex!AS36 -> -131.9758709 | AT34: =- Totex!AT36 -> -141.3722356
E35: Pre-TIM repex overspend (underspend) | G35: £m 18/19 prices | AP35: =SUM(AP33:AP34) -> -9.32454531 | AQ35: =SUM(AQ33:AQ34) -> 17.36717848 | AR35: =SUM(AR33:AR34) -> 24.89393126 | AS35: =SUM(AS33:AS34) -> 26.98840347 | AT35: =SUM(AT33:AT34) -> 9.584007414
E37: Funding Adjustment Rate (often referred to as 'sharing factor') | G37: % | AP37: =AP$17 -> 0.5 | AQ37: =AQ$17 -> 0.5 | AR37: =AR$17 -> 0.5 | AS37: =AS$17 -> 0.5 | AT37: =AT$17 -> 0.5
E39: Post-TIM repex overspend (underspend) | G39: £m 18/19 prices | AP39: =AP$37 * AP35 -> -4.662272655 | AQ39: =AQ$37 * AQ35 -> 8.683589238 | AR39: =AR$37 * AR35 -> 12.44696563 | AS39: =AS$37 * AS35 -> 13.49420174 | AT39: =AT$37 * AT35 -> 4.792003707
C41: Post-TIM totex
C42: Note: "Post-TIM overspend (underspend)" is added to the allowed totex value to give the Post-TIM totex allowance to be split into fast and slow money.
D44: Capitalisation 1 totex (excluding repex)
E46: Allowed totex | G46: £m 18/19 prices | AP46: =-AP14 -> 188.5225994 | AQ46: =-AQ14 -> 184.2755461 | AR46: =-AR14 -> 181.6353735 | AS46: =-AS14 -> 169.5896597 | AT46: =-AT14 -> 160.9633313
E47: Post-TIM overspend (underspend) | G47: £m 18/19 prices | AP47: =AP19 -> 1.929860153 | AQ47: =AQ19 -> 13.93137547 | AR47: =AR19 -> 19.50948769 | AS47: =AS19 -> 23.96347465 | AT47: =AT19 -> 30.65389955
E48: Post-TIM totex | G48: £m 18/19 prices | AP48: =SUM(AP46:AP47) -> 190.4524596 | AQ48: =SUM(AQ46:AQ47) -> 198.2069216 | AR48: =SUM(AR46:AR47) -> 201.1448612 | AS48: =SUM(AS46:AS47) -> 193.5531343 | AT48: =SUM(AT46:AT47) -> 191.6172309
D50: Capitalisation 2 totex (excluding repex)
E52: Allowed totex | G52: £m 18/19 prices | AP52: =-AP24 -> 12.60508401 | AQ52: =-AQ24 -> 7.425865542 | AR52: =-AR24 -> 8.622512119 | AS52: =-AS24 -> 27.09982772 | AT52: =-AT24 -> 27.13496237
E53: Post-TIM overspend (underspend) | G53: £m 18/19 prices | AP53: =AP29 -> -0.4996987075 | AQ53: =AQ29 -> -0.2077332364 | AR53: =AR29 -> -0.3000956013 | AS53: =AS29 -> -0.4591530486 | AT53: =AT29 -> -0.591463767
E54: Post-TIM totex | G54: £m 18/19 prices | AP54: =SUM(AP52:AP53) -> 12.1053853 | AQ54: =SUM(AQ52:AQ53) -> 7.218132305 | AR54: =SUM(AR52:AR53) -> 8.322416517 | AS54: =SUM(AS52:AS53) -> 26.64067467 | AT54: =SUM(AT52:AT53) -> 26.54349861
D56: Repex
E58: Allowed repex | G58: £m 18/19 prices | AP58: =-AP34 -> 138.3129966 | AQ58: =-AQ34 -> 136.6515475 | AR58: =-AR34 -> 133.0630274 | AS58: =-AS34 -> 131.9758709 | AT58: =-AT34 -> 141.3722356
E59: Post-TIM repex overspend (underspend) | G59: £m 18/19 prices | AP59: =AP39 -> -4.662272655 | AQ59: =AQ39 -> 8.683589238 | AR59: =AR39 -> 12.44696563 | AS59: =AS39 -> 13.49420174 | AT59: =AT39 -> 4.792003707
E60: Post-TIM repex | G60: £m 18/19 prices | AP60: =SUM(AP58:AP59) -> 133.6507239 | AQ60: =SUM(AQ58:AQ59) -> 145.3351367 | AR60: =SUM(AR58:AR59) -> 145.509993 | AS60: =SUM(AS58:AS59) -> 145.4700726 | AT60: =SUM(AT58:AT59) -> 146.1642393
B62: Capitalisation
B63: Note: Post-TIM totex (excluding repex) and repex are allocated into "fast" and "slow" elements based on a pre-set percentage split:
B64: - "fast money " is exported to the "Revenue" sheet where it is included as an element of "recalculated base revenue;" and
B65: - "slow money " is exported to the "Depn" sheet where it is added to RAV. Slow money is recovered over the life of the RAV through regulatory depreciation and return allowances.
C67: Separate capitalisation
D69: Capitalisation 1 totex (excluding repex)
E71: Post-TIM totex | G71: £m 18/19 prices | AP71: =AP48 -> 190.4524596 | AQ71: =AQ48 -> 198.2069216 | AR71: =AR48 -> 201.1448612 | AS71: =AS48 -> 193.5531343 | AT71: =AT48 -> 191.6172309
E72: Capitalisation rate 1 | G72: % | AP72: =Input!AP288 -> 0.29 | AQ72: =Input!AQ288 -> 0.29 | AR72: =Input!AR288 -> 0.29 | AS72: =Input!AS288 -> 0.29 | AT72: =Input!AT288 -> 0.29
E73: Fast pot expenditure | G73: £m 18/19 prices | AP73: =AP71-AP74 -> 135.2212463 | AQ73: =AQ71-AQ74 -> 140.7269143 | AR73: =AR71-AR74 -> 142.8128514 | AS73: =AS71-AS74 -> 137.4227254 | AT73: =AT71-AT74 -> 136.0482339
E74: Slow pot expenditure | G74: £m 18/19 prices | AP74: =AP71 * AP72 -> 55.23121327 | AQ74: =AQ71 * AQ72 -> 57.48000727 | AR74: =AR71 * AR72 -> 58.33200974 | AS74: =AS71 * AS72 -> 56.13040896 | AT74: =AT71 * AT72 -> 55.56899696
D76: Capitalisation 2 totex (excluding repex)
E78: Post-TIM totex | G78: £m 18/19 prices | AP78: =AP54 -> 12.1053853 | AQ78: =AQ54 -> 7.218132305 | AR78: =AR54 -> 8.322416517 | AS78: =AS54 -> 26.64067467 | AT78: =AT54 -> 26.54349861
E79: Capitalisation rate 2 | G79: % | AP79: =Input!AP289 -> 0.7 | AQ79: =Input!AQ289 -> 0.7 | AR79: =Input!AR289 -> 0.7 | AS79: =Input!AS289 -> 0.7 | AT79: =Input!AT289 -> 0.7
E80: Fast pot expenditure | G80: £m 18/19 prices | AP80: =AP78-AP81 -> 3.63161559 | AQ80: =AQ78-AQ81 -> 2.165439692 | AR80: =AR78-AR81 -> 2.496724955 | AS80: =AS78-AS81 -> 7.992202402 | AT80: =AT78-AT81 -> 7.963049582
E81: Slow pot expenditure | G81: £m 18/19 prices | AP81: =AP78 * AP79 -> 8.473769709 | AQ81: =AQ78 * AQ79 -> 5.052692614 | AR81: =AR78 * AR79 -> 5.825691562 | AS81: =AS78 * AS79 -> 18.64847227 | AT81: =AT78 * AT79 -> 18.58044902
D83: Repex
E85: Post-TIM repex | G85: £m 18/19 prices | AP85: =AP60 -> 133.6507239 | AQ85: =AQ60 -> 145.3351367 | AR85: =AR60 -> 145.509993 | AS85: =AS60 -> 145.4700726 | AT85: =AT60 -> 146.1642393
E86: Capitalisation rate of repex | G86: % | AP86: =Input!AP290 -> 1 | AQ86: =Input!AQ290 -> 1 | AR86: =Input!AR290 -> 1 | AS86: =Input!AS290 -> 1 | AT86: =Input!AT290 -> 1
E87: Fast pot expenditure | G87: £m 18/19 prices | AP87: =AP85-AP88 -> 0 | AQ87: =AQ85-AQ88 -> 0 | AR87: =AR85-AR88 -> 0 | AS87: =AS85-AS88 -> 0 | AT87: =AT85-AT88 -> 0
E88: Slow pot expenditure | G88: £m 18/19 prices | AP88: =AP85 * AP86 -> 133.6507239 | AQ88: =AQ85 * AQ86 -> 145.3351367 | AR88: =AR85 * AR86 -> 145.509993 | AS88: =AS85 * AS86 -> 145.4700726 | AT88: =AT85 * AT86 -> 146.1642393
C90: Totex
E92: Fast pot expenditure | G92: £m 18/19 prices | AP92: =AP73 + AP80 + AP87 -> 138.8528619 | AQ92: =AQ73 + AQ80 + AQ87 -> 142.892354 | AR92: 145.3095764 | AS92: 145.4149278 | AT92: 144.0112835
E94: Slow pot expenditure | G94: £m 18/19 prices | AP94: =AP74 + AP81 + AP88 -> 197.3557069 | AQ94: =AQ74 + AQ81 + AQ88 -> 207.8678366 | AR94: 209.6676943 | AS94: 220.2489539 | AT94: 220.3136853
B96: End of sheet

Sheet Depn
A1: Regulatory Depreciation
B2: =UserInterface!G17 -> East
E3: Parameter | G3: Units | I3: Constant | AP3: Annual values
E4: PCFM year ending | I4: =UserInterface!$G$10 -> 2026-03-31 | K4: 1991-03-31 | L4: 1992-03-31 | M4: 1993-03-31 | N4: 1994-03-31 | O4: 1995-03-31 | P4: 1996-03-31 | Q4: 1997-03-31 | R4: 1998-03-31 | S4: 1999-03-31 | T4: 2000-03-31 | U4: 2001-03-31 | V4: 2002-03-31 | W4: 2003-03-31 | X4: 2004-03-31 | Y4: 2005-03-31 | Z4: 2006-03-31 | AA4: 2007-03-31 | AB4: 2008-03-31 | AC4: 2009-03-31 | AD4: 2010-03-31 | AE4: 2011-03-31 | AF4: 2012-03-31 | AG4: 2013-03-31 | AH4: 2014-03-31 | AI4: 2015-03-31 | AJ4: 2016-03-31 | AK4: 2017-03-31 | AL4: 2018-03-31 | AM4: 2019-03-31 | AN4: 2020-03-31 | AO4: 2021-03-31 | AP4: 2022-03-31 | AQ4: 2023-03-31 | AR4: 2024-03-31 | AS4: 2025-03-31 | AT4: 2026-03-31
B6: Regulatory depreciation
C8: Net RAV additions (after disposals)
C9: Note: Additions to RAV are combined before feeding into the depreciation calculations. Disposals are treated as negative additions. Pre-RIIO values are used to build up the post-vesting RAV from vesting.
E11: Slow money | G11: £m 18/19 prices | AP11: =TIM!AP74 + TIM!AP81 + TIM!AP88 -> 197.3557069 | AQ11: =TIM!AQ74 + TIM!AQ81 + TIM!AQ88 -> 207.8678366 | AR11: =TIM!AR74 + TIM!AR81 + TIM!AR88 -> 209.6676943 | AS11: =TIM!AS74 + TIM!AS81 + TIM!AS88 -> 220.2489539 | AT11: =TIM!AT74 + TIM!AT81 + TIM!AT88 -> 220.3136853
E12: Net adjustments | G12: £m 18/19 prices | AP12: =SUM(Input!AP554:AP554) -> 0 | AQ12: =SUM(Input!AQ554:AQ554) -> 0 | AR12: =SUM(Input!AR554:AR554) -> 0 | AS12: =SUM(Input!AS554:AS554) -> 0 | AT12: =SUM(Input!AT554:AT554) -> 0
E13: Pre-RIIO net RAV additions (after disposals) | G13: £m 18/19 prices | W13: =Input!W551 -> 107.538296 | X13: =Input!X551 -> 77.16936388 | Y13: =Input!Y551 -> 78.92988168 | Z13: =Input!Z551 -> 78.97862175 | AA13: =Input!AA551 -> 73.81596205 | AB13: =Input!AB551 -> 169.8011959 | AC13: =Input!AC551 -> 141.1251649 | AD13: =Input!AD551 -> 160.8678961 | AE13: =Input!AE551 -> 207.4385935 | AF13: =Input!AF551 -> 199.9206209 | AG13: =Input!AG551 -> 145.6650414
E14: RIIO-1 net RAV additions (after disposals) | G14: £m 18/19 prices | AH14: =Input!AH553 -> 135.6629329 | AI14: =Input!AI553 -> 131.9249083 | AJ14: =Input!AJ553 -> 141.9941173 | AK14: =Input!AK553 -> 148.9755571 | AL14: =Input!AL553 -> 162.1920663 | AM14: =Input!AM553 -> 158.4101727 | AN14: =Input!AN553 -> 190.652708 | AO14: =Input!AO553 -> 215.6004346
E15: RIIO-1 disposals true-up | G15: £m 18/19 prices | AP15: =Input!AP558 -> 4.667189479 | AQ15: =Input!AQ558 -> -0.1846002721 | AR15: =Input!AR558 -> -0.3463044252 | AS15: =Input!AS558 -> -0.9409859807 | AT15: =Input!AT558 -> 0.2460316461
E16: Net RAV additions (after disposals) | G16: £m 18/19 prices | J16: > | W16: =SUM(W11:W15) -> 107.538296 | X16: =SUM(X11:X15) -> 77.16936388 | Y16: 78.92988168 | Z16: 78.97862175 | AA16: 73.81596205 | AB16: 169.8011959 | AC16: 141.1251649 | AD16: 160.8678961 | AE16: 207.4385935 | AF16: 199.9206209 | AG16: 145.6650414 | AH16: 135.6629329 | AI16: 131.9249083 | AJ16: 141.9941173 | AK16: 148.9755571 | AL16: 162.1920663 | AM16: 158.4101727 | AN16: 190.652708 | AO16: 215.6004346 | AP16: =SUM(AP11:AP15) -> 202.0228964 | AQ16: 207.6832363 | AR16: 209.3213899 | AS16: 219.3079679 | AT16: 220.5597169
C18: Net depreciation additions (after disposals)
C19: Note:
E21: Pre-RIIO transfers to depreciation | G21: £m 18/19 prices | J21: > | V21: =Input!V552 -> 0 | W21: =Input!W552 -> 0 | X21: =Input!X552 -> 0 | Y21: =Input!Y552 -> 0 | Z21: =Input!Z552 -> 0 | AA21: =Input!AA552 -> 0 | AB21: =Input!AB552 -> 2.643840093 | AC21: =Input!AC552 -> 2.722556267 | AD21: =Input!AD552 -> 2.260038625 | AE21: =Input!AE552 -> 5.711446376 | AF21: =Input!AF552 -> 5.160825263 | AG21: =Input!AG552 -> 0
C23: Pre-vesting depreciation
C24: Note: The following depreciation factor is used to depreciate the pre-vesting balance on the "Return&RAV" sheet.
E26: Pre-vesting asset life | G26: years | I26: =Input!I541 -> 56
E27: Sum of digits | G27: integer | I27: =I26 * (1 + I26) / 2 -> 1596
E28: Years of pre-vesting depreciation remaining | G28: years | AH28: =Input!AH543 -> 45 | AI28: =Input!AI543 -> 44 | AJ28: =Input!AJ543 -> 43 | AK28: =Input!AK543 -> 42 | AL28: =Input!AL543 -> 41 | AM28: =Input!AM543 -> 40 | AN28: =Input!AN543 -> 39 | AO28: =Input!AO543 -> 38 | AP28: =Input!AP543 -> 37 | AQ28: =Input!AQ543 -> 36 | AR28: =Input!AR543 -> 35 | AS28: =Input!AS543 -> 34 | AT28: =Input!AT543 -> 33
E30: Sum-of-digits pre-vesting depreciation factor | G30: % | AH30: =AH28 / $I27 -> 0.02819548872 | AI30: 0.02756892231 | AJ30: 0.02694235589 | AK30: 0.02631578947 | AL30: 0.02568922306 | AM30: 0.02506265664 | AN30: 0.02443609023 | AO30: 0.02380952381 | AP30: =AP28 / $I27 -> 0.02318295739 | AQ30: 0.02255639098 | AR30: 0.02192982456 | AS30: 0.02130325815 | AT30: 0.02067669173
C32: Sum-of-digit post-vesting depreciation
C33: Note: Sum-of-digit depreciation calculations provide the main allowed depreciation after the start of RIIO but are also used to establish the "RAV differential" generated before the start of the price control.
D35: Depreciation parameters
E37: Post-vesting asset life | G37: years | I37: =Input!$I$548 -> 45
E38: Post-vesting asset life sum of digits | G38: integer | I38: =I37 * (I37 + 1) / 2 -> 1035
E39: Sum-of-digit post-vesting depreciation applied | G39: text | J39: > | X39: =X$4 >= $I110 -> FALSE | Y39: FALSE | Z39: FALSE | AA39: FALSE | AB39: FALSE | AC39: FALSE | AD39: FALSE | AE39: FALSE | AF39: FALSE | AG39: FALSE | AH39: TRUE | AI39: TRUE | AJ39: TRUE | AK39: TRUE | AL39: TRUE | AM39: TRUE | AN39: TRUE | AO39: TRUE | AP39: TRUE | AQ39: TRUE | AR39: TRUE | AS39: TRUE | AT39: TRUE
D41: Depreciation schedule
E43: Sum-of-digit depreciation of additions from year ending | I43: Net additions
E44: 2003-03-31 | G44: £m 18/19 prices | I44: =I80 -> 107.538296 | J44: > | X44: =$I44 * ($I$37 - COUNT($W44:W44)) / $I$38 -> 4.675578089 | Y44: =$I44 * ($I$37 - COUNT($W44:X44)) / $I$38 -> 4.571676354 | Z44: =$I44 * ($I$37 - COUNT($W44:Y44)) / $I$38 -> 4.467774618 | AA44: =$I44 * ($I$37 - COUNT($W44:Z44)) / $I$38 -> 4.363872883 | AB44: =$I44 * ($I$37 - COUNT($W44:AA44)) / $I$38 -> 4.259971148 | AC44: =$I44 * ($I$37 - COUNT($W44:AB44)) / $I$38 -> 4.156069413 | AD44: =$I44 * ($I$37 - COUNT($W44:AC44)) / $I$38 -> 4.052167677 | AE44: =$I44 * ($I$37 - COUNT($W44:AD44)) / $I$38 -> 3.948265942 | AF44: =$I44 * ($I$37 - COUNT($W44:AE44)) / $I$38 -> 3.844364207 | AG44: =$I44 * ($I$37 - COUNT($W44:AF44)) / $I$38 -> 3.740462471 | AH44: =$I44 * ($I$37 - COUNT($W44:AG44)) / $I$38 -> 3.636560736 | AI44: =$I44 * ($I$37 - COUNT($W44:AH44)) / $I$38 -> 3.532659001 | AJ44: =$I44 * ($I$37 - COUNT($W44:AI44)) / $I$38 -> 3.428757265 | AK44: =$I44 * ($I$37 - COUNT($W44:AJ44)) / $I$38 -> 3.32485553 | AL44: =$I44 * ($I$37 - COUNT($W44:AK44)) / $I$38 -> 3.220953795 | AM44: =$I44 * ($I$37 - COUNT($W44:AL44)) / $I$38 -> 3.117052059 | AN44: =$I44 * ($I$37 - COUNT($W44:AM44)) / $I$38 -> 3.013150324 | AO44: =$I44 * ($I$37 - COUNT($W44:AN44)) / $I$38 -> 2.909248589 | AP44: =$I44 * ($I$37 - COUNT($W44:AO44)) / $I$38 -> 2.805346853 | AQ44: =$I44 * ($I$37 - COUNT($W44:AP44)) / $I$38 -> 2.701445118 | AR44: =$I44 * ($I$37 - COUNT($W44:AQ44)) / $I$38 -> 2.597543383 | AS44: =$I44 * ($I$37 - COUNT($W44:AR44)) / $I$38 -> 2.493641648 | AT44: =$I44 * ($I$37 - COUNT($W44:AS44)) / $I$38 -> 2.389739912
E45: 2004-03-31 | G45: £m 18/19 prices | I45: =I81 -> 77.16936388 | J45: > | Y45: =$I45 * ($I$37 - COUNT($W45:X45)) / $I$38 -> 3.355189734 | Z45: =$I45 * ($I$37 - COUNT($W45:Y45)) / $I$38 -> 3.280629962 | AA45: =$I45 * ($I$37 - COUNT($W45:Z45)) / $I$38 -> 3.20607019 | AB45: =$I45 * ($I$37 - COUNT($W45:AA45)) / $I$38 -> 3.131510418 | AC45: =$I45 * ($I$37 - COUNT($W45:AB45)) / $I$38 -> 3.056950646 | AD45: =$I45 * ($I$37 - COUNT($W45:AC45)) / $I$38 -> 2.982390874 | AE45: =$I45 * ($I$37 - COUNT($W45:AD45)) / $I$38 -> 2.907831103 | AF45: =$I45 * ($I$37 - COUNT($W45:AE45)) / $I$38 -> 2.833271331 | AG45: =$I45 * ($I$37 - COUNT($W45:AF45)) / $I$38 -> 2.758711559 | AH45: =$I45 * ($I$37 - COUNT($W45:AG45)) / $I$38 -> 2.684151787 | AI45: =$I45 * ($I$37 - COUNT($W45:AH45)) / $I$38 -> 2.609592015 | AJ45: =$I45 * ($I$37 - COUNT($W45:AI45)) / $I$38 -> 2.535032243 | AK45: =$I45 * ($I$37 - COUNT($W45:AJ45)) / $I$38 -> 2.460472471 | AL45: =$I45 * ($I$37 - COUNT($W45:AK45)) / $I$38 -> 2.3859127 | AM45: =$I45 * ($I$37 - COUNT($W45:AL45)) / $I$38 -> 2.311352928 | AN45: =$I45 * ($I$37 - COUNT($W45:AM45)) / $I$38 -> 2.236793156 | AO45: =$I45 * ($I$37 - COUNT($W45:AN45)) / $I$38 -> 2.162233384 | AP45: =$I45 * ($I$37 - COUNT($W45:AO45)) / $I$38 -> 2.087673612 | AQ45: =$I45 * ($I$37 - COUNT($W45:AP45)) / $I$38 -> 2.01311384 | AR45: =$I45 * ($I$37 - COUNT($W45:AQ45)) / $I$38 -> 1.938554068 | AS45: =$I45 * ($I$37 - COUNT($W45:AR45)) / $I$38 -> 1.863994297 | AT45: =$I45 * ($I$37 - COUNT($W45:AS45)) / $I$38 -> 1.789434525
E46: 2005-03-31 | G46: £m 18/19 prices | I46: 78.92988168 | J46: > | Z46: =$I46 * ($I$37 - COUNT($W46:Y46)) / $I$38 -> 3.431733986 | AA46: =$I46 * ($I$37 - COUNT($W46:Z46)) / $I$38 -> 3.355473231 | AB46: =$I46 * ($I$37 - COUNT($W46:AA46)) / $I$38 -> 3.279212476 | AC46: =$I46 * ($I$37 - COUNT($W46:AB46)) / $I$38 -> 3.202951721 | AD46: =$I46 * ($I$37 - COUNT($W46:AC46)) / $I$38 -> 3.126690965 | AE46: =$I46 * ($I$37 - COUNT($W46:AD46)) / $I$38 -> 3.05043021 | AF46: =$I46 * ($I$37 - COUNT($W46:AE46)) / $I$38 -> 2.974169455 | AG46: =$I46 * ($I$37 - COUNT($W46:AF46)) / $I$38 -> 2.8979087 | AH46: =$I46 * ($I$37 - COUNT($W46:AG46)) / $I$38 -> 2.821647944 | AI46: =$I46 * ($I$37 - COUNT($W46:AH46)) / $I$38 -> 2.745387189 | AJ46: =$I46 * ($I$37 - COUNT($W46:AI46)) / $I$38 -> 2.669126434 | AK46: =$I46 * ($I$37 - COUNT($W46:AJ46)) / $I$38 -> 2.592865679 | AL46: =$I46 * ($I$37 - COUNT($W46:AK46)) / $I$38 -> 2.516604923 | AM46: =$I46 * ($I$37 - COUNT($W46:AL46)) / $I$38 -> 2.440344168 | AN46: =$I46 * ($I$37 - COUNT($W46:AM46)) / $I$38 -> 2.364083413 | AO46: =$I46 * ($I$37 - COUNT($W46:AN46)) / $I$38 -> 2.287822658 | AP46: =$I46 * ($I$37 - COUNT($W46:AO46)) / $I$38 -> 2.211561902 | AQ46: =$I46 * ($I$37 - COUNT($W46:AP46)) / $I$38 -> 2.135301147 | AR46: =$I46 * ($I$37 - COUNT($W46:AQ46)) / $I$38 -> 2.059040392 | AS46: =$I46 * ($I$37 - COUNT($W46:AR46)) / $I$38 -> 1.982779637 | AT46: =$I46 * ($I$37 - COUNT($W46:AS46)) / $I$38 -> 1.906518881
E47: 2006-03-31 | G47: £m 18/19 prices | I47: 78.97862175 | J47: > | AA47: =$I47 * ($I$37 - COUNT($W47:Z47)) / $I$38 -> 3.433853119 | AB47: =$I47 * ($I$37 - COUNT($W47:AA47)) / $I$38 -> 3.357545272 | AC47: =$I47 * ($I$37 - COUNT($W47:AB47)) / $I$38 -> 3.281237425 | AD47: =$I47 * ($I$37 - COUNT($W47:AC47)) / $I$38 -> 3.204929578 | AE47: =$I47 * ($I$37 - COUNT($W47:AD47)) / $I$38 -> 3.128621731 | AF47: =$I47 * ($I$37 - COUNT($W47:AE47)) / $I$38 -> 3.052313884 | AG47: =$I47 * ($I$37 - COUNT($W47:AF47)) / $I$38 -> 2.976006037 | AH47: =$I47 * ($I$37 - COUNT($W47:AG47)) / $I$38 -> 2.89969819 | AI47: =$I47 * ($I$37 - COUNT($W47:AH47)) / $I$38 -> 2.823390343 | AJ47: =$I47 * ($I$37 - COUNT($W47:AI47)) / $I$38 -> 2.747082496 | AK47: =$I47 * ($I$37 - COUNT($W47:AJ47)) / $I$38 -> 2.670774648 | AL47: =$I47 * ($I$37 - COUNT($W47:AK47)) / $I$38 -> 2.594466801 | AM47: =$I47 * ($I$37 - COUNT($W47:AL47)) / $I$38 -> 2.518158954 | AN47: =$I47 * ($I$37 - COUNT($W47:AM47)) / $I$38 -> 2.441851107 | AO47: =$I47 * ($I$37 - COUNT($W47:AN47)) / $I$38 -> 2.36554326 | AP47: =$I47 * ($I$37 - COUNT($W47:AO47)) / $I$38 -> 2.289235413 | AQ47: =$I47 * ($I$37 - COUNT($W47:AP47)) / $I$38 -> 2.212927566 | AR47: =$I47 * ($I$37 - COUNT($W47:AQ47)) / $I$38 -> 2.136619719 | AS47: =$I47 * ($I$37 - COUNT($W47:AR47)) / $I$38 -> 2.060311872 | AT47: =$I47 * ($I$37 - COUNT($W47:AS47)) / $I$38 -> 1.984004025
E48: 2007-03-31 | G48: £m 18/19 prices | I48: 73.81596205 | J48: > | AB48: =$I48 * ($I$37 - COUNT($W48:AA48)) / $I$38 -> 3.209389654 | AC48: =$I48 * ($I$37 - COUNT($W48:AB48)) / $I$38 -> 3.138069884 | AD48: =$I48 * ($I$37 - COUNT($W48:AC48)) / $I$38 -> 3.066750114 | AE48: =$I48 * ($I$37 - COUNT($W48:AD48)) / $I$38 -> 2.995430344 | AF48: =$I48 * ($I$37 - COUNT($W48:AE48)) / $I$38 -> 2.924110574 | AG48: =$I48 * ($I$37 - COUNT($W48:AF48)) / $I$38 -> 2.852790804 | AH48: =$I48 * ($I$37 - COUNT($W48:AG48)) / $I$38 -> 2.781471034 | AI48: =$I48 * ($I$37 - COUNT($W48:AH48)) / $I$38 -> 2.710151264 | AJ48: =$I48 * ($I$37 - COUNT($W48:AI48)) / $I$38 -> 2.638831494 | AK48: =$I48 * ($I$37 - COUNT($W48:AJ48)) / $I$38 -> 2.567511723 | AL48: =$I48 * ($I$37 - COUNT($W48:AK48)) / $I$38 -> 2.496191953 | AM48: =$I48 * ($I$37 - COUNT($W48:AL48)) / $I$38 -> 2.424872183 | AN48: =$I48 * ($I$37 - COUNT($W48:AM48)) / $I$38 -> 2.353552413 | AO48: =$I48 * ($I$37 - COUNT($W48:AN48)) / $I$38 -> 2.282232643 | AP48: =$I48 * ($I$37 - COUNT($W48:AO48)) / $I$38 -> 2.210912873 | AQ48: =$I48 * ($I$37 - COUNT($W48:AP48)) / $I$38 -> 2.139593103 | AR48: =$I48 * ($I$37 - COUNT($W48:AQ48)) / $I$38 -> 2.068273333 | AS48: =$I48 * ($I$37 - COUNT($W48:AR48)) / $I$38 -> 1.996953563 | AT48: =$I48 * ($I$37 - COUNT($W48:AS48)) / $I$38 -> 1.925633793
E49: 2008-03-31 | G49: £m 18/19 prices | I49: 169.8011959 | J49: > | AC49: =$I49 * ($I$37 - COUNT($W49:AB49)) / $I$38 -> 7.382660692 | AD49: =$I49 * ($I$37 - COUNT($W49:AC49)) / $I$38 -> 7.218601566 | AE49: =$I49 * ($I$37 - COUNT($W49:AD49)) / $I$38 -> 7.054542439 | AF49: =$I49 * ($I$37 - COUNT($W49:AE49)) / $I$38 -> 6.890483313 | AG49: =$I49 * ($I$37 - COUNT($W49:AF49)) / $I$38 -> 6.726424186 | AH49: =$I49 * ($I$37 - COUNT($W49:AG49)) / $I$38 -> 6.56236506 | AI49: =$I49 * ($I$37 - COUNT($W49:AH49)) / $I$38 -> 6.398305933 | AJ49: =$I49 * ($I$37 - COUNT($W49:AI49)) / $I$38 -> 6.234246807 | AK49: =$I49 * ($I$37 - COUNT($W49:AJ49)) / $I$38 -> 6.07018768 | AL49: =$I49 * ($I$37 - COUNT($W49:AK49)) / $I$38 -> 5.906128554 | AM49: =$I49 * ($I$37 - COUNT($W49:AL49)) / $I$38 -> 5.742069427 | AN49: =$I49 * ($I$37 - COUNT($W49:AM49)) / $I$38 -> 5.578010301 | AO49: =$I49 * ($I$37 - COUNT($W49:AN49)) / $I$38 -> 5.413951174 | AP49: =$I49 * ($I$37 - COUNT($W49:AO49)) / $I$38 -> 5.249892048 | AQ49: =$I49 * ($I$37 - COUNT($W49:AP49)) / $I$38 -> 5.085832921 | AR49: =$I49 * ($I$37 - COUNT($W49:AQ49)) / $I$38 -> 4.921773795 | AS49: =$I49 * ($I$37 - COUNT($W49:AR49)) / $I$38 -> 4.757714668 | AT49: =$I49 * ($I$37 - COUNT($W49:AS49)) / $I$38 -> 4.593655542
E50: 2009-03-31 | G50: £m 18/19 prices | I50: 141.1251649 | J50: > | AD50: =$I50 * ($I$37 - COUNT($W50:AC50)) / $I$38 -> 6.135876734 | AE50: =$I50 * ($I$37 - COUNT($W50:AD50)) / $I$38 -> 5.999523918 | AF50: =$I50 * ($I$37 - COUNT($W50:AE50)) / $I$38 -> 5.863171102 | AG50: =$I50 * ($I$37 - COUNT($W50:AF50)) / $I$38 -> 5.726818285 | AH50: =$I50 * ($I$37 - COUNT($W50:AG50)) / $I$38 -> 5.590465469 | AI50: =$I50 * ($I$37 - COUNT($W50:AH50)) / $I$38 -> 5.454112653 | AJ50: =$I50 * ($I$37 - COUNT($W50:AI50)) / $I$38 -> 5.317759836 | AK50: =$I50 * ($I$37 - COUNT($W50:AJ50)) / $I$38 -> 5.18140702 | AL50: =$I50 * ($I$37 - COUNT($W50:AK50)) / $I$38 -> 5.045054204 | AM50: =$I50 * ($I$37 - COUNT($W50:AL50)) / $I$38 -> 4.908701387 | AN50: =$I50 * ($I$37 - COUNT($W50:AM50)) / $I$38 -> 4.772348571 | AO50: =$I50 * ($I$37 - COUNT($W50:AN50)) / $I$38 -> 4.635995755 | AP50: =$I50 * ($I$37 - COUNT($W50:AO50)) / $I$38 -> 4.499642938 | AQ50: =$I50 * ($I$37 - COUNT($W50:AP50)) / $I$38 -> 4.363290122 | AR50: =$I50 * ($I$37 - COUNT($W50:AQ50)) / $I$38 -> 4.226937306 | AS50: =$I50 * ($I$37 - COUNT($W50:AR50)) / $I$38 -> 4.090584489 | AT50: =$I50 * ($I$37 - COUNT($W50:AS50)) / $I$38 -> 3.954231673
E51: 2010-03-31 | G51: £m 18/19 prices | I51: 160.8678961 | J51: > | AE51: =$I51 * ($I$37 - COUNT($W51:AD51)) / $I$38 -> 6.994256354 | AF51: =$I51 * ($I$37 - COUNT($W51:AE51)) / $I$38 -> 6.838828435 | AG51: =$I51 * ($I$37 - COUNT($W51:AF51)) / $I$38 -> 6.683400516 | AH51: =$I51 * ($I$37 - COUNT($W51:AG51)) / $I$38 -> 6.527972597 | AI51: =$I51 * ($I$37 - COUNT($W51:AH51)) / $I$38 -> 6.372544678 | AJ51: =$I51 * ($I$37 - COUNT($W51:AI51)) / $I$38 -> 6.217116759 | AK51: =$I51 * ($I$37 - COUNT($W51:AJ51)) / $I$38 -> 6.06168884 | AL51: =$I51 * ($I$37 - COUNT($W51:AK51)) / $I$38 -> 5.906260921 | AM51: =$I51 * ($I$37 - COUNT($W51:AL51)) / $I$38 -> 5.750833002 | AN51: =$I51 * ($I$37 - COUNT($W51:AM51)) / $I$38 -> 5.595405083 | AO51: =$I51 * ($I$37 - COUNT($W51:AN51)) / $I$38 -> 5.439977164 | AP51: =$I51 * ($I$37 - COUNT($W51:AO51)) / $I$38 -> 5.284549245 | AQ51: =$I51 * ($I$37 - COUNT($W51:AP51)) / $I$38 -> 5.129121326 | AR51: =$I51 * ($I$37 - COUNT($W51:AQ51)) / $I$38 -> 4.973693407 | AS51: =$I51 * ($I$37 - COUNT($W51:AR51)) / $I$38 -> 4.818265488 | AT51: =$I51 * ($I$37 - COUNT($W51:AS51)) / $I$38 -> 4.662837569
E52: 2011-03-31 | G52: £m 18/19 prices | I52: 207.4385935 | J52: > | AF52: =$I52 * ($I$37 - COUNT($W52:AE52)) / $I$38 -> 9.019069283 | AG52: =$I52 * ($I$37 - COUNT($W52:AF52)) / $I$38 -> 8.818645521 | AH52: =$I52 * ($I$37 - COUNT($W52:AG52)) / $I$38 -> 8.618221759 | AI52: =$I52 * ($I$37 - COUNT($W52:AH52)) / $I$38 -> 8.417797997 | AJ52: =$I52 * ($I$37 - COUNT($W52:AI52)) / $I$38 -> 8.217374235 | AK52: =$I52 * ($I$37 - COUNT($W52:AJ52)) / $I$38 -> 8.016950474 | AL52: =$I52 * ($I$37 - COUNT($W52:AK52)) / $I$38 -> 7.816526712 | AM52: =$I52 * ($I$37 - COUNT($W52:AL52)) / $I$38 -> 7.61610295 | AN52: =$I52 * ($I$37 - COUNT($W52:AM52)) / $I$38 -> 7.415679188 | AO52: =$I52 * ($I$37 - COUNT($W52:AN52)) / $I$38 -> 7.215255426 | AP52: =$I52 * ($I$37 - COUNT($W52:AO52)) / $I$38 -> 7.014831664 | AQ52: =$I52 * ($I$37 - COUNT($W52:AP52)) / $I$38 -> 6.814407903 | AR52: =$I52 * ($I$37 - COUNT($W52:AQ52)) / $I$38 -> 6.613984141 | AS52: =$I52 * ($I$37 - COUNT($W52:AR52)) / $I$38 -> 6.413560379 | AT52: =$I52 * ($I$37 - COUNT($W52:AS52)) / $I$38 -> 6.213136617
E53: 2012-03-31 | G53: £m 18/19 prices | I53: 199.9206209 | J53: > | AG53: =$I53 * ($I$37 - COUNT($W53:AF53)) / $I$38 -> 8.69220091 | AH53: =$I53 * ($I$37 - COUNT($W53:AG53)) / $I$38 -> 8.49904089 | AI53: =$I53 * ($I$37 - COUNT($W53:AH53)) / $I$38 -> 8.30588087 | AJ53: =$I53 * ($I$37 - COUNT($W53:AI53)) / $I$38 -> 8.112720849 | AK53: =$I53 * ($I$37 - COUNT($W53:AJ53)) / $I$38 -> 7.919560829 | AL53: =$I53 * ($I$37 - COUNT($W53:AK53)) / $I$38 -> 7.726400809 | AM53: =$I53 * ($I$37 - COUNT($W53:AL53)) / $I$38 -> 7.533240789 | AN53: =$I53 * ($I$37 - COUNT($W53:AM53)) / $I$38 -> 7.340080769 | AO53: =$I53 * ($I$37 - COUNT($W53:AN53)) / $I$38 -> 7.146920748 | AP53: =$I53 * ($I$37 - COUNT($W53:AO53)) / $I$38 -> 6.953760728 | AQ53: =$I53 * ($I$37 - COUNT($W53:AP53)) / $I$38 -> 6.760600708 | AR53: =$I53 * ($I$37 - COUNT($W53:AQ53)) / $I$38 -> 6.567440688 | AS53: =$I53 * ($I$37 - COUNT($W53:AR53)) / $I$38 -> 6.374280667 | AT53: =$I53 * ($I$37 - COUNT($W53:AS53)) / $I$38 -> 6.181120647
E54: 2013-03-31 | G54: £m 18/19 prices | I54: 145.6650414 | AH54: =$I54 * ($I$37 - COUNT($W54:AG54)) / $I$38 -> 6.33326267 | AI54: =$I54 * ($I$37 - COUNT($W54:AH54)) / $I$38 -> 6.192523499 | AJ54: =$I54 * ($I$37 - COUNT($W54:AI54)) / $I$38 -> 6.051784329 | AK54: =$I54 * ($I$37 - COUNT($W54:AJ54)) / $I$38 -> 5.911045159 | AL54: =$I54 * ($I$37 - COUNT($W54:AK54)) / $I$38 -> 5.770305988 | AM54: =$I54 * ($I$37 - COUNT($W54:AL54)) / $I$38 -> 5.629566818 | AN54: =$I54 * ($I$37 - COUNT($W54:AM54)) / $I$38 -> 5.488827647 | AO54: =$I54 * ($I$37 - COUNT($W54:AN54)) / $I$38 -> 5.348088477 | AP54: =$I54 * ($I$37 - COUNT($W54:AO54)) / $I$38 -> 5.207349306 | AQ54: =$I54 * ($I$37 - COUNT($W54:AP54)) / $I$38 -> 5.066610136 | AR54: =$I54 * ($I$37 - COUNT($W54:AQ54)) / $I$38 -> 4.925870965 | AS54: =$I54 * ($I$37 - COUNT($W54:AR54)) / $I$38 -> 4.785131795 | AT54: =$I54 * ($I$37 - COUNT($W54:AS54)) / $I$38 -> 4.644392625
E55: 2014-03-31 | G55: £m 18/19 prices | I55: 135.6629329 | AI55: =$I55 * ($I$37 - COUNT($W55:AH55)) / $I$38 -> 5.898388386 | AJ55: =$I55 * ($I$37 - COUNT($W55:AI55)) / $I$38 -> 5.767313088 | AK55: =$I55 * ($I$37 - COUNT($W55:AJ55)) / $I$38 -> 5.636237791 | AL55: =$I55 * ($I$37 - COUNT($W55:AK55)) / $I$38 -> 5.505162494 | AM55: =$I55 * ($I$37 - COUNT($W55:AL55)) / $I$38 -> 5.374087196 | AN55: =$I55 * ($I$37 - COUNT($W55:AM55)) / $I$38 -> 5.243011899 | AO55: =$I55 * ($I$37 - COUNT($W55:AN55)) / $I$38 -> 5.111936601 | AP55: =$I55 * ($I$37 - COUNT($W55:AO55)) / $I$38 -> 4.980861304 | AQ55: =$I55 * ($I$37 - COUNT($W55:AP55)) / $I$38 -> 4.849786006 | AR55: =$I55 * ($I$37 - COUNT($W55:AQ55)) / $I$38 -> 4.718710709 | AS55: =$I55 * ($I$37 - COUNT($W55:AR55)) / $I$38 -> 4.587635411 | AT55: =$I55 * ($I$37 - COUNT($W55:AS55)) / $I$38 -> 4.456560114
E56: 2015-03-31 | G56: £m 18/19 prices | I56: 131.9249083 | AJ56: =$I56 * ($I$37 - COUNT($W56:AI56)) / $I$38 -> 5.735865577 | AK56: =$I56 * ($I$37 - COUNT($W56:AJ56)) / $I$38 -> 5.608401898 | AL56: =$I56 * ($I$37 - COUNT($W56:AK56)) / $I$38 -> 5.480938218 | AM56: =$I56 * ($I$37 - COUNT($W56:AL56)) / $I$38 -> 5.353474539 | AN56: =$I56 * ($I$37 - COUNT($W56:AM56)) / $I$38 -> 5.226010859 | AO56: =$I56 * ($I$37 - COUNT($W56:AN56)) / $I$38 -> 5.09854718 | AP56: =$I56 * ($I$37 - COUNT($W56:AO56)) / $I$38 -> 4.9710835 | AQ56: =$I56 * ($I$37 - COUNT($W56:AP56)) / $I$38 -> 4.843619821 | AR56: =$I56 * ($I$37 - COUNT($W56:AQ56)) / $I$38 -> 4.716156141 | AS56: =$I56 * ($I$37 - COUNT($W56:AR56)) / $I$38 -> 4.588692462 | AT56: =$I56 * ($I$37 - COUNT($W56:AS56)) / $I$38 -> 4.461228782
E57: 2016-03-31 | G57: £m 18/19 prices | I57: 141.9941173 | AK57: =$I57 * ($I$37 - COUNT($W57:AJ57)) / $I$38 -> 6.173657276 | AL57: =$I57 * ($I$37 - COUNT($W57:AK57)) / $I$38 -> 6.036464892 | AM57: =$I57 * ($I$37 - COUNT($W57:AL57)) / $I$38 -> 5.899272508 | AN57: =$I57 * ($I$37 - COUNT($W57:AM57)) / $I$38 -> 5.762080124 | AO57: =$I57 * ($I$37 - COUNT($W57:AN57)) / $I$38 -> 5.62488774 | AP57: =$I57 * ($I$37 - COUNT($W57:AO57)) / $I$38 -> 5.487695356 | AQ57: =$I57 * ($I$37 - COUNT($W57:AP57)) / $I$38 -> 5.350502972 | AR57: =$I57 * ($I$37 - COUNT($W57:AQ57)) / $I$38 -> 5.213310588 | AS57: =$I57 * ($I$37 - COUNT($W57:AR57)) / $I$38 -> 5.076118204 | AT57: =$I57 * ($I$37 - COUNT($W57:AS57)) / $I$38 -> 4.93892582
E58: 2017-03-31 | G58: £m 18/19 prices | I58: 148.9755571 | AL58: =$I58 * ($I$37 - COUNT($W58:AK58)) / $I$38 -> 6.477198137 | AM58: =$I58 * ($I$37 - COUNT($W58:AL58)) / $I$38 -> 6.333260401 | AN58: =$I58 * ($I$37 - COUNT($W58:AM58)) / $I$38 -> 6.189322664 | AO58: =$I58 * ($I$37 - COUNT($W58:AN58)) / $I$38 -> 6.045384928 | AP58: =$I58 * ($I$37 - COUNT($W58:AO58)) / $I$38 -> 5.901447191 | AQ58: =$I58 * ($I$37 - COUNT($W58:AP58)) / $I$38 -> 5.757509455 | AR58: =$I58 * ($I$37 - COUNT($W58:AQ58)) / $I$38 -> 5.613571719 | AS58: =$I58 * ($I$37 - COUNT($W58:AR58)) / $I$38 -> 5.469633982 | AT58: =$I58 * ($I$37 - COUNT($W58:AS58)) / $I$38 -> 5.325696246
E59: 2018-03-31 | G59: £m 18/19 prices | I59: 162.1920663 | AM59: =$I59 * ($I$37 - COUNT($W59:AL59)) / $I$38 -> 7.051828969 | AN59: =$I59 * ($I$37 - COUNT($W59:AM59)) / $I$38 -> 6.895121659 | AO59: =$I59 * ($I$37 - COUNT($W59:AN59)) / $I$38 -> 6.738414348 | AP59: =$I59 * ($I$37 - COUNT($W59:AO59)) / $I$38 -> 6.581707038 | AQ59: =$I59 * ($I$37 - COUNT($W59:AP59)) / $I$38 -> 6.424999728 | AR59: =$I59 * ($I$37 - COUNT($W59:AQ59)) / $I$38 -> 6.268292417 | AS59: =$I59 * ($I$37 - COUNT($W59:AR59)) / $I$38 -> 6.111585107 | AT59: =$I59 * ($I$37 - COUNT($W59:AS59)) / $I$38 -> 5.954877796
E60: 2019-03-31 | G60: £m 18/19 prices | I60: 158.4101727 | AN60: =$I60 * ($I$37 - COUNT($W60:AM60)) / $I$38 -> 6.887398813 | AO60: =$I60 * ($I$37 - COUNT($W60:AN60)) / $I$38 -> 6.734345506 | AP60: =$I60 * ($I$37 - COUNT($W60:AO60)) / $I$38 -> 6.581292199 | AQ60: =$I60 * ($I$37 - COUNT($W60:AP60)) / $I$38 -> 6.428238892 | AR60: =$I60 * ($I$37 - COUNT($W60:AQ60)) / $I$38 -> 6.275185585 | AS60: =$I60 * ($I$37 - COUNT($W60:AR60)) / $I$38 -> 6.122132278 | AT60: =$I60 * ($I$37 - COUNT($W60:AS60)) / $I$38 -> 5.969078971
E61: 2020-03-31 | G61: £m 18/19 prices | I61: 190.652708 | AO61: =$I61 * ($I$37 - COUNT($W61:AN61)) / $I$38 -> 8.289248176 | AP61: =$I61 * ($I$37 - COUNT($W61:AO61)) / $I$38 -> 8.105042661 | AQ61: =$I61 * ($I$37 - COUNT($W61:AP61)) / $I$38 -> 7.920837146 | AR61: =$I61 * ($I$37 - COUNT($W61:AQ61)) / $I$38 -> 7.736631631 | AS61: =$I61 * ($I$37 - COUNT($W61:AR61)) / $I$38 -> 7.552426116 | AT61: =$I61 * ($I$37 - COUNT($W61:AS61)) / $I$38 -> 7.368220601
E62: 2021-03-31 | G62: £m 18/19 prices | I62: 215.6004346 | AP62: =$I62 * ($I$37 - COUNT($W62:AO62)) / $I$38 -> 9.373931939 | AQ62: =$I62 * ($I$37 - COUNT($W62:AP62)) / $I$38 -> 9.165622341 | AR62: =$I62 * ($I$37 - COUNT($W62:AQ62)) / $I$38 -> 8.957312742 | AS62: =$I62 * ($I$37 - COUNT($W62:AR62)) / $I$38 -> 8.749003143 | AT62: =$I62 * ($I$37 - COUNT($W62:AS62)) / $I$38 -> 8.540693545
E63: 2022-03-31 | G63: £m 18/19 prices | I63: 202.0228964 | AQ63: =$I63 * ($I$37 - COUNT($W63:AP63)) / $I$38 -> 8.783604191 | AR63: =$I63 * ($I$37 - COUNT($W63:AQ63)) / $I$38 -> 8.588412987 | AS63: =$I63 * ($I$37 - COUNT($W63:AR63)) / $I$38 -> 8.393221783 | AT63: =$I63 * ($I$37 - COUNT($W63:AS63)) / $I$38 -> 8.198030578
E64: 2023-03-31 | G64: £m 18/19 prices | I64: 207.6832363 | AR64: =$I64 * ($I$37 - COUNT($W64:AQ64)) / $I$38 -> 9.029705926 | AS64: =$I64 * ($I$37 - COUNT($W64:AR64)) / $I$38 -> 8.829045795 | AT64: =$I64 * ($I$37 - COUNT($W64:AS64)) / $I$38 -> 8.628385663
E65: 2024-03-31 | G65: £m 18/19 prices | I65: 209.3213899 | AS65: =$I65 * ($I$37 - COUNT($W65:AR65)) / $I$38 -> 9.100929995 | AT65: =$I65 * ($I$37 - COUNT($W65:AS65)) / $I$38 -> 8.898687107
E66: 2025-03-31 | G66: £m 18/19 prices | I66: 219.3079679 | AT66: =$I66 * ($I$37 - COUNT($W66:AS66)) / $I$38 -> 9.535129038
E67: 2026-03-31 | G67: £m 18/19 prices | I67: 220.5597169
C69: Straight line post-vesting depreciation
C70: Note: Straight line calculations are used to establish the "RAV differential" based on the accumulated difference between it and if sum-of-digit depreciation was in place before RIIO.
D72: Depreciation parameters
E74: Post-vesting asset life | G74: years | I74: =I37 -> 45
E75: Straight line depreciation applied | G75: text | J75: > | X75: =X$4<$I110 -> TRUE | Y75: =Y4<$I110 -> TRUE | Z75: TRUE | AA75: TRUE | AB75: TRUE | AC75: TRUE | AD75: TRUE | AE75: TRUE | AF75: TRUE | AG75: TRUE | AH75: FALSE | AI75: FALSE | AJ75: FALSE | AK75: FALSE | AL75: FALSE | AM75: FALSE | AN75: FALSE | AO75: FALSE | AP75: FALSE | AQ75: FALSE | AR75: FALSE | AS75: FALSE | AT75: FALSE
D77: Depreciation schedule
E79: Straight line depreciation of additions from year ending | I79: Net additions
E80: 2003-03-31 | G80: £m 18/19 prices | I80: =TRANSPOSE(W16:AT16) -> 107.538296 | J80: > | X80: =$I80 / $I$74 -> 2.389739912 | Y80: =IF($I80 >0, MIN(X80,$I80-SUM($W80:X80)), MAX(X80,$I80-SUM($W80:X80))) -> 2.389739912 | Z80: =IF($I80 >0, MIN(Y80,$I80-SUM($W80:Y80)), MAX(Y80,$I80-SUM($W80:Y80))) -> 2.389739912 | AA80: =IF($I80 >0, MIN(Z80,$I80-SUM($W80:Z80)), MAX(Z80,$I80-SUM($W80:Z80))) -> 2.389739912 | AB80: =IF($I80 >0, MIN(AA80,$I80-SUM($W80:AA80)), MAX(AA80,$I80-SUM($W80:AA80))) -> 2.389739912 | AC80: =IF($I80 >0, MIN(AB80,$I80-SUM($W80:AB80)), MAX(AB80,$I80-SUM($W80:AB80))) -> 2.389739912 | AD80: =IF($I80 >0, MIN(AC80,$I80-SUM($W80:AC80)), MAX(AC80,$I80-SUM($W80:AC80))) -> 2.389739912 | AE80: =IF($I80 >0, MIN(AD80,$I80-SUM($W80:AD80)), MAX(AD80,$I80-SUM($W80:AD80))) -> 2.389739912 | AF80: =IF($I80 >0, MIN(AE80,$I80-SUM($W80:AE80)), MAX(AE80,$I80-SUM($W80:AE80))) -> 2.389739912 | AG80: =IF($I80 >0, MIN(AF80,$I80-SUM($W80:AF80)), MAX(AF80,$I80-SUM($W80:AF80))) -> 2.389739912 | AH80: =IF($I80 >0, MIN(AG80,$I80-SUM($W80:AG80)), MAX(AG80,$I80-SUM($W80:AG80))) -> 2.389739912 | AI80: =IF($I80 >0, MIN(AH80,$I80-SUM($W80:AH80)), MAX(AH80,$I80-SUM($W80:AH80))) -> 2.389739912 | AJ80: =IF($I80 >0, MIN(AI80,$I80-SUM($W80:AI80)), MAX(AI80,$I80-SUM($W80:AI80))) -> 2.389739912 | AK80: =IF($I80 >0, MIN(AJ80,$I80-SUM($W80:AJ80)), MAX(AJ80,$I80-SUM($W80:AJ80))) -> 2.389739912 | AL80: =IF($I80 >0, MIN(AK80,$I80-SUM($W80:AK80)), MAX(AK80,$I80-SUM($W80:AK80))) -> 2.389739912 | AM80: =IF($I80 >0, MIN(AL80,$I80-SUM($W80:AL80)), MAX(AL80,$I80-SUM($W80:AL80))) -> 2.389739912 | AN80: =IF($I80 >0, MIN(AM80,$I80-SUM($W80:AM80)), MAX(AM80,$I80-SUM($W80:AM80))) -> 2.389739912 | AO80: =IF($I80 >0, MIN(AN80,$I80-SUM($W80:AN80)), MAX(AN80,$I80-SUM($W80:AN80))) -> 2.389739912 | AP80: =IF($I80 >0, MIN(AO80,$I80-SUM($W80:AO80)), MAX(AO80,$I80-SUM($W80:AO80))) -> 2.389739912 | AQ80: =IF($I80 >0, MIN(AP80,$I80-SUM($W80:AP80)), MAX(AP80,$I80-SUM($W80:AP80))) -> 2.389739912 | AR80: =IF($I80 >0, MIN(AQ80,$I80-SUM($W80:AQ80)), MAX(AQ80,$I80-SUM($W80:AQ80))) -> 2.389739912 | AS80: =IF($I80 >0, MIN(AR80,$I80-SUM($W80:AR80)), MAX(AR80,$I80-SUM($W80:AR80))) -> 2.389739912 | AT80: =IF($I80 >0, MIN(AS80,$I80-SUM($W80:AS80)), MAX(AS80,$I80-SUM($W80:AS80))) -> 2.389739912
E81: 2004-03-31 | G81: £m 18/19 prices | I81: 77.16936388 | J81: > | Y81: =$I81 / $I$74 -> 1.714874753 | Z81: =IF($I81 >0, MIN(Y81,$I81-SUM($W81:Y81)), MAX(Y81,$I81-SUM($W81:Y81))) -> 1.714874753 | AA81: =IF($I81 >0, MIN(Z81,$I81-SUM($W81:Z81)), MAX(Z81,$I81-SUM($W81:Z81))) -> 1.714874753 | AB81: =IF($I81 >0, MIN(AA81,$I81-SUM($W81:AA81)), MAX(AA81,$I81-SUM($W81:AA81))) -> 1.714874753 | AC81: =IF($I81 >0, MIN(AB81,$I81-SUM($W81:AB81)), MAX(AB81,$I81-SUM($W81:AB81))) -> 1.714874753 | AD81: =IF($I81 >0, MIN(AC81,$I81-SUM($W81:AC81)), MAX(AC81,$I81-SUM($W81:AC81))) -> 1.714874753 | AE81: =IF($I81 >0, MIN(AD81,$I81-SUM($W81:AD81)), MAX(AD81,$I81-SUM($W81:AD81))) -> 1.714874753 | AF81: =IF($I81 >0, MIN(AE81,$I81-SUM($W81:AE81)), MAX(AE81,$I81-SUM($W81:AE81))) -> 1.714874753 | AG81: =IF($I81 >0, MIN(AF81,$I81-SUM($W81:AF81)), MAX(AF81,$I81-SUM($W81:AF81))) -> 1.714874753 | AH81: =IF($I81 >0, MIN(AG81,$I81-SUM($W81:AG81)), MAX(AG81,$I81-SUM($W81:AG81))) -> 1.714874753 | AI81: =IF($I81 >0, MIN(AH81,$I81-SUM($W81:AH81)), MAX(AH81,$I81-SUM($W81:AH81))) -> 1.714874753 | AJ81: =IF($I81 >0, MIN(AI81,$I81-SUM($W81:AI81)), MAX(AI81,$I81-SUM($W81:AI81))) -> 1.714874753 | AK81: =IF($I81 >0, MIN(AJ81,$I81-SUM($W81:AJ81)), MAX(AJ81,$I81-SUM($W81:AJ81))) -> 1.714874753 | AL81: =IF($I81 >0, MIN(AK81,$I81-SUM($W81:AK81)), MAX(AK81,$I81-SUM($W81:AK81))) -> 1.714874753 | AM81: =IF($I81 >0, MIN(AL81,$I81-SUM($W81:AL81)), MAX(AL81,$I81-SUM($W81:AL81))) -> 1.714874753 | AN81: =IF($I81 >0, MIN(AM81,$I81-SUM($W81:AM81)), MAX(AM81,$I81-SUM($W81:AM81))) -> 1.714874753 | AO81: =IF($I81 >0, MIN(AN81,$I81-SUM($W81:AN81)), MAX(AN81,$I81-SUM($W81:AN81))) -> 1.714874753 | AP81: =IF($I81 >0, MIN(AO81,$I81-SUM($W81:AO81)), MAX(AO81,$I81-SUM($W81:AO81))) -> 1.714874753 | AQ81: =IF($I81 >0, MIN(AP81,$I81-SUM($W81:AP81)), MAX(AP81,$I81-SUM($W81:AP81))) -> 1.714874753 | AR81: =IF($I81 >0, MIN(AQ81,$I81-SUM($W81:AQ81)), MAX(AQ81,$I81-SUM($W81:AQ81))) -> 1.714874753 | AS81: =IF($I81 >0, MIN(AR81,$I81-SUM($W81:AR81)), MAX(AR81,$I81-SUM($W81:AR81))) -> 1.714874753 | AT81: =IF($I81 >0, MIN(AS81,$I81-SUM($W81:AS81)), MAX(AS81,$I81-SUM($W81:AS81))) -> 1.714874753
E82: 2005-03-31 | G82: £m 18/19 prices | I82: 78.92988168 | J82: > | Z82: =$I82 / $I$74 -> 1.753997371 | AA82: =IF($I82 >0, MIN(Z82,$I82-SUM($W82:Z82)), MAX(Z82,$I82-SUM($W82:Z82))) -> 1.753997371 | AB82: =IF($I82 >0, MIN(AA82,$I82-SUM($W82:AA82)), MAX(AA82,$I82-SUM($W82:AA82))) -> 1.753997371 | AC82: =IF($I82 >0, MIN(AB82,$I82-SUM($W82:AB82)), MAX(AB82,$I82-SUM($W82:AB82))) -> 1.753997371 | AD82: =IF($I82 >0, MIN(AC82,$I82-SUM($W82:AC82)), MAX(AC82,$I82-SUM($W82:AC82))) -> 1.753997371 | AE82: =IF($I82 >0, MIN(AD82,$I82-SUM($W82:AD82)), MAX(AD82,$I82-SUM($W82:AD82))) -> 1.753997371 | AF82: =IF($I82 >0, MIN(AE82,$I82-SUM($W82:AE82)), MAX(AE82,$I82-SUM($W82:AE82))) -> 1.753997371 | AG82: =IF($I82 >0, MIN(AF82,$I82-SUM($W82:AF82)), MAX(AF82,$I82-SUM($W82:AF82))) -> 1.753997371 | AH82: =IF($I82 >0, MIN(AG82,$I82-SUM($W82:AG82)), MAX(AG82,$I82-SUM($W82:AG82))) -> 1.753997371 | AI82: =IF($I82 >0, MIN(AH82,$I82-SUM($W82:AH82)), MAX(AH82,$I82-SUM($W82:AH82))) -> 1.753997371 | AJ82: =IF($I82 >0, MIN(AI82,$I82-SUM($W82:AI82)), MAX(AI82,$I82-SUM($W82:AI82))) -> 1.753997371 | AK82: =IF($I82 >0, MIN(AJ82,$I82-SUM($W82:AJ82)), MAX(AJ82,$I82-SUM($W82:AJ82))) -> 1.753997371 | AL82: =IF($I82 >0, MIN(AK82,$I82-SUM($W82:AK82)), MAX(AK82,$I82-SUM($W82:AK82))) -> 1.753997371 | AM82: =IF($I82 >0, MIN(AL82,$I82-SUM($W82:AL82)), MAX(AL82,$I82-SUM($W82:AL82))) -> 1.753997371 | AN82: =IF($I82 >0, MIN(AM82,$I82-SUM($W82:AM82)), MAX(AM82,$I82-SUM($W82:AM82))) -> 1.753997371 | AO82: =IF($I82 >0, MIN(AN82,$I82-SUM($W82:AN82)), MAX(AN82,$I82-SUM($W82:AN82))) -> 1.753997371 | AP82: =IF($I82 >0, MIN(AO82,$I82-SUM($W82:AO82)), MAX(AO82,$I82-SUM($W82:AO82))) -> 1.753997371 | AQ82: =IF($I82 >0, MIN(AP82,$I82-SUM($W82:AP82)), MAX(AP82,$I82-SUM($W82:AP82))) -> 1.753997371 | AR82: =IF($I82 >0, MIN(AQ82,$I82-SUM($W82:AQ82)), MAX(AQ82,$I82-SUM($W82:AQ82))) -> 1.753997371 | AS82: =IF($I82 >0, MIN(AR82,$I82-SUM($W82:AR82)), MAX(AR82,$I82-SUM($W82:AR82))) -> 1.753997371 | AT82: =IF($I82 >0, MIN(AS82,$I82-SUM($W82:AS82)), MAX(AS82,$I82-SUM($W82:AS82))) -> 1.753997371
E83: 2006-03-31 | G83: £m 18/19 prices | I83: 78.97862175 | J83: > | AA83: =$I83 / $I$74 -> 1.755080483 | AB83: =IF($I83 >0, MIN(AA83,$I83-SUM($W83:AA83)), MAX(AA83,$I83-SUM($W83:AA83))) -> 1.755080483 | AC83: =IF($I83 >0, MIN(AB83,$I83-SUM($W83:AB83)), MAX(AB83,$I83-SUM($W83:AB83))) -> 1.755080483 | AD83: =IF($I83 >0, MIN(AC83,$I83-SUM($W83:AC83)), MAX(AC83,$I83-SUM($W83:AC83))) -> 1.755080483 | AE83: =IF($I83 >0, MIN(AD83,$I83-SUM($W83:AD83)), MAX(AD83,$I83-SUM($W83:AD83))) -> 1.755080483 | AF83: =IF($I83 >0, MIN(AE83,$I83-SUM($W83:AE83)), MAX(AE83,$I83-SUM($W83:AE83))) -> 1.755080483 | AG83: =IF($I83 >0, MIN(AF83,$I83-SUM($W83:AF83)), MAX(AF83,$I83-SUM($W83:AF83))) -> 1.755080483 | AH83: =IF($I83 >0, MIN(AG83,$I83-SUM($W83:AG83)), MAX(AG83,$I83-SUM($W83:AG83))) -> 1.755080483 | AI83: =IF($I83 >0, MIN(AH83,$I83-SUM($W83:AH83)), MAX(AH83,$I83-SUM($W83:AH83))) -> 1.755080483 | AJ83: =IF($I83 >0, MIN(AI83,$I83-SUM($W83:AI83)), MAX(AI83,$I83-SUM($W83:AI83))) -> 1.755080483 | AK83: =IF($I83 >0, MIN(AJ83,$I83-SUM($W83:AJ83)), MAX(AJ83,$I83-SUM($W83:AJ83))) -> 1.755080483 | AL83: =IF($I83 >0, MIN(AK83,$I83-SUM($W83:AK83)), MAX(AK83,$I83-SUM($W83:AK83))) -> 1.755080483 | AM83: =IF($I83 >0, MIN(AL83,$I83-SUM($W83:AL83)), MAX(AL83,$I83-SUM($W83:AL83))) -> 1.755080483 | AN83: =IF($I83 >0, MIN(AM83,$I83-SUM($W83:AM83)), MAX(AM83,$I83-SUM($W83:AM83))) -> 1.755080483 | AO83: =IF($I83 >0, MIN(AN83,$I83-SUM($W83:AN83)), MAX(AN83,$I83-SUM($W83:AN83))) -> 1.755080483 | AP83: =IF($I83 >0, MIN(AO83,$I83-SUM($W83:AO83)), MAX(AO83,$I83-SUM($W83:AO83))) -> 1.755080483 | AQ83: =IF($I83 >0, MIN(AP83,$I83-SUM($W83:AP83)), MAX(AP83,$I83-SUM($W83:AP83))) -> 1.755080483 | AR83: =IF($I83 >0, MIN(AQ83,$I83-SUM($W83:AQ83)), MAX(AQ83,$I83-SUM($W83:AQ83))) -> 1.755080483 | AS83: =IF($I83 >0, MIN(AR83,$I83-SUM($W83:AR83)), MAX(AR83,$I83-SUM($W83:AR83))) -> 1.755080483 | AT83: =IF($I83 >0, MIN(AS83,$I83-SUM($W83:AS83)), MAX(AS83,$I83-SUM($W83:AS83))) -> 1.755080483
E84: 2007-03-31 | G84: £m 18/19 prices | I84: 73.81596205 | J84: > | AB84: =$I84 / $I$74 -> 1.640354712 | AC84: =IF($I84 >0, MIN(AB84,$I84-SUM($W84:AB84)), MAX(AB84,$I84-SUM($W84:AB84))) -> 1.640354712 | AD84: =IF($I84 >0, MIN(AC84,$I84-SUM($W84:AC84)), MAX(AC84,$I84-SUM($W84:AC84))) -> 1.640354712 | AE84: =IF($I84 >0, MIN(AD84,$I84-SUM($W84:AD84)), MAX(AD84,$I84-SUM($W84:AD84))) -> 1.640354712 | AF84: =IF($I84 >0, MIN(AE84,$I84-SUM($W84:AE84)), MAX(AE84,$I84-SUM($W84:AE84))) -> 1.640354712 | AG84: =IF($I84 >0, MIN(AF84,$I84-SUM($W84:AF84)), MAX(AF84,$I84-SUM($W84:AF84))) -> 1.640354712 | AH84: =IF($I84 >0, MIN(AG84,$I84-SUM($W84:AG84)), MAX(AG84,$I84-SUM($W84:AG84))) -> 1.640354712 | AI84: =IF($I84 >0, MIN(AH84,$I84-SUM($W84:AH84)), MAX(AH84,$I84-SUM($W84:AH84))) -> 1.640354712 | AJ84: =IF($I84 >0, MIN(AI84,$I84-SUM($W84:AI84)), MAX(AI84,$I84-SUM($W84:AI84))) -> 1.640354712 | AK84: =IF($I84 >0, MIN(AJ84,$I84-SUM($W84:AJ84)), MAX(AJ84,$I84-SUM($W84:AJ84))) -> 1.640354712 | AL84: =IF($I84 >0, MIN(AK84,$I84-SUM($W84:AK84)), MAX(AK84,$I84-SUM($W84:AK84))) -> 1.640354712 | AM84: =IF($I84 >0, MIN(AL84,$I84-SUM($W84:AL84)), MAX(AL84,$I84-SUM($W84:AL84))) -> 1.640354712 | AN84: =IF($I84 >0, MIN(AM84,$I84-SUM($W84:AM84)), MAX(AM84,$I84-SUM($W84:AM84))) -> 1.640354712 | AO84: =IF($I84 >0, MIN(AN84,$I84-SUM($W84:AN84)), MAX(AN84,$I84-SUM($W84:AN84))) -> 1.640354712 | AP84: =IF($I84 >0, MIN(AO84,$I84-SUM($W84:AO84)), MAX(AO84,$I84-SUM($W84:AO84))) -> 1.640354712 | AQ84: =IF($I84 >0, MIN(AP84,$I84-SUM($W84:AP84)), MAX(AP84,$I84-SUM($W84:AP84))) -> 1.640354712 | AR84: =IF($I84 >0, MIN(AQ84,$I84-SUM($W84:AQ84)), MAX(AQ84,$I84-SUM($W84:AQ84))) -> 1.640354712 | AS84: =IF($I84 >0, MIN(AR84,$I84-SUM($W84:AR84)), MAX(AR84,$I84-SUM($W84:AR84))) -> 1.640354712 | AT84: =IF($I84 >0, MIN(AS84,$I84-SUM($W84:AS84)), MAX(AS84,$I84-SUM($W84:AS84))) -> 1.640354712
E85: 2008-03-31 | G85: £m 18/19 prices | I85: 169.8011959 | J85: > | AC85: =$I85 / $I$74 -> 3.773359909 | AD85: =IF($I85 >0, MIN(AC85,$I85-SUM($W85:AC85)), MAX(AC85,$I85-SUM($W85:AC85))) -> 3.773359909 | AE85: =IF($I85 >0, MIN(AD85,$I85-SUM($W85:AD85)), MAX(AD85,$I85-SUM($W85:AD85))) -> 3.773359909 | AF85: =IF($I85 >0, MIN(AE85,$I85-SUM($W85:AE85)), MAX(AE85,$I85-SUM($W85:AE85))) -> 3.773359909 | AG85: =IF($I85 >0, MIN(AF85,$I85-SUM($W85:AF85)), MAX(AF85,$I85-SUM($W85:AF85))) -> 3.773359909 | AH85: =IF($I85 >0, MIN(AG85,$I85-SUM($W85:AG85)), MAX(AG85,$I85-SUM($W85:AG85))) -> 3.773359909 | AI85: =IF($I85 >0, MIN(AH85,$I85-SUM($W85:AH85)), MAX(AH85,$I85-SUM($W85:AH85))) -> 3.773359909 | AJ85: =IF($I85 >0, MIN(AI85,$I85-SUM($W85:AI85)), MAX(AI85,$I85-SUM($W85:AI85))) -> 3.773359909 | AK85: =IF($I85 >0, MIN(AJ85,$I85-SUM($W85:AJ85)), MAX(AJ85,$I85-SUM($W85:AJ85))) -> 3.773359909 | AL85: =IF($I85 >0, MIN(AK85,$I85-SUM($W85:AK85)), MAX(AK85,$I85-SUM($W85:AK85))) -> 3.773359909 | AM85: =IF($I85 >0, MIN(AL85,$I85-SUM($W85:AL85)), MAX(AL85,$I85-SUM($W85:AL85))) -> 3.773359909 | AN85: =IF($I85 >0, MIN(AM85,$I85-SUM($W85:AM85)), MAX(AM85,$I85-SUM($W85:AM85))) -> 3.773359909 | AO85: =IF($I85 >0, MIN(AN85,$I85-SUM($W85:AN85)), MAX(AN85,$I85-SUM($W85:AN85))) -> 3.773359909 | AP85: =IF($I85 >0, MIN(AO85,$I85-SUM($W85:AO85)), MAX(AO85,$I85-SUM($W85:AO85))) -> 3.773359909 | AQ85: =IF($I85 >0, MIN(AP85,$I85-SUM($W85:AP85)), MAX(AP85,$I85-SUM($W85:AP85))) -> 3.773359909 | AR85: =IF($I85 >0, MIN(AQ85,$I85-SUM($W85:AQ85)), MAX(AQ85,$I85-SUM($W85:AQ85))) -> 3.773359909 | AS85: =IF($I85 >0, MIN(AR85,$I85-SUM($W85:AR85)), MAX(AR85,$I85-SUM($W85:AR85))) -> 3.773359909 | AT85: =IF($I85 >0, MIN(AS85,$I85-SUM($W85:AS85)), MAX(AS85,$I85-SUM($W85:AS85))) -> 3.773359909
E86: 2009-03-31 | G86: £m 18/19 prices | I86: 141.1251649 | J86: > | AD86: =$I86 / $I$74 -> 3.136114775 | AE86: =IF($I86 >0, MIN(AD86,$I86-SUM($W86:AD86)), MAX(AD86,$I86-SUM($W86:AD86))) -> 3.136114775 | AF86: =IF($I86 >0, MIN(AE86,$I86-SUM($W86:AE86)), MAX(AE86,$I86-SUM($W86:AE86))) -> 3.136114775 | AG86: =IF($I86 >0, MIN(AF86,$I86-SUM($W86:AF86)), MAX(AF86,$I86-SUM($W86:AF86))) -> 3.136114775 | AH86: =IF($I86 >0, MIN(AG86,$I86-SUM($W86:AG86)), MAX(AG86,$I86-SUM($W86:AG86))) -> 3.136114775 | AI86: =IF($I86 >0, MIN(AH86,$I86-SUM($W86:AH86)), MAX(AH86,$I86-SUM($W86:AH86))) -> 3.136114775 | AJ86: =IF($I86 >0, MIN(AI86,$I86-SUM($W86:AI86)), MAX(AI86,$I86-SUM($W86:AI86))) -> 3.136114775 | AK86: =IF($I86 >0, MIN(AJ86,$I86-SUM($W86:AJ86)), MAX(AJ86,$I86-SUM($W86:AJ86))) -> 3.136114775 | AL86: =IF($I86 >0, MIN(AK86,$I86-SUM($W86:AK86)), MAX(AK86,$I86-SUM($W86:AK86))) -> 3.136114775 | AM86: =IF($I86 >0, MIN(AL86,$I86-SUM($W86:AL86)), MAX(AL86,$I86-SUM($W86:AL86))) -> 3.136114775 | AN86: =IF($I86 >0, MIN(AM86,$I86-SUM($W86:AM86)), MAX(AM86,$I86-SUM($W86:AM86))) -> 3.136114775 | AO86: =IF($I86 >0, MIN(AN86,$I86-SUM($W86:AN86)), MAX(AN86,$I86-SUM($W86:AN86))) -> 3.136114775 | AP86: =IF($I86 >0, MIN(AO86,$I86-SUM($W86:AO86)), MAX(AO86,$I86-SUM($W86:AO86))) -> 3.136114775 | AQ86: =IF($I86 >0, MIN(AP86,$I86-SUM($W86:AP86)), MAX(AP86,$I86-SUM($W86:AP86))) -> 3.136114775 | AR86: =IF($I86 >0, MIN(AQ86,$I86-SUM($W86:AQ86)), MAX(AQ86,$I86-SUM($W86:AQ86))) -> 3.136114775 | AS86: =IF($I86 >0, MIN(AR86,$I86-SUM($W86:AR86)), MAX(AR86,$I86-SUM($W86:AR86))) -> 3.136114775 | AT86: =IF($I86 >0, MIN(AS86,$I86-SUM($W86:AS86)), MAX(AS86,$I86-SUM($W86:AS86))) -> 3.136114775
E87: 2010-03-31 | G87: £m 18/19 prices | I87: 160.8678961 | J87: > | AE87: =$I87 / $I$74 -> 3.574842137 | AF87: =IF($I87 >0, MIN(AE87,$I87-SUM($W87:AE87)), MAX(AE87,$I87-SUM($W87:AE87))) -> 3.574842137 | AG87: =IF($I87 >0, MIN(AF87,$I87-SUM($W87:AF87)), MAX(AF87,$I87-SUM($W87:AF87))) -> 3.574842137 | AH87: =IF($I87 >0, MIN(AG87,$I87-SUM($W87:AG87)), MAX(AG87,$I87-SUM($W87:AG87))) -> 3.574842137 | AI87: =IF($I87 >0, MIN(AH87,$I87-SUM($W87:AH87)), MAX(AH87,$I87-SUM($W87:AH87))) -> 3.574842137 | AJ87: =IF($I87 >0, MIN(AI87,$I87-SUM($W87:AI87)), MAX(AI87,$I87-SUM($W87:AI87))) -> 3.574842137 | AK87: =IF($I87 >0, MIN(AJ87,$I87-SUM($W87:AJ87)), MAX(AJ87,$I87-SUM($W87:AJ87))) -> 3.574842137 | AL87: =IF($I87 >0, MIN(AK87,$I87-SUM($W87:AK87)), MAX(AK87,$I87-SUM($W87:AK87))) -> 3.574842137 | AM87: =IF($I87 >0, MIN(AL87,$I87-SUM($W87:AL87)), MAX(AL87,$I87-SUM($W87:AL87))) -> 3.574842137 | AN87: =IF($I87 >0, MIN(AM87,$I87-SUM($W87:AM87)), MAX(AM87,$I87-SUM($W87:AM87))) -> 3.574842137 | AO87: =IF($I87 >0, MIN(AN87,$I87-SUM($W87:AN87)), MAX(AN87,$I87-SUM($W87:AN87))) -> 3.574842137 | AP87: =IF($I87 >0, MIN(AO87,$I87-SUM($W87:AO87)), MAX(AO87,$I87-SUM($W87:AO87))) -> 3.574842137 | AQ87: =IF($I87 >0, MIN(AP87,$I87-SUM($W87:AP87)), MAX(AP87,$I87-SUM($W87:AP87))) -> 3.574842137 | AR87: =IF($I87 >0, MIN(AQ87,$I87-SUM($W87:AQ87)), MAX(AQ87,$I87-SUM($W87:AQ87))) -> 3.574842137 | AS87: =IF($I87 >0, MIN(AR87,$I87-SUM($W87:AR87)), MAX(AR87,$I87-SUM($W87:AR87))) -> 3.574842137 | AT87: =IF($I87 >0, MIN(AS87,$I87-SUM($W87:AS87)), MAX(AS87,$I87-SUM($W87:AS87))) -> 3.574842137
E88: 2011-03-31 | G88: £m 18/19 prices | I88: 207.4385935 | J88: > | AF88: =$I88 / $I$74 -> 4.609746522 | AG88: =IF($I88 >0, MIN(AF88,$I88-SUM($W88:AF88)), MAX(AF88,$I88-SUM($W88:AF88))) -> 4.609746522 | AH88: =IF($I88 >0, MIN(AG88,$I88-SUM($W88:AG88)), MAX(AG88,$I88-SUM($W88:AG88))) -> 4.609746522 | AI88: =IF($I88 >0, MIN(AH88,$I88-SUM($W88:AH88)), MAX(AH88,$I88-SUM($W88:AH88))) -> 4.609746522 | AJ88: =IF($I88 >0, MIN(AI88,$I88-SUM($W88:AI88)), MAX(AI88,$I88-SUM($W88:AI88))) -> 4.609746522 | AK88: =IF($I88 >0, MIN(AJ88,$I88-SUM($W88:AJ88)), MAX(AJ88,$I88-SUM($W88:AJ88))) -> 4.609746522 | AL88: =IF($I88 >0, MIN(AK88,$I88-SUM($W88:AK88)), MAX(AK88,$I88-SUM($W88:AK88))) -> 4.609746522 | AM88: =IF($I88 >0, MIN(AL88,$I88-SUM($W88:AL88)), MAX(AL88,$I88-SUM($W88:AL88))) -> 4.609746522 | AN88: =IF($I88 >0, MIN(AM88,$I88-SUM($W88:AM88)), MAX(AM88,$I88-SUM($W88:AM88))) -> 4.609746522 | AO88: =IF($I88 >0, MIN(AN88,$I88-SUM($W88:AN88)), MAX(AN88,$I88-SUM($W88:AN88))) -> 4.609746522 | AP88: =IF($I88 >0, MIN(AO88,$I88-SUM($W88:AO88)), MAX(AO88,$I88-SUM($W88:AO88))) -> 4.609746522 | AQ88: =IF($I88 >0, MIN(AP88,$I88-SUM($W88:AP88)), MAX(AP88,$I88-SUM($W88:AP88))) -> 4.609746522 | AR88: =IF($I88 >0, MIN(AQ88,$I88-SUM($W88:AQ88)), MAX(AQ88,$I88-SUM($W88:AQ88))) -> 4.609746522 | AS88: =IF($I88 >0, MIN(AR88,$I88-SUM($W88:AR88)), MAX(AR88,$I88-SUM($W88:AR88))) -> 4.609746522 | AT88: =IF($I88 >0, MIN(AS88,$I88-SUM($W88:AS88)), MAX(AS88,$I88-SUM($W88:AS88))) -> 4.609746522
E89: 2012-03-31 | G89: £m 18/19 prices | I89: 199.9206209 | J89: > | AG89: =$I89 / $I$74 -> 4.442680465 | AH89: =IF($I89 >0, MIN(AG89,$I89-SUM($W89:AG89)), MAX(AG89,$I89-SUM($W89:AG89))) -> 4.442680465 | AI89: =IF($I89 >0, MIN(AH89,$I89-SUM($W89:AH89)), MAX(AH89,$I89-SUM($W89:AH89))) -> 4.442680465 | AJ89: =IF($I89 >0, MIN(AI89,$I89-SUM($W89:AI89)), MAX(AI89,$I89-SUM($W89:AI89))) -> 4.442680465 | AK89: =IF($I89 >0, MIN(AJ89,$I89-SUM($W89:AJ89)), MAX(AJ89,$I89-SUM($W89:AJ89))) -> 4.442680465 | AL89: =IF($I89 >0, MIN(AK89,$I89-SUM($W89:AK89)), MAX(AK89,$I89-SUM($W89:AK89))) -> 4.442680465 | AM89: =IF($I89 >0, MIN(AL89,$I89-SUM($W89:AL89)), MAX(AL89,$I89-SUM($W89:AL89))) -> 4.442680465 | AN89: =IF($I89 >0, MIN(AM89,$I89-SUM($W89:AM89)), MAX(AM89,$I89-SUM($W89:AM89))) -> 4.442680465 | AO89: =IF($I89 >0, MIN(AN89,$I89-SUM($W89:AN89)), MAX(AN89,$I89-SUM($W89:AN89))) -> 4.442680465 | AP89: =IF($I89 >0, MIN(AO89,$I89-SUM($W89:AO89)), MAX(AO89,$I89-SUM($W89:AO89))) -> 4.442680465 | AQ89: =IF($I89 >0, MIN(AP89,$I89-SUM($W89:AP89)), MAX(AP89,$I89-SUM($W89:AP89))) -> 4.442680465 | AR89: =IF($I89 >0, MIN(AQ89,$I89-SUM($W89:AQ89)), MAX(AQ89,$I89-SUM($W89:AQ89))) -> 4.442680465 | AS89: =IF($I89 >0, MIN(AR89,$I89-SUM($W89:AR89)), MAX(AR89,$I89-SUM($W89:AR89))) -> 4.442680465 | AT89: =IF($I89 >0, MIN(AS89,$I89-SUM($W89:AS89)), MAX(AS89,$I89-SUM($W89:AS89))) -> 4.442680465
E90: 2013-03-31 | G90: £m 18/19 prices | I90: 145.6650414 | AH90: =$I90 / $I$74 -> 3.23700092 | AI90: =IF($I90 >0, MIN(AH90,$I90-SUM($W90:AH90)), MAX(AH90,$I90-SUM($W90:AH90))) -> 3.23700092 | AJ90: =IF($I90 >0, MIN(AI90,$I90-SUM($W90:AI90)), MAX(AI90,$I90-SUM($W90:AI90))) -> 3.23700092 | AK90: =IF($I90 >0, MIN(AJ90,$I90-SUM($W90:AJ90)), MAX(AJ90,$I90-SUM($W90:AJ90))) -> 3.23700092 | AL90: =IF($I90 >0, MIN(AK90,$I90-SUM($W90:AK90)), MAX(AK90,$I90-SUM($W90:AK90))) -> 3.23700092 | AM90: =IF($I90 >0, MIN(AL90,$I90-SUM($W90:AL90)), MAX(AL90,$I90-SUM($W90:AL90))) -> 3.23700092 | AN90: =IF($I90 >0, MIN(AM90,$I90-SUM($W90:AM90)), MAX(AM90,$I90-SUM($W90:AM90))) -> 3.23700092 | AO90: =IF($I90 >0, MIN(AN90,$I90-SUM($W90:AN90)), MAX(AN90,$I90-SUM($W90:AN90))) -> 3.23700092 | AP90: =IF($I90 >0, MIN(AO90,$I90-SUM($W90:AO90)), MAX(AO90,$I90-SUM($W90:AO90))) -> 3.23700092 | AQ90: =IF($I90 >0, MIN(AP90,$I90-SUM($W90:AP90)), MAX(AP90,$I90-SUM($W90:AP90))) -> 3.23700092 | AR90: =IF($I90 >0, MIN(AQ90,$I90-SUM($W90:AQ90)), MAX(AQ90,$I90-SUM($W90:AQ90))) -> 3.23700092 | AS90: =IF($I90 >0, MIN(AR90,$I90-SUM($W90:AR90)), MAX(AR90,$I90-SUM($W90:AR90))) -> 3.23700092 | AT90: =IF($I90 >0, MIN(AS90,$I90-SUM($W90:AS90)), MAX(AS90,$I90-SUM($W90:AS90))) -> 3.23700092
E91: 2014-03-31 | G91: £m 18/19 prices | I91: 135.6629329 | AI91: =$I91 / $I$74 -> 3.014731842 | AJ91: =IF($I91 >0, MIN(AI91,$I91-SUM($W91:AI91)), MAX(AI91,$I91-SUM($W91:AI91))) -> 3.014731842 | AK91: =IF($I91 >0, MIN(AJ91,$I91-SUM($W91:AJ91)), MAX(AJ91,$I91-SUM($W91:AJ91))) -> 3.014731842 | AL91: =IF($I91 >0, MIN(AK91,$I91-SUM($W91:AK91)), MAX(AK91,$I91-SUM($W91:AK91))) -> 3.014731842 | AM91: =IF($I91 >0, MIN(AL91,$I91-SUM($W91:AL91)), MAX(AL91,$I91-SUM($W91:AL91))) -> 3.014731842 | AN91: =IF($I91 >0, MIN(AM91,$I91-SUM($W91:AM91)), MAX(AM91,$I91-SUM($W91:AM91))) -> 3.014731842 | AO91: =IF($I91 >0, MIN(AN91,$I91-SUM($W91:AN91)), MAX(AN91,$I91-SUM($W91:AN91))) -> 3.014731842 | AP91: =IF($I91 >0, MIN(AO91,$I91-SUM($W91:AO91)), MAX(AO91,$I91-SUM($W91:AO91))) -> 3.014731842 | AQ91: =IF($I91 >0, MIN(AP91,$I91-SUM($W91:AP91)), MAX(AP91,$I91-SUM($W91:AP91))) -> 3.014731842 | AR91: =IF($I91 >0, MIN(AQ91,$I91-SUM($W91:AQ91)), MAX(AQ91,$I91-SUM($W91:AQ91))) -> 3.014731842 | AS91: =IF($I91 >0, MIN(AR91,$I91-SUM($W91:AR91)), MAX(AR91,$I91-SUM($W91:AR91))) -> 3.014731842 | AT91: =IF($I91 >0, MIN(AS91,$I91-SUM($W91:AS91)), MAX(AS91,$I91-SUM($W91:AS91))) -> 3.014731842
E92: 2015-03-31 | G92: £m 18/19 prices | I92: 131.9249083 | AJ92: =$I92 / $I$74 -> 2.931664628 | AK92: =IF($I92 >0, MIN(AJ92,$I92-SUM($W92:AJ92)), MAX(AJ92,$I92-SUM($W92:AJ92))) -> 2.931664628 | AL92: =IF($I92 >0, MIN(AK92,$I92-SUM($W92:AK92)), MAX(AK92,$I92-SUM($W92:AK92))) -> 2.931664628 | AM92: =IF($I92 >0, MIN(AL92,$I92-SUM($W92:AL92)), MAX(AL92,$I92-SUM($W92:AL92))) -> 2.931664628 | AN92: =IF($I92 >0, MIN(AM92,$I92-SUM($W92:AM92)), MAX(AM92,$I92-SUM($W92:AM92))) -> 2.931664628 | AO92: =IF($I92 >0, MIN(AN92,$I92-SUM($W92:AN92)), MAX(AN92,$I92-SUM($W92:AN92))) -> 2.931664628 | AP92: =IF($I92 >0, MIN(AO92,$I92-SUM($W92:AO92)), MAX(AO92,$I92-SUM($W92:AO92))) -> 2.931664628 | AQ92: =IF($I92 >0, MIN(AP92,$I92-SUM($W92:AP92)), MAX(AP92,$I92-SUM($W92:AP92))) -> 2.931664628 | AR92: =IF($I92 >0, MIN(AQ92,$I92-SUM($W92:AQ92)), MAX(AQ92,$I92-SUM($W92:AQ92))) -> 2.931664628 | AS92: =IF($I92 >0, MIN(AR92,$I92-SUM($W92:AR92)), MAX(AR92,$I92-SUM($W92:AR92))) -> 2.931664628 | AT92: =IF($I92 >0, MIN(AS92,$I92-SUM($W92:AS92)), MAX(AS92,$I92-SUM($W92:AS92))) -> 2.931664628
E93: 2016-03-31 | G93: £m 18/19 prices | I93: 141.9941173 | AK93: =$I93 / $I$74 -> 3.15542483 | AL93: =IF($I93 >0, MIN(AK93,$I93-SUM($W93:AK93)), MAX(AK93,$I93-SUM($W93:AK93))) -> 3.15542483 | AM93: =IF($I93 >0, MIN(AL93,$I93-SUM($W93:AL93)), MAX(AL93,$I93-SUM($W93:AL93))) -> 3.15542483 | AN93: =IF($I93 >0, MIN(AM93,$I93-SUM($W93:AM93)), MAX(AM93,$I93-SUM($W93:AM93))) -> 3.15542483 | AO93: =IF($I93 >0, MIN(AN93,$I93-SUM($W93:AN93)), MAX(AN93,$I93-SUM($W93:AN93))) -> 3.15542483 | AP93: =IF($I93 >0, MIN(AO93,$I93-SUM($W93:AO93)), MAX(AO93,$I93-SUM($W93:AO93))) -> 3.15542483 | AQ93: =IF($I93 >0, MIN(AP93,$I93-SUM($W93:AP93)), MAX(AP93,$I93-SUM($W93:AP93))) -> 3.15542483 | AR93: =IF($I93 >0, MIN(AQ93,$I93-SUM($W93:AQ93)), MAX(AQ93,$I93-SUM($W93:AQ93))) -> 3.15542483 | AS93: =IF($I93 >0, MIN(AR93,$I93-SUM($W93:AR93)), MAX(AR93,$I93-SUM($W93:AR93))) -> 3.15542483 | AT93: =IF($I93 >0, MIN(AS93,$I93-SUM($W93:AS93)), MAX(AS93,$I93-SUM($W93:AS93))) -> 3.15542483
E94: 2017-03-31 | G94: £m 18/19 prices | I94: 148.9755571 | AL94: =$I94 / $I$74 -> 3.310567937 | AM94: =IF($I94 >0, MIN(AL94,$I94-SUM($W94:AL94)), MAX(AL94,$I94-SUM($W94:AL94))) -> 3.310567937 | AN94: =IF($I94 >0, MIN(AM94,$I94-SUM($W94:AM94)), MAX(AM94,$I94-SUM($W94:AM94))) -> 3.310567937 | AO94: =IF($I94 >0, MIN(AN94,$I94-SUM($W94:AN94)), MAX(AN94,$I94-SUM($W94:AN94))) -> 3.310567937 | AP94: =IF($I94 >0, MIN(AO94,$I94-SUM($W94:AO94)), MAX(AO94,$I94-SUM($W94:AO94))) -> 3.310567937 | AQ94: =IF($I94 >0, MIN(AP94,$I94-SUM($W94:AP94)), MAX(AP94,$I94-SUM($W94:AP94))) -> 3.310567937 | AR94: =IF($I94 >0, MIN(AQ94,$I94-SUM($W94:AQ94)), MAX(AQ94,$I94-SUM($W94:AQ94))) -> 3.310567937 | AS94: =IF($I94 >0, MIN(AR94,$I94-SUM($W94:AR94)), MAX(AR94,$I94-SUM($W94:AR94))) -> 3.310567937 | AT94: =IF($I94 >0, MIN(AS94,$I94-SUM($W94:AS94)), MAX(AS94,$I94-SUM($W94:AS94))) -> 3.310567937
E95: 2018-03-31 | G95: £m 18/19 prices | I95: 162.1920663 | AM95: =$I95 / $I$74 -> 3.60426814 | AN95: =IF($I95 >0, MIN(AM95,$I95-SUM($W95:AM95)), MAX(AM95,$I95-SUM($W95:AM95))) -> 3.60426814 | AO95: =IF($I95 >0, MIN(AN95,$I95-SUM($W95:AN95)), MAX(AN95,$I95-SUM($W95:AN95))) -> 3.60426814 | AP95: =IF($I95 >0, MIN(AO95,$I95-SUM($W95:AO95)), MAX(AO95,$I95-SUM($W95:AO95))) -> 3.60426814 | AQ95: =IF($I95 >0, MIN(AP95,$I95-SUM($W95:AP95)), MAX(AP95,$I95-SUM($W95:AP95))) -> 3.60426814 | AR95: =IF($I95 >0, MIN(AQ95,$I95-SUM($W95:AQ95)), MAX(AQ95,$I95-SUM($W95:AQ95))) -> 3.60426814 | AS95: =IF($I95 >0, MIN(AR95,$I95-SUM($W95:AR95)), MAX(AR95,$I95-SUM($W95:AR95))) -> 3.60426814 | AT95: =IF($I95 >0, MIN(AS95,$I95-SUM($W95:AS95)), MAX(AS95,$I95-SUM($W95:AS95))) -> 3.60426814
E96: 2019-03-31 | G96: £m 18/19 prices | I96: 158.4101727 | AN96: =$I96 / $I$74 -> 3.52022606 | AO96: =IF($I96 >0, MIN(AN96,$I96-SUM($W96:AN96)), MAX(AN96,$I96-SUM($W96:AN96))) -> 3.52022606 | AP96: =IF($I96 >0, MIN(AO96,$I96-SUM($W96:AO96)), MAX(AO96,$I96-SUM($W96:AO96))) -> 3.52022606 | AQ96: =IF($I96 >0, MIN(AP96,$I96-SUM($W96:AP96)), MAX(AP96,$I96-SUM($W96:AP96))) -> 3.52022606 | AR96: =IF($I96 >0, MIN(AQ96,$I96-SUM($W96:AQ96)), MAX(AQ96,$I96-SUM($W96:AQ96))) -> 3.52022606 | AS96: =IF($I96 >0, MIN(AR96,$I96-SUM($W96:AR96)), MAX(AR96,$I96-SUM($W96:AR96))) -> 3.52022606 | AT96: =IF($I96 >0, MIN(AS96,$I96-SUM($W96:AS96)), MAX(AS96,$I96-SUM($W96:AS96))) -> 3.52022606
E97: 2020-03-31 | G97: £m 18/19 prices | I97: 190.652708 | AO97: =$I97 / $I$74 -> 4.236726845 | AP97: =IF($I97 >0, MIN(AO97,$I97-SUM($W97:AO97)), MAX(AO97,$I97-SUM($W97:AO97))) -> 4.236726845 | AQ97: =IF($I97 >0, MIN(AP97,$I97-SUM($W97:AP97)), MAX(AP97,$I97-SUM($W97:AP97))) -> 4.236726845 | AR97: =IF($I97 >0, MIN(AQ97,$I97-SUM($W97:AQ97)), MAX(AQ97,$I97-SUM($W97:AQ97))) -> 4.236726845 | AS97: =IF($I97 >0, MIN(AR97,$I97-SUM($W97:AR97)), MAX(AR97,$I97-SUM($W97:AR97))) -> 4.236726845 | AT97: =IF($I97 >0, MIN(AS97,$I97-SUM($W97:AS97)), MAX(AS97,$I97-SUM($W97:AS97))) -> 4.236726845
E98: 2021-03-31 | G98: £m 18/19 prices | I98: 215.6004346 | AP98: =$I98 / $I$74 -> 4.791120769 | AQ98: =IF($I98 >0, MIN(AP98,$I98-SUM($W98:AP98)), MAX(AP98,$I98-SUM($W98:AP98))) -> 4.791120769 | AR98: =IF($I98 >0, MIN(AQ98,$I98-SUM($W98:AQ98)), MAX(AQ98,$I98-SUM($W98:AQ98))) -> 4.791120769 | AS98: =IF($I98 >0, MIN(AR98,$I98-SUM($W98:AR98)), MAX(AR98,$I98-SUM($W98:AR98))) -> 4.791120769 | AT98: =IF($I98 >0, MIN(AS98,$I98-SUM($W98:AS98)), MAX(AS98,$I98-SUM($W98:AS98))) -> 4.791120769
E99: 2022-03-31 | G99: £m 18/19 prices | I99: 202.0228964 | AQ99: =$I99 / $I$74 -> 4.489397698 | AR99: =IF($I99 >0, MIN(AQ99,$I99-SUM($W99:AQ99)), MAX(AQ99,$I99-SUM($W99:AQ99))) -> 4.489397698 | AS99: =IF($I99 >0, MIN(AR99,$I99-SUM($W99:AR99)), MAX(AR99,$I99-SUM($W99:AR99))) -> 4.489397698 | AT99: =IF($I99 >0, MIN(AS99,$I99-SUM($W99:AS99)), MAX(AS99,$I99-SUM($W99:AS99))) -> 4.489397698
E100: 2023-03-31 | G100: £m 18/19 prices | I100: 207.6832363 | AR100: =$I100 / $I$74 -> 4.615183029 | AS100: =IF($I100 >0, MIN(AR100,$I100-SUM($W100:AR100)), MAX(AR100,$I100-SUM($W100:AR100))) -> 4.615183029 | AT100: =IF($I100 >0, MIN(AS100,$I100-SUM($W100:AS100)), MAX(AS100,$I100-SUM($W100:AS100))) -> 4.615183029
E101: 2024-03-31 | G101: £m 18/19 prices | I101: 209.3213899 | AS101: =$I101 / $I$74 -> 4.651586442 | AT101: =IF($I101 >0, MIN(AS101,$I101-SUM($W101:AS101)), MAX(AS101,$I101-SUM($W101:AS101))) -> 4.651586442
E102: 2025-03-31 | G102: £m 18/19 prices | I102: 219.3079679 | AT102: =$I102 / $I$74 -> 4.873510397
E103: 2026-03-31 | G103: £m 18/19 prices | I103: 220.5597169
C105: Accelerated RAV differential post-vesting depreciation
C106: Note: The RAV differential accumulated from the straight line and sum-of-digit schedules above is released after the start of RIIO over an input smoothing profile.
D108: Depreciation parameters
E110: Smoothing period starting year | G110: year ending | I110: =Input!I550 -> 2014-03-31
E111: RAV differential is accruing differences | G111: flag | J111: > | X111: =IF(X$4 < $I110, 1, 0 ) -> 1 | Y111: 1 | Z111: 1 | AA111: 1 | AB111: 1 | AC111: 1 | AD111: 1 | AE111: 1 | AF111: 1 | AG111: 1 | AH111: 0 | AI111: 0 | AJ111: 0 | AK111: 0 | AL111: 0 | AM111: 0 | AN111: 0 | AO111: 0 | AP111: =IF(AP$4 < $I110, 1, 0 ) -> 0 | AQ111: =IF(AQ$4 < $I110, 1, 0 ) -> 0 | AR111: =IF(AR$4 < $I110, 1, 0 ) -> 0 | AS111: =IF(AS$4 < $I110, 1, 0 ) -> 0 | AT111: =IF(AT$4 < $I110, 1, 0 ) -> 0
E112: Smoothing profile for recovery of backlog depreciation | G112: % | AH112: =Input!AH549 -> 0.15 | AI112: =Input!AI549 -> 0.15 | AJ112: =Input!AJ549 -> 0.025 | AK112: =Input!AK549 -> 0 | AL112: =Input!AL549 -> 0.05 | AM112: =Input!AM549 -> 0.125 | AN112: =Input!AN549 -> 0.2 | AO112: =Input!AO549 -> 0.3 | AP112: =Input!AP549 -> 0 | AQ112: =Input!AQ549 -> 0 | AR112: =Input!AR549 -> 0 | AS112: =Input!AS549 -> 0 | AT112: =Input!AT549 -> 0
D114: Depreciation schedule
E116: RAV differential depreciation of additions from year ending | I116: RAV differential
